Workbook

Sheet TOC
A1: =Div -> State of Nevada Housing Division | D1: =ProjName -> 0
A2: =nhd -> 2017 NHD FUNDING APPLICATION
A3: TABLE OF CONTENTS
A6: TOC
A7: Instructions
A8: 1 Project Information
A9: 2 Self-Scoring
A10: 3 Appl Frac
A11: 4 Utilities
A12: 5 Distr & Rent
A13: 6 Financing
A14: 7 Syndication
A15: 8 Set-Aside Election
A16: 9 Sources incl TC
A17: 10 Uses
A18: 11 Opt Inc & Exp
A19: 12 Pro Forma
A20: 13 Reserves
A21: 14 Amenities
A22: 15 Proj Sched
A23: 16a Mkt
A24: 16b Mkt
A25: 16c Mkt
A26: 17 Compliance
A27: 18 Prop Mgt
A28: 19 AcqRehabConv
A29: 20 Mxd Inc Project Analysis
A30: Blank

Sheet Instructions
A1: =Div -> State of Nevada Housing Division | H1: =ProjName -> 0 | M1: =(IF(IsLocked(A1)*1=1,1,0)) -> 1 | N1: =(IF(IsLocked(B1)*1=1,1,0)) -> 1 | O1: =(IF(IsLocked(C1)*1=1,1,0)) -> 1 | P1: =(IF(IsLocked(D1)*1=1,1,0)) -> 1 | Q1: =(IF(IsLocked(E1)*1=1,1,0)) -> 1 | R1: =(IF(IsLocked(F1)*1=1,1,0)) -> 1 | S1: =(IF(IsLocked(G1)*1=1,1,0)) -> 1 | T1: =(IF(IsLocked(#REF!)*1=1,1,0)) ->  | U1: =(IF(IsLocked(H1)*1=1,1,0)) -> 1 | V1: =(IF(IsLocked(J1)*1=1,1,0)) -> 1 | W1: =(IF(IsLocked(K1)*1=1,1,0)) -> 1
A2: =nhd -> 2017 NHD FUNDING APPLICATION | H2: TOC | M2: =(IF(IsLocked(A2)*1=1,1,0)) -> 1 | N2: 1 | O2: 1 | P2: 1 | Q2: 1 | R2: 1 | S2: 1 | T2: =(IF(IsLocked(#REF!)*1=1,1,0)) ->  | U2: =(IF(IsLocked(H2)*1=1,1,0)) -> 1 | V2: 1 | W2: 1
A3: INSTRUCTIONS FOR EXCEL SECTIONS | J3: OUTSIDE OF PRINT RANGE | M3: 1 | N3: 1 | O3: 1 | P3: 1 | Q3: 1 | R3: 1 | S3: 1 | T3: =(IF(IsLocked(H3)*1=1,1,0)) -> 1 | U3: =(IF(IsLocked(I3)*1=1,1,0)) -> 1 | V3: 1 | W3: 1
J4: Term | M4: 1 | N4: 1 | O4: 1 | P4: 1 | Q4: 1 | R4: 1 | S4: 1 | T4: 1 | U4: 1 | V4: 1 | W4: 1
B5: The purpose behind creating these worksheets in Excel is to make it easier for developers to complete
B6: the application and to enable staff to more easily underwrite and review applications as required.
B7: Only those sections are included here which require a large amount of numeric entries. | M7: 1 | N7: 1 | O7: 1 | P7: 1 | Q7: 1 | R7: 1 | S7: 1 | T7: 1 | U7: 1 | V7: 1 | W7: 1
B8: All cells NOT filled in yellow should NOT be written into or over. Doing so may negatively affect the file | M8: 1 | N8: 1 | O8: 1 | P8: 1 | Q8: 1 | R8: 1 | S8: 1 | T8: 1 | U8: 1 | V8: 1 | W8: 1
B9: and delay underwriting your application. | M9: 1 | N9: 1 | O9: 1 | P9: 1 | Q9: 1 | R9: 1 | S9: 1 | T9: 1 | U9: 1 | V9: 1 | W9: 1
B10: To reduce error risk, and where applicable, consider linking from cells on any sheet to cells on other sheets. | M10: 1 | N10: 1 | O10: 1 | P10: 1 | Q10: 1 | R10: 1 | S10: 1 | T10: 1 | U10: 1 | V10: 1 | W10: 1
M11: 1 | N11: 1 | O11: 1 | P11: 1 | Q11: 1 | R11: 1 | S11: 1 | T11: 1 | U11: 1 | V11: 1 | W11: 1
B12: Note cell comments in this file. You can detect them from the red triangle in the upper right hand corner | M12: 1 | N12: 1 | O12: 1 | P12: 1 | Q12: 1 | R12: 1 | S12: 1 | T12: 1 | U12: 1 | V12: 1 | W12: 1
B13: of the cells where they are present (e.g., See above cell). They are intended to explain that cell or area of this file. | M13: 1 | N13: 1 | O13: 1 | P13: 1 | Q13: 1 | R13: 1 | S13: 1 | T13: 1 | U13: 1 | V13: 1 | W13: 1
B14: WARNING: If you select all sheets when printing--be sure to deselect all sheets after printing. Otherwise | M14: 1 | N14: 1 | O14: 1 | P14: 1 | Q14: 1 | R14: 1 | S14: 1 | T14: 1 | U14: 1 | V14: 1 | W14: 1
B15: you risk what you enter on one sheet posting on the other sheets you selected and overwriting other things. | M15: 1 | N15: 1 | O15: 1 | P15: 1 | Q15: 1 | R15: 1 | S15: 1 | T15: 1 | U15: 1 | V15: 1 | W15: 1
M16: 1 | N16: 1 | O16: 1 | P16: 1 | Q16: 1 | R16: 1 | S16: 1 | T16: 1 | U16: 1 | V16: 1 | W16: 1
B17: APPLICATION DEADLINE (5:00 p.m.) | G17: =+Calendar!C11 -> 2017-05-05 | M17: 1 | N17: 1 | O17: 1 | P17: 1 | Q17: 1 | R17: 1 | S17: 1 | T17: 1 | U17: 1 | V17: 1 | W17: 1
B18: Pre-construction energy audits for all projects due within 90 days of receiving an allocation of LIHTCs. | M18: 1 | N18: 1 | O18: 1 | P18: 1 | Q18: 1 | R18: 1 | S18: 1 | T18: 1 | U18: 1 | V18: 1 | W18: 1
M19: 1 | N19: 1 | O19: 1 | P19: 1 | Q19: 1 | R19: 1 | S19: 1 | T19: 1 | U19: 1 | V19: 1 | W19: 1
B20: Yellow shaded cells | C20: Enter information into the shaded cells. | M20: 1 | N20: 0 | O20: 1 | P20: 1 | Q20: 1 | R20: 1 | S20: 1 | T20: 1 | U20: 1 | V20: 1 | W20: 1
B21: The 45 day basis boost request deadline: | G21: =+Calendar!C8 -> 2017-03-21 | M21: 1 | N21: 1 | O21: 1 | P21: 1 | Q21: 1 | R21: 1 | S21: 1 | T21: 1 | U21: 1 | V21: 1 | W21: 1
B22: For support using this spreadsheet contact Scott Hamlin, 702-486-5947, shamlin@housing.nv.gov or | M22: 1 | N22: 1 | O22: 1 | P22: 1 | Q22: 1 | R22: 1 | S22: 1 | T22: 1 | U22: 1 | V22: 1 | W22: 1
B23: Mark Licea, 702-486-5980, mlicea@housing.nv.gov | M23: 1 | N23: 1 | O23: 1 | P23: 1 | Q23: 1 | R23: 1 | S23: 1 | T23: 1 | U23: 1 | V23: 1 | W23: 1
M24: 1 | N24: 1 | O24: 1 | P24: 1 | Q24: 1 | R24: 1 | S24: 1 | T24: 1 | U24: 1 | V24: 1 | W24: 1
M25: 1 | N25: 1 | O25: 1 | P25: 1 | Q25: 1 | R25: 1 | S25: 1 | T25: 1 | U25: 1 | V25: 1 | W25: 1
M26: 1 | N26: 1 | O26: 1 | P26: 1 | Q26: 1 | R26: 1 | S26: 1 | T26: 1 | U26: 1 | V26: 1 | W26: 1
M27: 1 | N27: 1 | O27: 1 | P27: 1 | Q27: 1 | R27: 1 | S27: 1 | T27: 1 | U27: 1 | V27: 1 | W27: 1

Sheet Calendar (hidden)
A1: =Div -> State of Nevada Housing Division | C1: =ProjName -> 0
A2: =nhd -> 2017 NHD FUNDING APPLICATION | C2: DO NOT PRINT
A3: Calendar of Key Dates and Deadlines | C3: DATA FEED PAGE | E3: DO NOT PRINT
A4: =CELL("filename") -> R:\Programs\Tax Credits\Applications\2017 LIHTC Applications\[2017 NHD Application - Final.xlsm]14 Amenities
F6: Add for
E7: Days | F7: Fri/Mon
B8: Basis Boost request deadline (45 days prior to Application Deadline) | C8: =+$C$11+E8+F8 -> 2017-03-21 | E8: -45 | F8: 0
B9: Optional Application Pre Review (15 days prior to Application Deadline) | C9: =+$C$11+E9+F9 -> 2017-04-20 | E9: -15 | F9: 0
B11: 9% Tax Credit project Application Deadline to NHD by | C11: 2017-05-05
B12: Posting of applications general information received | C12: =+$C$11+E12+F12 -> 2017-05-19 | E12: 14 | F12: 0
B13: Issuance of Notice of Reservations by | C13: 2017-06-30 | E13: 56 | F13: 0
B14: Carryover Allocation notice | C14: =+$C$13+E14+F14 -> 2017-11-05 | E14: 128 | F14: 0
B15: Carryover allocation request information due by | C15: =+$C$13+E15+F15 -> 2017-07-30 | E15: 30 | F15: 0
B16: Carryover allocations issued by (approximate) | C16: 2017-11-03 | E16: 182 | F16: 0
B17: Proof of satisfaction of 10% test due by (approximate) | C17: 2017-11-03 | E17: 180 | F17: 2
B18: Estimated 270 Day Rule start date (approximate) | C18: 2017-07-19 | E18: 75 | F18: 0
B19: Estimated 270 Day Deadline documentation due (approximate) | C19: 2018-01-30 | E19: 270 | F19: 0
B25: Your specific date may vary. Confirm your actual date with any specific documention received for your project.
B26: Calendar day count deadlines falling on a Saturday or Sunday or holiday will be effective the first working day thereafter.

Sheet 1 Project Information
A1: State of Nevada Housing Division | G1: =ProjName -> 0 | K1: =(IF(IsLocked(A1)*1=1,1,0)) -> 1 | L1: =(IF(IsLocked(B1)*1=1,1,0)) -> 1 | M1: =(IF(IsLocked(C1)*1=1,1,0)) -> 1 | N1: =(IF(IsLocked(D1)*1=1,1,0)) -> 1 | O1: =(IF(IsLocked(E1)*1=1,1,0)) -> 1 | P1: =(IF(IsLocked(F1)*1=1,1,0)) -> 1 | Q1: =(IF(IsLocked(#REF!)*1=1,1,0)) ->  | R1: =(IF(IsLocked(H1)*1=1,1,0)) -> 1 | S1: 1
A2: 2017 NHD FUNDING APPLICATION | G2: TOC | K2: =(IF(IsLocked(A2)*1=1,1,0)) -> 1 | L2: =(IF(IsLocked(B2)*1=1,1,0)) -> 1 | M2: =(IF(IsLocked(C2)*1=1,1,0)) -> 1 | N2: =(IF(IsLocked(D2)*1=1,1,0)) -> 1 | O2: =(IF(IsLocked(E2)*1=1,1,0)) -> 1 | P2: =(IF(IsLocked(F2)*1=1,1,0)) -> 1 | Q2: =(IF(IsLocked(#REF!)*1=1,1,0)) ->  | R2: =(IF(IsLocked(#REF!)*1=1,1,0)) ->  | S2: =(IF(IsLocked(I2)*1=1,1,0)) -> 1
A3: PROJECT INFORMATION | K3: 1 | L3: 1 | M3: 1 | N3: 1 | O3: 1 | P3: 1 | Q3: =(IF(IsLocked(G1)*1=1,1,0)) -> 1 | R3: =(IF(IsLocked(H2)*1=1,1,0)) -> 1 | S3: 1
K4: 1 | L4: 1 | M4: 1 | N4: 1 | O4: 1 | P4: 1 | Q4: =(IF(IsLocked(G4)*1=1,1,0)) -> 1 | R4: =(IF(IsLocked(H4)*1=1,1,0)) -> 1 | S4: 1
K5: 1 | L5: 1 | M5: 1 | N5: 1 | O5: 1 | P5: 1 | Q5: 1 | R5: 1 | S5: 1
K6: 1 | L6: 1 | M6: 1 | N6: 1 | O6: 1 | P6: 1 | Q6: 1 | R6: 1 | S6: 1
K7: 1 | L7: 1 | M7: 1 | N7: 1 | O7: 1 | P7: 1 | Q7: 1 | R7: 1 | S7: 1
K8: 1 | L8: 1 | M8: 1 | N8: 1 | O8: 1 | P8: 1 | Q8: 1 | R8: 1 | S8: 1
K9: 1 | L9: 1 | M9: 1 | N9: 1 | O9: 1 | P9: 1 | Q9: 1 | R9: 1 | S9: 1
K10: 1 | L10: 1 | M10: 1 | N10: 1 | O10: 1 | P10: 1 | Q10: 1 | R10: 1 | S10: 1
K11: 1 | L11: 1 | M11: 1 | N11: 1 | O11: 1 | P11: 1 | Q11: 1 | R11: 1 | S11: 1
K12: 1 | L12: 1 | M12: 1 | N12: 1 | O12: 1 | P12: 1 | Q12: 1 | R12: 1 | S12: 1
K13: 1 | L13: 1 | M13: 1 | N13: 1 | O13: 1 | P13: 1 | Q13: 1 | R13: 1 | S13: 1
A14: Project Identification | K14: =(IF(IsLocked(A14)*1=1,1,0)) -> 1 | L14: =(IF(IsLocked(B14)*1=1,1,0)) -> 1 | M14: =(IF(IsLocked(C14)*1=1,1,0)) -> 1 | N14: =(IF(IsLocked(D14)*1=1,1,0)) -> 1 | O14: =(IF(IsLocked(E14)*1=1,1,0)) -> 1 | P14: =(IF(IsLocked(F14)*1=1,1,0)) -> 1 | Q14: =(IF(IsLocked(G14)*1=1,1,0)) -> 1 | R14: =(IF(IsLocked(H14)*1=1,1,0)) -> 1 | S14: =(IF(IsLocked(I14)*1=1,1,0)) -> 1
G15: Application Date | K15: 1 | L15: 1 | M15: 1 | N15: 1 | O15: 1 | P15: 1 | Q15: 1 | R15: 0 | S15: 1
G16: Application Closing Deadline | K16: 1 | L16: 1 | M16: 1 | N16: 1 | O16: 1 | P16: 1 | Q16: 1 | R16: 0 | S16: 1
A17: Project Name | K17: 1 | L17: 1 | M17: 1 | N17: 0 | O17: 0 | P17: 0 | Q17: 0 | R17: 0 | S17: 1
A18: Project Address/Location | K18: 1 | L18: 1 | M18: 1 | N18: 0 | O18: 0 | P18: 0 | Q18: 0 | R18: 0 | S18: 1
A19: Project City, County, Zip Code | K19: 1 | L19: 1 | M19: 1 | N19: 0 | O19: 0 | P19: 0 | Q19: 0 | R19: 0 | S19: 1
A20: Applicant/Organization Name | K20: 1 | L20: 1 | M20: 1 | N20: 0 | O20: 0 | P20: 0 | Q20: 0 | R20: 0 | S20: 1
A21: Co-Applicant/Org'n Name | K21: 1 | L21: 1 | M21: 1 | N21: 0 | O21: 0 | P21: 0 | Q21: 0 | R21: 0 | S21: 1
A22: Project Contact | F22: Contact Office Phone | K22: =(IF(IsLocked(A22)*1=1,1,0)) -> 1 | L22: =(IF(IsLocked(B22)*1=1,1,0)) -> 1 | M22: =(IF(IsLocked(C22)*1=1,1,0)) -> 1 | N22: =(IF(IsLocked(D22)*1=1,1,0)) -> 0 | O22: =(IF(IsLocked(E22)*1=1,1,0)) -> 1 | P22: =(IF(IsLocked(F22)*1=1,1,0)) -> 1 | Q22: =(IF(IsLocked(G22)*1=1,1,0)) -> 0 | R22: =(IF(IsLocked(H22)*1=1,1,0)) -> 0 | S22: =(IF(IsLocked(I22)*1=1,1,0)) -> 1
A23: Contact Title | F23: Contact Cell Phone | K23: 1 | L23: 1 | M23: 1 | N23: 0 | O23: 1 | P23: 1 | Q23: 0 | R23: 0 | S23: 1
A24: Federal Tax ID Number | K24: 1 | L24: 1 | M24: 1 | N24: 0 | O24: 0 | P24: 1 | Q24: 1 | R24: 1 | S24: 1
A25: (The Federal Tax ID # must be received prior to carryover) | K25: 1 | L25: 1 | M25: 1 | N25: 1 | O25: 1 | P25: 1 | Q25: 1 | R25: 1 | S25: 1
A26: Type of Entity | K26: 1 | L26: 1 | M26: 1 | N26: 0 | O26: 0 | P26: 0 | Q26: 0 | R26: 0 | S26: 1
A27: Legal Status | K27: 1 | L27: 1 | M27: 1 | N27: 0 | O27: 0 | P27: 0 | Q27: 0 | R27: 0 | S27: 1
A28: Non-Profit Status | K28: 1 | L28: 1 | M28: 1 | N28: 0 | O28: 0 | P28: 0 | Q28: 0 | R28: 0 | S28: 1
K29: 1 | L29: 1 | M29: 1 | N29: 0 | O29: 0 | P29: 0 | Q29: 0 | R29: 0 | S29: 1
A30: Project Information | K30: 1 | L30: 1 | M30: 1 | N30: 1 | O30: 1 | P30: 1 | Q30: 1 | R30: 1 | S30: 1
K31: =(IF(IsLocked(A31)*1=1,1,0)) -> 1 | L31: =(IF(IsLocked(B31)*1=1,1,0)) -> 1 | M31: =(IF(IsLocked(C31)*1=1,1,0)) -> 1 | N31: =(IF(IsLocked(D31)*1=1,1,0)) -> 1 | O31: =(IF(IsLocked(E31)*1=1,1,0)) -> 1 | P31: =(IF(IsLocked(F31)*1=1,1,0)) -> 1 | Q31: =(IF(IsLocked(G31)*1=1,1,0)) -> 1 | R31: =(IF(IsLocked(H31)*1=1,1,0)) -> 1 | S31: =(IF(IsLocked(I31)*1=1,1,0)) -> 1
A32: Assessor's Parcel Number(s) | K32: 1 | L32: 1 | M32: 1 | N32: 0 | O32: 0 | P32: 0 | Q32: 0 | R32: 0 | S32: 1
A33: Census Tract Number | E33: QCT | F33: SADDA | K33: 1 | L33: 1 | M33: 0 | N33: =(IF(IsLocked(E33)*1=1,1,0)) -> 1 | O33: =(IF(IsLocked(#REF!)*1=1,1,0)) ->  | P33: 1 | Q33: 1 | R33: 0 | S33: 1
A34: State Senate District | C34: State Assembly District | E34: Congressional District | G34: US Senator | K34: 1 | L34: 1 | M34: 1 | N34: 1 | O34: 1 | P34: 1 | Q34: 1 | R34: 1 | S34: 1
K35: =(IF(IsLocked(A35)*1=1,1,0)) -> 1 | L35: =(IF(IsLocked(B35)*1=1,1,0)) -> 0 | M35: =(IF(IsLocked(C35)*1=1,1,0)) -> 1 | N35: =(IF(IsLocked(D35)*1=1,1,0)) -> 0 | O35: =(IF(IsLocked(E35)*1=1,1,0)) -> 1 | P35: =(IF(IsLocked(F35)*1=1,1,0)) -> 0 | Q35: =(IF(IsLocked(G35)*1=1,1,0)) -> 1 | R35: =(IF(IsLocked(H35)*1=1,1,0)) -> 0 | S35: =(IF(IsLocked(I35)*1=1,1,0)) -> 1
K36: 1 | L36: 1 | M36: 1 | N36: 1 | O36: 1 | P36: 1 | Q36: 1 | R36: 1 | S36: 1
A37: Project part of master plan? | K37: 1 | L37: 1 | M37: 1 | N37: 1 | O37: 1 | P37: 1 | Q37: 1 | R37: 1 | S37: 1
A38: Total Units (Incl' Mgrs Units) | E38: Acres (Gross) | K38: 1 | L38: 1 | M38: 1 | N38: 0 | O38: 1 | P38: 0 | Q38: 1 | R38: 1 | S38: 1
A39: Land Cost | E39: Date Closed | K39: 1 | L39: 1 | M39: 1 | N39: 0 | O39: 1 | P39: 0 | Q39: 0 | R39: 1 | S39: 1
A40: Total Parking Spaces | E40: Density: | F40: =IF(OR(D38=0,F38=0),0,D38/F38) -> 0 | G40: Spaces/u | H40: =IF(OR(D38=0,D40=0),0,D40/D38) -> 0 | K40: 1 | L40: 1 | M40: 1 | N40: 0 | O40: 1 | P40: 1 | Q40: 1 | R40: 1 | S40: 1
A41: Funding/Financing Requested (Amount): | E41: Request/unit | K41: 1 | L41: 1 | M41: 1 | N41: 1 | O41: 1 | P41: 1 | Q41: 1 | R41: 1 | S41: 1
A42: 9% Tax Credits Requested | E42: =IF(AND($D$38>=1,D42>=1),D42/TotUnits,0) -> 0 | F42: Other: | K42: 1 | L42: 1 | M42: 1 | N42: 0 | O42: 1 | P42: 1 | Q42: 0 | R42: 0 | S42: 1
A43: 4% Tax Credits Requested | E43: =IF(AND($D$38>=1,D43>=1),D43/TotUnits,0) -> 0 | F43: Other: | K43: 1 | L43: 1 | M43: 1 | N43: 0 | O43: 1 | P43: 1 | Q43: 0 | R43: 0 | S43: 1
A44: Tax-exempt bond volume cap | E44: =IF(AND($D$38>=1,D44>=1),D44/TotUnits,0) -> 0 | F44: Other: | K44: 1 | L44: 1 | M44: 1 | N44: 0 | O44: 1 | P44: 1 | Q44: 0 | R44: 0 | S44: 1
A45: Total Project Costs | K45: 1 | L45: 1 | M45: 1 | N45: 0 | O45: 1 | P45: 1 | Q45: 0 | R45: 0 | S45: 1
A46: Set Aside (20/50 or 40/60) | K46: 1 | L46: 1 | M46: 1 | N46: 1 | O46: 1 | P46: 1 | Q46: 1 | R46: 1 | S46: 1
K47: 1 | L47: 1 | M47: 1 | N47: 1 | O47: 1 | P47: 1 | Q47: 1 | R47: 1 | S47: 1
A48: Application Type, Governmental Funding Source and Set-Aside/Geographical Apportionment | K48: 1 | L48: 1 | M48: 1 | N48: 1 | O48: 1 | P48: 1 | Q48: 1 | R48: 1 | S48: 1
K49: 1 | L49: 1 | M49: 1 | N49: 1 | O49: 1 | P49: 1 | Q49: 1 | R49: 1 | S49: 1
A50: Application for: | C50: 9% LIHTC | E50: 4% LIHTC with Federal Funds | K50: 1 | L50: 1 | M50: 1 | N50: 1 | O50: 1 | P50: 1 | Q50: 1 | R50: 1 | S50: 1
E51: Tax Exempt Bond/Tax Credit | K51: 1 | L51: 1 | M51: 1 | N51: 1 | O51: 1 | P51: 1 | Q51: 1 | R51: 1 | S51: 1
K52: 1 | L52: 1 | M52: 1 | N52: 1 | O52: 1 | P52: 1 | Q52: 1 | R52: 1 | S52: 1
A53: Project type: | C53: New construction | E53: Acquisition/Rehab | K53: 1 | L53: 1 | M53: 1 | N53: 1 | O53: 1 | P53: 1 | Q53: 1 | R53: 1 | S53: 1
K54: 1 | L54: 1 | M54: 1 | N54: 1 | O54: 1 | P54: 1 | Q54: 1 | R54: 1 | S54: 1
A55: Governmental Funding: | K55: 1 | L55: 1 | M55: 1 | N55: 1 | O55: 1 | P55: 1 | Q55: 1 | R55: 1 | S55: 1
C56: HOME | E56: Local Authority | K56: 1 | L56: 1 | M56: 1 | N56: 1 | O56: 1 | P56: 1 | Q56: 1 | R56: 1 | S56: 1
C57: General Revenue Trust | E57: Other (Explain type and amount)* | K57: 1 | L57: 1 | M57: 1 | N57: 1 | O57: 1 | P57: 1 | Q57: 1 | R57: 1 | S57: 1
K58: 0 | L58: 0 | M58: 0 | N58: 0 | O58: 0 | P58: 0 | Q58: 0 | R58: 0 | S58: 1
K59: 0 | L59: 0 | M59: 0 | N59: 0 | O59: 0 | P59: 0 | Q59: 0 | R59: 0 | S59: 1
K60: 0 | L60: 0 | M60: 0 | N60: 0 | O60: 0 | P60: 0 | Q60: 0 | R60: 0 | S60: 1
A61: (Check all set asides you are applying under) Set Aside: | K61: 1 | L61: 1 | M61: 1 | N61: 1 | O61: 1 | P61: 1 | Q61: 1 | R61: 1 | S61: 1
C62: Non-Profit | E62: Supportive Housing Set-Aside | K62: 1 | L62: 1 | M62: 1 | N62: 1 | O62: 1 | P62: 1 | Q62: 1 | R62: 1 | S62: 1
C63: USDA-RD | K63: 1 | L63: 1 | M63: 1 | N63: 1 | O63: 1 | P63: 1 | Q63: 1 | R63: 1 | S63: 1
K64: 1 | L64: 1 | M64: 1 | N64: 1 | O64: 1 | P64: 1 | Q64: 1 | R64: 1 | S64: 1
A65: Geographical Apportionment: | K65: 1 | L65: 1 | M65: 1 | N65: 1 | O65: 1 | P65: 1 | Q65: 1 | R65: 1 | S65: 1
C66: Clark Co. | E66: Washoe Co. | G66: Other Counties* | K66: 1 | L66: 1 | M66: 1 | N66: 1 | O66: 1 | P66: 1 | Q66: 1 | R66: 1 | S66: 1
K67: 1 | L67: 1 | M67: 1 | N67: 1 | O67: 1 | P67: 1 | Q67: 1 | R67: 1 | S67: 1
A68: Project Redevelopment Area | K68: 1 | L68: 1 | M68: 1 | N68: 0 | O68: 0 | P68: 0 | Q68: 0 | R68: 0 | S68: 1
A69: Application Reviewed by (NHD) | K69: 1 | L69: 1 | M69: 1 | N69: 0 | O69: 0 | P69: 0 | Q69: 0 | R69: 0 | S69: 1
K70: 1 | L70: 1 | M70: 1 | N70: 1 | O70: 1 | P70: 1 | Q70: 1 | R70: 1 | S70: 1
C71: HOME | E71: Section 8 | G71: Farmers Home | K71: 1 | L71: 1 | M71: 1 | N71: 1 | O71: 1 | P71: 1 | Q71: 1 | R71: 1 | S71: 1
K72: 1 | L72: 1 | M72: 1 | N72: 1 | O72: 1 | P72: 1 | Q72: 1 | R72: 1 | S72: 1
A73: Are these funds to be treated as Federal Funds? | K73: 1 | L73: 1 | M73: 1 | N73: 1 | O73: 1 | P73: 1 | Q73: 1 | R73: 1 | S73: 1
A74: Are Preference Points for Project Location being claimed? | H74: QAP Section 14.8 | K74: 1 | L74: 1 | M74: 1 | N74: 1 | O74: 1 | P74: 1 | Q74: 1 | R74: 1 | S74: 1
A75: Are Preference Points for Extended Compliance Period being claimed? | H75: QAP Section 14.8 | K75: 1 | L75: 1 | M75: 1 | N75: 1 | O75: 1 | P75: 1 | Q75: 1 | R75: 1 | S75: 1
K76: 1 | L76: 1 | M76: 1 | N76: 1 | O76: 1 | P76: 1 | Q76: 1 | R76: 1 | S76: 1
A77: Minimum Compliance Period 30 years | K77: =(IF(IsLocked(A77)*1=1,1,0)) -> 1 | L77: =(IF(IsLocked(B77)*1=1,1,0)) -> 1 | M77: =(IF(IsLocked(C77)*1=1,1,0)) -> 1 | N77: =(IF(IsLocked(D77)*1=1,1,0)) -> 1 | O77: =(IF(IsLocked(E77)*1=1,1,0)) -> 1 | P77: =(IF(IsLocked(F77)*1=1,1,0)) -> 1 | Q77: =(IF(IsLocked(G77)*1=1,1,0)) -> 1 | R77: =(IF(IsLocked(H77)*1=1,1,0)) -> 1 | S77: =(IF(IsLocked(I77)*1=1,1,0)) -> 1
B78: Additional Compliance Years | E78: 0 | F78: Total Restricted Use Years: | I78: =+E78+30 -> 30 | K78: 1 | L78: 1 | M78: 1 | N78: 1 | O78: 0 | P78: 1 | Q78: 1 | R78: 1 | S78: 1
K79: 1 | L79: 1 | M79: 1 | N79: 1 | O79: 1 | P79: 1 | Q79: 1 | R79: 1 | S79: 1
C80: RTC | E80: State Tax Credit | G80: <-- keep these | K80: 1 | L80: 1 | M80: 1 | N80: 1 | O80: 1 | P80: 1 | Q80: 1 | R80: 1 | S80: 1
K81: 1 | L81: 1 | M81: 1 | N81: 1 | O81: 1 | P81: 1 | Q81: 1 | R81: 1 | S81: 1
K82: 1 | L82: 1 | M82: 1 | N82: 1 | O82: 1 | P82: 1 | Q82: 1 | R82: 1 | S82: 1
K83: 1 | L83: 1 | M83: 1 | N83: 1 | O83: 1 | P83: 1 | Q83: 1 | R83: 1 | S83: 1
A84: Is there an Identity of Interest? | K84: 1 | L84: 1 | M84: 1 | N84: 1 | O84: 1 | P84: 1 | Q84: 1 | R84: 1 | S84: 1
K85: =(IF(IsLocked(A85)*1=1,1,0)) -> 1 | L85: =(IF(IsLocked(B85)*1=1,1,0)) -> 1 | M85: =(IF(IsLocked(C85)*1=1,1,0)) -> 1 | N85: =(IF(IsLocked(D85)*1=1,1,0)) -> 1 | O85: =(IF(IsLocked(E85)*1=1,1,0)) -> 1 | P85: =(IF(IsLocked(F85)*1=1,1,0)) -> 1 | Q85: =(IF(IsLocked(G85)*1=1,1,0)) -> 1 | R85: =(IF(IsLocked(H85)*1=1,1,0)) -> 1 | S85: =(IF(IsLocked(I85)*1=1,1,0)) -> 1
A86: If Yes, explain: | K86: 1 | L86: 1 | M86: 0 | N86: 0 | O86: 0 | P86: 0 | Q86: 0 | R86: 0 | S86: 0
K87: 1 | L87: 1 | M87: 0 | N87: 0 | O87: 0 | P87: 0 | Q87: 0 | R87: 0 | S87: 0
K88: 1 | L88: 1 | M88: 0 | N88: 0 | O88: 0 | P88: 0 | Q88: 0 | R88: 0 | S88: 0
K89: 1 | L89: 1 | M89: 1 | N89: 1 | O89: 1 | P89: 1 | Q89: 1 | R89: 1 | S89: 1
K90: 1 | L90: 1 | M90: 1 | N90: 1 | O90: 1 | P90: 1 | Q90: 1 | R90: 1 | S90: 1
A91: Are State or County Taxes to be abated? | K91: =(IF(IsLocked(A91)*1=1,1,0)) -> 1 | L91: =(IF(IsLocked(B91)*1=1,1,0)) -> 1 | M91: =(IF(IsLocked(C91)*1=1,1,0)) -> 1 | N91: =(IF(IsLocked(D91)*1=1,1,0)) -> 1 | O91: =(IF(IsLocked(E91)*1=1,1,0)) -> 1 | P91: =(IF(IsLocked(F91)*1=1,1,0)) -> 1 | Q91: =(IF(IsLocked(G91)*1=1,1,0)) -> 1 | R91: =(IF(IsLocked(H91)*1=1,1,0)) -> 1 | S91: =(IF(IsLocked(I91)*1=1,1,0)) -> 1
A92: If yes, estimate annual tax abatement: | K92: 1 | L92: 1 | M92: 1 | N92: 1 | O92: 0 | P92: 1 | Q92: 1 | R92: 1 | S92: 1
K93: 1 | L93: 1 | M93: 1 | N93: 1 | O93: 1 | P93: 1 | Q93: 1 | R93: 1 | S93: 1
K94: 1 | L94: 1 | M94: 1 | N94: 1 | O94: 1 | P94: 1 | Q94: 1 | R94: 1 | S94: 1
A95: Rent Restrictions: Is this a Mixed-Income project? | K95: 1 | L95: 1 | M95: 1 | N95: 1 | O95: 1 | P95: =(IF(IsLocked(A96)*1=1,1,0)) -> 1 | Q95: 1 | R95: 1 | S95: 1
A96: If yes | B96: Complete Mixed-Income Project Certification
K97: 1 | L97: 1 | M97: 1 | N97: 1 | O97: 1 | P97: 1 | Q97: 1 | R97: 1 | S97: 1
A98: Tax Credit Unit Covenants | K98: 1 | L98: 1 | M98: 1 | N98: 1 | O98: 1 | P98: 1 | Q98: 1 | R98: 1 | S98: 1
C99: % of AAMI | E99: or Max rents @ | K99: 1 | L99: 1 | M99: 1 | N99: 1 | O99: 1 | P99: 1 | Q99: 1 | R99: 1 | S99: 1
A100: Units | B100: %Units | C100: w/Rents @ | D100: w/Income @ | E100: Rents: 0br | F100: 1br | G100: 2br | H100: 3br | I100: 4br | K100: 1 | L100: 1 | M100: 1 | N100: 1 | O100: 1 | P100: 1 | Q100: 1 | R100: 1 | S100: 1
A101: 0 | B101: =IF(A101=0,0,A101/A$108) -> 0 | C101: 0 | D101: 0 | E101: 0 | F101: 0 | G101: 0 | H101: 0 | I101: 0 | K101: 0 | L101: 1 | M101: 0 | N101: 0 | O101: 0 | P101: 0 | Q101: 0 | R101: 0 | S101: 0
A102: 0 | B102: =IF(A102=0,0,A102/A$108) -> 0 | C102: 0 | D102: 0 | E102: 0 | F102: 0 | G102: 0 | H102: 0 | I102: 0 | K102: 0 | L102: 1 | M102: 0 | N102: 0 | O102: 0 | P102: 0 | Q102: 0 | R102: 0 | S102: 0
A103: 0 | B103: 0 | C103: 0 | D103: 0 | E103: 0 | F103: 0 | G103: 0 | H103: 0 | I103: 0 | K103: 0 | L103: 1 | M103: 0 | N103: 0 | O103: 0 | P103: 0 | Q103: 0 | R103: 0 | S103: 0
A104: 0 | B104: 0 | C104: 0 | D104: 0 | E104: 0 | F104: 0 | G104: 0 | H104: 0 | I104: 0 | K104: 0 | L104: 1 | M104: 0 | N104: 0 | O104: 0 | P104: 0 | Q104: 0 | R104: 0 | S104: 0
A105: 0 | B105: 0 | C105: 0 | D105: 0 | E105: 0 | F105: 0 | G105: 0 | H105: 0 | I105: 0 | K105: 0 | L105: 1 | M105: 0 | N105: 0 | O105: 0 | P105: 0 | Q105: 0 | R105: 0 | S105: 0
A106: 0 | B106: 0 | C106: 0 | D106: 0 | E106: 0 | F106: 0 | G106: 0 | H106: 0 | I106: 0 | K106: 0 | L106: 1 | M106: 0 | N106: 0 | O106: 0 | P106: 0 | Q106: 0 | R106: 0 | S106: 0
A107: 0 | B107: 0 | C107: 0 | D107: 0 | E107: 0 | F107: 0 | G107: 0 | H107: 0 | I107: 0 | K107: 0 | L107: 1 | M107: 0 | N107: 0 | O107: 0 | P107: 0 | Q107: 0 | R107: 0 | S107: 0
A108: =SUM(A101:A107) -> 0 | B108: =IF(A108=0,0,A108/A$108) -> 0 | K108: 1 | L108: 1 | M108: 1 | N108: 1 | O108: 1 | P108: 1 | Q108: 1 | R108: 1 | S108: 1
K109: 1 | L109: 1 | M109: 1 | N109: 1 | O109: 1 | P109: 1 | Q109: 1 | R109: 1 | S109: 1
A110: Are Preference Points for Low Rent Targeting being claimed? | H110: QAP Section 14.14.1 | K110: 1 | L110: 1 | M110: 1 | N110: 1 | O110: 1 | P110: 1 | Q110: 1 | R110: 1 | S110: 1
K111: 1 | L111: 1 | M111: 1 | N111: 1 | O111: 1 | P111: 1 | Q111: 1 | R111: 1 | S111: 1
A112: Description (and Site Information ) | K112: 1 | L112: 1 | M112: 1 | N112: 1 | O112: 1 | P112: 1 | Q112: 1 | R112: 1 | S112: 1
A113: Number of Buildings | C113: Tallest Building, # Floors | E113: Elevators | G113: Total # Elevators | K113: 1 | L113: 0 | M113: 1 | N113: 0 | O113: 1 | P113: 0 | Q113: 1 | R113: 0 | S113: 1
K114: 1 | L114: 1 | M114: 1 | N114: 1 | O114: 1 | P114: 1 | Q114: 1 | R114: 1 | S114: 1
A115: Building Type | C115: Single Building | E115: Row/Townhouse | G115: Multi-Family | K115: 1 | L115: 1 | M115: 1 | N115: 1 | O115: 1 | P115: 1 | Q115: 1 | R115: 1 | S115: 1
K116: 1 | L116: 1 | M116: 1 | N116: 1 | O116: 1 | P116: 1 | Q116: 1 | R116: 1 | S116: 1
A117: Building Format | C117: Single Family Detached | E117: Duplex | F117: Triplex | H117: Four-plex | K117: 1 | L117: 1 | M117: 1 | N117: 1 | O117: 1 | P117: 1 | Q117: 1 | R117: 1 | S117: 1
C118: Garden Apartment | K118: 1 | L118: 1 | M118: 1 | N118: 1 | O118: 1 | P118: 1 | Q118: 1 | R118: 1 | S118: 1
K119: 1 | L119: 1 | M119: 1 | N119: 1 | O119: 1 | P119: 1 | Q119: 1 | R119: 1 | S119: 1
A120: Foundation Type | C120: Slab on Grade | E120: Crawl Space | F120: Partial Basement | H120: Full Basement | K120: 1 | L120: 1 | M120: 1 | N120: 1 | O120: 1 | P120: 1 | Q120: 1 | R120: 1 | S120: 1
K121: 1 | L121: 1 | M121: 1 | N121: 1 | O121: 1 | P121: 1 | Q121: 1 | R121: 1 | S121: 1
A122: Project Type | H122: # Units Planned | I122: % Total | K122: 1 | L122: 1 | M122: 1 | N122: 1 | O122: 1 | P122: 1 | Q122: 1 | R122: 1 | S122: 1
A123: A. Senior Housing 55 and older | H123: 0 | I123: =IF(H123=0,0,+H123/$H$130) -> 0 | K123: 1 | L123: 1 | M123: 1 | N123: 1 | O123: 1 | P123: 1 | Q123: 1 | R123: 0 | S123: 1
A124: B. Special Needs* | H124: 0 | I124: =IF(H124=0,0,+H124/$H$130) -> 0 | K124: 1 | L124: 1 | M124: 1 | N124: 1 | O124: 1 | P124: 1 | Q124: 1 | R124: 0 | S124: 1
A125: C. Housing for Individuals | H125: 0 | I125: 0 | K125: 1 | L125: 1 | M125: 1 | N125: 1 | O125: 1 | P125: 1 | Q125: 1 | R125: 0 | S125: 1
A126: D. Housing for Individuals with Children/Families | H126: 0 | I126: 0 | K126: 1 | L126: 1 | M126: 1 | N126: 1 | O126: 1 | P126: 1 | Q126: 1 | R126: 0 | S126: 1
A127: E. Mixed Income | H127: 0 | I127: 0 | K127: 1 | L127: 1 | M127: 1 | N127: 1 | O127: 1 | P127: 1 | Q127: 1 | R127: 0 | S127: 1
A128: F. Mixed Use (or Multi-Use) | H128: 0 | I128: 0 | K128: 1 | L128: 1 | M128: 1 | N128: 1 | O128: 1 | P128: 1 | Q128: 1 | R128: 0 | S128: 1
A129: G. Supportive Housing Set-Aside | H129: 0 | I129: 0 | K129: 1 | L129: 1 | M129: 1 | N129: 1 | O129: 1 | P129: 1 | Q129: 1 | R129: 0 | S129: 1
F130: Total Units | H130: =SUM(H123:H129) -> 0 | I130: 0 | K130: 1 | L130: 1 | M130: 1 | N130: 1 | O130: 1 | P130: 1 | Q130: 1 | R130: 1 | S130: 1
K131: =(IF(IsLocked(A131)*1=1,1,0)) -> 1 | L131: =(IF(IsLocked(B131)*1=1,1,0)) -> 1 | M131: =(IF(IsLocked(C131)*1=1,1,0)) -> 1 | N131: =(IF(IsLocked(D131)*1=1,1,0)) -> 1 | O131: =(IF(IsLocked(E131)*1=1,1,0)) -> 1 | P131: =(IF(IsLocked(F131)*1=1,1,0)) -> 1 | Q131: =(IF(IsLocked(G131)*1=1,1,0)) -> 1 | R131: =(IF(IsLocked(H131)*1=1,1,0)) -> 1 | S131: =(IF(IsLocked(I131)*1=1,1,0)) -> 1
A132: *Special Needs Population(s) Targeted: | K132: 1 | L132: 1 | M132: 1 | N132: 0 | O132: 0 | P132: 0 | Q132: 0 | R132: 0 | S132: 0
A133: Please use "Special Needs" populations identified in QAP Section 11 D. | K133: 1 | L133: 1 | M133: 1 | N133: 1 | O133: 1 | P133: 1 | Q133: 1 | R133: 1 | S133: 1
K134: 1 | L134: 1 | M134: 1 | N134: 1 | O134: 1 | P134: 1 | Q134: 1 | R134: 1 | S134: 1
A135: Unit Mix | H135: # Units | I135: % Total | K135: 1 | L135: 1 | M135: 1 | N135: 1 | O135: 1 | P135: 1 | Q135: 1 | R135: 1 | S135: 1
A136: Studio/Efficiency | H136: 0 | I136: =IF(H136=0,0,H136/$H$145) -> 0 | K136: 1 | L136: 1 | M136: 1 | N136: 1 | O136: 1 | P136: 1 | Q136: 1 | R136: 0 | S136: 1
A137: One bedroom | H137: 0 | I137: =IF(H137=0,0,H137/$H$145) -> 0 | K137: 1 | L137: 1 | M137: 1 | N137: 1 | O137: 1 | P137: 1 | Q137: 1 | R137: 0 | S137: 1
A138: Two bedrooms | H138: 0 | I138: 0 | K138: 1 | L138: 1 | M138: 1 | N138: 1 | O138: 1 | P138: 1 | Q138: 1 | R138: 0 | S138: 1
A139: Two bedrooms 2 ba | H139: 0 | I139: 0 | K139: 1 | L139: 1 | M139: 1 | N139: 1 | O139: 1 | P139: 1 | Q139: 1 | R139: 0 | S139: 1
A140: Three bedrooms | H140: 0 | I140: 0 | K140: 1 | L140: 1 | M140: 1 | N140: 1 | O140: 1 | P140: 1 | Q140: 1 | R140: 0 | S140: 1
A141: Three bedrooms 2 or 3 ba | H141: 0 | I141: 0 | K141: 1 | L141: 1 | M141: 1 | N141: 1 | O141: 1 | P141: 1 | Q141: 1 | R141: 0 | S141: 1
A142: Four bedrooms | H142: 0 | I142: 0 | K142: =(IF(IsLocked(A142)*1=1,1,0)) -> 1 | L142: =(IF(IsLocked(B142)*1=1,1,0)) -> 1 | M142: =(IF(IsLocked(C142)*1=1,1,0)) -> 1 | N142: =(IF(IsLocked(D142)*1=1,1,0)) -> 1 | O142: =(IF(IsLocked(E142)*1=1,1,0)) -> 1 | P142: =(IF(IsLocked(F142)*1=1,1,0)) -> 1 | Q142: =(IF(IsLocked(G142)*1=1,1,0)) -> 1 | R142: =(IF(IsLocked(H142)*1=1,1,0)) -> 0 | S142: =(IF(IsLocked(I142)*1=1,1,0)) -> 1
A143: Four bedrooms 3 or 4 ba | H143: 0 | I143: 0 | K143: 1 | L143: 1 | M143: 1 | N143: 1 | O143: 1 | P143: 1 | Q143: 1 | R143: 0 | S143: 1
A144: Other | H144: 0 | I144: 0 | K144: 1 | L144: 0 | M144: 0 | N144: 0 | O144: 0 | P144: 0 | Q144: 0 | R144: 0 | S144: 1
F145: Total Units | H145: =SUM(H136:H144) -> 0 | I145: 0 | K145: 1 | L145: 1 | M145: 1 | N145: 1 | O145: 1 | P145: 1 | Q145: 1 | R145: 1 | S145: 1
K146: 1 | L146: 1 | M146: 1 | N146: 1 | O146: 1 | P146: 1 | Q146: 1 | R146: 1 | S146: 1
A147: Commercial Space- Does the project contain any commercial / retail space? | K147: 1 | L147: 1 | M147: 1 | N147: 1 | O147: 1 | P147: 1 | Q147: 1 | R147: 1 | S147: 1
K148: 1 | L148: 1 | M148: 1 | N148: 1 | O148: 1 | P148: 1 | Q148: 1 | R148: 1 | S148: 1
A149: (Description and) Site Information | K149: 1 | L149: 1 | M149: 1 | N149: 1 | O149: 1 | P149: 1 | Q149: 1 | R149: 1 | S149: 1
K150: 1 | L150: 1 | M150: 1 | N150: 1 | O150: 1 | P150: 1 | Q150: 1 | R150: 1 | S150: 1
A151: Is the project part of an organized plan? | K151: 1 | L151: 1 | M151: 1 | N151: 1 | O151: 1 | P151: 1 | Q151: 1 | R151: 1 | S151: 1
A152: Does the Applicant/Co-Applicants have ownership of the land? | K152: =(IF(IsLocked(A152)*1=1,1,0)) -> 1 | L152: =(IF(IsLocked(B152)*1=1,1,0)) -> 1 | M152: =(IF(IsLocked(C152)*1=1,1,0)) -> 1 | N152: =(IF(IsLocked(D152)*1=1,1,0)) -> 1 | O152: =(IF(IsLocked(E152)*1=1,1,0)) -> 1 | P152: =(IF(IsLocked(F152)*1=1,1,0)) -> 1 | Q152: =(IF(IsLocked(G152)*1=1,1,0)) -> 1 | R152: =(IF(IsLocked(H152)*1=1,1,0)) -> 1 | S152: =(IF(IsLocked(I152)*1=1,1,0)) -> 1
K153: 1 | L153: 1 | M153: 1 | N153: 1 | O153: 1 | P153: 1 | Q153: 1 | R153: 1 | S153: 1
A154: Total Cost of Land | C154: 0 | D154: Size of the Site | E154: 0 | K154: 1 | L154: 1 | M154: 0 | N154: 1 | O154: 0 | P154: 1 | Q154: 1 | R154: 1 | S154: 1
K155: 1 | L155: 1 | M155: 1 | N155: 1 | O155: 1 | P155: 1 | Q155: 1 | R155: 1 | S155: 1
A156: Date of Purchase | K156: 1 | L156: 1 | M156: 0 | N156: 1 | O156: 1 | P156: 1 | Q156: 1 | R156: 1 | S156: 1
A157: Title Insurance Company | K157: 1 | L157: 1 | M157: 1 | N157: 0 | O157: 0 | P157: 0 | Q157: 0 | R157: 1 | S157: 1
A158: Title Officer | K158: 1 | L158: 1 | M158: 1 | N158: 1 | O158: 1 | P158: 1 | Q158: 1 | R158: 1 | S158: 1
A159: Telephone Number | D159: Fax Number | K159: 1 | L159: 1 | M159: 0 | N159: 1 | O159: 0 | P159: 1 | Q159: 1 | R159: 1 | S159: 1
A160: Name of vested owner on Preliminary Title Report | K160: 1 | L160: 1 | M160: 1 | N160: 1 | O160: 0 | P160: 0 | Q160: 0 | R160: 1 | S160: 1
A161: Name of Seller | K161: 1 | L161: 1 | M161: 0 | N161: 0 | O161: 0 | P161: 0 | Q161: 0 | R161: 1 | S161: 1
A162: Address | K162: 1 | L162: 1 | M162: 0 | N162: 0 | O162: 0 | P162: 0 | Q162: 0 | R162: 1 | S162: 1
A163: City | D163: State | F163: Zip Code | K163: 1 | L163: 0 | M163: 0 | N163: 1 | O163: 0 | P163: 1 | Q163: 0 | R163: 1 | S163: 1
K164: 1 | L164: 1 | M164: 1 | N164: 1 | O164: 1 | P164: 1 | Q164: 1 | R164: 1 | S164: 1
A165: If the land is not owned by the Applicant/Co-Applicant, is it under site control? | K165: 1 | L165: 1 | M165: 1 | N165: 1 | O165: 1 | P165: 1 | Q165: 1 | R165: 1 | S165: 1
K166: 1 | L166: 1 | M166: 1 | N166: 1 | O166: 1 | P166: 1 | Q166: 1 | R166: 1 | S166: 1
A167: If yes, control is in the form of: | D167: Deed | E167: Option | F167: Purchase Contract | K167: =(IF(IsLocked(A167)*1=1,1,0)) -> 1 | L167: =(IF(IsLocked(B167)*1=1,1,0)) -> 1 | M167: =(IF(IsLocked(C167)*1=1,1,0)) -> 1 | N167: =(IF(IsLocked(D167)*1=1,1,0)) -> 1 | O167: =(IF(IsLocked(E167)*1=1,1,0)) -> 1 | P167: =(IF(IsLocked(F167)*1=1,1,0)) -> 1 | Q167: =(IF(IsLocked(G167)*1=1,1,0)) -> 1 | R167: =(IF(IsLocked(H167)*1=1,1,0)) -> 1 | S167: =(IF(IsLocked(I167)*1=1,1,0)) -> 1
D168: Other (Explain) | K168: =(IF(IsLocked(A168)*1=1,1,0)) -> 1 | L168: =(IF(IsLocked(B168)*1=1,1,0)) -> 1 | M168: =(IF(IsLocked(C168)*1=1,1,0)) -> 1 | N168: =(IF(IsLocked(D168)*1=1,1,0)) -> 1 | O168: =(IF(IsLocked(E168)*1=1,1,0)) -> 0 | P168: =(IF(IsLocked(F168)*1=1,1,0)) -> 0 | Q168: =(IF(IsLocked(G168)*1=1,1,0)) -> 0 | R168: =(IF(IsLocked(H168)*1=1,1,0)) -> 0 | S168: =(IF(IsLocked(I168)*1=1,1,0)) -> 0
K169: 1 | L169: 1 | M169: 1 | N169: 1 | O169: 1 | P169: 1 | Q169: 1 | R169: 1 | S169: 1
A170: Expiration date of Contract or Option | K170: 1 | L170: 1 | M170: 1 | N170: 0 | O170: 1 | P170: 1 | Q170: 1 | R170: 1 | S170: 1
K171: 1 | L171: 1 | M171: 1 | N171: 1 | O171: 1 | P171: 1 | Q171: 1 | R171: 1 | S171: 1
A172: Is site property zoned for the project? | K172: 1 | L172: 1 | M172: 1 | N172: 1 | O172: 1 | P172: 1 | Q172: 1 | R172: 1 | S172: 1
K173: 1 | L173: 1 | M173: 1 | N173: 1 | O173: 1 | P173: 1 | Q173: 1 | R173: 1 | S173: 1
A174: If no, is site currently in the process of rezoning? | K174: 1 | L174: 1 | M174: 1 | N174: 1 | O174: 1 | P174: 1 | Q174: 1 | R174: 1 | S174: 1
K175: 1 | L175: 1 | M175: 1 | N175: 1 | O175: 1 | P175: 1 | Q175: 1 | R175: 1 | S175: 1
A176: When is the zoning issue to be resolved? | K176: 1 | L176: 1 | M176: 1 | N176: 1 | O176: 1 | P176: 1 | Q176: 1 | R176: 1 | S176: 1
K177: 1 | L177: 1 | M177: 1 | N177: 1 | O177: 1 | P177: 1 | Q177: 1 | R177: 1 | S177: 1
A178: Are all utilities presently available to the site? | K178: 1 | L178: 1 | M178: 1 | N178: 1 | O178: 1 | P178: 1 | Q178: 1 | R178: 1 | S178: 1
A179: If no, which utilities need to be brought to the site and how far? | K179: 1 | L179: 1 | M179: 1 | N179: 1 | O179: 1 | P179: =(IF(IsLocked(F179)*1=1,1,0)) -> 0 | Q179: =(IF(IsLocked(G179)*1=1,1,0)) -> 0 | R179: =(IF(IsLocked(H179)*1=1,1,0)) -> 0 | S179: =(IF(IsLocked(I179)*1=1,1,0)) -> 0
K180: 1 | L180: 1 | M180: 1 | N180: 1 | O180: 1 | P180: 0 | Q180: 0 | R180: 0 | S180: 0
A181: Do you have the required permits? | K181: 1 | L181: 1 | M181: 1 | N181: 1 | O181: 1 | P181: 1 | Q181: 1 | R181: 1 | S181: 1
K182: 1 | L182: 1 | M182: 1 | N182: 1 | O182: 1 | P182: 1 | Q182: 1 | R182: 1 | S182: 1
A183: Are special use permits required? | K183: 1 | L183: 1 | M183: 1 | N183: 1 | O183: 1 | P183: 1 | Q183: 1 | R183: 1 | S183: 1
K184: 1 | L184: 1 | M184: 1 | N184: 1 | O184: 1 | P184: 1 | Q184: 1 | R184: 1 | S184: 1
A185: Is a site plan prepared? | K185: 1 | L185: 1 | M185: 1 | N185: 1 | O185: 1 | P185: 1 | Q185: 1 | R185: 1 | S185: 1
K186: 1 | L186: 1 | M186: 1 | N186: 1 | O186: 1 | P186: 1 | Q186: 1 | R186: 1 | S186: 1
A187: Will support services be provided? | K187: 1 | L187: 1 | M187: 1 | N187: 1 | O187: 1 | P187: 1 | Q187: 1 | R187: 1 | S187: 1
K188: 1 | L188: 1 | M188: 1 | N188: 1 | O188: 1 | P188: 1 | Q188: 1 | R188: 1 | S188: 1
A189: If yes, are they included in the rent? | K189: 1 | L189: 1 | M189: 1 | N189: 1 | O189: 1 | P189: 1 | Q189: 1 | R189: 1 | S189: 1
K190: 1 | L190: 1 | M190: 1 | N190: 1 | O190: 1 | P190: 1 | Q190: 1 | R190: 1 | S190: 1
A191: Are Preference Points for Readiness to Proceed being claimed? | H191: QAP Section 14.3.2 | K191: 1 | L191: 1 | M191: 1 | N191: 1 | O191: 1 | P191: 1 | Q191: 1 | R191: 1 | S191: 1
K192: 1 | L192: 1 | M192: 1 | N192: 1 | O192: 1 | P192: 1 | Q192: 1 | R192: 1 | S192: 1

Sheet 2 Self-Scoring
A1: State of Nevada Housing Division | G1: =ProjName -> 0 | W1: =(IF(IsLocked(A1)*1=1,1,0)) -> 1 | X1: =(IF(IsLocked(B1)*1=1,1,0)) -> 1 | Y1: =(IF(IsLocked(C1)*1=1,1,0)) -> 1 | Z1: =(IF(IsLocked(D1)*1=1,1,0)) -> 1 | AA1: =(IF(IsLocked(E1)*1=1,1,0)) -> 1 | AB1: =(IF(IsLocked(F1)*1=1,1,0)) -> 1 | AC1: =(IF(IsLocked(G1)*1=1,1,0)) -> 1 | AD1: =(IF(IsLocked(H1)*1=1,1,0)) -> 1 | AE1: =(IF(IsLocked(I1)*1=1,1,0)) -> 1 | AF1: =(IF(IsLocked(J1)*1=1,1,0)) -> 1 | AG1: =(IF(IsLocked(L1)*1=1,1,0)) -> 1 | AH1: =(IF(IsLocked(M1)*1=1,1,0)) -> 1
A2: 2017 LOW-INCOME HOUSING UNIVERSAL FUNDING APPLICATION | G2: TOC | W2: =(IF(IsLocked(A2)*1=1,1,0)) -> 1 | X2: =(IF(IsLocked(B2)*1=1,1,0)) -> 1 | Y2: =(IF(IsLocked(C2)*1=1,1,0)) -> 1 | Z2: =(IF(IsLocked(D2)*1=1,1,0)) -> 1 | AA2: =(IF(IsLocked(E2)*1=1,1,0)) -> 1 | AB2: =(IF(IsLocked(F2)*1=1,1,0)) -> 1 | AC2: =(IF(IsLocked(G2)*1=1,1,0)) -> 1 | AD2: =(IF(IsLocked(H2)*1=1,1,0)) -> 1 | AE2: =(IF(IsLocked(I2)*1=1,1,0)) -> 1 | AF2: =(IF(IsLocked(J2)*1=1,1,0)) -> 1 | AG2: =(IF(IsLocked(L2)*1=1,1,0)) -> 1 | AH2: =(IF(IsLocked(M2)*1=1,1,0)) -> 1
A3: SELF-SCORING WORKSHEET | W3: 1 | X3: 1 | Y3: 1 | Z3: 1 | AA3: 1 | AB3: 1 | AC3: 1 | AD3: 1 | AE3: 1 | AF3: 1 | AG3: 1 | AH3: 1
W4: 1 | X4: 1 | Y4: 1 | Z4: 1 | AA4: 1 | AB4: 1 | AC4: 1 | AD4: 1 | AE4: 1 | AF4: 1 | AG4: 1 | AH4: 1
A5: Project Information | G5: Application Date | W5: 1 | X5: 1 | Y5: 1 | Z5: 1 | AA5: 1 | AB5: 1 | AC5: 1 | AD5: 0 | AE5: 1 | AF5: 1 | AG5: 1 | AH5: 1
A6: Project Name | D6: =ProjName -> 0 | W6: 1 | X6: 1 | Y6: 1 | Z6: 1 | AA6: 1 | AB6: 1 | AC6: 1 | AD6: 1 | AE6: 1 | AF6: 1 | AG6: 1 | AH6: 1
A7: Project Address | D7: =ProjAddr -> 0 | W7: 1 | X7: 1 | Y7: 1 | Z7: 1 | AA7: 1 | AB7: 1 | AC7: 1 | AD7: 1 | AE7: 1 | AF7: 1 | AG7: 1 | AH7: 1
A8: Project City, County, Zip Code | D8: =ProjCCZip -> 0 | W8: 1 | X8: 1 | Y8: 1 | Z8: 1 | AA8: 1 | AB8: 1 | AC8: 1 | AD8: 1 | AE8: 1 | AF8: 1 | AG8: 1 | AH8: 1
A9: Applicant/Organization Name | D9: =Applicant -> 0 | W9: 1 | X9: 1 | Y9: 1 | Z9: 1 | AA9: 1 | AB9: 1 | AC9: 1 | AD9: 1 | AE9: 1 | AF9: 1 | AG9: 1 | AH9: 1
A10: Co-Applicant/Org'n Name | D10: =CoAppOrg -> 0 | W10: =(IF(IsLocked(A10)*1=1,1,0)) -> 1 | X10: =(IF(IsLocked(B10)*1=1,1,0)) -> 1 | Y10: =(IF(IsLocked(C10)*1=1,1,0)) -> 1 | Z10: =(IF(IsLocked(D10)*1=1,1,0)) -> 1 | AA10: =(IF(IsLocked(E10)*1=1,1,0)) -> 1 | AB10: =(IF(IsLocked(F10)*1=1,1,0)) -> 1 | AC10: =(IF(IsLocked(G10)*1=1,1,0)) -> 1 | AD10: =(IF(IsLocked(H10)*1=1,1,0)) -> 1 | AE10: =(IF(IsLocked(I10)*1=1,1,0)) -> 1 | AF10: =(IF(IsLocked(J10)*1=1,1,0)) -> 1 | AG10: =(IF(IsLocked(L10)*1=1,1,0)) -> 1 | AH10: =(IF(IsLocked(M10)*1=1,1,0)) -> 1
W11: =(IF(IsLocked(A11)*1=1,1,0)) -> 1 | X11: =(IF(IsLocked(B11)*1=1,1,0)) -> 1 | Y11: =(IF(IsLocked(C11)*1=1,1,0)) -> 1 | Z11: =(IF(IsLocked(D11)*1=1,1,0)) -> 1 | AA11: =(IF(IsLocked(E11)*1=1,1,0)) -> 1 | AB11: =(IF(IsLocked(F11)*1=1,1,0)) -> 1 | AC11: =(IF(IsLocked(G11)*1=1,1,0)) -> 1 | AD11: =(IF(IsLocked(H11)*1=1,1,0)) -> 1 | AE11: =(IF(IsLocked(I11)*1=1,1,0)) -> 1 | AF11: =(IF(IsLocked(J11)*1=1,1,0)) -> 1 | AG11: =(IF(IsLocked(L11)*1=1,1,0)) -> 1 | AH11: =(IF(IsLocked(M11)*1=1,1,0)) -> 1
A12: IRC 42 Non Profit Set Aside Request? | F12: So awarded? | W12: 1 | X12: 1 | Y12: 1 | Z12: 1 | AA12: 1 | AB12: 1 | AC12: 1 | AD12: 1 | AE12: 1 | AF12: 1 | AG12: 1 | AH12: 1
A13: New Construction or Rehabilitation? | W13: 1 | X13: 1 | Y13: 1 | Z13: 1 | AA13: 1 | AB13: 1 | AC13: 1 | AD13: 1 | AE13: 1 | AF13: 1 | AG13: 1 | AH13: 1
W14: 1 | X14: 1 | Y14: 1 | Z14: 1 | AA14: 1 | AB14: 1 | AC14: 1 | AD14: 1 | AE14: 1 | AF14: 1 | AG14: 1 | AH14: 1
A15: PART ONE: Project Type Scoring (see Project Scoring, Section 14.2 of QAP) – Choose Project | W15: 1 | X15: 1 | Y15: 1 | Z15: 1 | AA15: 1 | AB15: 1 | AC15: 1 | AD15: 1 | AE15: 1 | AF15: 1 | AG15: 1 | AH15: 1
A16: Type (One Category Only) The points are only for the project type selected in Part One | W16: 1 | X16: 1 | Y16: 1 | Z16: 1 | AA16: 1 | AB16: 1 | AC16: 1 | AD16: 1 | AE16: 1 | AF16: 1 | AG16: 1 | AH16: 1
A17: and are not inclusive. See Section 11 & 14.2 of the QAP. | W17: 1 | X17: 1 | Y17: 1 | Z17: 1 | AA17: 1 | AB17: 1 | AC17: 1 | AD17: 1 | AE17: 1 | AF17: 1 | AG17: 1 | AH17: 1
M18: f' Maximum: 10 points. | W18: 1 | X18: 1 | Y18: 1 | Z18: 1 | AA18: 1 | AB18: 1 | AC18: 1 | AD18: 1 | AE18: 1 | AF18: 1 | AG18: 1 | AH18: 1
A19: Section 14.2 Project Type | G19: Points Available Standard | H19: Points Claimed Standard | I19: Points Available S.H. | J19: Points Claimed S.H. | V19: Max | W19: 1 | X19: 1 | Y19: 1 | Z19: 1 | AA19: 1 | AB19: 1 | AC19: 1 | AD19: 1 | AE19: 1 | AF19: 1 | AG19: 1 | AH19: 1
A20: 14.2.1. Senior Housing 55 and older | G20: 10 | K20: =H20-G20 -> -10 | L20: =+G20-H20 -> 10 | M20: f(ormerly): Individuals, income at or below 45% AMI. | U20: 10 | V20: 10 | W20: 1 | X20: 1 | Y20: 1 | Z20: 1 | AA20: 1 | AB20: 1 | AC20: 1 | AD20: 0 | AE20: 1 | AF20: 0 | AG20: 1 | AH20: 1 | AI20: =+V20-G20 -> 0
A21: 14.2.2 Special Needs | G21: 10 | I21: 10 | K21: =H21-G21 -> -10 | L21: =+G21-H21 -> 10 | M21: f' Individuals/children and families/children income at or below 45% of median | W21: 1 | X21: 1 | Y21: 1 | Z21: 1 | AA21: 1 | AB21: 1 | AC21: 1 | AD21: 0 | AE21: 1 | AF21: 0 | AG21: 1 | AH21: 1
A22: 14.2.3 Housing for Individuals | G22: 10 | I22: 10 | K22: =H22-G22 -> -10 | L22: =+G22-H22 -> 10 | W22: 1 | X22: 1 | Y22: 1 | Z22: 1 | AA22: 1 | AB22: 1 | AC22: 1 | AD22: 0 | AE22: 1 | AF22: 0 | AG22: 1 | AH22: 1
A23: 14.2.4 Housing for individuals with children/Families | G23: 10 | K23: =H23-G23 -> -10 | L23: =+G23-H23 -> 10 | W23: 1 | X23: 1 | Y23: 1 | Z23: 1 | AA23: 1 | AB23: 1 | AC23: 1 | AD23: 0 | AE23: 1 | AF23: 0 | AG23: 1 | AH23: 1
A24: 14.2.5 Mixed Income (Complete Mixed Income Project Analysis tab & Exhibit 11) | G24: 10 | W24: 1 | X24: 1 | Y24: 1 | Z24: 1 | AA24: 1 | AB24: 1 | AC24: 1 | AD24: 0 | AE24: 1 | AF24: 0 | AG24: 1 | AH24: 1
A25: 14.2.6 Mixed Use (or Multi-Use) | G25: 10 | W25: 1 | X25: 1 | Y25: 1 | Z25: 1 | AA25: 1 | AB25: 1 | AC25: 1 | AD25: 0 | AE25: 1 | AF25: 0 | AG25: 1 | AH25: 1
A26: 14.2.7 Supportive Housing Set-Aside | W26: 1 | X26: 1 | Y26: 1 | Z26: 1 | AA26: 1 | AB26: 1 | AC26: 1 | AD26: 1 | AE26: 1 | AF26: 1 | AG26: 1 | AH26: 1
A27: 14.2.8 Housing for Veterans* | G27: 1 | I27: 1 | U27: 1 | V27: 1 | W27: 1 | X27: 1 | Y27: 1 | Z27: 1 | AA27: 1 | AB27: 1 | AC27: 1 | AD27: 0 | AE27: 1 | AF27: 0 | AG27: 1 | AH27: 1 | AI27: =+V27-G27 -> 0 | AJ27: Removed Veterans project lines (one for 15 and one for 10 points)
F28: Maximum, Total amount estimated | H28: =SUM(H20:H27) -> 0 | J28: =SUM(J20:J27) -> 0 | U28: =SUM(U20:U27) -> 11 | V28: =SUM(V20:V27) -> 11 | W28: 1 | X28: 1 | Y28: 1 | Z28: 1 | AA28: 1 | AB28: 1 | AC28: 1 | AD28: 1 | AE28: 1 | AF28: 1 | AG28: 1 | AH28: 1 | AI28: =+V28-H29 -> 0
F29: Maximum possible | H29: =10+1 -> 11 | J29: 11 | W29: 1 | X29: 1 | Y29: 1 | Z29: 1 | AA29: 1 | AB29: 1 | AC29: 1 | AD29: 1 | AE29: 1 | AF29: 1 | AG29: 1 | AH29: 1
H30: =IF(H28>H$29,"ERROR: "&(H28-H$29)&" pts",0) -> 0 | J30: =IF(J28>J$29,"ERROR: "&(J28-J$29)&" pts",0) -> 0 | U30: Last yr | V30: 15 | W30: 1 | X30: 1 | Y30: 1 | Z30: 1 | AA30: 1 | AB30: 1 | AC30: 1 | AD30: 1 | AE30: 1 | AF30: 1 | AG30: 1 | AH30: 1
L31: =+G31-H31 -> 0 | W31: 1 | X31: 1 | Y31: 1 | Z31: 1 | AA31: 1 | AB31: 1 | AC31: 1 | AD31: 1 | AE31: 1 | AF31: 1 | AG31: 1 | AH31: 1
W32: 1 | X32: 1 | Y32: 1 | Z32: 1 | AA32: 1 | AB32: 1 | AC32: 1 | AD32: 1 | AE32: 1 | AF32: 1 | AG32: 1 | AH32: 1
K33: =H28-H29 -> -11 | W33: 1 | X33: 1 | Y33: 1 | Z33: 1 | AA33: 1 | AB33: 1 | AC33: 1 | AD33: 1 | AE33: 1 | AF33: 1 | AG33: 1 | AH33: 1
W34: 1 | X34: 1 | Y34: 1 | Z34: 1 | AA34: 1 | AB34: 1 | AC34: 1 | AD34: 1 | AE34: 1 | AF34: 1 | AG34: 1 | AH34: 1
A35: PART TWO: Standard Factors Scoring (See Sections 14.3.1- 14.3.10 of QAP). | W35: 1 | X35: 1 | Y35: 1 | Z35: 1 | AA35: 1 | AB35: 1 | AC35: 1 | AD35: 1 | AE35: 1 | AF35: 1 | AG35: 1 | AH35: 1
W36: 1 | X36: 1 | Y36: 1 | Z36: 1 | AA36: 1 | AB36: 1 | AC36: 1 | AD36: 1 | AE36: 1 | AF36: 1 | AG36: 1 | AH36: 1
A37: Section 14.3.1- 14.3.10 | G37: Points Available Standard | H37: Points Claimed Standard | I37: Points Available S.H. | J37: Points Claimed S.H. | U37: Section | V37: Max | W37: 1 | X37: 1 | Y37: 1 | Z37: 1 | AA37: 1 | AB37: 1 | AC37: 1 | AD37: 1 | AE37: 1 | AF37: 1 | AG37: 1 | AH37: 1
A38: 14.3.1 Project Location | G38: 3 | H38: 0 | I38: 3 | K38: =H38-G38 -> -3 | L38: =+G38-H38 -> 3 | U38: 14.3 | V38: 3 | W38: 1 | X38: 1 | Y38: 1 | Z38: 1 | AA38: 1 | AB38: 1 | AC38: 1 | AD38: 0 | AE38: 1 | AF38: 0 | AG38: 1 | AH38: 1 | AI38: =+V38-G38 -> 0
A39: 14.3.2 Project Readiness | G39: 5 | H39: 0 | I39: 5 | J39: 0 | K39: =H39-G39 -> -5 | L39: 5 | U39: 14.4 | V39: 5 | W39: 1 | X39: 1 | Y39: 1 | Z39: 1 | AA39: 1 | AB39: 1 | AC39: 1 | AD39: 0 | AE39: 1 | AF39: 0 | AG39: 1 | AH39: 1 | AI39: =+V39-G39 -> 0
A40: 14.3.3 Additional Project Amenities | G40: 24 | H40: 0 | I40: 22 | J40: 0 | K40: -24 | L40: 24 | U40: =+U39+0.1 -> 14.5 | V40: 26 | W40: 1 | X40: 1 | Y40: 1 | Z40: 1 | AA40: 1 | AB40: 1 | AC40: 1 | AD40: 0 | AE40: 1 | AF40: 0 | AG40: 1 | AH40: 1 | AI40: 2
A41: 14.3.4 Nevada Based Applicant | G41: 10 | H41: 0 | I41: 10 | J41: 0 | K41: -10 | L41: 10 | U41: =+U40+0.1 -> 14.6 | V41: 10 | W41: 1 | X41: 1 | Y41: 1 | Z41: 1 | AA41: 1 | AB41: 1 | AC41: 1 | AD41: 0 | AE41: 1 | AF41: 0 | AG41: 1 | AH41: 1 | AI41: 0
A42: 14.3.5 Nevada Based Projects By An Out of State Based Applicant | G42: 5 | H42: 0 | I42: 5 | J42: 0 | K42: -5 | L42: 5 | U42: =+U41+0.1 -> 14.7 | V42: 5 | W42: 1 | X42: 1 | Y42: 1 | Z42: 1 | AA42: 1 | AB42: 1 | AC42: 1 | AD42: 0 | AE42: 1 | AF42: 0 | AG42: 1 | AH42: 1 | AI42: 0
A43: 14.3.6 Affordability Period | G43: 4 | H43: 0 | I43: 4 | J43: 0 | K43: -4 | L43: 4 | U43: =+U42+0.1 -> 14.8 | V43: 4 | W43: 1 | X43: 1 | Y43: 1 | Z43: 1 | AA43: 1 | AB43: 1 | AC43: 1 | AD43: 0 | AE43: 1 | AF43: 0 | AG43: 1 | AH43: 1 | AI43: 0
A44: 14.3.7 Water Efficiency of Landscape Design | G44: 5 | H44: 0 | I44: 5 | J44: 0 | K44: -5 | L44: 5 | U44: =+U43+0.1 -> 14.9 | V44: 5 | W44: 1 | X44: 1 | Y44: 1 | Z44: 1 | AA44: 1 | AB44: 1 | AC44: 1 | AD44: 0 | AE44: 1 | AF44: 0 | AG44: 1 | AH44: 1 | AI44: 0
A45: 14.3.8 Historic Character | G45: 3 | H45: 0 | I45: 3 | J45: 0 | K45: -3 | L45: 3 | U45: 14.1 | V45: 3 | W45: 1 | X45: 1 | Y45: 1 | Z45: 1 | AA45: 1 | AB45: 1 | AC45: 1 | AD45: 0 | AE45: 1 | AF45: 0 | AG45: 1 | AH45: 1 | AI45: 0
A46: 14.3.9 Smart Design | G46: 16 | H46: 0 | I46: 16 | J46: 0 | K46: -16 | L46: 16 | U46: =+U45+0.01 -> 14.11 | V46: 20 | W46: 1 | X46: 1 | Y46: 1 | Z46: 1 | AA46: 1 | AB46: 1 | AC46: 1 | AD46: 0 | AE46: 1 | AF46: 0 | AG46: 1 | AH46: 1 | AI46: 4
A47: 14.3.10 Superior Project | G47: 23 | H47: 0 | I47: 23 | J47: 0 | K47: -23 | L47: 23 | U47: =+U46+0.01 -> 14.12 | V47: 23 | W47: 1 | X47: 1 | Y47: 1 | Z47: 1 | AA47: 1 | AB47: 1 | AC47: 1 | AD47: 0 | AE47: 1 | AF47: 0 | AG47: 1 | AH47: 1 | AI47: 0
F48: Maximum, Total amount estimated | H48: =SUM(H38:H47) -> 0 | J48: =SUM(J38:J47) -> 0 | V48: =SUM(V38:V47)-V42 -> 99 | W48: 1 | X48: 1 | Y48: 1 | Z48: 1 | AA48: 1 | AB48: 1 | AC48: 1 | AD48: 1 | AE48: 1 | AF48: 1 | AG48: 1 | AH48: 1 | AI48: =SUM(AI38:AI47) -> 6
F49: Maximum Points | H49: =SUM(G38:G47)-G42 -> 93 | J49: =SUM(I38:I47)-I42 -> 91 | W49: 1 | X49: 1 | Y49: 1 | Z49: 1 | AA49: 1 | AB49: 1 | AC49: 1 | AD49: 1 | AE49: 1 | AF49: 1 | AG49: 1 | AH49: 1
F50: OOB = | H50: =IF(H48>H49,"ERROR: "&(H48-H49)&" pts",0) -> 0 | J50: =IF(J48>J49,"ERROR: "&(J48-J49)&" pts",0) -> 0 | U50: Last yr | V50: 104 | W50: 1 | X50: 1 | Y50: 1 | Z50: 1 | AA50: 1 | AB50: 1 | AC50: 1 | AD50: 1 | AE50: 1 | AF50: 1 | AG50: 1 | AH50: 1 | AI50: -5
W51: 1 | X51: 1 | Y51: 1 | Z51: 1 | AA51: 1 | AB51: 1 | AC51: 1 | AD51: 1 | AE51: 1 | AF51: 1 | AG51: 1 | AH51: 1
A52: PART THREE: Special Factors Scoring (See Sections 14.4.1- 14.4.6 of QAP). | W52: 1 | X52: 1 | Y52: 1 | Z52: 1 | AA52: 1 | AB52: 1 | AC52: 1 | AD52: 1 | AE52: 1 | AF52: 1 | AG52: 1 | AH52: 1
W53: 1 | X53: 1 | Y53: 1 | Z53: 1 | AA53: 1 | AB53: 1 | AC53: 1 | AD53: 1 | AE53: 1 | AF53: 1 | AG53: 1 | AH53: 1
A54: Section 14.4 | G54: Points Available Standard | H54: Points Claimed Standard | I54: Points Available S.H. | J54: Points Claimed S.H. | W54: 1 | X54: 1 | Y54: 1 | Z54: 1 | AA54: 1 | AB54: 1 | AC54: 1 | AD54: 1 | AE54: 1 | AF54: 1 | AG54: 1 | AH54: 1
A55: 14.4.1 Low Rent Targeting | G55: 6 | H55: 0 | I55: N/A | J55: 0 | K55: =H55-G55 -> -6 | L55: =+G55-H55 -> 6 | U55: 14.14.1 | V55: 6 | W55: 1 | X55: 1 | Y55: 1 | Z55: 1 | AA55: 1 | AB55: 1 | AC55: 1 | AD55: 0 | AE55: 1 | AF55: 0 | AG55: 1 | AH55: 1 | AI55: =+V55-G55 -> 0
A56: 14.4.2 Low Income Targeting | G56: 2 | H56: 0 | I56: N/A | J56: 0 | K56: -2 | L56: 2 | U56: 14.14.2 | V56: 2 | W56: 1 | X56: 1 | Y56: 1 | Z56: 1 | AA56: 1 | AB56: 1 | AC56: 1 | AD56: 0 | AE56: 1 | AF56: 0 | AG56: 1 | AH56: 1 | AI56: 0
A57: 14.4.3 Supportive Services or Appendix A for SH Set Aside | G57: 6 | H57: 0 | I57: 11 | J57: 0 | K57: -6 | L57: 6 | V57: 6 | W57: 1 | X57: 1 | Y57: 1 | Z57: 1 | AA57: 1 | AB57: 1 | AC57: 1 | AD57: 0 | AE57: 1 | AF57: 0 | AG57: 1 | AH57: 1 | AI57: 0 | AK57: Rent to Own Targeting
A58: 14.4.4 Lowest Developer Fee | G58: 5 | H58: 0 | I58: 5 | J58: 0 | K58: -5 | L58: 5 | U58: 14.14.3 | V58: 6 | W58: 1 | X58: 1 | Y58: 1 | Z58: 1 | AA58: 1 | AB58: 1 | AC58: 1 | AD58: 0 | AE58: 1 | AF58: 0 | AG58: 1 | AH58: 1 | AI58: 1
A59: 14.4.5 Lowest Contractor Fee | G59: 3 | H59: 0 | I59: 3 | J59: 0 | K59: -3 | L59: 3 | U59: 14.14.4 | V59: 5 | W59: 1 | X59: 1 | Y59: 1 | Z59: 1 | AA59: 1 | AB59: 1 | AC59: 1 | AD59: 0 | AE59: 1 | AF59: 0 | AG59: 1 | AH59: 1 | AI59: 2
A60: 14.4.6 Affordable Housing Incentives | G60: 8 | H60: 0 | I60: 8 | J60: 0 | K60: -8 | L60: 8 | U60: 14.14.5 | V60: 3 | W60: 1 | X60: 1 | Y60: 1 | Z60: 1 | AA60: 1 | AB60: 1 | AC60: 1 | AD60: 0 | AE60: 1 | AF60: 0 | AG60: 1 | AH60: 1 | AI60: -5
F61: Maximum, Total amount estimated | H61: =SUM(H55:H60) -> 0 | J61: =SUM(J55:J60) -> 0 | V61: =SUM(V55:V60)-V57 -> 22 | W61: 1 | X61: 1 | Y61: 1 | Z61: 1 | AA61: 1 | AB61: 1 | AC61: 1 | AD61: 1 | AE61: 1 | AF61: 1 | AG61: 1 | AH61: 1 | AI61: =SUM(AI55:AI60) -> -2
F62: Maximum Points | H62: =SUM(G55:G60) -> 30 | J62: =SUM(I55:I60) -> 27 | W62: 1 | X62: 1 | Y62: 1 | Z62: 1 | AA62: 1 | AB62: 1 | AC62: 1 | AD62: 1 | AE62: 1 | AF62: 1 | AG62: 1 | AH62: 1
F63: OOB = | H63: =IF(H61>H62,"ERROR: "&(H61-H62)&" pts",0) -> 0 | J63: =IF(J61>J62,"ERROR: "&(J61-J62)&" pts",0) -> 0 | U63: Last yr | V63: 31 | W63: 1 | X63: 1 | Y63: 1 | Z63: 1 | AA63: 1 | AB63: 1 | AC63: 1 | AD63: 1 | AE63: 1 | AF63: 1 | AG63: 1 | AH63: 1 | AI63: =+V61-V63 -> -9
W64: =(IF(IsLocked(A64)*1=1,1,0)) -> 1 | X64: =(IF(IsLocked(B64)*1=1,1,0)) -> 1 | Y64: =(IF(IsLocked(C64)*1=1,1,0)) -> 1 | Z64: =(IF(IsLocked(D64)*1=1,1,0)) -> 1 | AA64: =(IF(IsLocked(E64)*1=1,1,0)) -> 1 | AB64: =(IF(IsLocked(F64)*1=1,1,0)) -> 1 | AC64: =(IF(IsLocked(G64)*1=1,1,0)) -> 1 | AD64: =(IF(IsLocked(H64)*1=1,1,0)) -> 1 | AE64: =(IF(IsLocked(I64)*1=1,1,0)) -> 1 | AF64: =(IF(IsLocked(J64)*1=1,1,0)) -> 1 | AG64: =(IF(IsLocked(L64)*1=1,1,0)) -> 1 | AH64: =(IF(IsLocked(M64)*1=1,1,0)) -> 1
F65: Application Total | H65: =+H61+H48+H28+H31 -> 0 | J65: =+J61+J48+J28+J31 -> 0 | V65: =+V61+V48+V28+V31 -> 132 | W65: 1 | X65: 1 | Y65: 1 | Z65: 1 | AA65: 1 | AB65: 1 | AC65: 1 | AD65: 1 | AE65: 1 | AF65: 1 | AG65: 1 | AH65: 1 | AI65: =+AI61+AI48+AI28+AI31 -> 4
F66: Maximum Points | H66: =+H62+H49+H29 -> 134 | J66: =+J62+J49+J29 -> 129 | W66: 1 | X66: 1 | Y66: 1 | Z66: 1 | AA66: 1 | AB66: 1 | AC66: 1 | AD66: 1 | AE66: 1 | AF66: 1 | AG66: 1 | AH66: 1
F67: OOB = | H67: =IF(H65>H66,"ERROR: "&(H65-H66)&" pts",0) -> 0 | J67: =IF(J65>J66,"ERROR: "&(J65-J66)&" pts",0) -> 0 | V67: =+V30+V50+V63 -> 150 | W67: 1 | X67: 1 | Y67: 1 | Z67: 1 | AA67: 1 | AB67: 1 | AC67: 1 | AD67: 1 | AE67: 1 | AF67: 1 | AG67: 1 | AH67: 1

Sheet 3 Appl Frac
A1: =Div -> State of Nevada Housing Division | M1: =ProjName -> 0 | S1: =(IF(IsLocked(A1)*1=1,1,0)) -> 1 | T1: =(IF(IsLocked(B1)*1=1,1,0)) -> 1 | U1: =(IF(IsLocked(C1)*1=1,1,0)) -> 1 | V1: =(IF(IsLocked(D1)*1=1,1,0)) -> 1 | W1: =(IF(IsLocked(E1)*1=1,1,0)) -> 1 | X1: =(IF(IsLocked(F1)*1=1,1,0)) -> 1 | Y1: =(IF(IsLocked(I1)*1=1,1,0)) -> 1 | Z1: =(IF(IsLocked(J1)*1=1,1,0)) -> 1 | AA1: =(IF(IsLocked(K1)*1=1,1,0)) -> 1 | AB1: =(IF(IsLocked(L1)*1=1,1,0)) -> 1 | AC1: =(IF(IsLocked(M1)*1=1,1,0)) -> 1 | AD1: =(IF(IsLocked(N1)*1=1,1,0)) -> 1 | AE1: =(IF(IsLocked(O1)*1=1,1,0)) -> 1 | AF1: =(IF(IsLocked(P1)*1=1,1,0)) -> 1 | AG1: =(IF(IsLocked(Q1)*1=1,1,0)) -> 1 | AH1: =(IF(IsLocked(R1)*1=1,1,0)) -> 1 | AI1: =(IF(IsLocked(S1)*1=1,1,0)) -> 1 | AJ1: =(IF(IsLocked(T1)*1=1,1,0)) -> 1
A2: =nhd -> 2017 NHD FUNDING APPLICATION | M2: TOC | S2: 1 | T2: 1 | U2: 1 | V2: 1 | W2: 1 | X2: 1 | Y2: =(IF(IsLocked(I2)*1=1,1,0)) -> 1 | Z2: 1 | AA2: 1 | AB2: 1 | AC2: 1 | AD2: 1 | AE2: 1 | AF2: 1 | AG2: 1 | AH2: 1 | AI2: 1 | AJ2: 1
A3: APPLICABLE FRACTION | S3: 1 | T3: 1 | U3: 1 | V3: 1 | W3: 1 | X3: 1 | Y3: =(IF(IsLocked(I3)*1=1,1,0)) -> 1 | Z3: 1 | AA3: 1 | AB3: 1 | AC3: 1 | AD3: 1 | AE3: 1 | AF3: 1 | AG3: 1 | AH3: 1 | AI3: 1 | AJ3: 1
S4: 1 | T4: 1 | U4: 1 | V4: 1 | W4: 1 | X4: 1 | Y4: =(IF(IsLocked(I4)*1=1,1,0)) -> 1 | Z4: 1 | AA4: 1 | AB4: 1 | AC4: 1 | AD4: 1 | AE4: 1 | AF4: 1 | AG4: 1 | AH4: 1 | AI4: 1 | AJ4: 1
C5: Fraction | D5: Tot Units | E5: Restr'd | F5: Tot SF | G5: Rest'd Tot SF | S5: 1 | T5: 1 | U5: 1 | V5: 1 | W5: 1 | X5: 1 | Y5: =(IF(IsLocked(G5)*1=1,1,0)) -> 1 | Z5: =(IF(IsLocked(H5)*1=1,1,0)) -> 1 | AA5: =(IF(IsLocked(I5)*1=1,1,0)) -> 1 | AB5: =(IF(IsLocked(#REF!)*1=1,1,0)) ->  | AC5: =(IF(IsLocked(J5)*1=1,1,0)) -> 1 | AD5: =(IF(IsLocked(K5)*1=1,1,0)) -> 1 | AE5: =(IF(IsLocked(L5)*1=1,1,0)) -> 1 | AF5: =(IF(IsLocked(M5)*1=1,1,0)) -> 1 | AG5: =(IF(IsLocked(N5)*1=1,1,0)) -> 1
B6: Unit Fraction | C6: =+F43 -> 0 | D6: =+E43 -> 0 | E6: =+C43 -> 0 | S6: 1 | T6: 1 | U6: 1 | V6: 1 | W6: 1 | X6: 1 | Y6: 1 | Z6: 1 | AA6: 1 | AB6: =(IF(IsLocked(#REF!)*1=1,1,0)) ->  | AC6: =(IF(IsLocked(J6)*1=1,1,0)) -> 1 | AD6: =(IF(IsLocked(K6)*1=1,1,0)) -> 1 | AE6: =(IF(IsLocked(L6)*1=1,1,0)) -> 1 | AF6: =(IF(IsLocked(M6)*1=1,1,0)) -> 1 | AG6: =(IF(IsLocked(N6)*1=1,1,0)) -> 1 | AH6: 1 | AI6: 1 | AJ6: 1
B7: Floor Space Fraction | C7: =+L43 -> 0 | F7: =+K43 -> 0 | G7: =+I43 -> 0 | S7: 1 | T7: 1 | U7: 1 | V7: 1 | W7: 1 | X7: 1 | Y7: 1 | Z7: 1 | AA7: 1 | AB7: =(IF(IsLocked(#REF!)*1=1,1,0)) ->  | AC7: 1 | AD7: 1 | AE7: 1 | AF7: 1 | AG7: 1
B8: Applicable Fraction | C8: =MIN(C6,C7) -> 0 | S8: 1 | T8: 1 | U8: 1 | V8: 1 | W8: 1 | X8: 1 | Y8: 1 | Z8: 1 | AA8: 1 | AB8: =(IF(IsLocked(#REF!)*1=1,1,0)) ->  | AC8: 1 | AD8: 1 | AE8: 1 | AF8: 1 | AG8: 1
S9: 1 | T9: 1 | U9: 1 | V9: 1 | W9: 1 | X9: 1 | Y9: 1 | Z9: 1 | AA9: 1 | AB9: =(IF(IsLocked(#REF!)*1=1,1,0)) ->  | AC9: 1 | AD9: 1 | AE9: 1 | AF9: 1 | AG9: 1
C10: Bldgs | D10: # Units | E10: Square Footage | F10: Notes | S10: 1 | T10: 1 | U10: 1 | V10: 1 | W10: 1 | X10: 1 | Y10: 1 | Z10: 1 | AA10: 1 | AB10: =(IF(IsLocked(#REF!)*1=1,1,0)) ->  | AC10: =(IF(IsLocked(J10)*1=1,1,0)) -> 1 | AD10: =(IF(IsLocked(K10)*1=1,1,0)) -> 1 | AE10: =(IF(IsLocked(L10)*1=1,1,0)) -> 1 | AF10: =(IF(IsLocked(M10)*1=1,1,0)) -> 1 | AG10: =(IF(IsLocked(N10)*1=1,1,0)) -> 1 | AH10: 1 | AI10: 1 | AJ10: 1
B11: Total All Buildings | C11: 0 | D11: 0 | E11: 0 | S11: 1 | T11: 1 | U11: 0 | V11: 0 | W11: 0 | X11: 0 | Y11: 0 | Z11: 1 | AA11: 1 | AB11: =(IF(IsLocked(#REF!)*1=1,1,0)) ->  | AC11: 1 | AD11: 1 | AE11: 1 | AF11: 1 | AG11: 1 | AH11: 1 | AI11: 1 | AJ11: 1
B12: Restricted Residential | C12: 0 | D12: 0 | E12: 0 | S12: 1 | T12: 1 | U12: 0 | V12: 0 | W12: 0 | X12: 0 | Y12: 0 | Z12: 1 | AA12: 1 | AB12: =(IF(IsLocked(#REF!)*1=1,1,0)) ->  | AC12: 1 | AD12: 1 | AE12: 1 | AF12: 1 | AG12: 1
B13: Employee Occupied Residential | C13: 0 | D13: 0 | E13: 0 | S13: 1 | T13: 1 | U13: 0 | V13: 0 | W13: 0 | X13: 0 | Y13: 0 | Z13: 1 | AA13: 1 | AB13: =(IF(IsLocked(#REF!)*1=1,1,0)) ->  | AC13: 1 | AD13: 1 | AE13: 1 | AF13: 1 | AG13: 1
B14: Owner Occupied Residential | C14: 0 | D14: 0 | E14: 0 | S14: 1 | T14: 1 | U14: 0 | V14: 0 | W14: 0 | X14: 0 | Y14: 0 | Z14: 1 | AA14: 1 | AB14: =(IF(IsLocked(#REF!)*1=1,1,0)) ->  | AC14: 1 | AD14: 1 | AE14: 1 | AF14: 1 | AG14: 1 | AH14: 1 | AI14: 1 | AJ14: 1
B15: Total Residential | C15: =SUM(C12:C14) -> 0 | D15: =SUM(D12:D14) -> 0 | E15: =SUM(E12:E14) -> 0 | S15: 1 | T15: 1 | U15: 1 | V15: 1 | W15: 1 | X15: 1 | Y15: 1 | Z15: 1 | AA15: 1 | AB15: =(IF(IsLocked(#REF!)*1=1,1,0)) ->  | AC15: 1 | AD15: 1 | AE15: 1 | AF15: 1 | AG15: 1
B16: Total Common Area | C16: 0 | D16: 0 | E16: 0 | S16: 1 | T16: 1 | U16: 0 | V16: 0 | W16: 0 | X16: 0 | Y16: 0 | Z16: 1 | AA16: 1 | AB16: =(IF(IsLocked(#REF!)*1=1,1,0)) ->  | AC16: 1 | AD16: 1 | AE16: 1 | AF16: 1 | AG16: 1 | AH16: 1 | AI16: 1 | AJ16: 1
B17: Residential & Common Area | C17: 0 | D17: 0 | E17: 0 | S17: 1 | T17: 1 | U17: 0 | V17: 0 | W17: 0 | X17: 0 | Y17: 0 | Z17: 1 | AA17: 1 | AB17: =(IF(IsLocked(#REF!)*1=1,1,0)) ->  | AC17: 1 | AD17: 1 | AE17: 1 | AF17: 1 | AG17: 1 | AH17: 1 | AI17: 1 | AJ17: 1
B18: Total Commercial | C18: 0 | D18: 0 | E18: 0 | S18: 1 | T18: 1 | U18: 0 | V18: 0 | W18: 0 | X18: 0 | Y18: 0 | Z18: 1 | AA18: 1 | AB18: =(IF(IsLocked(#REF!)*1=1,1,0)) ->  | AC18: 1 | AD18: 1 | AE18: 1 | AF18: 1 | AG18: 1 | AH18: 1 | AI18: 1 | AJ18: 1
S19: 1 | T19: 1 | U19: 1 | V19: 1 | W19: 1 | X19: 1 | Y19: 1 | Z19: 1 | AA19: 1 | AB19: =(IF(IsLocked(#REF!)*1=1,1,0)) ->  | AC19: 1 | AD19: 1 | AE19: 1 | AF19: 1 | AG19: 1
C20: Units | D20: sf | F20: Units | G20: sf | S20: 1 | T20: 1 | U20: 1 | V20: 1 | W20: 1 | X20: 1 | Y20: 1 | Z20: 1 | AA20: 1 | AB20: =(IF(IsLocked(#REF!)*1=1,1,0)) ->  | AC20: 1 | AD20: 1 | AE20: 1 | AF20: 1 | AG20: 1 | AH20: 1 | AI20: 1 | AJ20: 1
B21: Rent Restricted Units | C21: 0 | D21: 0 | E21: Other Restricted Units | F21: 0 | G21: 0 | S21: 1 | T21: 1 | U21: 0 | V21: 0 | W21: 1 | X21: 0 | Y21: 0 | Z21: 1 | AA21: 1 | AB21: =(IF(IsLocked(#REF!)*1=1,1,0)) ->  | AC21: 1 | AD21: 1 | AE21: 1 | AF21: 1 | AG21: 1 | AH21: 1 | AI21: 1 | AJ21: 1
B22: LIHTC Units | C22: 0 | D22: 0 | E22: Market Rate Units | F22: 0 | G22: 0 | S22: 1 | T22: 1 | U22: 0 | V22: 0 | W22: 1 | X22: 0 | Y22: 0 | Z22: 1 | AA22: 1 | AB22: =(IF(IsLocked(#REF!)*1=1,1,0)) ->  | AC22: 1 | AD22: 1 | AE22: 1 | AF22: 1 | AG22: 1 | AH22: 1 | AI22: 1 | AJ22: 1
B23: HOME Units | C23: 0 | D23: 0 | S23: 1 | T23: 1 | U23: 0 | V23: 0 | W23: 1 | X23: 1 | Y23: 1 | Z23: 1 | AA23: 1 | AB23: =(IF(IsLocked(#REF!)*1=1,1,0)) ->  | AC23: 1 | AD23: 1 | AE23: 1 | AF23: 1 | AG23: 1 | AH23: 1 | AI23: 1 | AJ23: 1
B24: PBA Units | C24: 0 | D24: 0 | E24: (Project Based Assistance) Units | S24: 1 | T24: 1 | U24: 0 | V24: 0 | W24: 1 | X24: 1 | Y24: 1 | Z24: 1 | AA24: 1 | AB24: =(IF(IsLocked(#REF!)*1=1,1,0)) ->  | AC24: 1 | AD24: 1 | AE24: 1 | AF24: 1 | AG24: 1 | AH24: 1 | AI24: 1 | AJ24: 1
B25: HUD/FmHA Approved | S25: 1 | T25: 1 | U25: 1 | V25: 1 | W25: 1 | X25: 1 | Y25: 1 | Z25: 1 | AA25: 1 | AB25: =(IF(IsLocked(#REF!)*1=1,1,0)) ->  | AC25: 1 | AD25: 1 | AE25: 1 | AF25: 1 | AG25: 1 | AH25: 1 | AI25: 1 | AJ25: 1
S26: 1 | T26: 1 | U26: 1 | V26: 1 | W26: 1 | X26: 1 | Y26: 1 | Z26: 1 | AA26: 1 | AB26: =(IF(IsLocked(#REF!)*1=1,1,0)) ->  | AC26: 1 | AD26: 1 | AE26: 1 | AF26: 1 | AG26: 1 | AH26: 1 | AI26: 1 | AJ26: 1
B27: If Project is less than 100% low-income units, please complete the following to determine the Applicable Fraction by building. | S27: 1 | T27: 1 | U27: 1 | V27: 1 | W27: 1 | X27: 1 | Y27: 1 | Z27: 1 | AA27: 1 | AB27: =(IF(IsLocked(#REF!)*1=1,1,0)) ->  | AC27: 1 | AD27: 1 | AE27: 1 | AF27: 1 | AG27: 1 | AH27: 1 | AI27: 1 | AJ27: 1
S28: 1 | T28: 1 | U28: 1 | V28: 1 | W28: 1 | X28: 1 | Y28: 1 | Z28: 1 | AA28: 1 | AB28: =(IF(IsLocked(#REF!)*1=1,1,0)) ->  | AC28: 1 | AD28: 1 | AE28: 1 | AF28: 1 | AG28: 1 | AH28: 1 | AI28: 1 | AJ28: 1
B29: Building Number | C29: Unit Fraction | H29: Floor Space Fraction | M29: Applicable Fraction | N29: Expected Placed-In-Service Date (MM/DD/YYYY) | S29: 1 | T29: 1 | U29: 1 | V29: 1 | W29: 1 | X29: 1 | Y29: 1 | Z29: 1 | AA29: 1 | AB29: =(IF(IsLocked(#REF!)*1=1,1,0)) ->  | AC29: 1 | AD29: 1 | AE29: 1 | AF29: 1 | AG29: 1 | AH29: 1 | AI29: 1 | AJ29: 1
C30: # LI Units (w/o Mgr U) | D30: # Non LI & Mgr Units | E30: Total Units | F30: Unit Fraction | G30: % Total Units | H30: Avg LI SF/u | I30: SF: LI/ w/o Mgr Units | J30: SF: Non LI & Mgr Units | K30: Total Sq Ft | L30: Flr Spc Fraction | S30: 1 | T30: 1 | U30: 1 | V30: 1 | W30: 1 | X30: 1 | Y30: 1 | Z30: 1 | AA30: 1 | AB30: =(IF(IsLocked(#REF!)*1=1,1,0)) ->  | AC30: 1 | AD30: 1 | AE30: 1 | AF30: 1 | AG30: 1 | AH30: 1 | AI30: 1 | AJ30: 1
A31: 1 | C31: 0 | D31: 0 | E31: =SUM(C31:D31) -> 0 | F31: =IF(C31=0,0,C31/E31) -> 0 | G31: =IF(E31=0,0,E31/$E$43) -> 0 | H31: 0 | I31: =+H31*C31 -> 0 | J31: 0 | K31: =SUM(I31:J31) -> 0 | L31: =IF(I31=0,0,I31/K31) -> 0 | M31: =MIN(F31,L31) -> 0 | S31: 1 | T31: 0 | U31: 0 | V31: 0 | W31: 1 | X31: 1 | Y31: 1 | Z31: 0 | AA31: 0 | AB31: =(IF(IsLocked(#REF!)*1=1,1,0)) ->  | AC31: 0 | AD31: 1 | AE31: 1 | AF31: 1 | AG31: 0 | AH31: 1 | AI31: 1 | AJ31: 1
A32: 2 | E32: =SUM(C32:D32) -> 0 | F32: =IF(C32=0,0,C32/E32) -> 0 | G32: =IF(E32=0,0,E32/$E$43) -> 0 | I32: =+H32*C32 -> 0 | K32: =SUM(I32:J32) -> 0 | L32: 0 | M32: 0 | S32: 1 | T32: 0 | U32: 0 | V32: 0 | W32: 1 | X32: 1 | Y32: 1 | Z32: 0 | AA32: 0 | AB32: =(IF(IsLocked(#REF!)*1=1,1,0)) ->  | AC32: 0 | AD32: 1 | AE32: 1 | AF32: 1 | AG32: 0 | AH32: 1 | AI32: 1 | AJ32: 1
A33: 3 | E33: 0 | F33: 0 | G33: 0 | I33: 0 | K33: 0 | L33: 0 | M33: 0 | S33: =(IF(IsLocked(A33)*1=1,1,0)) -> 1 | T33: =(IF(IsLocked(B33)*1=1,1,0)) -> 0 | U33: =(IF(IsLocked(C33)*1=1,1,0)) -> 0 | V33: =(IF(IsLocked(D33)*1=1,1,0)) -> 0 | W33: =(IF(IsLocked(E33)*1=1,1,0)) -> 1 | X33: =(IF(IsLocked(F33)*1=1,1,0)) -> 1 | Y33: 1 | Z33: 0 | AA33: 0 | AB33: =(IF(IsLocked(#REF!)*1=1,1,0)) ->  | AC33: 0 | AD33: 1 | AE33: 1 | AF33: 1 | AG33: 0 | AH33: 1 | AI33: 1 | AJ33: 1
A34: 4 | E34: 0 | F34: 0 | G34: 0 | I34: 0 | K34: 0 | L34: 0 | M34: 0 | S34: 1 | T34: 0 | U34: 0 | V34: 0 | W34: 1 | X34: 1 | Y34: 1 | Z34: 0 | AA34: 0 | AB34: =(IF(IsLocked(#REF!)*1=1,1,0)) ->  | AC34: 0 | AD34: 1 | AE34: 1 | AF34: 1 | AG34: 0 | AH34: 1 | AI34: 1 | AJ34: 1
A35: 5 | E35: 0 | F35: 0 | G35: 0 | I35: 0 | K35: 0 | L35: 0 | M35: 0 | S35: 1 | T35: 0 | U35: 0 | V35: 0 | W35: 1 | X35: 1 | Y35: 1 | Z35: 0 | AA35: 0 | AB35: =(IF(IsLocked(#REF!)*1=1,1,0)) ->  | AC35: 0 | AD35: 1 | AE35: 1 | AF35: 1 | AG35: 0 | AH35: 1 | AI35: 1 | AJ35: 1
A36: 6 | E36: 0 | F36: 0 | G36: 0 | I36: 0 | K36: 0 | L36: 0 | M36: 0 | S36: 1 | T36: 0 | U36: 0 | V36: 0 | W36: 1 | X36: 1 | Y36: 1 | Z36: 0 | AA36: 0 | AB36: =(IF(IsLocked(#REF!)*1=1,1,0)) ->  | AC36: 0 | AD36: 1 | AE36: 1 | AF36: 1 | AG36: 0 | AH36: 1 | AI36: 1 | AJ36: 1
A37: 7 | E37: 0 | F37: 0 | G37: 0 | I37: 0 | K37: 0 | L37: 0 | M37: 0 | S37: 1 | T37: 0 | U37: 0 | V37: 0 | W37: 1 | X37: 1 | Y37: 1 | Z37: 0 | AA37: 0 | AB37: =(IF(IsLocked(#REF!)*1=1,1,0)) ->  | AC37: 0 | AD37: 1 | AE37: 1 | AF37: 1 | AG37: 0 | AH37: 1 | AI37: 1 | AJ37: 1
A38: 8 | E38: 0 | F38: 0 | G38: 0 | I38: 0 | K38: 0 | L38: 0 | M38: 0 | S38: 1 | T38: 0 | U38: 0 | V38: 0 | W38: 1 | X38: 1 | Y38: 1 | Z38: 0 | AA38: 0 | AB38: =(IF(IsLocked(#REF!)*1=1,1,0)) ->  | AC38: 0 | AD38: 1 | AE38: 1 | AF38: 1 | AG38: 0 | AH38: 1 | AI38: 1 | AJ38: 1
A39: 9 | E39: 0 | F39: 0 | G39: 0 | I39: 0 | K39: 0 | L39: 0 | M39: 0 | S39: 1 | T39: 0 | U39: 0 | V39: 0 | W39: 1 | X39: 1 | Y39: 1 | Z39: 0 | AA39: 0 | AB39: =(IF(IsLocked(#REF!)*1=1,1,0)) ->  | AC39: 0 | AD39: 1 | AE39: 1 | AF39: 1 | AG39: 0 | AH39: 1 | AI39: 1 | AJ39: 1
A40: 10 | E40: 0 | F40: 0 | G40: 0 | I40: 0 | K40: 0 | L40: 0 | M40: 0 | S40: 1 | T40: 0 | U40: 0 | V40: 0 | W40: 1 | X40: 1 | Y40: 1 | Z40: 0 | AA40: 0 | AB40: =(IF(IsLocked(#REF!)*1=1,1,0)) ->  | AC40: 0 | AD40: 1 | AE40: 1 | AF40: 1 | AG40: 0 | AH40: 1 | AI40: 1 | AJ40: 1
A41: 11 | E41: 0 | F41: 0 | G41: 0 | I41: 0 | K41: 0 | L41: 0 | M41: 0 | S41: 1 | T41: 0 | U41: 0 | V41: 0 | W41: 1 | X41: 1 | Y41: 1 | Z41: 0 | AA41: 0 | AB41: =(IF(IsLocked(#REF!)*1=1,1,0)) ->  | AC41: 0 | AD41: 1 | AE41: 1 | AF41: 1 | AG41: 0 | AH41: 1 | AI41: 1 | AJ41: 1
A42: 12 | E42: 0 | F42: 0 | G42: 0 | I42: 0 | K42: 0 | L42: 0 | M42: 0 | S42: 1 | T42: 0 | U42: 0 | V42: 0 | W42: 1 | X42: 1 | Y42: 1 | Z42: 0 | AA42: 0 | AB42: =(IF(IsLocked(#REF!)*1=1,1,0)) ->  | AC42: 0 | AD42: 1 | AE42: 1 | AF42: 1 | AG42: 0 | AH42: 1 | AI42: 1 | AJ42: 1
B43: TOTALS FOR ALL BUILDINGS | C43: =SUM(C31:C42) -> 0 | D43: =SUM(D31:D42) -> 0 | E43: 0 | F43: =IF(C43=0,0,C43/E43) -> 0 | I43: =SUM(I31:I42) -> 0 | J43: =SUM(J31:J42) -> 0 | K43: =SUM(K31:K42) -> 0 | L43: =IF(I43>0,I43/(I43+J43),0) -> 0 | M43: 0 | S43: 1 | T43: 1 | U43: 1 | V43: 1 | W43: 1 | X43: 1 | Y43: 1 | Z43: 1 | AA43: 1 | AB43: =(IF(IsLocked(#REF!)*1=1,1,0)) ->  | AC43: 1 | AD43: 1 | AE43: 1 | AF43: 1 | AG43: 1 | AH43: 1 | AI43: 1 | AJ43: 1
J44: see Total Residential (Units, SF) Check Total* | K44: =+E12+E13+E14 -> 0 | S44: 1 | T44: 1 | U44: 1 | V44: 1 | W44: 1 | X44: 1 | Y44: 1 | Z44: 1 | AA44: 1 | AB44: =(IF(IsLocked(#REF!)*1=1,1,0)) ->  | AC44: 1 | AD44: 1 | AE44: 1 | AF44: 1 | AG44: 1
J45: OOB = | K45: =+K44-K43 -> 0 | S45: 1 | T45: 1 | U45: 1 | V45: 1 | W45: 1 | X45: 1 | Y45: 1 | Z45: 1 | AA45: 1 | AB45: =(IF(IsLocked(#REF!)*1=1,1,0)) ->  | AC45: 1 | AD45: 1 | AE45: 1 | AF45: 1 | AG45: 1
S46: 1 | T46: 1 | U46: 1 | V46: 1 | W46: 1 | X46: 1 | Y46: 1 | Z46: 1 | AA46: 1 | AB46: =(IF(IsLocked(#REF!)*1=1,1,0)) ->  | AC46: 1 | AD46: 1 | AE46: 1 | AF46: 1 | AG46: 1
B47: Rev. Rul. 92-61 holds that the adjusted basis of a unit occupied by a full-time resident manager is included in the Eligible Basis of a qualified low-income building under IRC §42(d)(1), but the unit is excluded from the applicable fraction under | S47: 1 | T47: 1 | U47: 1 | V47: 1 | W47: 1 | X47: 1 | Y47: 1 | Z47: 1 | AA47: 1 | AB47: =(IF(IsLocked(#REF!)*1=1,1,0)) ->  | AC47: 1 | AD47: 1 | AE47: 1 | AF47: 1 | AG47: 1
B48: IRC §42(c)(1)(B) for purposes of determining the building's Qualified Basis. https://www.irs.gov/Businesses/Small-Businesses-&-Self-Employed/Chapter-8-Category-11e-Changes-in-Eligible-Basis. | S48: 1 | T48: 1 | U48: 1 | V48: 1 | W48: 1 | X48: 1 | Y48: 1 | Z48: 1 | AA48: 1 | AB48: =(IF(IsLocked(#REF!)*1=1,1,0)) ->  | AC48: 1 | AD48: 1 | AE48: 1 | AF48: 1 | AG48: 1
S49: 1 | T49: 1 | U49: 1 | V49: 1 | W49: 1 | X49: 1 | Y49: 1 | Z49: 1 | AA49: 1 | AB49: =(IF(IsLocked(#REF!)*1=1,1,0)) ->  | AC49: 1 | AD49: 1 | AE49: 1 | AF49: 1 | AG49: 1
S50: 1 | T50: 1 | U50: 1 | V50: 1 | W50: 1 | X50: 1 | Y50: 1 | Z50: 1 | AA50: 1 | AB50: =(IF(IsLocked(#REF!)*1=1,1,0)) ->  | AC50: 1 | AD50: 1 | AE50: 1 | AF50: 1 | AG50: 1

Sheet 4 Utilities
A1: =Div -> State of Nevada Housing Division | H1: =ProjName -> 0 | L1: =(IF(IsLocked(A1)*1=1,1,0)) -> 1 | M1: =(IF(IsLocked(B1)*1=1,1,0)) -> 1 | N1: =(IF(IsLocked(C1)*1=1,1,0)) -> 1 | O1: =(IF(IsLocked(D1)*1=1,1,0)) -> 1 | P1: =(IF(IsLocked(E1)*1=1,1,0)) -> 1 | Q1: =(IF(IsLocked(F1)*1=1,1,0)) -> 1 | R1: =(IF(IsLocked(G1)*1=1,1,0)) -> 1 | S1: =(IF(IsLocked(H1)*1=1,1,0)) -> 1 | T1: =(IF(IsLocked(I1)*1=1,1,0)) -> 1 | U1: =(IF(IsLocked(J1)*1=1,1,0)) -> 1 | V1: =(IF(IsLocked(K1)*1=1,1,0)) -> 1 | W1: =(IF(IsLocked(L1)*1=1,1,0)) -> 1 | X1: =(IF(IsLocked(M1)*1=1,1,0)) -> 1 | Y1: =(IF(IsLocked(N1)*1=1,1,0)) -> 1
A2: =nhd -> 2017 NHD FUNDING APPLICATION | H2: TOC | L2: =(IF(IsLocked(A2)*1=1,1,0)) -> 1 | M2: 1 | N2: 1 | O2: 1 | P2: 1 | Q2: 1 | R2: 1 | S2: 1 | T2: 1 | U2: 1 | V2: 1 | W2: 1 | X2: 1 | Y2: 1
A3: UTILITIES | L3: 1 | M3: 1 | N3: 1 | O3: 1 | P3: 1 | Q3: 1 | R3: 1 | S3: 1 | T3: 1 | U3: 1 | V3: 1 | W3: 1 | X3: 1 | Y3: 1
L4: 1 | M4: 1 | N4: 1 | O4: 1 | P4: 1 | Q4: 1 | R4: 1 | S4: 1 | T4: 1 | U4: 1 | V4: 1 | W4: 1 | X4: 1 | Y4: 1
D5: Tenant Utilities | L5: 1 | M5: 1 | N5: 1 | O5: 1 | P5: 1 | Q5: 1 | R5: 1 | S5: 1 | T5: 1 | U5: 1 | V5: 1 | W5: 1 | X5: 1 | Y5: 1
L6: 1 | M6: 1 | N6: 1 | O6: 1 | P6: 1 | Q6: 1 | R6: 1 | S6: 1 | T6: 1 | U6: 1 | V6: 1 | W6: 1 | X6: 1 | Y6: 1
B7: Tenant Paid Utilities? | L7: 1 | M7: 1 | N7: 1 | O7: 1 | P7: 1 | Q7: 1 | R7: 1 | S7: 1 | T7: 1 | U7: 1 | V7: 1 | W7: 1 | X7: 1 | Y7: 1
B8: Source of Utility Allowance Data | L8: 1 | M8: 1 | N8: 1 | O8: 0 | P8: 0 | Q8: 0 | R8: 0 | S8: 0 | T8: 1 | U8: 1 | V8: 1 | W8: 1 | X8: 1 | Y8: 1
B9: Effective Date | L9: 1 | M9: 1 | N9: 1 | O9: 0 | P9: 0 | Q9: 0 | R9: 0 | S9: 1 | T9: 1 | U9: 1 | V9: 1 | W9: 1 | X9: 1 | Y9: 1
L10: 1 | M10: 1 | N10: 1 | O10: 1 | P10: 1 | Q10: 1 | R10: 1 | S10: 1 | T10: 1 | U10: 1 | V10: 1 | W10: 1 | X10: 1 | Y10: 1
B11: E= Electric, G= Natural Gas, P= Propane, LNG = Liquified Natural Gas, O = Oil, S = Solar | L11: 1 | M11: 1 | N11: 1 | O11: 1 | P11: 1 | Q11: 1 | R11: 1 | S11: 1 | T11: 1 | U11: 1 | V11: 1 | W11: 1 | X11: 1 | Y11: 1
B12: (Use all that apply) | L12: 1 | M12: 1 | N12: 1 | O12: 1 | P12: 1 | Q12: 1 | R12: 1 | S12: 1 | T12: 1 | U12: 1 | V12: 1 | W12: 1 | X12: 1 | Y12: 1
C13: Paid by | D13: Energy/Fuel | E13: Number of Bedrooms | L13: 1 | M13: 1 | N13: 1 | O13: 1 | P13: 1 | Q13: 1 | R13: 1 | S13: 1 | T13: 1 | U13: 1 | V13: 1 | W13: 1 | X13: 1 | Y13: 1
B14: Usage | C14: O(wner)/ T(enant) | D14: Source | E14: Studio (0) | F14: 1 | G14: 2 | H14: 3 | I14: 4 | J14: 5 | L14: 1 | M14: 1 | N14: 1 | O14: 1 | P14: 1 | Q14: 1 | R14: 1 | S14: 1 | T14: 1 | U14: 1 | V14: 1 | W14: 1 | X14: 1 | Y14: 1
B15: Heating | E15: 0 | F15: 0 | G15: 0 | H15: 0 | I15: 0 | J15: 0 | L15: 1 | M15: 1 | N15: =(IF(IsLocked(C15)*1=1,1,0)) -> 0 | O15: 0 | P15: 0 | Q15: 0 | R15: 0 | S15: 0 | T15: 0 | U15: 0 | V15: 1 | W15: 1 | X15: 1 | Y15: 1
B16: Air Conditioning | E16: 0 | F16: 0 | G16: 0 | H16: 0 | I16: 0 | J16: 0 | L16: 1 | M16: 1 | N16: =(IF(IsLocked(C16)*1=1,1,0)) -> 0 | O16: 0 | P16: 0 | Q16: 0 | R16: 0 | S16: 0 | T16: 0 | U16: 0 | V16: 1 | W16: 1 | X16: 1 | Y16: 1
B17: Cooking | E17: 0 | F17: 0 | G17: 0 | H17: 0 | I17: 0 | J17: 0 | L17: 1 | M17: 1 | N17: 0 | O17: 0 | P17: 0 | Q17: 0 | R17: 0 | S17: 0 | T17: 0 | U17: 0 | V17: 1 | W17: 1 | X17: 1 | Y17: 1
B18: Lighting | E18: 0 | F18: 0 | G18: 0 | H18: 0 | I18: 0 | J18: 0 | L18: 1 | M18: 1 | N18: 0 | O18: 0 | P18: 0 | Q18: 0 | R18: 0 | S18: 0 | T18: 0 | U18: 0 | V18: 1 | W18: 1 | X18: 1 | Y18: 1
B19: Hot Water | E19: 0 | F19: 0 | G19: 0 | H19: 0 | I19: 0 | J19: 0 | L19: 1 | M19: 1 | N19: 0 | O19: 0 | P19: 0 | Q19: 0 | R19: 0 | S19: 0 | T19: 0 | U19: 0 | V19: 1 | W19: 1 | X19: 1 | Y19: 1
B20: Water | E20: 0 | F20: 0 | G20: 0 | H20: 0 | I20: 0 | J20: 0 | L20: 1 | M20: 1 | N20: 0 | O20: 0 | P20: 0 | Q20: 0 | R20: 0 | S20: 0 | T20: 0 | U20: 0 | V20: 1 | W20: 1 | X20: 1 | Y20: 1
B21: Sewer | E21: 0 | F21: 0 | G21: 0 | H21: 0 | I21: 0 | J21: 0 | L21: 1 | M21: 1 | N21: 0 | O21: 0 | P21: 0 | Q21: 0 | R21: 0 | S21: 0 | T21: 0 | U21: 0 | V21: 1 | W21: 1 | X21: 1 | Y21: 1
B22: Trash | E22: 0 | F22: 0 | G22: 0 | H22: 0 | I22: 0 | J22: 0 | L22: 1 | M22: 1 | N22: 0 | O22: 0 | P22: 0 | Q22: 0 | R22: 0 | S22: 0 | T22: 0 | U22: 0 | V22: 1 | W22: 1 | X22: 1 | Y22: 1
B23: Range | E23: 0 | F23: 0 | G23: 0 | H23: 0 | I23: 0 | J23: 0 | L23: 1 | M23: 1 | N23: 0 | O23: 0 | P23: 0 | Q23: 0 | R23: 0 | S23: 0 | T23: 0 | U23: 0 | V23: 1 | W23: 1 | X23: 1 | Y23: 1
B24: Refrigerator | E24: 0 | F24: 0 | G24: 0 | H24: 0 | I24: 0 | J24: 0 | L24: 1 | M24: 1 | N24: 0 | O24: 0 | P24: 0 | Q24: 0 | R24: 0 | S24: 0 | T24: 0 | U24: 0 | V24: 1 | W24: 1 | X24: 1 | Y24: 1
B25: Other | E25: 0 | F25: 0 | G25: 0 | H25: 0 | I25: 0 | J25: 0 | L25: 1 | M25: 0 | N25: 0 | O25: 0 | P25: 0 | Q25: 0 | R25: 0 | S25: 0 | T25: 0 | U25: 0 | V25: 1 | W25: 1 | X25: 1 | Y25: 1
B26: Other | E26: 0 | F26: 0 | G26: 0 | H26: 0 | I26: 0 | J26: 0 | L26: 1 | M26: 0 | N26: 0 | O26: 0 | P26: 0 | Q26: 0 | R26: 0 | S26: 0 | T26: 0 | U26: 0 | V26: 1 | W26: 1 | X26: 1 | Y26: 1
B27: Other | E27: 0 | F27: 0 | G27: 0 | H27: 0 | I27: 0 | J27: 0 | L27: =(IF(IsLocked(A27)*1=1,1,0)) -> 1 | M27: =(IF(IsLocked(B27)*1=1,1,0)) -> 0 | N27: =(IF(IsLocked(C27)*1=1,1,0)) -> 0 | O27: =(IF(IsLocked(D27)*1=1,1,0)) -> 0 | P27: =(IF(IsLocked(E27)*1=1,1,0)) -> 0 | Q27: =(IF(IsLocked(F27)*1=1,1,0)) -> 0 | R27: =(IF(IsLocked(G27)*1=1,1,0)) -> 0 | S27: =(IF(IsLocked(H27)*1=1,1,0)) -> 0 | T27: =(IF(IsLocked(I27)*1=1,1,0)) -> 0 | U27: =(IF(IsLocked(J27)*1=1,1,0)) -> 0 | V27: =(IF(IsLocked(K27)*1=1,1,0)) -> 1 | W27: =(IF(IsLocked(L27)*1=1,1,0)) -> 1 | X27: =(IF(IsLocked(M27)*1=1,1,0)) -> 1 | Y27: =(IF(IsLocked(N27)*1=1,1,0)) -> 1
E28: =SUM(E15:E27) -> 0 | F28: 0 | G28: 0 | H28: 0 | I28: 0 | J28: 0 | L28: 1 | M28: 1 | N28: 1 | O28: 1 | P28: 1 | Q28: 1 | R28: 1 | S28: 1 | T28: 1 | U28: 1 | V28: 1 | W28: 1 | X28: 1 | Y28: 1
L29: 1 | M29: 1 | N29: 1 | O29: 1 | P29: 1 | Q29: 1 | R29: 1 | S29: 1 | T29: 1 | U29: 1 | V29: 1 | W29: 1 | X29: 1 | Y29: 1
B30: NOTE: Documentation for all utility calculations must be included with application. Sources of documentation must be from HUD, RD, PHA or utility company. | L30: 1 | M30: 1 | N30: 1 | O30: 1 | P30: 1 | Q30: 1 | R30: 1 | S30: 1 | T30: 1 | U30: 1 | V30: 1 | W30: 1 | X30: 1 | Y30: 1
L31: 1 | M31: 1 | N31: 1 | O31: 1 | P31: 1 | Q31: 1 | R31: 1 | S31: 1 | T31: 1 | U31: 1 | V31: 1 | W31: 1 | X31: 1 | Y31: 1
B32: PHA or Utility allowance used: | L32: 1 | M32: 1 | N32: 1 | O32: 0 | P32: 0 | Q32: 0 | R32: 0 | S32: 0 | T32: 0 | U32: 1 | V32: 1 | W32: 1 | X32: 1 | Y32: 1
L33: 1 | M33: 1 | N33: 1 | O33: 1 | P33: 1 | Q33: 1 | R33: 1 | S33: 1 | T33: 1 | U33: 1 | V33: 1 | W33: 1 | X33: 1 | Y33: 1
L34: 1 | M34: 1 | N34: 1 | O34: 1 | P34: 1 | Q34: 1 | R34: 1 | S34: 1 | T34: 1 | U34: 1 | V34: 1 | W34: 1 | X34: 1 | Y34: 1
B35: Appliances supplied in the unit. Select "Yes" for all supplied items. | L35: 1 | M35: 1 | N35: 1 | O35: 1 | P35: 1 | Q35: 1 | R35: 1 | S35: 1 | T35: 1 | U35: 1 | V35: 1 | W35: 1 | X35: 1 | Y35: 1
B36: Range | D36: Disposal | L36: 1 | M36: 1 | N36: 1 | O36: 1 | P36: 1 | Q36: 1 | R36: 1 | S36: 1 | T36: 1 | U36: 1 | V36: 1 | W36: 1 | X36: 1 | Y36: 1
B37: Oven | D37: Dishwasher | L37: 1 | M37: 1 | N37: 1 | O37: 1 | P37: 1 | Q37: 1 | R37: 1 | S37: 1 | T37: 1 | U37: 1 | V37: 1 | W37: 1 | X37: 1 | Y37: 1
B38: Refrigerator | D38: Air Conditioner | L38: 1 | M38: 1 | N38: 1 | O38: 1 | P38: 1 | Q38: 1 | R38: 1 | S38: 1 | T38: 1 | U38: 1 | V38: 1 | W38: 1 | X38: 1 | Y38: 1
L39: 1 | M39: 1 | N39: 1 | O39: 1 | P39: 1 | Q39: 1 | R39: 1 | S39: 1 | T39: 1 | U39: 1 | V39: 1 | W39: 1 | X39: 1 | Y39: 1
B40: Kitchen exhaust fan | L40: 1 | M40: 1 | N40: 1 | O40: 0 | P40: 1 | Q40: 1 | R40: 1 | S40: 1 | T40: 1 | U40: 1 | V40: 1 | W40: 1 | X40: 1 | Y40: 1
B41: Washer & Dryer | L41: 1 | M41: 1 | N41: 1 | O41: 0 | P41: 1 | Q41: 1 | R41: 1 | S41: 1 | T41: 1 | U41: 1 | V41: 1 | W41: 1 | X41: 1 | Y41: 1
B42: Washer & Dryer hook-up | L42: 1 | M42: 1 | N42: 1 | O42: 0 | P42: 1 | Q42: 1 | R42: 1 | S42: 1 | T42: 1 | U42: 1 | V42: 1 | W42: 1 | X42: 1 | Y42: 1
B43: Other | L43: 1 | M43: 1 | N43: 1 | O43: 0 | P43: 1 | Q43: 1 | R43: 1 | S43: 1 | T43: 1 | U43: 1 | V43: 1 | W43: 1 | X43: 1 | Y43: 1
L44: 1 | M44: 1 | N44: 1 | O44: 1 | P44: 1 | Q44: 1 | R44: 1 | S44: 1 | T44: 1 | U44: 1 | V44: 1 | W44: 1 | X44: 1 | Y44: 1
B45: If different utilities provided than in market rate units please explain. | L45: 1 | M45: 1 | N45: 1 | O45: 1 | P45: 1 | Q45: 1 | R45: 1 | S45: 1 | T45: 1 | U45: 1 | V45: 1 | W45: 1 | X45: 1 | Y45: 1
L46: 1 | M46: 0 | N46: 0 | O46: 0 | P46: 0 | Q46: 0 | R46: 0 | S46: 0 | T46: 0 | U46: 1 | V46: 1 | W46: 1 | X46: 1 | Y46: 1
L47: 1 | M47: 0 | N47: 0 | O47: 0 | P47: 0 | Q47: 0 | R47: 0 | S47: 0 | T47: 0 | U47: 1 | V47: 1 | W47: 1 | X47: 1 | Y47: 1
L48: 1 | M48: 0 | N48: 0 | O48: 0 | P48: 0 | Q48: 0 | R48: 0 | S48: 0 | T48: 0 | U48: 1 | V48: 1 | W48: 1 | X48: 1 | Y48: 1
L49: 1 | M49: 0 | N49: 0 | O49: 0 | P49: 0 | Q49: 0 | R49: 0 | S49: 0 | T49: 0 | U49: 1 | V49: 1 | W49: 1 | X49: 1 | Y49: 1
L50: 1 | M50: 1 | N50: 1 | O50: 1 | P50: 1 | Q50: 1 | R50: 1 | S50: 1 | T50: 1 | U50: 1 | V50: 1 | W50: 1 | X50: 1 | Y50: 1

Sheet 5 Distr & Rent
A1: =Div -> State of Nevada Housing Division | O1: =ProjName -> 0 | T1: =(IF(IsLocked(A1)*1=1,1,0)) -> 1 | U1: =(IF(IsLocked(B1)*1=1,1,0)) -> 1 | V1: =(IF(IsLocked(C1)*1=1,1,0)) -> 1 | W1: =(IF(IsLocked(D1)*1=1,1,0)) -> 1 | X1: =(IF(IsLocked(E1)*1=1,1,0)) -> 1 | Y1: =(IF(IsLocked(F1)*1=1,1,0)) -> 1 | Z1: =(IF(IsLocked(G1)*1=1,1,0)) -> 1 | AA1: =(IF(IsLocked(H1)*1=1,1,0)) -> 1 | AB1: =(IF(IsLocked(I1)*1=1,1,0)) -> 1 | AC1: =(IF(IsLocked(J1)*1=1,1,0)) -> 1 | AD1: =(IF(IsLocked(K1)*1=1,1,0)) -> 1 | AE1: =(IF(IsLocked(L1)*1=1,1,0)) -> 1 | AF1: =(IF(IsLocked(M1)*1=1,1,0)) -> 1 | AG1: =(IF(IsLocked(N1)*1=1,1,0)) -> 1 | AH1: =(IF(IsLocked(O1)*1=1,1,0)) -> 1 | AI1: =(IF(IsLocked(P1)*1=1,1,0)) -> 1 | AJ1: =(IF(IsLocked(Q1)*1=1,1,0)) -> 1
A2: =nhd -> 2017 NHD FUNDING APPLICATION | O2: TOC | T2: =(IF(IsLocked(A2)*1=1,1,0)) -> 1 | U2: 1 | V2: 1 | W2: 1 | X2: 1 | Y2: 1 | Z2: 1 | AA2: 1 | AB2: 1 | AC2: 1 | AD2: 1 | AE2: 1 | AF2: 1 | AG2: 1 | AH2: 1 | AI2: 1 | AJ2: 1
A3: UNIT DISTRIBUTION AND MONTHLY RENTS | T3: 1 | U3: 1 | V3: 1 | W3: 1 | X3: 1 | Y3: 1 | Z3: 1 | AA3: 1 | AB3: 1 | AC3: 1 | AD3: 1 | AE3: 1 | AF3: 1 | AG3: 1 | AH3: 1 | AI3: 1 | AJ3: 1
T4: 1 | U4: 1 | V4: 1 | W4: 1 | X4: 1 | Y4: 1 | Z4: 1 | AA4: 1 | AB4: 1 | AC4: 1 | AD4: 1 | AE4: 1 | AF4: 1 | AG4: 1 | AH4: 1 | AI4: 1 | AJ4: 1
H5: Unit Distribution and Monthly Rents | T5: 1 | U5: 1 | V5: 1 | W5: 1 | X5: 1 | Y5: 1 | Z5: 1 | AA5: 1 | AB5: 1 | AC5: 1 | AD5: 1 | AE5: 1 | AF5: 1 | AG5: 1 | AH5: 1 | AI5: 1 | AJ5: 1
T6: 1 | U6: 1 | V6: 1 | W6: 1 | X6: 1 | Y6: 1 | Z6: 1 | AA6: 1 | AB6: 1 | AC6: 1 | AD6: 1 | AE6: 1 | AF6: 1 | AG6: 1 | AH6: 1 | AI6: 1 | AJ6: 1
E7: Total | G7: Total Restricted Units | L7: Total Market Rate Units | P7: Total Common Use Units | T7: 1 | U7: 1 | V7: 1 | W7: 1 | X7: 1 | Y7: 1 | Z7: 1 | AA7: 1 | AB7: 1 | AC7: 1 | AD7: 1 | AE7: 1 | AF7: 1 | AG7: 1 | AH7: 1 | AI7: 1 | AJ7: 1
G8: R | L8: MR | P8: MU | T8: 1 | U8: 1 | V8: 1 | W8: 1 | X8: 1 | Y8: 1 | Z8: 1 | AA8: 1 | AB8: 1 | AC8: 1 | AD8: 1 | AE8: 1 | AF8: 1 | AG8: 1 | AH8: 1 | AI8: 1 | AJ8: 1
E9: =SUM(F9:P9) -> 0 | G9: =SUMIF($D$13:$D$27,G8,$G$13:$G$27) -> 0 | L9: =SUMIF($D$13:$D$27,L8,$G$13:$G$27) -> 0 | P9: =SUMIF($D$13:$D$27,P8,$G$13:$G$27) -> 0 | T9: 1 | U9: 1 | V9: 1 | W9: 1 | X9: 1 | Y9: 1 | Z9: 1 | AA9: 1 | AB9: 1 | AC9: 1 | AD9: 1 | AE9: 1 | AF9: 1 | AG9: 1 | AH9: 1 | AI9: 1 | AJ9: 1
T10: 1 | U10: 1 | V10: 1 | W10: 1 | X10: 1 | Y10: 1 | Z10: 1 | AA10: 1 | AB10: 1 | AC10: 1 | AD10: 1 | AE10: 1 | AF10: 1 | AG10: 1 | AH10: 1 | AI10: 1 | AJ10: 1
E11: # | F11: # | G11: Unit | H11: Square | I11: Total | J11: AMI | K11: Max' AMI | L11: Proposed | M11: Total | N11: Mandatory | O11: Utility | P11: Owner | Q11: Net | T11: 1 | U11: 1 | V11: 1 | W11: 1 | X11: 1 | Y11: 1 | Z11: 1 | AA11: 1 | AB11: 1 | AC11: 1 | AD11: 1 | AE11: 1 | AF11: 1 | AG11: 1 | AH11: 1 | AI11: 1 | AJ11: 1
D12: Type | E12: Bedrms | F12: Bathrms | G12: Count | H12: Ft/u | I12: Sq Ft | J12: Max % | K12: Gr' Rent | L12: Gr' Rent | M12: Gr' Rent | N12: Charges* | O12: Allowance | P12: Paid? y/n | Q12: Rent/mo | T12: 1 | U12: 1 | V12: 1 | W12: 1 | X12: 1 | Y12: 1 | Z12: 1 | AA12: 1 | AB12: 1 | AC12: 1 | AD12: 1 | AE12: 1 | AF12: 1 | AG12: 1 | AH12: 1 | AI12: 1 | AJ12: 1
B13: 1 | D13: r | E13: 0 | F13: 0 | G13: 0 | H13: 0 | I13: 0 | J13: 0.3 | K13: 0 | L13: 0 | M13: =+L13*G13 -> 0 | N13: 0 | O13: 0 | Q13: =L13-IF(P13="n",O13,0) -> 0 | T13: 1 | U13: 1 | V13: 1 | W13: 0 | X13: 0 | Y13: 0 | Z13: 0 | AA13: 0 | AB13: 0 | AC13: 0 | AD13: 0 | AE13: 0 | AF13: 1 | AG13: 0 | AH13: 0 | AI13: 0 | AJ13: 1
B14: 2 | D14: r | E14: 0 | F14: 0 | G14: 0 | H14: 0 | I14: 0 | J14: 0.35 | K14: 0 | L14: 0 | M14: =+L14*G14 -> 0 | N14: 0 | O14: 0 | Q14: =L14-IF(P14="n",O14,0) -> 0 | T14: 1 | U14: 1 | V14: 1 | W14: 0 | X14: 0 | Y14: 0 | Z14: 0 | AA14: 0 | AB14: 0 | AC14: 0 | AD14: 0 | AE14: 0 | AF14: 1 | AG14: 0 | AH14: 0 | AI14: 0 | AJ14: 1
B15: 3 | D15: r | E15: 0 | F15: 0 | G15: 0 | H15: 0 | I15: 0 | J15: 0.4 | K15: 0 | L15: 0 | M15: 0 | N15: 0 | O15: 0 | Q15: 0 | T15: 1 | U15: 1 | V15: 1 | W15: 0 | X15: 0 | Y15: 0 | Z15: 0 | AA15: 0 | AB15: 0 | AC15: 0 | AD15: 0 | AE15: 0 | AF15: 1 | AG15: 0 | AH15: 0 | AI15: 0 | AJ15: 1
B16: 4 | D16: r | E16: 0 | F16: 0 | G16: 0 | H16: 0 | I16: 0 | J16: 0 | K16: 0 | L16: 0 | M16: 0 | N16: 0 | O16: 0 | Q16: 0 | T16: 1 | U16: 1 | V16: 1 | W16: 0 | X16: 0 | Y16: 0 | Z16: 0 | AA16: 0 | AB16: 0 | AC16: 0 | AD16: 0 | AE16: 0 | AF16: 1 | AG16: 0 | AH16: 0 | AI16: 0 | AJ16: 1
B17: 5 | D17: r | E17: 0 | F17: 0 | G17: 0 | H17: 0 | I17: 0 | J17: 0 | K17: 0 | L17: 0 | M17: 0 | N17: 0 | O17: 0 | Q17: 0 | T17: 1 | U17: 1 | V17: 1 | W17: 0 | X17: 0 | Y17: 0 | Z17: 0 | AA17: 0 | AB17: 0 | AC17: 0 | AD17: 0 | AE17: 0 | AF17: 1 | AG17: 0 | AH17: 0 | AI17: 0 | AJ17: 1
B18: 6 | D18: r | E18: 0 | F18: 0 | G18: 0 | H18: 0 | I18: 0 | J18: 0 | K18: 0 | L18: 0 | M18: 0 | N18: 0 | O18: 0 | Q18: 0 | T18: 1 | U18: 1 | V18: 1 | W18: 0 | X18: 0 | Y18: 0 | Z18: 0 | AA18: 0 | AB18: 0 | AC18: 0 | AD18: 0 | AE18: 0 | AF18: 1 | AG18: 0 | AH18: 0 | AI18: 0 | AJ18: 1
B19: 7 | D19: r | E19: 0 | F19: 0 | G19: 0 | H19: 0 | I19: 0 | J19: 0 | K19: 0 | L19: 0 | M19: 0 | N19: 0 | O19: 0 | Q19: 0 | T19: 1 | U19: 1 | V19: 1 | W19: 0 | X19: 0 | Y19: 0 | Z19: 0 | AA19: 0 | AB19: 0 | AC19: 0 | AD19: 0 | AE19: 0 | AF19: 1 | AG19: 0 | AH19: 0 | AI19: 0 | AJ19: 1
B20: 8 | D20: r | E20: 0 | F20: 0 | G20: 0 | H20: 0 | I20: 0 | J20: 0 | K20: 0 | L20: 0 | M20: 0 | N20: 0 | O20: 0 | Q20: 0 | T20: 1 | U20: 1 | V20: 1 | W20: 0 | X20: 0 | Y20: 0 | Z20: 0 | AA20: 0 | AB20: 0 | AC20: 0 | AD20: 0 | AE20: 0 | AF20: 1 | AG20: 0 | AH20: 0 | AI20: 0 | AJ20: 1
B21: 9 | D21: r | E21: 0 | F21: 0 | G21: 0 | H21: 0 | I21: 0 | J21: 0 | K21: 0 | L21: 0 | M21: 0 | N21: 0 | O21: 0 | Q21: 0 | T21: 1 | U21: 1 | V21: 1 | W21: 0 | X21: 0 | Y21: 0 | Z21: 0 | AA21: 0 | AB21: 0 | AC21: 0 | AD21: 0 | AE21: 0 | AF21: 1 | AG21: 0 | AH21: 0 | AI21: 0 | AJ21: 1
B22: 10 | D22: r | E22: 0 | F22: 0 | G22: 0 | H22: 0 | I22: 0 | J22: 0 | K22: 0 | L22: 0 | M22: 0 | N22: 0 | O22: 0 | Q22: 0 | T22: 1 | U22: 1 | V22: 1 | W22: 0 | X22: 0 | Y22: 0 | Z22: 0 | AA22: 0 | AB22: 0 | AC22: 0 | AD22: 0 | AE22: 0 | AF22: 1 | AG22: 0 | AH22: 0 | AI22: 0 | AJ22: 1
B23: 11 | D23: r | E23: 0 | F23: 0 | G23: 0 | H23: 0 | I23: 0 | J23: 0 | K23: 0 | L23: 0 | M23: 0 | N23: 0 | O23: 0 | Q23: 0 | T23: 1 | U23: 1 | V23: 1 | W23: 0 | X23: 0 | Y23: 0 | Z23: 0 | AA23: 0 | AB23: 0 | AC23: 0 | AD23: 0 | AE23: 0 | AF23: 1 | AG23: 0 | AH23: 0 | AI23: 0 | AJ23: 1
B24: 12 | D24: r | E24: 0 | F24: 0 | G24: 0 | H24: 0 | I24: 0 | J24: 0 | K24: 0 | L24: 0 | M24: 0 | N24: 0 | O24: 0 | Q24: 0 | T24: 1 | U24: 1 | V24: 1 | W24: 0 | X24: 0 | Y24: 0 | Z24: 0 | AA24: 0 | AB24: 0 | AC24: 0 | AD24: 0 | AE24: 0 | AF24: 1 | AG24: 0 | AH24: 0 | AI24: 0 | AJ24: 1
B25: 13 | D25: r | E25: 0 | F25: 0 | G25: 0 | H25: 0 | I25: 0 | J25: 0 | K25: 0 | L25: 0 | M25: 0 | N25: 0 | O25: 0 | Q25: 0 | T25: 1 | U25: 1 | V25: 1 | W25: 0 | X25: 0 | Y25: 0 | Z25: 0 | AA25: 0 | AB25: 0 | AC25: 0 | AD25: 0 | AE25: 0 | AF25: 1 | AG25: 0 | AH25: 0 | AI25: 0 | AJ25: 1
B26: 14 | D26: r | E26: 0 | F26: 0 | G26: 0 | H26: 0 | I26: 0 | J26: 0 | K26: 0 | L26: 0 | M26: 0 | N26: 0 | O26: 0 | Q26: 0 | T26: 1 | U26: 1 | V26: 1 | W26: 0 | X26: 0 | Y26: 0 | Z26: 0 | AA26: 0 | AB26: 0 | AC26: 0 | AD26: 0 | AE26: 0 | AF26: 1 | AG26: 0 | AH26: 0 | AI26: 0 | AJ26: 1
B27: 15 | J27: 0 | K27: 0 | L27: 0 | M27: 0 | N27: 0 | O27: 0 | Q27: 0 | T27: 1 | U27: 1 | V27: 1 | W27: 0 | X27: 0 | Y27: 0 | Z27: 0 | AA27: 0 | AB27: 0 | AC27: 0 | AD27: 0 | AE27: 0 | AF27: 1 | AG27: 0 | AH27: 0 | AI27: 0 | AJ27: 1
D28: Totals | G28: =SUM(G13:G27) -> 0 | H28: =SUMPRODUCT(H13:H27,$G13:$G27) -> 0 | I28: =SUM(I13:I27) -> 0 | K28: =SUMPRODUCT(K13:K27,$G13:$G27) -> 0 | L28: =SUMPRODUCT(L13:L27,$G13:$G27) -> 0 | M28: =SUM(M13:M27) -> 0 | N28: =SUMPRODUCT(N13:N27,$G13:$G27) -> 0 | O28: =SUMPRODUCT(O13:O27,$G13:$G27) -> 0 | Q28: =SUMPRODUCT(Q13:Q27,$G13:$G27) -> 0 | T28: 1 | U28: 1 | V28: 1 | W28: 1 | X28: 1 | Y28: 1 | Z28: 1 | AA28: 1 | AB28: 1 | AC28: 1 | AD28: 1 | AE28: 1 | AF28: 1 | AG28: 1 | AH28: 1 | AI28: 1 | AJ28: 1
D29: Average | H29: =IF(OR(H28=0,G28=0),0,H28/G28) -> 0 | K29: =IF(OR(K28=0,G28=0),0,K28/$G$28) -> 0 | L29: =IF(OR(L28=0,G28=0),0,L28/$G$28) -> 0 | N29: =IF(OR(N28=0,G28=0),0,N28/$G$28) -> 0 | O29: =IF(OR(O28=0,$G28=0),0,O28/$G$28) -> 0 | Q29: =IF(OR(Q28=0,$G28=0),0,Q28/$G$28) -> 0 | T29: 1 | U29: 1 | V29: 1 | W29: 1 | X29: 1 | Y29: 1 | Z29: 1 | AA29: 1 | AB29: 1 | AC29: 1 | AD29: 1 | AE29: 1 | AF29: 1 | AG29: 1 | AH29: 1 | AI29: 1 | AJ29: 1
T30: 1 | U30: 1 | V30: 1 | W30: 1 | X30: 1 | Y30: 1 | Z30: 1 | AA30: 1 | AB30: 1 | AC30: 1 | AD30: 1 | AE30: 1 | AF30: 1 | AG30: 1 | AH30: 1 | AI30: 1 | AJ30: 1
D31: Key | T31: 1 | U31: 1 | V31: 1 | W31: 1 | X31: 1 | Y31: 1 | Z31: 1 | AA31: 1 | AB31: 1 | AC31: 1 | AD31: 1 | AE31: 1 | AF31: 1 | AG31: 1 | AH31: 1 | AI31: 1 | AJ31: 1
D32: R | E32: Restricted | G32: =SUMIF($D$13:$D$27,$D32,G$13:G$27) -> 0 | I32: =SUMIF($D$13:$D$27,$D32,I$13:I$27) -> 0 | M32: =SUMIF($D$13:$D$27,$D32,M$13:M$27) -> 0 | T32: 1 | U32: 1 | V32: 1 | W32: 1 | X32: 1 | Y32: 1 | Z32: 1 | AA32: 1 | AB32: 1 | AC32: 1 | AD32: 1 | AE32: 1 | AF32: 1 | AG32: 1 | AH32: 1 | AI32: 1 | AJ32: 1
D33: MR | E33: Market Rate | G33: =SUMIF($D$13:$D$27,$D33,G$13:G$27) -> 0 | I33: =SUMIF($D$13:$D$27,$D33,I$13:I$27) -> 0 | M33: =SUMIF($D$13:$D$27,$D33,M$13:M$27) -> 0 | T33: 1 | U33: 1 | V33: 1 | W33: 1 | X33: 1 | Y33: 1 | Z33: 1 | AA33: 1 | AB33: 1 | AC33: 1 | AD33: 1 | AE33: 1 | AF33: 1 | AG33: 1 | AH33: 1 | AI33: 1 | AJ33: 1
D34: MU | E34: Manager's Unit | G34: =SUMIF($D$13:$D$27,$D34,G$13:G$27) -> 0 | I34: =SUMIF($D$13:$D$27,$D34,I$13:I$27) -> 0 | M34: =SUMIF($D$13:$D$27,$D34,M$13:M$27) -> 0 | T34: 1 | U34: 1 | V34: 1 | W34: 1 | X34: 1 | Y34: 1 | Z34: 1 | AA34: 1 | AB34: 1 | AC34: 1 | AD34: 1 | AE34: 1 | AF34: 1 | AG34: 1 | AH34: 1 | AI34: 1 | AJ34: 1
G35: =SUM(G32:G34) -> 0 | I35: =SUM(I32:I34) -> 0 | M35: =SUM(M32:M34) -> 0 | T35: 1 | U35: 1 | V35: 1 | W35: 1 | X35: 1 | Y35: 1 | Z35: 1 | AA35: 1 | AB35: 1 | AC35: 1 | AD35: 1 | AE35: 1 | AF35: 1 | AG35: 1 | AH35: 1 | AI35: 1 | AJ35: 1
T36: 1 | U36: 1 | V36: 1 | W36: 1 | X36: 1 | Y36: 1 | Z36: 1 | AA36: 1 | AB36: 1 | AC36: 1 | AD36: 1 | AE36: 1 | AF36: 1 | AG36: 1 | AH36: 1 | AI36: 1 | AJ36: 1
E37: AMI (Area Median Income) | K37: Net Rent = Proposed - Utility Allowance (unless paid) | T37: 1 | U37: 1 | V37: 1 | W37: 1 | X37: 1 | Y37: 1 | Z37: 1 | AA37: 1 | AB37: 1 | AC37: 1 | AD37: 1 | AE37: 1 | AF37: 1 | AG37: 1 | AH37: 1 | AI37: 1 | AJ37: 1
E38: *Mandatory Charges must be identified (Add addendum) | T38: 1 | U38: 1 | V38: 1 | W38: 1 | X38: 1 | Y38: 1 | Z38: 1 | AA38: 1 | AB38: 1 | AC38: 1 | AD38: 1 | AE38: 1 | AF38: 1 | AG38: 1 | AH38: 1 | AI38: 1 | AJ38: 1

Sheet 6 Financing
A1: =Div -> State of Nevada Housing Division | I1: =ProjName -> 0 | L1: =(IF(IsLocked(A1)*1=1,1,0)) -> 1 | M1: 1 | N1: 1 | O1: 1 | P1: 1 | Q1: 1 | R1: 1 | S1: 1 | T1: 1 | U1: 1
A2: =nhd -> 2017 NHD FUNDING APPLICATION | I2: TOC | L2: 1 | M2: 1 | N2: 1 | O2: 1 | P2: 1 | Q2: 1 | R2: 1 | S2: 1 | T2: 1 | U2: 1
A3: FINANCING SOURCES INFORMATION | L3: 1 | M3: 1 | N3: 1 | O3: 1 | P3: 1 | Q3: 1 | R3: 1 | S3: 1 | T3: 1 | U3: 1
L4: 1 | M4: 1 | N4: 1 | O4: 1 | P4: 1 | Q4: 1 | R4: 1 | S4: 1 | T4: 1 | U4: 1
B5: Applicant | D5: =Applicant -> 0 | L5: 1 | M5: =(IF(IsLocked(B5)*1=1,1,0)) -> 1 | N5: 1 | O5: 1 | P5: 1 | Q5: 1 | R5: 1 | S5: 1 | T5: 1 | U5: 1
B6: Project Name | D6: =ProjName -> 0 | L6: 1 | M6: =(IF(IsLocked(B6)*1=1,1,0)) -> 1 | N6: 1 | O6: 1 | P6: 1 | Q6: 1 | R6: 1 | S6: 1 | T6: 1 | U6: 1
B7: Project Address | D7: =ProjAddr -> 0 | L7: 1 | M7: 1 | N7: 1 | O7: 1 | P7: 1 | Q7: 1 | R7: 1 | S7: 1 | T7: 1 | U7: 1
B8: Project City, Cnty, Zip | D8: =ProjCCZip -> 0 | L8: 1 | M8: 1 | N8: 1 | O8: 1 | P8: 1 | Q8: 1 | R8: 1 | S8: 1 | T8: 1 | U8: 1
B9: Tax Identification Number: | E9: =TaxID -> 0 | L9: 1 | M9: 1 | N9: 1 | O9: 1 | P9: 1 | Q9: 1 | R9: 1 | S9: 1 | T9: 1 | U9: 1
L10: 1 | M10: 1 | N10: 1 | O10: 1 | P10: 1 | Q10: 1 | R10: 1 | S10: 1 | T10: 1 | U10: 1
B11: Construction Financing | L11: 1 | M11: =(IF(IsLocked(B11)*1=1,1,0)) -> 1 | N11: =(IF(IsLocked(C11)*1=1,1,0)) -> 1 | O11: =(IF(IsLocked(D11)*1=1,1,0)) -> 1 | P11: =(IF(IsLocked(E11)*1=1,1,0)) -> 1 | Q11: =(IF(IsLocked(F11)*1=1,1,0)) -> 1 | R11: =(IF(IsLocked(G11)*1=1,1,0)) -> 1 | S11: =(IF(IsLocked(H11)*1=1,1,0)) -> 1 | T11: =(IF(IsLocked(I11)*1=1,1,0)) -> 1 | U11: =(IF(IsLocked(J11)*1=1,1,0)) -> 1
L12: 1 | M12: =(IF(IsLocked(B12)*1=1,1,0)) -> 1 | N12: =(IF(IsLocked(C12)*1=1,1,0)) -> 1 | O12: =(IF(IsLocked(D12)*1=1,1,0)) -> 1 | P12: =(IF(IsLocked(E12)*1=1,1,0)) -> 1 | Q12: =(IF(IsLocked(F12)*1=1,1,0)) -> 1 | R12: =(IF(IsLocked(G12)*1=1,1,0)) -> 1 | S12: =(IF(IsLocked(H12)*1=1,1,0)) -> 1 | T12: =(IF(IsLocked(I12)*1=1,1,0)) -> 1 | U12: =(IF(IsLocked(J12)*1=1,1,0)) -> 1
B13: Source Number 1 | L13: 1 | M13: 1 | N13: 1 | O13: 1 | P13: 1 | Q13: 1 | R13: 1 | S13: 1 | T13: 1 | U13: 1
B14: Providers Name | L14: 1 | M14: =(IF(IsLocked(B14)*1=1,1,0)) -> 1 | N14: =(IF(IsLocked(C14)*1=1,1,0)) -> 1 | O14: =(IF(IsLocked(D14)*1=1,1,0)) -> 0 | P14: =(IF(IsLocked(E14)*1=1,1,0)) -> 0 | Q14: =(IF(IsLocked(F14)*1=1,1,0)) -> 0 | R14: =(IF(IsLocked(G14)*1=1,1,0)) -> 0 | S14: =(IF(IsLocked(H14)*1=1,1,0)) -> 0 | T14: =(IF(IsLocked(I14)*1=1,1,0)) -> 0 | U14: =(IF(IsLocked(J14)*1=1,1,0)) -> 0
B15: Address | L15: 1 | M15: 1 | N15: 1 | O15: 0 | P15: 0 | Q15: 0 | R15: 0 | S15: 0 | T15: 0 | U15: 0
B16: City | G16: State | I16: Zip Code | L16: =(IF(IsLocked(A16)*1=1,1,0)) -> 1 | M16: 1 | N16: 1 | O16: 0 | P16: 0 | Q16: 0 | R16: 1 | S16: 0 | T16: 1 | U16: 0
B17: Contact Person | L17: 1 | M17: 1 | N17: 1 | O17: 0 | P17: 0 | Q17: 0 | R17: 0 | S17: 0 | T17: 0 | U17: 0
B18: Telephone Number | G18: Fax Number | L18: 1 | M18: 1 | N18: 1 | O18: 0 | P18: 0 | Q18: 1 | R18: 1 | S18: 1 | T18: 0 | U18: 0
L19: 1 | M19: 1 | N19: 1 | O19: 1 | P19: 1 | Q19: 1 | R19: 1 | S19: 1 | T19: 1 | U19: 1
B20: Finance Source | L20: 1 | M20: 1 | N20: 1 | O20: 1 | P20: 1 | Q20: 1 | R20: 1 | S20: 1 | T20: 1 | U20: 1
B21: Conventional | D21: CDBG | F21: FHLB AHP | H21: Bond Financing | L21: 1 | M21: 1 | N21: 1 | O21: 1 | P21: 1 | Q21: 1 | R21: 1 | S21: 1 | T21: 1 | U21: 1
B22: HOME | D22: Non-Qual/Non-Recourse | H22: Owner Equity | L22: 1 | M22: 1 | N22: 1 | O22: 1 | P22: 1 | Q22: 1 | R22: 1 | S22: 1 | T22: 1 | U22: 1
B23: Private | D23: Local Government | H23: Federal (other) | L23: 1 | M23: 1 | N23: 1 | O23: 1 | P23: 1 | Q23: 1 | R23: 1 | S23: 1 | T23: 1 | U23: 1
B24: Other (Describe) | L24: 1 | M24: 1 | N24: 1 | O24: 0 | P24: 0 | Q24: 0 | R24: 0 | S24: 0 | T24: 0 | U24: 1
L25: 1 | M25: 1 | N25: 1 | O25: 1 | P25: 1 | Q25: 1 | R25: 1 | S25: 1 | T25: 1 | U25: 1
B26: Finance Type | L26: 1 | M26: 1 | N26: 1 | O26: 1 | P26: 1 | Q26: 1 | R26: 1 | S26: 1 | T26: 1 | U26: 1
B27: BMIR Loan | D27: Balloon Loan | F27: Credit Enhancement | L27: 1 | M27: 1 | N27: 1 | O27: 1 | P27: 1 | Q27: 1 | R27: 1 | S27: 1 | T27: 1 | U27: 1
B28: Deferred Loan | D28: Grant | F28: Insurance | H28: Forgivable Loan | L28: 1 | M28: 1 | N28: 1 | O28: 1 | P28: 1 | Q28: 1 | R28: 1 | S28: 1 | T28: 1 | U28: 1
B29: Amortizing Loan | D29: Manual Debt Service | L29: 1 | M29: 1 | N29: 1 | O29: 1 | P29: 1 | Q29: 1 | R29: 1 | S29: 1 | T29: 1 | U29: 1
B30: Tax Deferral/Increments | L30: 1 | M30: 1 | N30: 1 | O30: 1 | P30: 1 | Q30: 1 | R30: 1 | S30: 1 | T30: 1 | U30: 1
B31: Other (Describe) | L31: 1 | M31: 1 | N31: 1 | O31: 0 | P31: 0 | Q31: 0 | R31: 0 | S31: 0 | T31: 0 | U31: 1
B32: Commitment Date | F32: Principal Amount | L32: 1 | M32: 1 | N32: 1 | O32: 0 | P32: 0 | Q32: 1 | R32: 1 | S32: 0 | T32: 0 | U32: 1
B33: Interest Rate | L33: 1 | M33: 1 | N33: 1 | O33: 0 | P33: 0 | Q33: 0 | R33: 0 | S33: 0 | T33: 0 | U33: 1
L34: 1 | M34: 1 | N34: 1 | O34: 1 | P34: 1 | Q34: 1 | R34: 1 | S34: 1 | T34: 1 | U34: 1
B35: Source Number 2 | L35: 1 | M35: 1 | N35: 1 | O35: 1 | P35: 1 | Q35: 1 | R35: 1 | S35: 1 | T35: 1 | U35: 1
B36: Providers Name | L36: 1 | M36: 1 | N36: 1 | O36: 0 | P36: 0 | Q36: 0 | R36: 0 | S36: 0 | T36: 0 | U36: 0
B37: Address | L37: 1 | M37: 1 | N37: 1 | O37: 0 | P37: 0 | Q37: 0 | R37: 0 | S37: 0 | T37: 0 | U37: 0
B38: City | G38: State | I38: Zip Code | L38: 1 | M38: 1 | N38: 1 | O38: 0 | P38: 0 | Q38: 0 | R38: 1 | S38: 0 | T38: 1 | U38: 0
B39: Contact Person | L39: 1 | M39: 1 | N39: 1 | O39: 0 | P39: 0 | Q39: 0 | R39: 0 | S39: 0 | T39: 0 | U39: 0
B40: Telephone Number | G40: Fax Number | L40: 1 | M40: 1 | N40: 1 | O40: 0 | P40: 0 | Q40: 1 | R40: 1 | S40: 1 | T40: 0 | U40: 0
L41: 1 | M41: 1 | N41: 1 | O41: 1 | P41: 1 | Q41: 1 | R41: 1 | S41: 1 | T41: 1 | U41: 1
B42: Finance Source | L42: 1 | M42: 1 | N42: 1 | O42: 1 | P42: 1 | Q42: 1 | R42: 1 | S42: 1 | T42: 1 | U42: 1
B43: Conventional | D43: CDBG | F43: FHLB AHP | H43: Bond Financing | L43: 1 | M43: 1 | N43: 1 | O43: 1 | P43: 1 | Q43: 1 | R43: 1 | S43: 1 | T43: 1 | U43: 1
B44: HOME | D44: Non-Qual/Non-Recourse | H44: Owner Equity | L44: 1 | M44: 1 | N44: 1 | O44: 1 | P44: 1 | Q44: 1 | R44: 1 | S44: 1 | T44: 1 | U44: 1
B45: Private | D45: Local Government | H45: Federal (other) | L45: 1 | M45: 1 | N45: 1 | O45: 1 | P45: 1 | Q45: 1 | R45: 1 | S45: 1 | T45: 1 | U45: 1
B46: Other (Describe) | L46: 1 | M46: 1 | N46: 1 | O46: 0 | P46: 0 | Q46: 0 | R46: 0 | S46: 0 | T46: 0 | U46: 1
L47: 1 | M47: 1 | N47: 1 | O47: 1 | P47: 1 | Q47: 1 | R47: 1 | S47: 1 | T47: 1 | U47: 1
B48: Finance Type | L48: 1 | M48: 1 | N48: 1 | O48: 1 | P48: 1 | Q48: 1 | R48: 1 | S48: 1 | T48: 1 | U48: 1
B49: BMIR Loan | D49: Balloon Loan | F49: Credit Enhancement | L49: 1 | M49: 1 | N49: 1 | O49: 1 | P49: 1 | Q49: 1 | R49: 1 | S49: 1 | T49: 1 | U49: 1
B50: Deferred Loan | D50: Grant | F50: Insurance | H50: Forgivable Loan | L50: 1 | M50: 1 | N50: 1 | O50: 1 | P50: 1 | Q50: 1 | R50: 1 | S50: 1 | T50: 1 | U50: 1
B51: Amortizing Loan | D51: Manual Debt Service | L51: 1 | M51: 1 | N51: 1 | O51: 1 | P51: 1 | Q51: 1 | R51: 1 | S51: 1 | T51: 1 | U51: 1
B52: Tax Deferral/Increments | L52: 1 | M52: 1 | N52: 1 | O52: 1 | P52: 1 | Q52: 1 | R52: 1 | S52: 1 | T52: 1 | U52: 1
B53: Other (Describe) | L53: 1 | M53: 1 | N53: 1 | O53: 0 | P53: 0 | Q53: 0 | R53: 0 | S53: 0 | T53: 0 | U53: 1
B54: Commitment Date | F54: Principal Amount | L54: 1 | M54: 1 | N54: 1 | O54: 0 | P54: 0 | Q54: 1 | R54: 1 | S54: 0 | T54: 0 | U54: 1
B55: Interest Rate | L55: 1 | M55: 1 | N55: 1 | O55: 0 | P55: 0 | Q55: 0 | R55: 0 | S55: 0 | T55: 0 | U55: 1
L56: 1 | M56: 1 | N56: 1 | O56: 1 | P56: 1 | Q56: 1 | R56: 1 | S56: 1 | T56: 1 | U56: 1
B57: Source Number 3 | L57: 1 | M57: 1 | N57: 1 | O57: 1 | P57: 1 | Q57: 1 | R57: 1 | S57: 1 | T57: 1 | U57: 1
B58: Providers Name | L58: 1 | M58: 1 | N58: 1 | O58: 0 | P58: 0 | Q58: 0 | R58: 0 | S58: 0 | T58: 0 | U58: 0
B59: Address | L59: 1 | M59: 1 | N59: 1 | O59: 0 | P59: 0 | Q59: 0 | R59: 0 | S59: 0 | T59: 0 | U59: 0
B60: City | G60: State | I60: Zip Code | L60: 1 | M60: 1 | N60: 1 | O60: 0 | P60: 0 | Q60: 0 | R60: 1 | S60: 0 | T60: 1 | U60: 0
B61: Contact Person | L61: 1 | M61: 1 | N61: 1 | O61: 0 | P61: 0 | Q61: 0 | R61: 0 | S61: 0 | T61: 0 | U61: 0
B62: Telephone Number | G62: Fax Number | L62: 1 | M62: 1 | N62: 1 | O62: 0 | P62: 0 | Q62: 1 | R62: 1 | S62: 1 | T62: 0 | U62: 0
L63: 1 | M63: 1 | N63: 1 | O63: 1 | P63: 1 | Q63: 1 | R63: 1 | S63: 1 | T63: 1 | U63: 1
B64: Finance Source | L64: 1 | M64: 1 | N64: 1 | O64: 1 | P64: 1 | Q64: 1 | R64: 1 | S64: 1 | T64: 1 | U64: 1
B65: Conventional | D65: CDBG | F65: FHLB AHP | H65: Bond Financing | L65: 1 | M65: 1 | N65: 1 | O65: 1 | P65: 1 | Q65: 1 | R65: 1 | S65: 1 | T65: 1 | U65: 1
B66: HOME | D66: Non-Qual/Non-Recourse | H66: Owner Equity | L66: 1 | M66: 1 | N66: 1 | O66: 1 | P66: 1 | Q66: 1 | R66: 1 | S66: 1 | T66: 1 | U66: 1
B67: Private | D67: Local Government | H67: Federal (other) | L67: 1 | M67: 1 | N67: 1 | O67: 1 | P67: 1 | Q67: 1 | R67: 1 | S67: 1 | T67: 1 | U67: 1
B68: Other (Describe) | L68: 1 | M68: 1 | N68: 1 | O68: 0 | P68: 0 | Q68: 0 | R68: 0 | S68: 0 | T68: 0 | U68: 1
L69: 1 | M69: 1 | N69: 1 | O69: 1 | P69: 1 | Q69: 1 | R69: 1 | S69: 1 | T69: 1 | U69: 1
B70: Finance Type | L70: 1 | M70: 1 | N70: 1 | O70: 1 | P70: 1 | Q70: 1 | R70: 1 | S70: 1 | T70: 1 | U70: 1
B71: BMIR Loan | D71: Balloon Loan | F71: Credit Enhancement | L71: 1 | M71: 1 | N71: 1 | O71: 1 | P71: 1 | Q71: 1 | R71: 1 | S71: 1 | T71: 1 | U71: 1
B72: Deferred Loan | D72: Grant | F72: Insurance | H72: Forgivable Loan | L72: 1 | M72: 1 | N72: 1 | O72: 1 | P72: 1 | Q72: 1 | R72: 1 | S72: 1 | T72: 1 | U72: 1
B73: Amortizing Loan | D73: Manual Debt Service | L73: 1 | M73: 1 | N73: 1 | O73: 1 | P73: 1 | Q73: 1 | R73: 1 | S73: 1 | T73: 1 | U73: 1
B74: Tax Deferral/Increments | L74: 1 | M74: 1 | N74: 1 | O74: 1 | P74: 1 | Q74: 1 | R74: 1 | S74: 1 | T74: 1 | U74: 1
B75: Other (Describe) | L75: 1 | M75: 1 | N75: 1 | O75: 0 | P75: 0 | Q75: 0 | R75: 0 | S75: 0 | T75: 0 | U75: 1
B76: Commitment Date | F76: Principal Amount | L76: 1 | M76: 1 | N76: 1 | O76: 0 | P76: 0 | Q76: 1 | R76: 1 | S76: 0 | T76: 0 | U76: 1
B77: Interest Rate | L77: 1 | M77: 1 | N77: 1 | O77: 0 | P77: 0 | Q77: 0 | R77: 0 | S77: 0 | T77: 0 | U77: 1
L78: 1 | M78: =(IF(IsLocked(B78)*1=1,1,0)) -> 1 | N78: =(IF(IsLocked(C78)*1=1,1,0)) -> 1 | O78: =(IF(IsLocked(D78)*1=1,1,0)) -> 1 | P78: =(IF(IsLocked(E78)*1=1,1,0)) -> 1 | Q78: =(IF(IsLocked(F78)*1=1,1,0)) -> 1 | R78: =(IF(IsLocked(G78)*1=1,1,0)) -> 1 | S78: =(IF(IsLocked(H78)*1=1,1,0)) -> 1 | T78: =(IF(IsLocked(I78)*1=1,1,0)) -> 1 | U78: =(IF(IsLocked(J78)*1=1,1,0)) -> 1
B79: Source Number 4 | L79: 1 | M79: 1 | N79: 1 | O79: 1 | P79: 1 | Q79: 1 | R79: 1 | S79: 1 | T79: 1 | U79: 1
B80: Providers Name | L80: =(IF(IsLocked(A80)*1=1,1,0)) -> 1 | M80: 1 | N80: 1 | O80: 0 | P80: 0 | Q80: 0 | R80: 0 | S80: 0 | T80: 0 | U80: 0
B81: Address | L81: 1 | M81: 1 | N81: 1 | O81: 0 | P81: 0 | Q81: 0 | R81: 0 | S81: 0 | T81: 0 | U81: 0
B82: City | G82: State | I82: Zip Code | L82: 1 | M82: 1 | N82: 1 | O82: 0 | P82: 0 | Q82: 0 | R82: 1 | S82: 0 | T82: 1 | U82: 0
B83: Contact Person | L83: 1 | M83: 1 | N83: 1 | O83: 0 | P83: 0 | Q83: 0 | R83: 0 | S83: 0 | T83: 0 | U83: 0
B84: Telephone Number | G84: Fax Number | L84: 1 | M84: 1 | N84: 1 | O84: 0 | P84: 0 | Q84: 1 | R84: 1 | S84: 1 | T84: 0 | U84: 0
L85: 1 | M85: 1 | N85: 1 | O85: 1 | P85: 1 | Q85: 1 | R85: 1 | S85: 1 | T85: 1 | U85: 1
B86: Finance Source | L86: 1 | M86: 1 | N86: 1 | O86: 1 | P86: 1 | Q86: 1 | R86: 1 | S86: 1 | T86: 1 | U86: 1
B87: Conventional | D87: CDBG | F87: FHLB AHP | H87: Bond Financing | L87: 1 | M87: 1 | N87: 1 | O87: 1 | P87: 1 | Q87: 1 | R87: 1 | S87: 1 | T87: 1 | U87: 1
B88: HOME | D88: Non-Qual/Non-Recourse | H88: Owner Equity | L88: 1 | M88: 1 | N88: 1 | O88: 1 | P88: 1 | Q88: 1 | R88: 1 | S88: 1 | T88: 1 | U88: 1
B89: Private | D89: Local Government | H89: Federal (other) | L89: 1 | M89: 1 | N89: 1 | O89: 1 | P89: 1 | Q89: 1 | R89: 1 | S89: 1 | T89: 1 | U89: 1
B90: Other (Describe) | L90: 1 | M90: 1 | N90: 1 | O90: 0 | P90: 0 | Q90: 0 | R90: 0 | S90: 0 | T90: 0 | U90: 1
L91: 1 | M91: 1 | N91: 1 | O91: 1 | P91: 1 | Q91: 1 | R91: 1 | S91: 1 | T91: 1 | U91: 1
B92: Finance Type | L92: 1 | M92: 1 | N92: 1 | O92: 1 | P92: 1 | Q92: 1 | R92: 1 | S92: 1 | T92: 1 | U92: 1
B93: BMIR Loan | D93: Balloon Loan | F93: Credit Enhancement | L93: 1 | M93: 1 | N93: 1 | O93: 1 | P93: 1 | Q93: 1 | R93: 1 | S93: 1 | T93: 1 | U93: 1
B94: Deferred Loan | D94: Grant | F94: Insurance | H94: Forgivable Loan | L94: 1 | M94: 1 | N94: 1 | O94: 1 | P94: 1 | Q94: 1 | R94: 1 | S94: 1 | T94: 1 | U94: 1
B95: Amortizing Loan | D95: Manual Debt Service | L95: 1 | M95: 1 | N95: 1 | O95: 1 | P95: 1 | Q95: 1 | R95: 1 | S95: 1 | T95: 1 | U95: 1
B96: Tax Deferral/Increments | L96: 1 | M96: 1 | N96: 1 | O96: 1 | P96: 1 | Q96: 1 | R96: 1 | S96: 1 | T96: 1 | U96: 1
B97: Other (Describe) | L97: 1 | M97: 1 | N97: 1 | O97: 0 | P97: 0 | Q97: 0 | R97: 0 | S97: 0 | T97: 0 | U97: 1
B98: Commitment Date | F98: Principal Amount | L98: 1 | M98: 1 | N98: 1 | O98: 0 | P98: 0 | Q98: 1 | R98: 1 | S98: 0 | T98: 0 | U98: 1
B99: Interest Rate | L99: 1 | M99: 1 | N99: 1 | O99: 0 | P99: 0 | Q99: 0 | R99: 0 | S99: 0 | T99: 0 | U99: 1
L100: 1 | M100: 1 | N100: 1 | O100: 1 | P100: 1 | Q100: 1 | R100: 1 | S100: 1 | T100: 1 | U100: 1
B101: Permanent Financing- All information Needs to be Completed | L101: 1 | M101: 1 | N101: 1 | O101: 1 | P101: 1 | Q101: 1 | R101: 1 | S101: 1 | T101: 1 | U101: 1
L102: 1 | M102: 1 | N102: 1 | O102: 1 | P102: 1 | Q102: 1 | R102: 1 | S102: 1 | T102: 1 | U102: 1
B103: Source Number 1 | L103: 1 | M103: 1 | N103: 1 | O103: 1 | P103: 1 | Q103: 1 | R103: 1 | S103: 1 | T103: 1 | U103: 1
L104: 1 | M104: 1 | N104: 1 | O104: 1 | P104: 1 | Q104: 1 | R104: 1 | S104: 1 | T104: 1 | U104: 1
B105: Providers Name | L105: 1 | M105: 1 | N105: 1 | O105: 0 | P105: 0 | Q105: 0 | R105: 0 | S105: 0 | T105: 0 | U105: 0
B106: Address | L106: 1 | M106: 1 | N106: 1 | O106: 0 | P106: 0 | Q106: 0 | R106: 0 | S106: 0 | T106: 0 | U106: 0
B107: City | G107: State | I107: Zip Code | L107: 1 | M107: 1 | N107: 1 | O107: 0 | P107: 0 | Q107: 0 | R107: 1 | S107: 0 | T107: 1 | U107: 0
B108: Contact Person | L108: 1 | M108: 1 | N108: 1 | O108: 0 | P108: 0 | Q108: 0 | R108: 0 | S108: 0 | T108: 0 | U108: 0
B109: Telephone Number | G109: Fax Number | L109: 1 | M109: 1 | N109: 1 | O109: 0 | P109: 0 | Q109: 1 | R109: 1 | S109: 1 | T109: 0 | U109: 0
L110: 1 | M110: 1 | N110: 1 | O110: 1 | P110: 1 | Q110: 1 | R110: 1 | S110: 1 | T110: 1 | U110: 1
B111: Finance Source | L111: 1 | M111: 1 | N111: 1 | O111: 1 | P111: 1 | Q111: 1 | R111: 1 | S111: 1 | T111: 1 | U111: 1
B112: Conventional | D112: CDBG | F112: FHLB AHP | H112: Bond Financing | L112: 1 | M112: 1 | N112: 1 | O112: 1 | P112: 1 | Q112: 1 | R112: 1 | S112: 1 | T112: 1 | U112: 1
B113: HOME | D113: Non-Qual/Non-Recourse | H113: Owner Equity | L113: 1 | M113: 1 | N113: 1 | O113: 1 | P113: 1 | Q113: 1 | R113: 1 | S113: 1 | T113: 1 | U113: 1
B114: Private | D114: Local Government | H114: Federal (other) | L114: 1 | M114: 1 | N114: 1 | O114: 1 | P114: 1 | Q114: 1 | R114: 1 | S114: 1 | T114: 1 | U114: 1
B115: Other (Describe) | L115: 1 | M115: 1 | N115: 1 | O115: 0 | P115: 0 | Q115: 0 | R115: 0 | S115: 0 | T115: 0 | U115: 1
L116: 1 | M116: 1 | N116: 1 | O116: 1 | P116: 1 | Q116: 1 | R116: 1 | S116: 1 | T116: 1 | U116: 1
B117: Finance Type, Other terms | L117: 1 | M117: 1 | N117: 1 | O117: 1 | P117: 1 | Q117: 1 | R117: 1 | S117: 1 | T117: 1 | U117: 1
B118: BMIR Loan | D118: Balloon Loan | F118: Credit Enhancement | L118: 1 | M118: 1 | N118: 1 | O118: 1 | P118: 1 | Q118: 1 | R118: 1 | S118: 1 | T118: 1 | U118: 1
B119: Deferred Loan | D119: Grant | F119: Insurance | H119: Forgivable Loan | L119: 1 | M119: 1 | N119: 1 | O119: 1 | P119: 1 | Q119: 1 | R119: 1 | S119: 1 | T119: 1 | U119: 1
B120: Amortizing Loan | D120: Manual Debt Service | L120: 1 | M120: 1 | N120: 1 | O120: 1 | P120: 1 | Q120: 1 | R120: 1 | S120: 1 | T120: 1 | U120: 1
B121: Tax Deferral/Increments | L121: 1 | M121: 1 | N121: 1 | O121: 1 | P121: 1 | Q121: 1 | R121: 1 | S121: 1 | T121: 1 | U121: 1
B122: Other (Describe) | L122: 1 | M122: 1 | N122: 1 | O122: 0 | P122: 0 | Q122: 0 | R122: 0 | S122: 0 | T122: 0 | U122: 1
B123: Commitment Date | F123: Principal Amount | L123: 1 | M123: 1 | N123: 1 | O123: 0 | P123: 0 | Q123: 1 | R123: 1 | S123: 0 | T123: 0 | U123: 1
B124: Interest Rate | L124: 1 | M124: 1 | N124: 1 | O124: 0 | P124: 0 | Q124: 0 | R124: 0 | S124: 0 | T124: 0 | U124: 1
B125: Market Interest Rate | L125: 1 | M125: 1 | N125: 1 | O125: 0 | P125: 0 | Q125: 0 | R125: 0 | S125: 0 | T125: 0 | U125: 1
B126: Amortization term | L126: 1 | M126: 1 | N126: 1 | O126: 0 | P126: 0 | Q126: 0 | R126: 0 | S126: 0 | T126: 0 | U126: 1
B127: Other terms | L127: 1 | M127: 1 | N127: 1 | O127: 0 | P127: 0 | Q127: 0 | R127: 0 | S127: 0 | T127: 0 | U127: 1
B128: Exclude grants from basis? | L128: 1 | M128: 1 | N128: 1 | O128: 1 | P128: 1 | Q128: 1 | R128: 1 | S128: 1 | T128: 1 | U128: 1
B129: Exclude federal sources from basis? | L129: 1 | M129: 1 | N129: 1 | O129: 1 | P129: 1 | Q129: 1 | R129: 1 | S129: 1 | T129: 1 | U129: 1
L130: 1 | M130: 1 | N130: 1 | O130: 1 | P130: 1 | Q130: 1 | R130: 1 | S130: 1 | T130: 1 | U130: 1
B131: Source Number 2 | L131: 1 | M131: 1 | N131: 1 | O131: 1 | P131: 1 | Q131: 1 | R131: 1 | S131: 1 | T131: 1 | U131: 1
L132: 1 | M132: 1 | N132: 1 | O132: 1 | P132: 1 | Q132: 1 | R132: 1 | S132: 1 | T132: 1 | U132: 1
B133: Providers Name | L133: 1 | M133: 1 | N133: 1 | O133: 0 | P133: 0 | Q133: 0 | R133: 0 | S133: 0 | T133: 0 | U133: 0
B134: Address | L134: 1 | M134: 1 | N134: 1 | O134: 0 | P134: 0 | Q134: 0 | R134: 0 | S134: 0 | T134: 0 | U134: 0
B135: City | G135: State | I135: Zip Code | L135: 1 | M135: 1 | N135: 1 | O135: 0 | P135: 0 | Q135: 0 | R135: 1 | S135: 0 | T135: 1 | U135: 0
B136: Contact Person | L136: 1 | M136: 1 | N136: 1 | O136: 0 | P136: 0 | Q136: 0 | R136: 0 | S136: 0 | T136: 0 | U136: 0
B137: Telephone Number | G137: Fax Number | L137: 1 | M137: 1 | N137: 1 | O137: 0 | P137: 0 | Q137: 1 | R137: 1 | S137: 1 | T137: 0 | U137: 0
L138: 1 | M138: 1 | N138: 1 | O138: 1 | P138: 1 | Q138: 1 | R138: 1 | S138: 1 | T138: 1 | U138: 1
B139: Finance Source | L139: 1 | M139: 1 | N139: 1 | O139: 1 | P139: 1 | Q139: 1 | R139: 1 | S139: 1 | T139: 1 | U139: 1
B140: Conventional | D140: CDBG | F140: FHLB AHP | H140: Bond Financing | L140: 1 | M140: 1 | N140: 1 | O140: 1 | P140: 1 | Q140: 1 | R140: 1 | S140: 1 | T140: 1 | U140: 1
B141: HOME | D141: Non-Qual/Non-Recourse | H141: Owner Equity | L141: 1 | M141: =(IF(IsLocked(B141)*1=1,1,0)) -> 1 | N141: =(IF(IsLocked(C141)*1=1,1,0)) -> 1 | O141: =(IF(IsLocked(D141)*1=1,1,0)) -> 1 | P141: =(IF(IsLocked(E141)*1=1,1,0)) -> 1 | Q141: =(IF(IsLocked(F141)*1=1,1,0)) -> 1 | R141: =(IF(IsLocked(G141)*1=1,1,0)) -> 1 | S141: =(IF(IsLocked(H141)*1=1,1,0)) -> 1 | T141: =(IF(IsLocked(I141)*1=1,1,0)) -> 1 | U141: =(IF(IsLocked(J141)*1=1,1,0)) -> 1
B142: Private | D142: Local Government | H142: Federal (other) | L142: 1 | M142: 1 | N142: 1 | O142: 1 | P142: 1 | Q142: 1 | R142: 1 | S142: 1 | T142: 1 | U142: 1
B143: Other (Describe) | L143: =(IF(IsLocked(A143)*1=1,1,0)) -> 1 | M143: 1 | N143: 1 | O143: 0 | P143: 0 | Q143: 0 | R143: 0 | S143: 0 | T143: 0 | U143: 1
L144: 1 | M144: 1 | N144: 1 | O144: 1 | P144: 1 | Q144: 1 | R144: 1 | S144: 1 | T144: 1 | U144: 1
B145: Finance Type, Other terms | L145: 1 | M145: 1 | N145: 1 | O145: 1 | P145: 1 | Q145: 1 | R145: 1 | S145: 1 | T145: 1 | U145: 1
B146: BMIR Loan | D146: Balloon Loan | F146: Credit Enhancement | L146: 1 | M146: 1 | N146: 1 | O146: 1 | P146: 1 | Q146: 1 | R146: 1 | S146: 1 | T146: 1 | U146: 1
B147: Deferred Loan | D147: Grant | F147: Insurance | H147: Forgivable Loan | L147: 1 | M147: 1 | N147: 1 | O147: 1 | P147: 1 | Q147: 1 | R147: 1 | S147: 1 | T147: 1 | U147: 1
B148: Amortizing Loan | D148: Manual Debt Service | L148: 1 | M148: 1 | N148: 1 | O148: 1 | P148: 1 | Q148: 1 | R148: 1 | S148: 1 | T148: 1 | U148: 1
B149: Tax Deferral/Increments | L149: 1 | M149: 1 | N149: 1 | O149: 1 | P149: 1 | Q149: 1 | R149: 1 | S149: 1 | T149: 1 | U149: 1
B150: Other (Describe) | L150: 1 | M150: 1 | N150: 1 | O150: 0 | P150: 0 | Q150: 0 | R150: 0 | S150: 0 | T150: 0 | U150: 1
B151: Commitment Date | F151: Principal Amount | L151: 1 | M151: 1 | N151: 1 | O151: 0 | P151: 0 | Q151: 1 | R151: 1 | S151: 0 | T151: 0 | U151: 1
B152: Interest Rate | L152: 1 | M152: 1 | N152: 1 | O152: 0 | P152: 0 | Q152: 0 | R152: 0 | S152: 0 | T152: 0 | U152: 1
B153: Market Interest Rate | L153: 1 | M153: 1 | N153: 1 | O153: 0 | P153: 0 | Q153: 0 | R153: 0 | S153: 0 | T153: 0 | U153: 1
B154: Amortization term | L154: 1 | M154: 1 | N154: 1 | O154: 0 | P154: 0 | Q154: 0 | R154: 0 | S154: 0 | T154: 0 | U154: 1
B155: Other terms | L155: 1 | M155: 1 | N155: 1 | O155: 0 | P155: 0 | Q155: 0 | R155: 0 | S155: 0 | T155: 0 | U155: 1
B156: Exclude grants from basis? | L156: 1 | M156: 1 | N156: 1 | O156: 1 | P156: 1 | Q156: 1 | R156: 1 | S156: 1 | T156: 1 | U156: 1
B157: Exclude federal sources from basis? | L157: 1 | M157: 1 | N157: 1 | O157: 1 | P157: 1 | Q157: 1 | R157: 1 | S157: 1 | T157: 1 | U157: 1
L158: 1
B159: Source Number 3 | L159: 1 | M159: =(IF(IsLocked(B159)*1=1,1,0)) -> 1 | N159: =(IF(IsLocked(C159)*1=1,1,0)) -> 1 | O159: =(IF(IsLocked(D159)*1=1,1,0)) -> 1 | P159: =(IF(IsLocked(E159)*1=1,1,0)) -> 1 | Q159: =(IF(IsLocked(F159)*1=1,1,0)) -> 1 | R159: =(IF(IsLocked(G159)*1=1,1,0)) -> 1 | S159: =(IF(IsLocked(H159)*1=1,1,0)) -> 1 | T159: =(IF(IsLocked(I159)*1=1,1,0)) -> 1 | U159: =(IF(IsLocked(J159)*1=1,1,0)) -> 1
L160: 1 | M160: 1 | N160: 1 | O160: 1 | P160: 1 | Q160: 1 | R160: 1 | S160: 1 | T160: 1 | U160: 1
B161: Providers Name | L161: 1 | M161: 1 | N161: 1 | O161: 0 | P161: 0 | Q161: 0 | R161: 0 | S161: 0 | T161: 0 | U161: 0
B162: Address | L162: 1 | M162: 1 | N162: 1 | O162: 0 | P162: 0 | Q162: 0 | R162: 0 | S162: 0 | T162: 0 | U162: 0
B163: City | G163: State | I163: Zip Code | L163: 1 | M163: 1 | N163: 1 | O163: 0 | P163: 0 | Q163: 0 | R163: 1 | S163: 0 | T163: 1 | U163: 0
B164: Contact Person | L164: 1 | M164: 1 | N164: 1 | O164: 0 | P164: 0 | Q164: 0 | R164: 0 | S164: 0 | T164: 0 | U164: 0
B165: Telephone Number | G165: Fax Number | L165: 1 | M165: 1 | N165: 1 | O165: 0 | P165: 0 | Q165: 1 | R165: 1 | S165: 1 | T165: 0 | U165: 0
L166: 1 | M166: 1 | N166: 1 | O166: 1 | P166: 1 | Q166: 1 | R166: 1 | S166: 1 | T166: 1 | U166: 1
B167: Finance Source | L167: 1 | M167: 1 | N167: 1 | O167: 1 | P167: 1 | Q167: 1 | R167: 1 | S167: 1 | T167: 1 | U167: 1
B168: Conventional | D168: CDBG | F168: FHLB AHP | H168: Bond Financing | L168: 1 | M168: 1 | N168: 1 | O168: 1 | P168: 1 | Q168: 1 | R168: 1 | S168: 1 | T168: 1 | U168: 1
B169: HOME | D169: Non-Qual/Non-Recourse | H169: Owner Equity | L169: 1 | M169: 1 | N169: 1 | O169: 1 | P169: 1 | Q169: 1 | R169: 1 | S169: 1 | T169: 1 | U169: 1
B170: Private | D170: Local Government | H170: Federal (other) | L170: 1 | M170: 1 | N170: 1 | O170: 1 | P170: 1 | Q170: 1 | R170: 1 | S170: 1 | T170: 1 | U170: 1
B171: Other (Describe) | L171: 1 | M171: 1 | N171: 1 | O171: 0 | P171: 0 | Q171: 0 | R171: 0 | S171: 0 | T171: 0 | U171: 1
L172: 1 | M172: 1 | N172: 1 | O172: 1 | P172: 1 | Q172: 1 | R172: 1 | S172: 1 | T172: 1 | U172: 1
B173: Finance Type, Other terms | L173: 1 | M173: 1 | N173: 1 | O173: 1 | P173: 1 | Q173: 1 | R173: 1 | S173: 1 | T173: 1 | U173: 1
B174: BMIR Loan | D174: Balloon Loan | F174: Credit Enhancement | L174: 1 | M174: 1 | N174: 1 | O174: 1 | P174: 1 | Q174: 1 | R174: 1 | S174: 1 | T174: 1 | U174: 1
B175: Deferred Loan | D175: Grant | F175: Insurance | H175: Forgivable Loan | L175: 1 | M175: 1 | N175: 1 | O175: 1 | P175: 1 | Q175: 1 | R175: 1 | S175: 1 | T175: 1 | U175: 1
B176: Amortizing Loan | D176: Manual Debt Service | L176: 1 | M176: 1 | N176: 1 | O176: 1 | P176: 1 | Q176: 1 | R176: 1 | S176: 1 | T176: 1 | U176: 1
B177: Tax Deferral/Increments | L177: 1 | M177: 1 | N177: 1 | O177: 1 | P177: 1 | Q177: 1 | R177: 1 | S177: 1 | T177: 1 | U177: 1
B178: Other (Describe) | L178: 1 | M178: 1 | N178: 1 | O178: 0 | P178: 0 | Q178: 0 | R178: 0 | S178: 0 | T178: 0 | U178: 1
B179: Commitment Date | F179: Principal Amount | L179: 1 | M179: 1 | N179: 1 | O179: 0 | P179: 0 | Q179: 1 | R179: 1 | S179: 0 | T179: 0 | U179: 1
B180: Interest Rate | L180: 1 | M180: 1 | N180: 1 | O180: 0 | P180: 0 | Q180: 0 | R180: 0 | S180: 0 | T180: 0 | U180: 1
B181: Market Interest Rate | L181: 1 | M181: 1 | N181: 1 | O181: 0 | P181: 0 | Q181: 0 | R181: 0 | S181: 0 | T181: 0 | U181: 1
B182: Amortization term | L182: 1 | M182: 1 | N182: 1 | O182: 0 | P182: 0 | Q182: 0 | R182: 0 | S182: 0 | T182: 0 | U182: 1
B183: Other terms | L183: 1 | M183: 1 | N183: 1 | O183: 0 | P183: 0 | Q183: 0 | R183: 0 | S183: 0 | T183: 0 | U183: 1
B184: Exclude grants from basis? | L184: 1 | M184: 1 | N184: 1 | O184: 1 | P184: 1 | Q184: 1 | R184: 1 | S184: 1 | T184: 1 | U184: 1
B185: Exclude federal sources from basis? | L185: 1 | M185: 1 | N185: 1 | O185: 1 | P185: 1 | Q185: 1 | R185: 1 | S185: 1 | T185: 1 | U185: 1
L186: 1
B187: Source Number 4 | L187: 1 | M187: =(IF(IsLocked(B187)*1=1,1,0)) -> 1 | N187: =(IF(IsLocked(C187)*1=1,1,0)) -> 1 | O187: =(IF(IsLocked(D187)*1=1,1,0)) -> 1 | P187: =(IF(IsLocked(E187)*1=1,1,0)) -> 1 | Q187: =(IF(IsLocked(F187)*1=1,1,0)) -> 1 | R187: =(IF(IsLocked(G187)*1=1,1,0)) -> 1 | S187: =(IF(IsLocked(H187)*1=1,1,0)) -> 1 | T187: =(IF(IsLocked(I187)*1=1,1,0)) -> 1 | U187: =(IF(IsLocked(J187)*1=1,1,0)) -> 1
L188: 1 | M188: 1 | N188: 1 | O188: 1 | P188: 1 | Q188: 1 | R188: 1 | S188: 1 | T188: 1 | U188: 1
B189: Providers Name | L189: 1 | M189: 1 | N189: 1 | O189: 0 | P189: 0 | Q189: 0 | R189: 0 | S189: 0 | T189: 0 | U189: 0
B190: Address | L190: 1 | M190: 1 | N190: 1 | O190: 0 | P190: 0 | Q190: 0 | R190: 0 | S190: 0 | T190: 0 | U190: 0
B191: City | G191: State | I191: Zip Code | L191: 1 | M191: 1 | N191: 1 | O191: 0 | P191: 0 | Q191: 0 | R191: 1 | S191: 0 | T191: 1 | U191: 0
B192: Contact Person | L192: 1 | M192: 1 | N192: 1 | O192: 0 | P192: 0 | Q192: 0 | R192: 0 | S192: 0 | T192: 0 | U192: 0
B193: Telephone Number | G193: Fax Number | L193: 1 | M193: 1 | N193: 1 | O193: 0 | P193: 0 | Q193: 1 | R193: 1 | S193: 1 | T193: 0 | U193: 0
L194: 1 | M194: 1 | N194: 1 | O194: 1 | P194: 1 | Q194: 1 | R194: 1 | S194: 1 | T194: 1 | U194: 1
B195: Finance Source | L195: 1 | M195: 1 | N195: 1 | O195: 1 | P195: 1 | Q195: 1 | R195: 1 | S195: 1 | T195: 1 | U195: 1
B196: Conventional | D196: CDBG | F196: FHLB AHP | H196: Bond Financing | L196: 1 | M196: 1 | N196: 1 | O196: 1 | P196: 1 | Q196: 1 | R196: 1 | S196: 1 | T196: 1 | U196: 1
B197: HOME | D197: Non-Qual/Non-Recourse | H197: Owner Equity | L197: 1 | M197: 1 | N197: 1 | O197: 1 | P197: 1 | Q197: 1 | R197: 1 | S197: 1 | T197: 1 | U197: 1
B198: Private | D198: Local Government | H198: Federal (other) | L198: 1 | M198: 1 | N198: 1 | O198: 1 | P198: 1 | Q198: 1 | R198: 1 | S198: 1 | T198: 1 | U198: 1
B199: Other (Describe) | L199: 1 | M199: 1 | N199: 1 | O199: 0 | P199: 0 | Q199: 0 | R199: 0 | S199: 0 | T199: 0 | U199: 1
L200: 1 | M200: 1 | N200: 1 | O200: 1 | P200: 1 | Q200: 1 | R200: 1 | S200: 1 | T200: 1 | U200: 1
... 13 more rows

Sheet 7 Syndication
A1: =Div -> State of Nevada Housing Division | I1: =ProjName -> 0 | L1: =(IF(IsLocked(A1)*1=1,1,0)) -> 1 | M1: 1 | N1: 1 | O1: 1 | P1: 1 | Q1: 1 | R1: 1 | S1: 1 | T1: 1 | U1: 1
A2: =nhd -> 2017 NHD FUNDING APPLICATION | I2: TOC | L2: 1 | M2: 1 | N2: 1 | O2: 1 | P2: 1 | Q2: 1 | R2: 1 | S2: 1 | T2: 1 | U2: 1
A3: SYNDICATION | L3: 1 | M3: 1 | N3: 1 | O3: 1 | P3: 1 | Q3: 1 | R3: 1 | S3: 1 | T3: 1 | U3: 1
L4: 1 | M4: 1 | N4: 1 | O4: 1 | P4: 1 | Q4: 1 | R4: 1 | S4: 1 | T4: 1 | U4: 1
B5: Applicant | D5: =Applicant -> 0 | L5: =(IF(IsLocked(A5)*1=1,1,0)) -> 1 | M5: =(IF(IsLocked(B5)*1=1,1,0)) -> 1 | N5: 1 | O5: 1 | P5: 1 | Q5: 1 | R5: 1 | S5: 1 | T5: 1 | U5: 1
B6: Project Name | D6: =ProjName -> 0 | L6: =(IF(IsLocked(A6)*1=1,1,0)) -> 1 | M6: 1 | N6: =(IF(IsLocked(C6)*1=1,1,0)) -> 1 | O6: =(IF(IsLocked(D6)*1=1,1,0)) -> 1 | P6: =(IF(IsLocked(E6)*1=1,1,0)) -> 1 | Q6: =(IF(IsLocked(F6)*1=1,1,0)) -> 1 | R6: =(IF(IsLocked(G6)*1=1,1,0)) -> 1 | S6: =(IF(IsLocked(H6)*1=1,1,0)) -> 1 | T6: =(IF(IsLocked(I6)*1=1,1,0)) -> 1 | U6: =(IF(IsLocked(J6)*1=1,1,0)) -> 1
B7: Project Address | D7: =ProjAddr -> 0 | L7: 1 | M7: 1 | N7: 1 | O7: 1 | P7: 1 | Q7: 1 | R7: 1 | S7: 1 | T7: 1 | U7: 1
B8: Project City, Cnty, Zip | D8: =ProjCCZip -> 0 | L8: 1 | M8: 1 | N8: 1 | O8: 1 | P8: 1 | Q8: 1 | R8: 1 | S8: 1 | T8: 1 | U8: 1
B9: Tax Identification Number: | E9: =TaxID -> 0 | L9: 1 | M9: 1 | N9: 1 | O9: 1 | P9: 1 | Q9: 1 | R9: 1 | S9: 1 | T9: 1 | U9: 1
L10: =(IF(IsLocked(A10)*1=1,1,0)) -> 1 | M10: =(IF(IsLocked(B10)*1=1,1,0)) -> 1 | N10: =(IF(IsLocked(C10)*1=1,1,0)) -> 1 | O10: =(IF(IsLocked(D10)*1=1,1,0)) -> 1 | P10: =(IF(IsLocked(E10)*1=1,1,0)) -> 1 | Q10: =(IF(IsLocked(F10)*1=1,1,0)) -> 1 | R10: =(IF(IsLocked(G10)*1=1,1,0)) -> 1 | S10: =(IF(IsLocked(H10)*1=1,1,0)) -> 1 | T10: =(IF(IsLocked(I10)*1=1,1,0)) -> 1 | U10: =(IF(IsLocked(J10)*1=1,1,0)) -> 1
B11: Estimated proceeds from Low-Income Housing Tax Credit Syndication | I11: 0 | L11: 1 | M11: 1 | N11: 1 | O11: 1 | P11: 1 | Q11: 1 | R11: 1 | S11: 1 | T11: 0 | U11: 1
L12: 1 | M12: 1 | N12: 1 | O12: 1 | P12: 1 | Q12: 1 | R12: 1 | S12: 1 | T12: 1 | U12: 1
B13: Number of Annual Pay-Ins | E13: 0 | L13: 1 | M13: 1 | N13: 1 | O13: 1 | P13: 0 | Q13: 1 | R13: 1 | S13: 1 | T13: 1 | U13: 1
B14: First Pay-In Year | L14: 1 | M14: 1 | N14: 1 | O14: 1 | P14: 0 | Q14: 1 | R14: 1 | S14: 1 | T14: 1 | U14: 1
B15: Interest Rate | E15: 0 | L15: 1 | M15: 1 | N15: 1 | O15: 1 | P15: 0 | Q15: 1 | R15: 1 | S15: 1 | T15: 1 | U15: 1
B16: Equity Factor | E16: 0 | L16: 1 | M16: 1 | N16: 1 | O16: 1 | P16: 0 | Q16: 1 | R16: 1 | S16: 1 | T16: 1 | U16: 1
B17: Historic Tax Credits Received | E17: 0 | L17: 1 | M17: 1 | N17: 1 | O17: 1 | P17: 0 | Q17: 1 | R17: 1 | S17: 1 | T17: 1 | U17: 1
L18: 1 | M18: 1 | N18: 1 | O18: 1 | P18: 1 | Q18: 1 | R18: 1 | S18: 1 | T18: 1 | U18: 1
B19: Type of Low-Income Housing Tax Credit offering: | L19: 1 | M19: 1 | N19: 1 | O19: 1 | P19: 1 | Q19: 1 | R19: 1 | S19: 1 | T19: 1 | U19: 1
C20: Public | D20: Private | L20: 1 | M20: 1 | N20: 1 | O20: 1 | P20: 1 | Q20: 1 | R20: 1 | S20: 1 | T20: 1 | U20: 1
L21: 1 | M21: 1 | N21: 1 | O21: 1 | P21: 1 | Q21: 1 | R21: 1 | S21: 1 | T21: 1 | U21: 1
B22: Type of Investors: | D22: Individuals | F22: Corporations | I22: Others* | L22: 1 | M22: 1 | N22: 1 | O22: 1 | P22: 1 | Q22: 1 | R22: 1 | S22: 1 | T22: 1 | U22: 1
L23: 1 | M23: 1 | N23: 1 | O23: 1 | P23: 1 | Q23: 1 | R23: 1 | S23: 1 | T23: 1 | U23: 1
B24: *Others (Describe) | L24: 1 | M24: 1 | N24: 1 | O24: 0 | P24: 0 | Q24: 0 | R24: 0 | S24: 0 | T24: 0 | U24: 0
L25: 1 | M25: 1 | N25: 1 | O25: 0 | P25: 0 | Q25: 0 | R25: 0 | S25: 0 | T25: 0 | U25: 0
L26: 1 | M26: 1 | N26: 1 | O26: 1 | P26: 1 | Q26: 1 | R26: 1 | S26: 1 | T26: 1 | U26: 1
B27: Syndicator | L27: 1 | M27: 1 | N27: 1 | O27: 1 | P27: 1 | Q27: 1 | R27: 1 | S27: 1 | T27: 1 | U27: 1
B28: Name | L28: 1 | M28: 1 | N28: 1 | O28: 0 | P28: 0 | Q28: 0 | R28: 0 | S28: 0 | T28: 0 | U28: 0
B29: Address | L29: 1 | M29: 1 | N29: 1 | O29: 0 | P29: 0 | Q29: 0 | R29: 0 | S29: 0 | T29: 0 | U29: 0
B30: City | G30: State | I30: Zip Code | L30: 1 | M30: 1 | N30: 1 | O30: 0 | P30: 0 | Q30: 0 | R30: 1 | S30: 0 | T30: 1 | U30: 0
B31: Contact Person | L31: 1 | M31: 1 | N31: 1 | O31: 0 | P31: 0 | Q31: 0 | R31: 0 | S31: 0 | T31: 0 | U31: 0
B32: Telephone Number | G32: Fax Number | L32: 1 | M32: 1 | N32: 1 | O32: 0 | P32: 0 | Q32: 1 | R32: 1 | S32: 1 | T32: 0 | U32: 0
L33: 1 | M33: 1 | N33: 1 | O33: 1 | P33: 1 | Q33: 1 | R33: 1 | S33: 1 | T33: 1 | U33: 1

Sheet 8 Set-Aside Election
A1: =Div -> State of Nevada Housing Division | I1: =ProjName -> 0 | M1: =(IF(IsLocked(A1)*1=1,1,0)) -> 1 | N1: 1 | O1: 1 | P1: 1 | Q1: 1 | R1: 1 | S1: 1 | T1: 1 | U1: 1 | V1: 1
A2: =nhd -> 2017 NHD FUNDING APPLICATION | I2: TOC | M2: =(IF(IsLocked(A2)*1=1,1,0)) -> 1 | N2: =(IF(IsLocked(B2)*1=1,1,0)) -> 1 | O2: =(IF(IsLocked(C2)*1=1,1,0)) -> 1 | P2: =(IF(IsLocked(D2)*1=1,1,0)) -> 1 | Q2: =(IF(IsLocked(E2)*1=1,1,0)) -> 1 | R2: =(IF(IsLocked(F2)*1=1,1,0)) -> 1 | S2: =(IF(IsLocked(G2)*1=1,1,0)) -> 1 | T2: =(IF(IsLocked(H2)*1=1,1,0)) -> 1 | U2: =(IF(IsLocked(I2)*1=1,1,0)) -> 1 | V2: =(IF(IsLocked(J2)*1=1,1,0)) -> 1
A3: MINIMUM SET-ASIDE ELECTION | M3: 1 | N3: 1 | O3: 1 | P3: 1 | Q3: 1 | R3: 1 | S3: 1 | T3: 1 | U3: 1 | V3: 1
M4: 1 | N4: 1 | O4: 1 | P4: 1 | Q4: 1 | R4: 1 | S4: 1 | T4: 1 | U4: 1 | V4: 1
B5: Applicant | D5: =Applicant -> 0 | M5: 1 | N5: 1 | O5: 1 | P5: 1 | Q5: 1 | R5: 1 | S5: 1 | T5: 1 | U5: 1 | V5: 1
B6: Project Name | D6: =ProjName -> 0 | M6: 1 | N6: 1 | O6: 1 | P6: 1 | Q6: 1 | R6: 1 | S6: 1 | T6: 1 | U6: 1 | V6: 1
B7: Project Address | D7: =ProjAddr -> 0 | M7: 1 | N7: 1 | O7: 1 | P7: 1 | Q7: 1 | R7: 1 | S7: 1 | T7: 1 | U7: 1 | V7: 1
B8: Project City, Cnty, Zip | D8: =ProjCCZip -> 0 | M8: 1 | N8: 1 | O8: 1 | P8: 1 | Q8: 1 | R8: 1 | S8: 1 | T8: 1 | U8: 1 | V8: 1
B9: Tax Identification Number: | E9: =TaxID -> 0 | M9: 1 | N9: 1 | O9: 1 | P9: 1 | Q9: 1 | R9: 1 | S9: 1 | T9: 1 | U9: 1 | V9: 1
M10: 1 | N10: 1 | O10: 1 | P10: 1 | Q10: 1 | R10: 1 | S10: 1 | T10: 1 | U10: 1 | V10: 1
B11: Applicant/Co-Applicants irrevocably elects one of the minimum set-aside | M11: 1 | N11: 1 | O11: 1 | P11: 1 | Q11: 1 | R11: 1 | S11: 1 | T11: 1 | U11: 1 | V11: 1
B12: requirements (check one only) | M12: 1 | N12: 1 | O12: 1 | P12: 1 | Q12: 1 | R12: 1 | S12: 1 | T12: 1 | U12: 1 | V12: 1
M13: =(IF(IsLocked(A13)*1=1,1,0)) -> 1 | N13: =(IF(IsLocked(B13)*1=1,1,0)) -> 1 | O13: =(IF(IsLocked(C13)*1=1,1,0)) -> 1 | P13: =(IF(IsLocked(D13)*1=1,1,0)) -> 1 | Q13: =(IF(IsLocked(E13)*1=1,1,0)) -> 1 | R13: =(IF(IsLocked(F13)*1=1,1,0)) -> 1 | S13: =(IF(IsLocked(G13)*1=1,1,0)) -> 1 | T13: =(IF(IsLocked(H13)*1=1,1,0)) -> 1 | U13: =(IF(IsLocked(I13)*1=1,1,0)) -> 1 | V13: =(IF(IsLocked(J13)*1=1,1,0)) -> 1
M14: 1 | N14: 1 | O14: 1 | P14: 1 | Q14: 1 | R14: 1 | S14: 1 | T14: 1 | U14: 1 | V14: 1
M15: 1 | N15: 1 | O15: 1 | P15: 1 | Q15: 1 | R15: 1 | S15: 1 | T15: 1 | U15: 1 | V15: 1
M16: 1 | N16: 1 | O16: 1 | P16: 1 | Q16: 1 | R16: 1 | S16: 1 | T16: 1 | U16: 1 | V16: 1
M17: 1 | N17: 1 | O17: 1 | P17: 1 | Q17: 1 | R17: 1 | S17: 1 | T17: 1 | U17: 1 | V17: 1
M18: 1 | N18: 1 | O18: 1 | P18: 1 | Q18: 1 | R18: 1 | S18: 1 | T18: 1 | U18: 1 | V18: 1
M19: 1 | N19: 1 | O19: 1 | P19: 1 | Q19: 1 | R19: 1 | S19: 1 | T19: 1 | U19: 1 | V19: 1
M20: 1 | N20: 1 | O20: 1 | P20: 1 | Q20: 1 | R20: 1 | S20: 1 | T20: 1 | U20: 1 | V20: 1
M21: 1 | N21: 1 | O21: 1 | P21: 1 | Q21: 1 | R21: 1 | S21: 1 | T21: 1 | U21: 1 | V21: 1
M22: 1 | N22: 1 | O22: 1 | P22: 1 | Q22: 1 | R22: 1 | S22: 1 | T22: 1 | U22: 1 | V22: 1
M23: 1 | N23: 1 | O23: 1 | P23: 1 | Q23: 1 | R23: 1 | S23: 1 | T23: 1 | U23: 1 | V23: 1

Sheet 9 Sources incl TC
A1: =Div -> State of Nevada Housing Division | H1: =ProjName -> 0 | K1: =(IF(IsLocked(A1)*1=1,1,0)) -> 1 | L1: =(IF(IsLocked(B1)*1=1,1,0)) -> 1 | M1: =(IF(IsLocked(C1)*1=1,1,0)) -> 1 | N1: =(IF(IsLocked(D1)*1=1,1,0)) -> 1 | O1: =(IF(IsLocked(E1)*1=1,1,0)) -> 1 | P1: =(IF(IsLocked(F1)*1=1,1,0)) -> 1 | Q1: =(IF(IsLocked(G1)*1=1,1,0)) -> 1 | R1: =(IF(IsLocked(H1)*1=1,1,0)) -> 1 | S1: =(IF(IsLocked(I1)*1=1,1,0)) -> 1 | T1: =(IF(IsLocked(J1)*1=1,1,0)) -> 1 | U1: =(IF(IsLocked(K1)*1=1,1,0)) -> 1 | V1: =(IF(IsLocked(L1)*1=1,1,0)) -> 1 | W1: =(IF(IsLocked(M1)*1=1,1,0)) -> 1 | X1: =(IF(IsLocked(N1)*1=1,1,0)) -> 1
A2: =nhd -> 2017 NHD FUNDING APPLICATION | H2: TOC | K2: =(IF(IsLocked(A2)*1=1,1,0)) -> 1 | L2: =(IF(IsLocked(B2)*1=1,1,0)) -> 1 | M2: =(IF(IsLocked(C2)*1=1,1,0)) -> 1 | N2: =(IF(IsLocked(D2)*1=1,1,0)) -> 1 | O2: =(IF(IsLocked(E2)*1=1,1,0)) -> 1 | P2: =(IF(IsLocked(F2)*1=1,1,0)) -> 1 | Q2: =(IF(IsLocked(G2)*1=1,1,0)) -> 1 | R2: =(IF(IsLocked(H2)*1=1,1,0)) -> 1 | S2: =(IF(IsLocked(I2)*1=1,1,0)) -> 1 | T2: =(IF(IsLocked(J2)*1=1,1,0)) -> 1 | U2: =(IF(IsLocked(K2)*1=1,1,0)) -> 1 | V2: =(IF(IsLocked(L2)*1=1,1,0)) -> 1 | W2: =(IF(IsLocked(M2)*1=1,1,0)) -> 1 | X2: =(IF(IsLocked(N2)*1=1,1,0)) -> 1
A3: SOURCES OF FUNDS | K3: 1 | L3: 1 | M3: 1 | N3: 1 | O3: 1 | P3: 1 | Q3: 1 | R3: 1 | S3: 1 | T3: 1 | U3: 1 | V3: 1 | W3: 1 | X3: 1
K4: 1 | L4: 1 | M4: 1 | N4: 1 | O4: 1 | P4: 1 | Q4: 1 | R4: 1 | S4: 1 | T4: 1 | U4: 1 | V4: 1 | W4: 1 | X4: 1
B5: Costs (Uses)/unit | D5: =+'10 Uses'!F6 -> 0 | E5: ("S6 Uses Costs…" wks) | K5: 1 | L5: 1 | M5: 1 | N5: 1 | O5: 1 | P5: 1 | Q5: 1 | R5: 1 | S5: 1 | T5: 1 | U5: 1 | V5: 1 | W5: 1 | X5: 1
B6: Credits requested/unit | D6: =IF(E56>0,E56/TotUnits,0) -> 0 | E6: ("Credits Requested" /9% 10 yr TC/Unit) | K6: 1 | L6: 1 | M6: 1 | N6: 1 | O6: 1 | P6: 1 | Q6: 1 | R6: 1 | S6: 1 | T6: 1 | U6: 1 | V6: 1 | W6: 1 | X6: 1
B7: Credits requested/unit | D7: =IF(F56>0,F56/TotUnits,0) -> 0 | E7: ("Credits Requested" /4% 10 yr TC/Units) | K7: 1 | L7: 1 | M7: 1 | N7: 1 | O7: 1 | P7: 1 | Q7: 1 | R7: 1 | S7: 1 | T7: 1 | U7: 1 | V7: 1 | W7: 1 | X7: 1
B8: Total Units | D8: =TotUnits -> 0 | K8: 1 | L8: 1 | M8: 1 | N8: 1 | O8: 1 | P8: 1 | Q8: 1 | R8: 1 | S8: 1 | T8: 1 | U8: 1 | V8: 1 | W8: 1 | X8: 1
K9: 1 | L9: 1 | M9: 1 | N9: 1 | O9: 1 | P9: 1 | Q9: 1 | R9: 1 | S9: 1 | T9: 1 | U9: 1 | V9: 1 | W9: 1 | X9: 1
B10: Section 4: Sources of Funds: | K10: 1 | L10: 1 | M10: 1 | N10: 1 | O10: 1 | P10: 1 | Q10: 1 | R10: 1 | S10: 1 | T10: 1 | U10: 1 | V10: 1 | W10: 1 | X10: 1
K11: 1 | L11: 1 | M11: 1 | N11: 1 | O11: 1 | P11: 1 | Q11: 1 | R11: 1 | S11: 1 | T11: 1 | U11: 1 | V11: 1 | W11: 1 | X11: 1
B12: Source | K12: 1 | L12: 1 | M12: 1 | N12: 1 | O12: 1 | P12: 1 | Q12: 1 | R12: 1 | S12: 1 | T12: 1 | U12: 1 | V12: 1 | W12: 1 | X12: 1
B13: Sub-Section A: Construction & Bridge Sources | K13: 1 | L13: 1 | M13: 1 | N13: 1 | O13: 1 | P13: 1 | Q13: 1 | R13: 1 | S13: 1 | T13: 1 | U13: 1 | V13: 1 | W13: 1 | X13: 1
B14: Lending Source | E14: Principal | F14: Payment/Yr | G14: LTC% | H14: Prin/Tot | K14: 1 | L14: 1 | M14: 1 | N14: 1 | O14: 1 | P14: 1 | Q14: 1 | R14: 1 | S14: 1 | T14: 1 | U14: 1 | V14: 1 | W14: 1 | X14: 1
A15: 1 | F15: 0 | G15: 0 | H15: =IF(E15>0,E15/$E$22,0) -> 0 | K15: 1 | L15: 0 | M15: 0 | N15: 0 | O15: 0 | P15: 0 | Q15: 0 | R15: 1 | S15: 1 | T15: 1 | U15: 1 | V15: 1 | W15: 1 | X15: 1
A16: 2 | F16: 0 | G16: 0 | H16: 0 | K16: 1 | L16: 0 | M16: 0 | N16: 0 | O16: 0 | P16: 0 | Q16: 0 | R16: 1 | S16: 1 | T16: 1 | U16: 1 | V16: 1 | W16: 1 | X16: 1
A17: 3 | F17: 0 | G17: 0 | H17: 0 | K17: 1 | L17: 0 | M17: 0 | N17: 0 | O17: 0 | P17: 0 | Q17: 0 | R17: 1 | S17: 1 | T17: 1 | U17: 1 | V17: 1 | W17: 1 | X17: 1
A18: 4 | F18: 0 | G18: 0 | H18: 0 | K18: 1 | L18: 0 | M18: 0 | N18: 0 | O18: 0 | P18: 0 | Q18: 0 | R18: 1 | S18: 1 | T18: 1 | U18: 1 | V18: 1 | W18: 1 | X18: 1
A19: 5 | F19: 0 | G19: 0 | H19: 0 | K19: 1 | L19: 0 | M19: 0 | N19: 0 | O19: 0 | P19: 0 | Q19: 0 | R19: 1 | S19: 1 | T19: 1 | U19: 1 | V19: 1 | W19: 1 | X19: 1
A20: 6 | F20: 0 | G20: 0 | H20: 0 | K20: 1 | L20: 0 | M20: 0 | N20: 0 | O20: 0 | P20: 0 | Q20: 0 | R20: 1 | S20: 1 | T20: 1 | U20: 1 | V20: 1 | W20: 1 | X20: 1
A21: 7 | F21: 0 | G21: 0 | H21: 0 | K21: 1 | L21: 0 | M21: 0 | N21: 0 | O21: 0 | P21: 0 | Q21: 0 | R21: 1 | S21: 1 | T21: 1 | U21: 1 | V21: 1 | W21: 1 | X21: 1
B22: Sub-Total Interim Sources | E22: =SUM(E15:E21) -> 0 | F22: =SUM(F15:F21) -> 0 | G22: =IF(AND(E22>0,E77>0),E22/$E$77,0) -> 0 | H22: 0 | K22: 1 | L22: 1 | M22: 1 | N22: 1 | O22: 1 | P22: 1 | Q22: 1 | R22: 1 | S22: 1 | T22: 1 | U22: 1 | V22: 1 | W22: 1 | X22: 1
K23: 1 | L23: 1 | M23: 1 | N23: 1 | O23: 1 | P23: 1 | Q23: 1 | R23: 1 | S23: 1 | T23: 1 | U23: 1 | V23: 1 | W23: 1 | X23: 1
B24: Sub-Section B: Permanent Financing | K24: 1 | L24: 1 | M24: 1 | N24: 1 | O24: 1 | P24: 1 | Q24: 1 | R24: 1 | S24: 1 | T24: 1 | U24: 1 | V24: 1 | W24: 1 | X24: 1
B25: =+B14 -> Lending Source | E25: =+E14 -> Principal | F25: =+F14 -> Payment/Yr | G25: =+G14 -> LTC% | H25: DSCR | I25: Prin/Tot | K25: 1 | L25: 1 | M25: 1 | N25: 1 | O25: 1 | P25: 1 | Q25: 1 | R25: 1 | S25: 1 | T25: 1 | U25: 1 | V25: 1 | W25: 1 | X25: 1
A26: 1 | E26: 0 | F26: 0 | G26: 0 | H26: 0 | I26: =IF(E26>0,E26/$E$33,0) -> 0 | K26: 1 | L26: 0 | M26: 0 | N26: 0 | O26: 0 | P26: 0 | Q26: 0 | R26: 0 | S26: 0 | T26: 1 | U26: 1 | V26: 1 | W26: 1 | X26: 1
A27: 2 | E27: 0 | F27: 0 | G27: 0 | H27: 0 | I27: =IF(E27>0,E27/$E$33,0) -> 0 | K27: 1 | L27: 0 | M27: 0 | N27: 0 | O27: 0 | P27: 0 | Q27: 0 | R27: 0 | S27: 0 | T27: 1 | U27: 1 | V27: 1 | W27: 1 | X27: 1
A28: 3 | E28: 0 | F28: 0 | G28: 0 | H28: 0 | I28: 0 | K28: 1 | L28: 0 | M28: 0 | N28: 0 | O28: 0 | P28: 0 | Q28: 0 | R28: 0 | S28: 0 | T28: 1 | U28: 1 | V28: 1 | W28: 1 | X28: 1
A29: 4 | E29: 0 | F29: 0 | G29: 0 | H29: 0 | I29: 0 | K29: 1 | L29: 0 | M29: 0 | N29: 0 | O29: 0 | P29: 0 | Q29: 0 | R29: 0 | S29: 0 | T29: 1 | U29: 1 | V29: 1 | W29: 1 | X29: 1
A30: 5 | E30: 0 | F30: 0 | G30: 0 | H30: 0 | I30: 0 | K30: 1 | L30: 0 | M30: 0 | N30: 0 | O30: 0 | P30: 0 | Q30: 0 | R30: 0 | S30: 0 | T30: 1 | U30: 1 | V30: 1 | W30: 1 | X30: 1
A31: 6 | E31: 0 | F31: 0 | G31: 0 | H31: 0 | I31: 0 | K31: 1 | L31: 0 | M31: 0 | N31: 0 | O31: 0 | P31: 0 | Q31: 0 | R31: 0 | S31: 0 | T31: 1 | U31: 1 | V31: 1 | W31: 1 | X31: 1
A32: 7 | E32: 0 | F32: 0 | G32: 0 | H32: 0 | I32: 0 | K32: 1 | L32: 0 | M32: 0 | N32: 0 | O32: 0 | P32: 0 | Q32: 0 | R32: 0 | S32: 0 | T32: 1 | U32: 1 | V32: 1 | W32: 1 | X32: 1
B33: Total | E33: =SUM(E26:E32) -> 0 | F33: =SUM(F26:F32) -> 0 | G33: =IF(E33>0,E33/$E$77,0) -> 0 | I33: 0 | K33: 1 | L33: 1 | M33: 1 | N33: 1 | O33: 1 | P33: 1 | Q33: 1 | R33: 1 | S33: 0 | T33: 1 | U33: 1 | V33: 1 | W33: 1 | X33: 1
K34: 1 | L34: 1 | M34: 1 | N34: 1 | O34: 1 | P34: 1 | Q34: 1 | R34: 1 | S34: 1 | T34: 1 | U34: 1 | V34: 1 | W34: 1 | X34: 1
B35: Explain Financing Basis (if not LTV or DSCR): | K35: 1 | L35: 1 | M35: 1 | N35: 1 | O35: 1 | P35: 0 | Q35: 0 | R35: 0 | S35: 0 | T35: 1 | U35: 1 | V35: 1 | W35: 1 | X35: 1
K36: 1 | L36: 0 | M36: 0 | N36: 0 | O36: 0 | P36: 0 | Q36: 0 | R36: 0 | S36: 0 | T36: 1 | U36: 1 | V36: 1 | W36: 1 | X36: 1
B37: Plan Total Loan to Value ratio | K37: 1 | L37: 1 | M37: 1 | N37: 1 | O37: 0 | P37: 1 | Q37: 1 | R37: 1 | S37: 1 | T37: 1 | U37: 1 | V37: 1 | W37: 1 | X37: 1
K38: 1 | L38: 1 | M38: 1 | N38: 1 | O38: 1 | P38: 1 | Q38: 1 | R38: 1 | S38: 1 | T38: 1 | U38: 1 | V38: 1 | W38: 1 | X38: 1
K39: 1 | L39: 1 | M39: 1 | N39: 1 | O39: 1 | P39: 1 | Q39: 1 | R39: 1 | S39: 1 | T39: 1 | U39: 1 | V39: 1 | W39: 1 | X39: 1
B40: Sub-Section C: Tax Credit Equity Contribution | K40: 1 | L40: 1 | M40: 1 | N40: 1 | O40: 1 | P40: 1 | Q40: 1 | R40: 1 | S40: 1 | T40: 1 | U40: 1 | V40: 1 | W40: 1 | X40: 1
B41: Historic Rehabilitation TC Proceeds: | E41: 0 | F41: 0 | K41: 1 | L41: 1 | M41: 1 | N41: 1 | O41: 0 | P41: 0 | Q41: 1 | R41: 1 | S41: 1 | T41: 1 | U41: 1 | V41: 1 | W41: 1 | X41: 1
E42: 70% Eligible Basis (Development/ Rehabilitation) | F42: 30% Eligible Basis (Acquisition) | K42: 1 | L42: 1 | M42: 1 | N42: 1 | O42: 1 | P42: 1 | Q42: 1 | R42: 1 | S42: 1 | T42: 1 | U42: 1 | V42: 1 | W42: 1 | X42: 1
B43: Development or Acqusition Costs | E43: 0 | F43: 0 | K43: 1 | L43: 1 | M43: 1 | N43: 1 | O43: 0 | P43: 0 | Q43: 1 | R43: 1 | S43: 1 | T43: 1 | U43: 1 | V43: 1 | W43: 1 | X43: 1
B44: Less Ineligible Costs/Financing | E44: 0 | F44: 0 | H44: Note | K44: 1 | L44: 1 | M44: 1 | N44: 1 | O44: 0 | P44: 0 | Q44: 1 | R44: 1 | S44: 1 | T44: 1 | U44: 1 | V44: 1 | W44: 1 | X44: 1
B45: Net Costs | E45: =+E43-E44 -> 0 | F45: =+F43-F44 -> 0 | K45: 1 | L45: 1 | M45: 1 | N45: 1 | O45: 1 | P45: 1 | Q45: 1 | R45: 1 | S45: 1 | T45: 1 | U45: 1 | V45: 1 | W45: 1 | X45: 1
K46: 1 | L46: 1 | M46: 1 | N46: 1 | O46: 1 | P46: 1 | Q46: 1 | R46: 1 | S46: 1 | T46: 1 | U46: 1 | V46: 1 | W46: 1 | X46: 1
B47: Eligible Basis, net, pre-adjustments | E47: =+E45 -> 0 | F47: =+F45 -> 0 | K47: 1 | L47: 1 | M47: 1 | N47: 1 | O47: 0 | P47: 0 | Q47: 1 | R47: 1 | S47: 1 | T47: 1 | U47: 1 | V47: 1 | W47: 1 | X47: 1
B48: Applicable Fraction | E48: 0 | F48: 0 | H48: Basis? (Units or Sf) | K48: 1 | L48: 1 | M48: 1 | N48: 1 | O48: 0 | P48: 0 | Q48: 1 | R48: 1 | S48: 1 | T48: 1 | U48: 1 | V48: 1 | W48: 1 | X48: 1
B49: Qualified Basis | E49: =+E47*E48 -> 0 | F49: =+F47*F48 -> 0 | K49: 1 | L49: 1 | M49: 1 | N49: 1 | O49: 1 | P49: 1 | Q49: 1 | R49: =(IF(IsLocked(Y49)*1=1,1,0)) -> 1 | S49: =(IF(IsLocked(AH49)*1=1,1,0)) -> 1 | T49: 1 | U49: 1 | V49: 1 | W49: 1 | X49: 1 | Y49: =+'3 Appl Frac'!M43 -> 0 | AH49: =+'3 Appl Frac'!C8 -> 0
B50: Adjustments (1 + Basis Boost%) | E50: 0 | F50: 0 | I50: (Boost) | K50: 1 | L50: 1 | M50: 1 | N50: 1 | O50: 0 | P50: 0 | Q50: 1 | R50: =(IF(IsLocked(Z50)*1=1,1,0)) -> 1 | S50: 1 | T50: 1 | U50: 1 | V50: 1 | W50: 1 | X50: 1 | Z50: =+E49*(E50-1) -> 0
B51: Adjusted Eligible Basis | E51: =IF(E$50>0,E49*E50,E49) -> 0 | F51: =IF(F$49>0,F49*F50,F49) -> 0 | K51: 1 | L51: 1 | M51: 1 | N51: 1 | O51: 1 | P51: 1 | Q51: 1 | R51: =(IF(IsLocked(AE51)*1=1,1,0)) -> 1 | S51: 1 | T51: 1 | U51: 1 | V51: 1 | W51: 1 | X51: 1 | AE51: =SUM(E51:F51) -> 0
B52: Applicable Percentage | E52: 0 | F52: 0 | K52: 1 | L52: 1 | M52: 1 | N52: 1 | O52: 0 | P52: 0 | Q52: 1 | R52: 1 | S52: 1 | T52: 1 | U52: 1 | V52: 1 | W52: 1 | X52: 1
B53: Total Credits Qualified for/year | E53: =+E51*E52 -> 0 | F53: =+F51*F52 -> 0 | K53: 1 | L53: 1 | M53: 1 | N53: 1 | O53: 1 | P53: 1 | Q53: 1 | R53: 1 | S53: 1 | T53: 1 | U53: 1 | V53: 1 | W53: 1 | X53: 1 | AE53: =+'10 Uses'!D109 -> 0 | AF53: =+AE53/AE54 -> 
K54: 1 | L54: 1 | M54: 1 | N54: 1 | O54: 1 | P54: 1 | Q54: 1 | R54: 1 | S54: 1 | T54: 1 | U54: 1 | V54: 1 | W54: 1 | X54: 1 | AE54: =+AE51-AE53 -> 0
B55: Total LIHT Credits Requested/Year | E55: 0 | F55: 0 | K55: 1 | L55: 1 | M55: 1 | N55: 1 | O55: 0 | P55: 0 | Q55: 1 | R55: 1 | S55: 1 | T55: 1 | U55: 1 | V55: 1 | W55: 1 | X55: 1
B56: Total LIHT Credits Requested (10 yr) | E56: =+E55*10 -> 0 | F56: =+F55*10 -> 0 | K56: 1 | L56: 1 | M56: 1 | N56: 1 | O56: 1 | P56: 1 | Q56: 1 | R56: 1 | S56: 1 | T56: 1 | U56: 1 | V56: 1 | W56: 1 | X56: 1
B57: Price per credit | E57: 0 | F57: 0 | K57: 1 | L57: 1 | M57: 1 | N57: 1 | O57: 0 | P57: 0 | Q57: 1 | R57: 1 | S57: 1 | T57: 1 | U57: 1 | V57: 1 | W57: 1 | X57: 1
E58: =+E56*E57 -> 0 | F58: =+F56*F57 -> 0 | K58: 1 | L58: 1 | M58: 1 | N58: 1 | O58: 1 | P58: 1 | Q58: 1 | R58: 1 | S58: 1 | T58: 1 | U58: 1 | V58: 1 | W58: 1 | X58: 1
B59: Funds from investors % | E59: 0 | F59: 0 | K59: 1 | L59: 1 | M59: 1 | N59: 1 | O59: 0 | P59: 0 | Q59: 1 | R59: 1 | S59: 1 | T59: 1 | U59: 1 | V59: 1 | W59: 1 | X59: 1
B60: Funds from investors | E60: =+E58*E59 -> 0 | F60: =+F58*F59 -> 0 | K60: 1 | L60: 1 | M60: 1 | N60: 1 | O60: 1 | P60: 1 | Q60: 1 | R60: 1 | S60: 1 | T60: 1 | U60: 1 | V60: 1 | W60: 1 | X60: 1
B61: Note: Balance | D61: =100%-E59 -> 1 | E61: =+E58*$D$61 -> 0 | F61: =+F58*$D$61 -> 0 | G61: (This is a balancing note) | K61: 1 | L61: 1 | M61: 1 | N61: 1 | O61: 1 | P61: 1 | Q61: 1 | R61: 1 | S61: 1 | T61: 1 | U61: 1 | V61: 1 | W61: 1 | X61: 1
B62: Estimated Total 10yr LIHTC Equity | E62: =+E60 -> 0 | F62: =SUM(F60:F61) -> 0 | K62: 1 | L62: 1 | M62: 1 | N62: 1 | O62: 1 | P62: 1 | Q62: 1 | R62: 1 | S62: 1 | T62: 1 | U62: 1 | V62: 1 | W62: 1 | X62: 1
B63: Total Tax Credit Equity | E63: =+E62+E41 -> 0 | F63: =+F62+F41 -> 0 | G63: =IF(E63=0,0,(E63+F63)/$E$77) -> 0 | K63: 1 | L63: 1 | M63: 1 | N63: 1 | O63: 1 | P63: 1 | Q63: 1 | R63: 1 | S63: 1 | T63: 1 | U63: 1 | V63: 1 | W63: 1 | X63: 1
B64: Equity share of total funding | E64: =IF(E63=0,0,E63/$E$77) -> 0 | F64: =IF(F63=0,0,F63/$E$77) -> 0 | K64: 1 | L64: 1 | M64: 1 | N64: 1 | O64: 1 | P64: 1 | Q64: 1 | R64: 1 | S64: 1 | T64: 1 | U64: 1 | V64: 1 | W64: 1 | X64: 1
K65: =(IF(IsLocked(A65)*1=1,1,0)) -> 1 | L65: =(IF(IsLocked(B65)*1=1,1,0)) -> 1 | M65: =(IF(IsLocked(C65)*1=1,1,0)) -> 1 | N65: =(IF(IsLocked(D65)*1=1,1,0)) -> 1 | O65: =(IF(IsLocked(E65)*1=1,1,0)) -> 1 | P65: =(IF(IsLocked(F65)*1=1,1,0)) -> 1 | Q65: =(IF(IsLocked(G65)*1=1,1,0)) -> 1 | R65: =(IF(IsLocked(H65)*1=1,1,0)) -> 1 | S65: =(IF(IsLocked(I65)*1=1,1,0)) -> 1 | T65: =(IF(IsLocked(J65)*1=1,1,0)) -> 1 | U65: =(IF(IsLocked(K65)*1=1,1,0)) -> 1 | V65: =(IF(IsLocked(L65)*1=1,1,0)) -> 1 | W65: =(IF(IsLocked(M65)*1=1,1,0)) -> 1 | X65: =(IF(IsLocked(N65)*1=1,1,0)) -> 1
E66: Principal | F66: Annual | G66: Federal | K66: 1 | L66: 1 | M66: 1 | N66: 1 | O66: 1 | P66: 1 | Q66: 1 | R66: 1 | S66: 1 | T66: 1 | U66: 1 | V66: 1 | W66: 1 | X66: 1
B67: Sub-Section D: Other Sources | F67: Payment | G67: Subsidy Y/N? | K67: 1 | L67: 1 | M67: 1 | N67: 1 | O67: 1 | P67: 1 | Q67: 1 | R67: 1 | S67: 1 | T67: 1 | U67: 1 | V67: 1 | W67: 1 | X67: 1
A68: 1 | B68: Deferred Developer Fee | E68: 0 | F68: 0 | K68: 1 | L68: 1 | M68: 1 | N68: 1 | O68: 0 | P68: 0 | Q68: 0 | R68: 1 | S68: 1 | T68: 1 | U68: 1 | V68: 1 | W68: 1 | X68: 1
A69: 2 | B69: General Partner Equity | E69: 0 | F69: 0 | K69: 1 | L69: 1 | M69: 1 | N69: 1 | O69: 0 | P69: 0 | Q69: 0 | R69: 1 | S69: 1 | T69: 1 | U69: 1 | V69: 1 | W69: 1 | X69: 1
A70: 3 | B70: HOME Soft Loan | E70: 0 | F70: 0 | K70: 1 | L70: 0 | M70: 0 | N70: 0 | O70: 0 | P70: 0 | Q70: 0 | R70: 1 | S70: 1 | T70: 1 | U70: 1 | V70: 1 | W70: 1 | X70: 1
A71: 4 | B71: Trust Funds: | E71: 0 | F71: 0 | K71: 1 | L71: 0 | M71: 0 | N71: 0 | O71: 0 | P71: 0 | Q71: 0 | R71: 1 | S71: 1 | T71: 1 | U71: 1 | V71: 1 | W71: 1 | X71: 1
A72: 5 | B72: Grant funding | E72: 0 | F72: 0 | K72: 1 | L72: 0 | M72: 0 | N72: 0 | O72: 0 | P72: 0 | Q72: 0 | R72: 1 | S72: 1 | T72: 1 | U72: 1 | V72: 1 | W72: 1 | X72: 1
A73: 6 | B73: Other: | E73: 0 | F73: 0 | K73: 1 | L73: 0 | M73: 0 | N73: 0 | O73: 0 | P73: 0 | Q73: 0 | R73: 1 | S73: 1 | T73: 1 | U73: 1 | V73: 1 | W73: 1 | X73: 1
A74: 7 | B74: test | E74: 0 | F74: 0 | K74: 1 | L74: 0 | M74: 0 | N74: 0 | O74: 0 | P74: 0 | Q74: 0 | R74: 1 | S74: 1 | T74: 1 | U74: 1 | V74: 1 | W74: 1 | X74: 1
B75: Sub-Total | E75: =SUM(E68:E74) -> 0 | F75: =SUM(F68:F74) -> 0 | G75: =IF(E75=0,0,E75/$E$77) -> 0 | K75: 1 | L75: 1 | M75: 1 | N75: 1 | O75: 1 | P75: 1 | Q75: 1 | R75: 1 | S75: 1 | T75: 1 | U75: 1 | V75: 1 | W75: 1 | X75: 1
K76: 1 | L76: 1 | M76: 1 | N76: 1 | O76: 1 | P76: 1 | Q76: 1 | R76: 1 | S76: 1 | T76: 1 | U76: 1 | V76: 1 | W76: 1 | X76: 1
B77: TOTAL FUNDING (B, C, D) | E77: =+E75+E63+E33 -> 0 | F77: =+F75+E64+F33 -> 0 | G77: =IF(E77=0,0,E77/$E$77) -> 0 | K77: 1 | L77: 1 | M77: 1 | N77: 1 | O77: 1 | P77: 1 | Q77: 1 | R77: 1 | S77: 1 | T77: 1 | U77: 1 | V77: 1 | W77: 1 | X77: 1
B78: (Excludes Construction Sources in lieu of Permanent Borrowings.) | K78: 1 | L78: 1 | M78: 1 | N78: 1 | O78: 1 | P78: 1 | Q78: 1 | R78: 1 | S78: 1 | T78: 1 | U78: 1 | V78: 1 | W78: 1 | X78: 1
K79: 1 | L79: 1 | M79: 1 | N79: 1 | O79: 1 | P79: 1 | Q79: 1 | R79: 1 | S79: 1 | T79: 1 | U79: 1 | V79: 1 | W79: 1 | X79: 1

Sheet 10 Uses
A1: =Div -> State of Nevada Housing Division | F1: =ProjName -> 0 | H1: =(IF(IsLocked(A1)*1=1,1,0)) -> 1 | I1: =(IF(IsLocked(B1)*1=1,1,0)) -> 1 | J1: =(IF(IsLocked(C1)*1=1,1,0)) -> 1 | K1: =(IF(IsLocked(D1)*1=1,1,0)) -> 1 | L1: =(IF(IsLocked(E1)*1=1,1,0)) -> 1 | M1: =(IF(IsLocked(F1)*1=1,1,0)) -> 1 | N1: 1
A2: =nhd -> 2017 NHD FUNDING APPLICATION | F2: TOC | H2: =(IF(IsLocked(A2)*1=1,1,0)) -> 1 | I2: =(IF(IsLocked(B2)*1=1,1,0)) -> 1 | J2: =(IF(IsLocked(C2)*1=1,1,0)) -> 1 | K2: =(IF(IsLocked(D2)*1=1,1,0)) -> 1 | L2: =(IF(IsLocked(E2)*1=1,1,0)) -> 1 | M2: =(IF(IsLocked(F2)*1=1,1,0)) -> 1 | N2: =(IF(IsLocked(G2)*1=1,1,0)) -> 1 | U2: Consider for 2017
A3: USES OF FUNDS | H3: 1 | I3: 1 | J3: 1 | K3: 1 | L3: 1 | M3: 1 | N3: 1
H4: 1 | I4: 1 | J4: 1 | K4: 1 | L4: 1 | M4: 1 | N4: 1
B5: Density: | H5: 1 | I5: 1 | J5: 1 | K5: 1 | L5: 1 | M5: 1 | N5: 1
B6: Units | D6: ='1 Project Information'!D38 -> 0 | E6: Costs (Uses)/unit | F6: =IF(OR(D6=0,D122=0),0,D122/D6) -> 0 | H6: 1 | I6: 1 | J6: 1 | K6: 1 | L6: 1 | M6: 1 | N6: 1
B7: Acres (Gross) | D7: ='1 Project Information'!F38 -> 0 | E7: Credit Request/Unit | F7: =IF(OR(D6=0,'9 Sources incl TC'!E56=0),0,(D130/'9 Sources incl TC'!E56)) -> 0 | H7: 1 | I7: 1 | J7: 1 | K7: 1 | L7: 1 | M7: 1 | N7: 1
B8: Density | D8: =IF(OR(D6=0,D7=0),0,D6/D7) -> 0 | E8: Credit Request/Cost | F8: =IF(OR(F6=0,F7=0),0,F7/F6) -> 0 | H8: 1 | I8: 1 | J8: 1 | K8: 1 | L8: 1 | M8: 1 | N8: 1
H9: 1 | I9: 1 | J9: 1 | K9: 1 | L9: 1 | M9: 1 | N9: 1
C10: ITEM | D10: ESTIMATED COSTS | E10: 30% VALUE ELIGIBLE BASIS 4% TAX CREDIT | F10: 70% VALUE ELIGIBLE BASIS 9% TAX CREDIT | H10: 1 | I10: 1 | J10: 1 | K10: 1 | L10: 1 | M10: 1 | N10: 1 | U10: ESTIMATED COSTS | V10: 30% VALUE ELIGIBLE BASIS 4% TAX CREDIT | W10: 70% VALUE ELIGIBLE BASIS 9% TAX CREDIT
C11: Land, Building & Site-Work | H11: 1 | I11: 1 | J11: 1 | K11: 1 | L11: 1 | M11: 1 | N11: 1
C12: Land Acquisition | D12: 0 | E12: Ineligible | F12: Ineligible | H12: 1 | I12: 1 | J12: 1 | K12: 0 | L12: 1 | M12: 1 | N12: 1 | U12: 0 | V12: Ineligible | W12: Ineligible
C13: Buildings | H13: 1 | I13: 1 | J13: 1 | K13: 1 | L13: 1 | M13: 1 | N13: 1
C14: Existing | E14: 0 | F14: 0 | H14: 1 | I14: 1 | J14: 1 | K14: 0 | L14: 0 | M14: 0 | N14: 1
C15: Demolition | E15: Ineligible | F15: Ineligible | H15: 1 | I15: 1 | J15: 1 | K15: 0 | L15: 1 | M15: 1 | N15: 1 | V15: Ineligible | W15: Ineligible
C16: Other* | E16: 0 | F16: 0 | H16: 1 | I16: 1 | J16: 0 | K16: 0 | L16: 0 | M16: 0 | N16: 1
C17: Site Work | H17: 1 | I17: 1 | J17: 1 | K17: 1 | L17: 1 | M17: 1 | N17: 1
C18: On-Site | D18: 0 | E18: 0 | F18: 0 | H18: 1 | I18: 1 | J18: 1 | K18: 0 | L18: 0 | M18: 0 | N18: 1 | U18: 300299
C19: Off-Site (Eligible) | D19: 0 | E19: 0 | F19: 0 | H19: 1 | I19: 1 | J19: 1 | K19: 0 | L19: 0 | M19: 0 | N19: 1
C20: Off-Site (Ineligible) | D20: 0 | E20: Ineligible | F20: Ineligible | H20: 1 | I20: 1 | J20: 1 | K20: 0 | L20: 1 | M20: 1 | N20: 1 | V20: Ineligible | W20: Ineligible
C21: Other* | D21: 0 | E21: Ineligible | F21: Ineligible | H21: 1 | I21: 1 | J21: 0 | K21: 0 | L21: 1 | M21: 1 | N21: 1 | V21: Ineligible | W21: Ineligible
C22: Sub-Total | D22: =SUM(D18:D21,D14:D16,D12) -> 0 | E22: =+E18+E16+E14 -> 0 | F22: =+F18+F16+F14 -> 0 | H22: 1 | I22: 1 | J22: 1 | K22: 1 | L22: 1 | M22: 1 | N22: 1 | U22: =SUM(U18:U21,U14:U16,U12) -> 300299 | V22: =+V18+V16+V14 -> 0 | W22: =+W18+W16+W14 -> 0
H23: 1 | I23: 1 | J23: 1 | K23: 1 | L23: 1 | M23: 1 | N23: 1
C24: Construction & Contractor Fees | H24: 1 | I24: 1 | J24: 1 | K24: 1 | L24: 1 | M24: 1 | N24: 1
C25: New Structures | D25: 0 | E25: 0 | F25: 0 | H25: 1 | I25: 1 | J25: 1 | K25: 0 | L25: 0 | M25: 0 | N25: 1 | U25: 1326961
C26: Rehabilitation | D26: 0 | E26: 0 | F26: 0 | H26: 1 | I26: 1 | J26: 1 | K26: 0 | L26: 0 | M26: 0 | N26: 1
C27: Accessory Buildings | D27: 0 | E27: 0 | F27: 0 | H27: 1 | I27: 1 | J27: 1 | K27: 0 | L27: 0 | M27: 0 | N27: 1
C28: General Requirements | D28: 0 | E28: 0 | F28: 0 | H28: 1 | I28: 1 | J28: 1 | K28: 0 | L28: 0 | M28: 0 | N28: 1 | U28: 45000
C29: Other* | D29: 0 | E29: 0 | F29: 0 | H29: 1 | I29: 1 | J29: 1 | K29: 0 | L29: 0 | M29: 0 | N29: 1
C30: Overhead | D30: 0 | E30: 0 | F30: 0 | H30: 1 | I30: 1 | J30: 1 | K30: 0 | L30: 0 | M30: 0 | N30: 1 | U30: 75000
C31: Profit | D31: 0 | E31: 0 | F31: 0 | H31: 1 | I31: 1 | J31: 1 | K31: 0 | L31: 0 | M31: 0 | N31: 1 | U31: 42563
C32: Other* | D32: 0 | E32: 0 | F32: 0 | H32: 1 | I32: 1 | J32: 0 | K32: 0 | L32: 0 | M32: 0 | N32: 1
C33: Sub-Total | D33: =SUM(D25:D32) -> 0 | E33: =SUM(E25:E32) -> 0 | F33: =SUM(F25:F32) -> 0 | H33: 1 | I33: 1 | J33: 1 | K33: 1 | L33: 1 | M33: 1 | N33: 1 | U33: =SUM(U25:U32) -> 1489524 | V33: =SUM(V25:V32) -> 0 | W33: =SUM(W25:W32) -> 0
H34: 1 | I34: 1 | J34: 1 | K34: 1 | L34: 1 | M34: 1 | N34: 1
C35: Contingency | H35: 1 | I35: 1 | J35: 1 | K35: 1 | L35: 1 | M35: 1 | N35: 1
C36: Construction | D36: 0 | E36: 0 | F36: 0 | H36: 1 | I36: 1 | J36: 1 | K36: 0 | L36: 0 | M36: 0 | N36: 1 | U36: 37650
C37: Rehabilitation | D37: 0 | E37: 0 | F37: 0 | H37: 1 | I37: 1 | J37: 1 | K37: 0 | L37: 0 | M37: 0 | N37: 1
C38: Other* | D38: 0 | E38: 0 | F38: 0 | H38: 1 | I38: 1 | J38: 0 | K38: 0 | L38: 0 | M38: 0 | N38: 1
C39: Sub-Total | D39: =SUM(D36:D38) -> 0 | E39: =SUM(E36:E38) -> 0 | F39: =SUM(F36:F38) -> 0 | H39: 1 | I39: 1 | J39: 1 | K39: 1 | L39: 1 | M39: 1 | N39: 1 | U39: =SUM(U36:U38) -> 37650 | V39: =SUM(V36:V38) -> 0 | W39: =SUM(W36:W38) -> 0
H40: 1 | I40: 1 | J40: 1 | K40: 1 | L40: 1 | M40: 1 | N40: 1
C41: Professional Fees | H41: 1 | I41: 1 | J41: 1 | K41: 1 | L41: 1 | M41: 1 | N41: 1
C42: Architect Design | D42: 0 | E42: 0 | F42: 0 | H42: 1 | I42: 1 | J42: 1 | K42: 0 | L42: 0 | M42: 0 | N42: 1
C43: Architect Supervision | D43: 0 | E43: 0 | F43: 0 | H43: 1 | I43: 1 | J43: 1 | K43: 0 | L43: 0 | M43: 0 | N43: 1
C44: Real Estate Attorney | D44: 0 | E44: 0 | F44: 0 | H44: 1 | I44: 1 | J44: 1 | K44: 0 | L44: 0 | M44: 0 | N44: 1 | U44: 20000
C45: Consultant/Agent | D45: 0 | E45: 0 | F45: 0 | H45: 1 | I45: 1 | J45: 1 | K45: 0 | L45: 0 | M45: 0 | N45: 1
C46: Engineer/Survey | D46: 0 | E46: 0 | F46: 0 | H46: 1 | I46: 1 | J46: 1 | K46: 0 | L46: 0 | M46: 0 | N46: 1
C47: Permits/Impact Fees | D47: 0 | E47: 0 | F47: 0 | H47: 1 | I47: 1 | J47: 1 | K47: 0 | L47: 0 | M47: 0 | N47: 1
C48: Other* | D48: 0 | E48: 0 | F48: 0 | H48: 1 | I48: 1 | J48: 0 | K48: 0 | L48: 0 | M48: 0 | N48: 1
C49: Sub-Total | D49: =SUM(D42:D48) -> 0 | E49: =SUM(E42:E48) -> 0 | F49: =SUM(F42:F48) -> 0 | H49: 1 | I49: 1 | J49: 1 | K49: 1 | L49: 1 | M49: 1 | N49: 1 | U49: =SUM(U42:U48) -> 20000 | V49: =SUM(V42:V48) -> 0 | W49: =SUM(W42:W48) -> 0
H50: 1 | I50: 1 | J50: 1 | K50: 1 | L50: 1 | M50: 1 | N50: 1
C51: Construction Interim Cost | H51: 1 | I51: 1 | J51: 1 | K51: 1 | L51: 1 | M51: 1 | N51: 1
C52: Hazard Insurance | D52: 0 | E52: 0 | F52: 0 | H52: 1 | I52: 1 | J52: 1 | K52: 0 | L52: 0 | M52: 0 | N52: 1
C53: Liability Insurance | D53: 0 | E53: 0 | F53: 0 | H53: 1 | I53: 1 | J53: 1 | K53: 0 | L53: 0 | M53: 0 | N53: 1 | U53: 25000
C54: Payment Bond | D54: 0 | E54: 0 | F54: 0 | H54: 1 | I54: 1 | J54: 1 | K54: 0 | L54: 0 | M54: 0 | N54: 1
C55: Performance Bond | D55: 0 | E55: 0 | F55: 0 | H55: 1 | I55: 1 | J55: 1 | K55: 0 | L55: 0 | M55: 0 | N55: 1
C56: Credit Report | D56: 0 | E56: 0 | F56: 0 | H56: 1 | I56: 1 | J56: 1 | K56: 0 | L56: 0 | M56: 0 | N56: 1
C57: Interest | D57: 0 | E57: 0 | F57: 0 | H57: 1 | I57: 1 | J57: 1 | K57: 0 | L57: 0 | M57: 0 | N57: 1 | U57: 75000
C58: Origination Points | D58: 0 | E58: 0 | F58: 0 | H58: 1 | I58: 1 | J58: 1 | K58: 0 | L58: 0 | M58: 0 | N58: 1 | U58: 22350
C59: Discount Points | D59: 0 | E59: 0 | F59: 0 | H59: 1 | I59: 1 | J59: 1 | K59: 0 | L59: 0 | M59: 0 | N59: 1
C60: Credit Enhancement | D60: 0 | E60: 0 | F60: 0 | H60: 1 | I60: 1 | J60: 1 | K60: 0 | L60: 0 | M60: 0 | N60: 1 | U60: 3000
C61: Inspection Fees | D61: 0 | E61: 0 | F61: 0 | H61: 1 | I61: 1 | J61: 1 | K61: 0 | L61: 0 | M61: 0 | N61: 1
C62: Title and Recording | D62: 0 | E62: 0 | F62: 0 | H62: 1 | I62: 1 | J62: 1 | K62: 0 | L62: 0 | M62: 0 | N62: 1 | U62: 15000
C63: Legal Fees | D63: 0 | E63: 0 | F63: 0 | H63: 1 | I63: 1 | J63: 1 | K63: 0 | L63: 0 | M63: 0 | N63: 1
C64: Taxes | D64: 0 | E64: 0 | F64: 0 | H64: =(IF(IsLocked(A64)*1=1,1,0)) -> 1 | I64: =(IF(IsLocked(B64)*1=1,1,0)) -> 1 | J64: =(IF(IsLocked(C64)*1=1,1,0)) -> 1 | K64: =(IF(IsLocked(D64)*1=1,1,0)) -> 0 | L64: =(IF(IsLocked(E64)*1=1,1,0)) -> 0 | M64: =(IF(IsLocked(F64)*1=1,1,0)) -> 0 | N64: =(IF(IsLocked(G64)*1=1,1,0)) -> 1 | U64: 4500
C65: Other | D65: 0 | E65: 0 | F65: 0 | H65: 1 | I65: 1 | J65: 0 | K65: 0 | L65: 0 | M65: 0 | N65: 1 | U65: 20000
C66: Sub-Total | D66: =SUM(D52:D65) -> 0 | E66: =SUM(E52:E65) -> 0 | F66: =SUM(F52:F65) -> 0 | H66: 1 | I66: 1 | J66: 1 | K66: 1 | L66: 1 | M66: 1 | N66: 1 | U66: =SUM(U52:U65) -> 164850 | V66: =SUM(V52:V65) -> 0 | W66: =SUM(W52:W65) -> 0
H67: 1 | I67: 1 | J67: 1 | K67: 1 | L67: 1 | M67: 1 | N67: 1
C68: Permanent Financing | H68: 1 | I68: 1 | J68: 1 | K68: 1 | L68: 1 | M68: 1 | N68: 1
C69: Bond Premium | D69: 0 | E69: Ineligible | F69: Ineligible | H69: 1 | I69: 1 | J69: 1 | K69: 0 | L69: 1 | M69: 1 | N69: 1 | V69: Ineligible | W69: Ineligible
C70: Credit Report | D70: 0 | E70: Ineligible | F70: Ineligible | H70: 1 | I70: 1 | J70: 1 | K70: 0 | L70: 1 | M70: 1 | N70: 1 | V70: Ineligible | W70: Ineligible
C71: Discount Points | D71: 0 | E71: Ineligible | F71: Ineligible | H71: 1 | I71: 1 | J71: 1 | K71: 0 | L71: 1 | M71: 1 | N71: 1 | V71: Ineligible | W71: Ineligible
C72: Origination Fees | D72: 0 | E72: Ineligible | F72: Ineligible | H72: 1 | I72: 1 | J72: 1 | K72: 0 | L72: 1 | M72: 1 | N72: 1 | V72: Ineligible | W72: Ineligible
C73: Credit Enhancement | D73: 0 | E73: Ineligible | F73: Ineligible | H73: 1 | I73: 1 | J73: 1 | K73: 0 | L73: 1 | M73: 1 | N73: 1 | V73: Ineligible | W73: Ineligible
C74: Cost of Issuance | D74: 0 | E74: Ineligible | F74: Ineligible | H74: 1 | I74: 1 | J74: 1 | K74: 0 | L74: 1 | M74: 1 | N74: 1 | V74: Ineligible | W74: Ineligible
C75: Title and Recording | D75: 0 | E75: Ineligible | F75: Ineligible | H75: 1 | I75: 1 | J75: 1 | K75: 0 | L75: 1 | M75: 1 | N75: 1 | V75: Ineligible | W75: Ineligible
C76: Legal Fees | D76: 0 | E76: Ineligible | F76: Ineligible | H76: 1 | I76: 1 | J76: 1 | K76: 0 | L76: 1 | M76: 1 | N76: 1 | V76: Ineligible | W76: Ineligible
C77: Prepaid MIP | D77: 0 | E77: Ineligible | F77: Ineligible | H77: 1 | I77: 1 | J77: 1 | K77: 0 | L77: 1 | M77: 1 | N77: 1 | V77: Ineligible | W77: Ineligible
C78: Other* | D78: 0 | E78: Ineligible | F78: Ineligible | H78: 1 | I78: 1 | J78: 0 | K78: 0 | L78: 1 | M78: 1 | N78: 1 | V78: Ineligible | W78: Ineligible
C79: Sub-Total | D79: =SUM(D69:D78) -> 0 | H79: 1 | I79: 1 | J79: 1 | K79: 1 | L79: 1 | M79: 1 | N79: 1 | U79: =SUM(U69:U78) -> 0
H80: 1 | I80: 1 | J80: 1 | K80: 1 | L80: 1 | M80: 1 | N80: 1
C81: Soft Cost | H81: 1 | I81: 1 | J81: 1 | K81: 1 | L81: 1 | M81: 1 | N81: 1
C82: Feasibility Study | D82: 0 | E82: 0 | F82: 0 | H82: 1 | I82: 1 | J82: 1 | K82: 0 | L82: 0 | M82: 0 | N82: 1
C83: Market Study | D83: 0 | E83: 0 | F83: 0 | H83: 1 | I83: 1 | J83: 1 | K83: 0 | L83: 0 | M83: 0 | N83: 1 | U83: 6500
C84: Lease Up Marketing | D84: 0 | E84: Ineligible | F84: Ineligible | H84: 1 | I84: 1 | J84: 1 | K84: 0 | L84: 1 | M84: 1 | N84: 1 | U84: 15000 | V84: Ineligible | W84: Ineligible
C85: Environmental Study | D85: 0 | E85: 0 | F85: 0 | H85: 1 | I85: 1 | J85: 1 | K85: 0 | L85: 0 | M85: 0 | N85: 1 | U85: 10000
C86: Tax Credit Fees | D86: 0 | E86: 0 | F86: 0 | H86: 1 | I86: 1 | J86: 1 | K86: 0 | L86: 0 | M86: 0 | N86: 1 | U86: 22500
C87: Compliance Fees | D87: 0 | E87: 0 | F87: 0 | H87: 1 | I87: 1 | J87: 1 | K87: 0 | L87: 0 | M87: 0 | N87: 1
C88: Rent-up Expense | D88: 0 | E88: 0 | F88: 0 | H88: 1 | I88: 1 | J88: 1 | K88: 0 | L88: 0 | M88: 0 | N88: 1
C89: Project Appraisal | D89: 0 | E89: 0 | F89: 0 | H89: 1 | I89: 1 | J89: 1 | K89: 0 | L89: 0 | M89: 0 | N89: 1 | U89: 6500
C90: Cost Certification | D90: 0 | E90: 0 | F90: 0 | H90: 1 | I90: 1 | J90: 1 | K90: 0 | L90: 0 | M90: 0 | N90: 1 | U90: 12500
C91: Survey | D91: 0 | E91: 0 | F91: 0 | H91: 1 | I91: 1 | J91: 1 | K91: 0 | L91: 0 | M91: 0 | N91: 1
C92: Contingency | D92: 0 | E92: 0 | F92: 0 | H92: 1 | I92: 1 | J92: 1 | K92: 0 | L92: 0 | M92: 0 | N92: 1
C93: Other* | D93: 0 | E93: 0 | F93: 0 | H93: 1 | I93: 1 | J93: 0 | K93: 0 | L93: 0 | M93: 0 | N93: 1
C94: Sub-Total | D94: =SUM(D82:D93) -> 0 | E94: =SUM(E82:E93) -> 0 | F94: =SUM(F82:F93) -> 0 | H94: 1 | I94: 1 | J94: 1 | K94: 1 | L94: 1 | M94: 1 | N94: 1 | U94: =SUM(U82:U93) -> 73000 | V94: =SUM(V82:V93) -> 0 | W94: =SUM(W82:W93) -> 0
H95: 1 | I95: 1 | J95: 1 | K95: 1 | L95: 1 | M95: 1 | N95: 1
C96: Syndication Cost | H96: 1 | I96: 1 | J96: 1 | K96: 1 | L96: 1 | M96: 1 | N96: 1
C97: Organization | D97: 0 | E97: Ineligible | F97: Ineligible | H97: 1 | I97: 1 | J97: 1 | K97: 0 | L97: 1 | M97: 1 | N97: 1 | V97: Ineligible | W97: Ineligible
C98: Bridge Loan | D98: 0 | E98: Ineligible | F98: Ineligible | H98: 1 | I98: 1 | J98: 1 | K98: 0 | L98: 1 | M98: 1 | N98: 1 | V98: Ineligible | W98: Ineligible
C99: Tax Opinion | D99: 0 | E99: Ineligible | F99: Ineligible | H99: 1 | I99: 1 | J99: 1 | K99: 0 | L99: 1 | M99: 1 | N99: 1 | V99: Ineligible | W99: Ineligible
C100: PV Adjustment | D100: 0 | E100: Ineligible | F100: Ineligible | H100: 1 | I100: 1 | J100: 1 | K100: 0 | L100: 1 | M100: 1 | N100: 1 | V100: Ineligible | W100: Ineligible
C101: Other* | D101: 0 | E101: Ineligible | F101: Ineligible | H101: 1 | I101: 1 | J101: 0 | K101: 0 | L101: 1 | M101: 1 | N101: 1 | V101: Ineligible | W101: Ineligible
C102: Sub-Total | D102: =SUM(D97:D101) -> 0 | E102: =SUM(E97:E101) -> 0 | F102: =SUM(F97:F101) -> 0 | H102: 1 | I102: 1 | J102: 1 | K102: 1 | L102: 1 | M102: 1 | N102: 1 | U102: =SUM(U97:U101) -> 0 | V102: =SUM(V97:V101) -> 0 | W102: =SUM(W97:W101) -> 0
H103: 1 | I103: 1 | J103: 1 | K103: 1 | L103: 1 | M103: 1 | N103: 1
C104: Developer Fees** | H104: 1 | I104: 1 | J104: 1 | K104: 1 | L104: 1 | M104: 1 | N104: 1
C105: Overhead | D105: 0 | E105: 0 | F105: 0 | H105: 1 | I105: 1 | J105: 1 | K105: 0 | L105: 0 | M105: 0 | N105: 1 | U105: 145572
C106: Profit | D106: 0 | E106: 0 | F106: 0 | H106: 1 | I106: 1 | J106: 1 | K106: 0 | L106: 0 | M106: 0 | N106: 1 | U106: 145572
C107: Consultant | D107: 0 | E107: 0 | F107: 0 | H107: 1 | I107: 1 | J107: 1 | K107: 0 | L107: 0 | M107: 0 | N107: 1
C108: Other* | D108: 0 | E108: 0 | F108: 0 | H108: 1 | I108: 1 | J108: 0 | K108: 0 | L108: 0 | M108: 0 | N108: 1
C109: Sub-Total | D109: =SUM(D105:D108) -> 0 | E109: =SUM(E105:E108) -> 0 | F109: =SUM(F105:F108) -> 0 | H109: 1 | I109: 1 | J109: 1 | K109: 1 | L109: 1 | M109: 1 | N109: 1 | U109: =SUM(U105:U108) -> 291144 | V109: =SUM(V105:V108) -> 0 | W109: =SUM(W105:W108) -> 0
C110: Total Developer Fee% | E110: =IF(E122=0,0,(E109/(E122-E109))) -> 0 | F110: =IF(F122=0,0,(F109/(F122-F109))) -> 0
H111: 1 | I111: 1 | J111: 1 | K111: 1 | L111: 1 | M111: 1 | N111: 1
C112: Project Reserves | H112: 1 | I112: 1 | J112: 1 | K112: 1 | L112: 1 | M112: 1 | N112: 1
C113: Lease Up | D113: 0 | E113: Ineligible | F113: Ineligible | H113: 1 | I113: 1 | J113: 1 | K113: 0 | L113: 1 | M113: 1 | N113: 1 | U113: 20000 | V113: Ineligible | W113: Ineligible
C114: Operating | D114: 0 | E114: Ineligible | F114: Ineligible | H114: 1 | I114: 1 | J114: 1 | K114: 0 | L114: 1 | M114: 1 | N114: 1 | U114: 25000 | V114: Ineligible | W114: Ineligible
C115: Replacement | D115: 0 | E115: Ineligible | F115: Ineligible | H115: 1 | I115: 1 | J115: 1 | K115: 0 | L115: 1 | M115: 1 | N115: 1 | V115: Ineligible | W115: Ineligible
C116: Escrows | D116: 0 | E116: Ineligible | F116: Ineligible | H116: 1 | I116: 1 | J116: 1 | K116: 0 | L116: 1 | M116: 1 | N116: 1 | V116: Ineligible | W116: Ineligible
C117: Other* | D117: 0 | E117: Ineligible | F117: Ineligible | H117: 1 | I117: 1 | J117: 0 | K117: 0 | L117: 1 | M117: 1 | N117: 1 | V117: Ineligible | W117: Ineligible
C118: Sub-Total | D118: =SUM(D113:D117) -> 0 | E118: =SUM(E113:E117) -> 0 | F118: =SUM(F113:F117) -> 0 | H118: 1 | I118: 1 | J118: 1 | K118: 1 | L118: 1 | M118: 1 | N118: 1 | U118: =SUM(U113:U117) -> 45000 | V118: =SUM(V113:V117) -> 0 | W118: =SUM(W113:W117) -> 0
H119: 1 | I119: 1 | J119: 1 | K119: 1 | L119: 1 | M119: 1 | N119: 1
C120: Other | D120: 0 | E120: 0 | F120: 0 | H120: 1 | I120: 1 | J120: 0 | K120: 0 | L120: 0 | M120: 0 | N120: 1 | U120: 0 | V120: 0 | W120: 0
H121: 1 | I121: 1 | J121: 1 | K121: 1 | L121: 1 | M121: 1 | N121: 1
C122: Total Project Costs (Uses) w/land | D122: =+D118+D109+D102+D94+D79+D66+D49+D39+D33+D22+D120 -> 0 | E122: =+E118+E109+E102+E94+E79+E66+E49+E39+E33+E22+E120 -> 0 | F122: =+F118+F109+F102+F94+F79+F66+F49+F39+F33+F22+F120 -> 0 | H122: 1 | I122: 1 | J122: 1 | K122: 1 | L122: 1 | M122: 1 | N122: 1 | U122: =+U118+U109+U102+U94+U79+U66+U49+U39+U33+U22+U120 -> 2421467 | V122: =+V118+V109+V102+V94+V79+V66+V49+V39+V33+V22+V120 -> 0 | W122: =+W118+W109+W102+W94+W79+W66+W49+W39+W33+W22+W120 -> 0
C123: Costs/Unit | D123: =IF(OR(D6=0,D122=0),0,D122/D6) -> 0 | E123: =IF(OR(E$122=0,$D$122=0),0,E$122/$D$122) -> 0 | F123: =IF(OR(F$122=0,$D$122=0),0,F$122/$D$122) -> 0 | H123: 1 | I123: 1 | J123: 1 | K123: 1 | L123: 1 | M123: 1 | N123: 1 | U123: =IF(OR(U6=0,U122=0),0,U122/U6) -> 0 | V123: =IF(OR(V$122=0,$D$122=0),0,V$122/$D$122) -> 0 | W123: =IF(OR(W$122=0,$D$122=0),0,W$122/$D$122) -> 0
E124: Eligible/Total Costs | H124: 1 | I124: 1 | J124: 1 | K124: 1 | L124: 1 | M124: 1 | N124: 1 | V124: Eligible/Total Costs
C125: Ineligible Costs | D125: =D122-SUM(E122:F122) -> 0 | H125: 1 | I125: 1 | J125: 1 | K125: 1 | L125: 1 | M125: 1 | N125: 1 | U125: =U122-SUM(V122:W122) -> 2421467
H126: 1 | I126: 1 | J126: 1 | K126: 1 | L126: 1 | M126: 1 | N126: 1
C127: Total Sources | D127: =+'9 Sources incl TC'!E77 -> 0 | H127: 1 | I127: 1 | J127: 1 | K127: 1 | L127: 1 | M127: 1 | N127: 1 | U127: 0
C128: Reconciliation (S-U) | D128: =+D127-D122 -> 0 | E128: (For internal information purposes) | H128: 1 | I128: 1 | J128: 1 | K128: 1 | L128: 1 | M128: 1 | N128: 1 | U128: =+U127-U122 -> -2421467 | V128: (For internal information purposes)
H129: =(IF(IsLocked(A129)*1=1,1,0)) -> 1 | I129: =(IF(IsLocked(B129)*1=1,1,0)) -> 1 | J129: =(IF(IsLocked(C129)*1=1,1,0)) -> 1 | K129: =(IF(IsLocked(D129)*1=1,1,0)) -> 1 | L129: =(IF(IsLocked(E129)*1=1,1,0)) -> 1 | M129: =(IF(IsLocked(F129)*1=1,1,0)) -> 1 | N129: =(IF(IsLocked(G129)*1=1,1,0)) -> 1
C130: Tax Credits Requested | D130: =+'9 Sources incl TC'!E56 -> 0 | H130: 1 | I130: 1 | J130: 1 | K130: 1 | L130: 1 | M130: 1 | N130: 1 | W130: =+'9 Sources incl TC'!U63 -> 1
H131: 1 | I131: 1 | J131: 1 | K131: 1 | L131: 1 | M131: 1 | N131: 1
C132: **Detail Payment Schedule of Developer Fee: | H132: 1 | I132: 1 | J132: 1 | K132: 1 | L132: 1 | M132: 1 | N132: 1
D133: Amount: | E133: Notes | H133: 1 | I133: 1 | J133: 1 | K133: 1 | L133: 1 | M133: 1 | N133: 1 | U133: Amount: | V133: Estimated Date Due: | W133: Notes
C134: Payment Number One | D134: 0 | H134: 1 | I134: 1 | J134: 1 | K134: 0 | L134: 0 | M134: 0 | N134: 1 | U134: 96988.33 | V134: 2015-10-01
C135: Payment Number Two | D135: 0 | H135: 1 | I135: 1 | J135: 1 | K135: 0 | L135: 0 | M135: 0 | N135: 1 | U135: 96988.33 | V135: 2016-02-01
C136: Payment Number Three | D136: 0 | H136: 1 | I136: 1 | J136: 1 | K136: 0 | L136: 0 | M136: 0 | N136: 1 | U136: 96988.33 | V136: 2016-08-01
C137: Dev Deferred Note | D137: 0 | H137: 1 | I137: 1 | J137: 0 | K137: 0 | L137: 0 | M137: 0 | N137: 1 | U137: 179 | W137: deferred
C138: Sub-Total | D138: =SUM(D134:D137) -> 0 | H138: 1 | I138: 1 | J138: 1 | K138: 1 | L138: 1 | M138: 1 | N138: 1 | U138: =SUM(U134:U137) -> 291143.99
H139: 1 | I139: 1 | J139: 1 | K139: 1 | L139: 1 | M139: 1 | N139: 1
C140: Grants, subsidies, soft debt | H140: 1 | I140: 1 | J140: 1 | K140: 1 | L140: 1 | M140: 1 | N140: 1
C141: Grants | D141: 0 | H141: 1 | I141: 1 | J141: 1 | K141: 0 | L141: 0 | M141: 0 | N141: 1
C142: Federal Subsidies (Other) | D142: 0 | H142: 1 | I142: 1 | J142: 1 | K142: 0 | L142: 0 | M142: 0 | N142: 1
C143: Non-Recourse Financing | D143: 0 | H143: 1 | I143: 1 | J143: 1 | K143: 0 | L143: 0 | M143: 0 | N143: 1
C144: Historic Credits | D144: 0 | H144: 1 | I144: 1 | J144: 1 | K144: 0 | L144: 0 | M144: 0 | N144: 1
C145: High Quality Units | D145: 0 | H145: 1 | I145: 1 | J145: 1 | K145: 0 | L145: 0 | M145: 0 | N145: 1
C146: Sub-Total | D146: =SUM(D141:D145) -> 0 | H146: 1 | I146: 1 | J146: 1 | K146: 1 | L146: 1 | M146: 1 | N146: 1 | U146: =SUM(U141:U145) -> 0 | V146: =SUM(V141:V145) -> 0 | W146: =SUM(W141:W145) -> 0
H147: 1 | I147: 1 | J147: 1 | K147: 1 | L147: 1 | M147: 1 | N147: 1
C148: DEVELOPER GAP CALCULATION | H148: 1 | I148: 1 | J148: 1 | K148: 1 | L148: 1 | M148: 1 | N148: 1
C149: Total Project Cost | D149: =+D122 -> 0 | H149: 1 | I149: 1 | J149: 1 | K149: 0 | L149: 1 | M149: 1 | N149: 1 | W149: =+U122 -> 2421467
H150: 1 | I150: 1 | J150: 1 | K150: 1 | L150: 1 | M150: 1 | N150: 1
C151: Sources: | E151: Notes/Other: | H151: 1 | I151: 1 | J151: 1 | K151: 1 | L151: 1 | M151: 1 | N151: 1
C152: Mortgages (Permanent Financing) | D152: =+'9 Sources incl TC'!E33 -> 0 | H152: 1 | I152: 1 | J152: 1 | K152: 0 | L152: 1 | M152: 1 | N152: 1 | W152: =+'9 Sources incl TC'!U33 -> 1
C153: Grants | H153: 1 | I153: 1 | J153: 1 | K153: 0 | L153: 1 | M153: 1 | N153: 1
C154: Owner Investment | H154: 1 | I154: 1 | J154: 1 | K154: 0 | L154: 1 | M154: 1 | N154: 1
C155: HOME Loan | H155: 1 | I155: 1 | J155: 0 | K155: 0 | L155: 0 | M155: 1 | N155: 1 | W155: 630000
C156: Deferred developer fee | H156: 1 | I156: 1 | J156: 0 | K156: 0 | L156: 0 | M156: 1 | N156: 1 | W156: 179
C157: Other Items (overwrite) | H157: 1 | I157: 1 | J157: 0 | K157: 0 | L157: 0 | M157: 1 | N157: 1
C158: Sub-Total | D158: =SUM(D152:D157) -> 0 | H158: 1 | I158: 1 | J158: 1 | K158: 1 | L158: 1 | M158: 1 | N158: 1 | W158: =SUM(W152:W157) -> 630180
C159: Proposed Tax Credits | D159: =+D149-D158 -> 0 | H159: 1 | I159: 1 | J159: 1 | K159: 1 | L159: 1 | M159: 1 | N159: 1
C160: Total Proposed Sources | D160: =SUM(D158:D159) -> 0 | H160: 1 | I160: 1 | J160: 1 | K160: 1 | L160: 1 | M160: 1 | N160: 1 | W160: =+W149-W158 -> 1791287
C161: LIHTC Syndication Pricing (Attach Syndicate Commitment Letter) | F161: =+'9 Sources incl TC'!E57 -> 0 | H161: 1 | I161: 1 | J161: 1 | K161: 1 | L161: 1 | M161: 1 | N161: 1
C162: LIHTC (10 Years) Required to Meet TEG (GAP ÷ Price) | F162: =IF(OR(D159=0,F161=0),0,D159/F161) -> 0 | H162: 1 | I162: 1 | J162: 1 | K162: 1 | L162: 1 | M162: 1 | N162: 1
C163: Annual LIHTC | F163: =+F162/10 -> 0 | H163: 1 | I163: 1 | J163: 1 | K163: 1 | L163: 1 | M163: 1 | N163: 1
C164: Equity Gap after Estimated Tax Credit sources | F164: =+D159-F162 -> 0 | H164: 1 | I164: 1 | J164: 1 | K164: 1 | L164: 1 | M164: 1 | N164: 1
H165: 1 | I165: 1 | J165: 1 | K165: 1 | L165: 1 | M165: 1 | N165: 1
H166: 1 | I166: 1 | J166: 1 | K166: 1 | L166: 1 | M166: 1 | N166: 1

Sheet 11 Opt Inc & Exp
A1: =Div -> State of Nevada Housing Division | G1: =ProjName -> 0 | J1: =(IF(IsLocked(A1)*1=1,1,0)) -> 1 | K1: =(IF(IsLocked(B1)*1=1,1,0)) -> 1 | L1: 1 | M1: 1 | N1: 1 | O1: 1 | P1: 1 | Q1: 1 | R1: 1 | S1: 1 | T1: 1 | U1: 1
A2: =nhd -> 2017 NHD FUNDING APPLICATION | G2: TOC | J2: =(IF(IsLocked(A2)*1=1,1,0)) -> 1 | K2: =(IF(IsLocked(B2)*1=1,1,0)) -> 1 | L2: =(IF(IsLocked(C2)*1=1,1,0)) -> 1 | M2: =(IF(IsLocked(D2)*1=1,1,0)) -> 1 | N2: =(IF(IsLocked(E2)*1=1,1,0)) -> 1 | O2: =(IF(IsLocked(F2)*1=1,1,0)) -> 1 | P2: =(IF(IsLocked(G2)*1=1,1,0)) -> 1 | Q2: =(IF(IsLocked(H2)*1=1,1,0)) -> 1 | R2: =(IF(IsLocked(I2)*1=1,1,0)) -> 1 | S2: =(IF(IsLocked(J2)*1=1,1,0)) -> 1 | T2: =(IF(IsLocked(K2)*1=1,1,0)) -> 1 | U2: =(IF(IsLocked(L2)*1=1,1,0)) -> 1
A3: ANNUAL OPERATING INCOME AND EXPENSES | J3: 1 | K3: 1 | L3: 1 | M3: 1 | N3: 1 | O3: 1 | P3: 1 | Q3: 1 | R3: 1 | S3: 1 | T3: 1 | U3: 1
J4: 1 | K4: 1 | L4: 1 | M4: 1 | N4: 1 | O4: 1 | P4: 1 | Q4: 1 | R4: 1 | S4: 1 | T4: 1 | U4: 1
F5: Rest'd & Mkt Units | G5: =TotRestrUnits+TotMktU -> 0 | H5: <--- | J5: 1 | K5: 1 | L5: 1 | M5: 1 | N5: 1 | O5: 1 | P5: 1 | Q5: 1 | R5: 1 | S5: 1 | T5: 1 | U5: 1
B6: Income Recap Sub-Section A | E6: (Total Units) | F6: Total Units | G6: =TotUnits -> 0 | J6: 1 | K6: 1 | L6: 1 | M6: 1 | N6: 1 | O6: 1 | P6: 1 | Q6: 1 | R6: 1 | S6: 1 | T6: 1 | U6: 1
E7: Annual | F7: Monthly | G7: Annual/RU | H7: Monthly/RU | J7: 1 | K7: 1 | L7: 1 | M7: 1 | N7: 1 | O7: 1 | P7: 1 | Q7: 1 | R7: 1 | S7: 1 | T7: 1 | U7: 1
B8: Gross Rental Income* | J8: 1 | K8: 1 | L8: 1 | M8: 1 | N8: 1 | O8: 1 | P8: 1 | Q8: 1 | R8: 1 | S8: 1 | T8: 1 | U8: 1
B9: Low-Income Housing Tax Credit Units | E9: 0 | F9: =IF($E9<>0,$E9/12,0) -> 0 | G9: =IF(E9<>0,E9/$G$5,0) -> 0 | H9: =IF($E9<>0,$E9/$G$5/12,0) -> 0 | J9: 1 | K9: 1 | L9: 1 | M9: 1 | N9: 0 | O9: 1 | P9: 1 | Q9: 1 | R9: 1 | S9: 1 | T9: 1 | U9: 1
B10: HOME Units (Non LIHTC) | E10: 0 | F10: 0 | G10: 0 | H10: =IF($E10<>0,$E10/$G$5/12,0) -> 0 | J10: 1 | K10: 1 | L10: 1 | M10: 1 | N10: 0 | O10: 1 | P10: 1 | Q10: 1 | R10: 1 | S10: 1 | T10: 1 | U10: 1
B11: Project Based Assisted Units | E11: 0 | F11: 0 | G11: 0 | H11: 0 | J11: 1 | K11: 1 | L11: 1 | M11: 1 | N11: 0 | O11: 1 | P11: 1 | Q11: 1 | R11: 1 | S11: 1 | T11: 1 | U11: 1
B12: Market Rate Units | E12: 0 | F12: 0 | G12: 0 | H12: 0 | J12: 1 | K12: 1 | L12: 1 | M12: 1 | N12: 0 | O12: 1 | P12: 1 | Q12: 1 | R12: 1 | S12: 1 | T12: 1 | U12: 1
B13: Common Use Areas | E13: 0 | F13: 0 | G13: 0 | H13: 0 | J13: 1 | K13: 1 | L13: 1 | M13: 1 | N13: 0 | O13: 1 | P13: 1 | Q13: 1 | R13: 1 | S13: 1 | T13: 1 | U13: 1
B14: Other and items <10% of GRI | E14: 0 | F14: 0 | G14: 0 | H14: 0 | J14: 1 | K14: 1 | L14: 1 | M14: 1 | N14: 0 | O14: 1 | P14: 1 | Q14: 1 | R14: 1 | S14: 1 | T14: 1 | U14: 1
B15: Total Gross Rental Income (GRI) | E15: =SUM(E9:E14) -> 0 | F15: 0 | G15: 0 | H15: 0 | J15: 1 | K15: 1 | L15: 1 | M15: 1 | N15: 1 | O15: 1 | P15: 1 | Q15: 1 | R15: 1 | S15: 1 | T15: 1 | U15: 1
J16: 1 | K16: 1 | L16: 1 | M16: 1 | N16: 1 | O16: 1 | P16: 1 | Q16: 1 | R16: 1 | S16: 1 | T16: 1 | U16: 1
B17: Other Income | J17: 1 | K17: 1 | L17: 1 | M17: 1 | N17: 1 | O17: 1 | P17: 1 | Q17: 1 | R17: 1 | S17: 1 | T17: 1 | U17: 1
B18: Laundry Facilities | E18: 0 | F18: =IF($E18<>0,$E18/12,0) -> 0 | G18: =IF(E18<>0,E18/$G$6,0) -> 0 | H18: =IF($E18<>0,$E18/TotUnits/12,0) -> 0 | J18: 1 | K18: 1 | L18: 1 | M18: 1 | N18: 0 | O18: 1 | P18: 1 | Q18: 1 | R18: 1 | S18: 1 | T18: 1 | U18: 1
B19: Garage/Parking | E19: 0 | F19: 0 | G19: 0 | H19: 0 | J19: 1 | K19: 1 | L19: 1 | M19: 1 | N19: 0 | O19: 1 | P19: 1 | Q19: 1 | R19: 1 | S19: 1 | T19: 1 | U19: 1
B20: Commercial Space Rent | E20: 0 | F20: 0 | G20: 0 | H20: 0 | J20: 1 | K20: 1 | L20: 1 | M20: 1 | N20: 0 | O20: 1 | P20: 1 | Q20: 1 | R20: 1 | S20: 1 | T20: 1 | U20: 1
B21: Tenant Charges (late fees, NSF fees…) | E21: 0 | F21: 0 | G21: 0 | H21: 0 | J21: 1 | K21: 1 | L21: 1 | M21: 1 | N21: 0 | O21: 1 | P21: 1 | Q21: 1 | R21: 1 | S21: 1 | T21: 1 | U21: 1
B22: Other | E22: 0 | F22: 0 | G22: 0 | H22: 0 | J22: 1 | K22: 0 | L22: 0 | M22: 1 | N22: 0 | O22: 1 | P22: 1 | Q22: 1 | R22: 1 | S22: 1 | T22: 1 | U22: 1
B23: Other | E23: 0 | F23: 0 | G23: 0 | H23: 0 | J23: 1 | K23: 0 | L23: 0 | M23: 1 | N23: 0 | O23: 1 | P23: 1 | Q23: 1 | R23: 1 | S23: 1 | T23: 1 | U23: 1
B24: Admin Fees, Pet Deposits, etc. | E24: 0 | F24: 0 | G24: 0 | H24: 0 | J24: 1 | K24: 1 | L24: 1 | M24: 1 | N24: 0 | O24: 1 | P24: 1 | Q24: 1 | R24: 1 | S24: 1 | T24: 1 | U24: 1
B25: Total Other Income | E25: =SUM(E18:E24) -> 0 | F25: 0 | G25: =IF(E25<>0,E25/$G$6,0) -> 0 | H25: 0 | J25: 1 | K25: 1 | L25: 1 | M25: 1 | N25: 1 | O25: 1 | P25: 1 | Q25: 1 | R25: 1 | S25: 1 | T25: 1 | U25: 1
B26: Note: Net of Commercial Space Rent | E26: =+TotOI-E20 -> 0 | F26: 0 | G26: =IF(E26<>0,E26/$G$6,0) -> 0 | H26: 0 | J26: 1 | K26: 1 | L26: 1 | M26: 1 | N26: 1 | O26: 1 | P26: 1 | Q26: 1 | R26: 1 | S26: 1 | T26: 1 | U26: 1
J27: 1 | K27: 1 | L27: 1 | M27: 1 | N27: 1 | O27: 1 | P27: 1 | Q27: 1 | R27: 1 | S27: 1 | T27: 1 | U27: 1
B28: Vacancy (GRI, Comm) | D28: =+'12 Pro Forma'!K2 -> 0 | E28: =(TotGRI+E20)*-D28 -> 0 | F28: =IF($E28<>0,$E28/12,0) -> 0 | G28: =IF(E28<>0,E28/$G$6,0) -> 0 | H28: =IF($E28<>0,$E28/TotUnits/12,0) -> 0 | J28: 1 | K28: 1 | L28: 1 | M28: 1 | N28: 1 | O28: 1 | P28: 1 | Q28: 1 | R28: 1 | S28: 1 | T28: 1 | U28: 1
B29: Other Income Vacancy | D29: 0 | E29: =-D29*E26 -> 0 | F29: =IF($E29<>0,$E29/12,0) -> 0 | G29: =IF(E29<>0,E29/$G$6,0) -> 0 | H29: =IF($E29<>0,$E29/TotUnits/12,0) -> 0 | I29: =+IF(E29>0,"* A positive value entry here increases your EGI and reduces your total vacancy loss",0) -> 0 | J29: 1 | K29: 1 | L29: 1 | M29: 0 | N29: 0 | O29: 1 | P29: 1 | Q29: 1 | R29: 1 | S29: 1 | T29: 1 | U29: 1
B30: Total Vacancy, Loss | D30: =IF(OR(E30=0,E15=0,E25=0),0,-(E30/(TotOI+TotGRI))) -> 0 | E30: =SUM(E28:E29) -> 0 | F30: =IF($E30<>0,$E30/12,0) -> 0 | G30: =IF(E30<>0,E30/$G$6,0) -> 0 | H30: =IF($E30<>0,$E30/TotUnits/12,0) -> 0 | J30: 1 | K30: 1 | L30: 1 | M30: 1 | N30: 1 | O30: 1 | P30: 1 | Q30: 1 | R30: 1 | S30: 1 | T30: 1 | U30: 1
B31: Effective Gross Income | E31: =+TotGRI+TotOI+TotVac -> 0 | F31: =IF($E31<>0,$E31/12,0) -> 0 | G31: =IF(E31<>0,E31/$G$6,0) -> 0 | H31: =IF($E31<>0,$E31/TotUnits/12,0) -> 0 | J31: 1 | K31: 1 | L31: 1 | M31: 1 | N31: 1 | O31: 1 | P31: 1 | Q31: 1 | R31: 1 | S31: 1 | T31: 1 | U31: 1
J32: 1 | K32: 1 | L32: 1 | M32: 1 | N32: 1 | O32: 1 | P32: 1 | Q32: 1 | R32: 1 | S32: 1 | T32: 1 | U32: 1
B33: Operating Expenses Section 7 | J33: 1 | K33: 1 | L33: 1 | M33: 1 | N33: 1 | O33: 1 | P33: 1 | Q33: 1 | R33: 1 | S33: 1 | T33: 1 | U33: 1
B34: Administrative Expense | E34: Annual | F34: =+F7 -> Monthly | G34: =+G7 -> Annual/RU | H34: =+H7 -> Monthly/RU | J34: 1 | K34: 1 | L34: 1 | M34: 1 | N34: 1 | O34: 1 | P34: 1 | Q34: 1 | R34: 1 | S34: 1 | T34: 1 | U34: 1
B35: Accounting | E35: 0 | F35: =IF($E35<>0,$E35/12,0) -> 0 | G35: =IF(E35<>0,E35/$G$6,0) -> 0 | H35: =IF($E35<>0,$E35/TotUnits/12,0) -> 0 | J35: 1 | K35: 1 | L35: 1 | M35: 1 | N35: 0 | O35: 1 | P35: 1 | Q35: 1 | R35: 1 | S35: 1 | T35: 1 | U35: 1
B36: Administrative Salaries | E36: 0 | F36: 0 | G36: 0 | H36: 0 | J36: 1 | K36: 1 | L36: 1 | M36: 1 | N36: 0 | O36: 1 | P36: 1 | Q36: 1 | R36: 1 | S36: 1 | T36: 1 | U36: 1
B37: Administrative Payroll Taxes | E37: 0 | F37: 0 | G37: 0 | H37: 0 | J37: 1 | K37: 1 | L37: 1 | M37: 1 | N37: 0 | O37: 1 | P37: 1 | Q37: 1 | R37: 1 | S37: 1 | T37: 1 | U37: 1
B38: Advertising | E38: 0 | F38: 0 | G38: 0 | H38: 0 | J38: 1 | K38: 1 | L38: 1 | M38: 1 | N38: 0 | O38: 1 | P38: 1 | Q38: 1 | R38: 1 | S38: 1 | T38: 1 | U38: 1
B39: Auditing | E39: 0 | F39: 0 | G39: 0 | H39: 0 | J39: 1 | K39: 1 | L39: 1 | M39: 1 | N39: 0 | O39: 1 | P39: 1 | Q39: 1 | R39: 1 | S39: 1 | T39: 1 | U39: 1
B40: Compliance Monitoring Fees | E40: 0 | F40: 0 | G40: 0 | H40: 0 | J40: 1 | K40: 1 | L40: 1 | M40: 1 | N40: 0 | O40: 1 | P40: 1 | Q40: 1 | R40: 1 | S40: 1 | T40: 1 | U40: 1
B41: Bad Debt | E41: 0 | F41: 0 | G41: 0 | H41: 0 | J41: 1 | K41: 1 | L41: 1 | M41: 1 | N41: 0 | O41: 1 | P41: 1 | Q41: 1 | R41: 1 | S41: 1 | T41: 1 | U41: 1
B42: Legal | E42: 0 | F42: 0 | G42: 0 | H42: 0 | J42: 1 | K42: 1 | L42: 1 | M42: 1 | N42: 0 | O42: 1 | P42: 1 | Q42: 1 | R42: 1 | S42: 1 | T42: 1 | U42: 1
B43: Leased Equipment | E43: 0 | F43: 0 | G43: 0 | H43: 0 | J43: 1 | K43: 1 | L43: 1 | M43: 1 | N43: 0 | O43: 1 | P43: 1 | Q43: 1 | R43: 1 | S43: 1 | T43: 1 | U43: 1
B44: Management Fees & Charges | E44: 0 | F44: 0 | G44: 0 | H44: 0 | J44: 1 | K44: 1 | L44: 1 | M44: 1 | N44: 0 | O44: 1 | P44: 1 | Q44: 1 | R44: 1 | S44: 1 | T44: 1 | U44: 1
B45: Manager(s) Salaries | E45: 0 | F45: 0 | G45: 0 | H45: 0 | J45: 1 | K45: 1 | L45: 1 | M45: 1 | N45: 0 | O45: 1 | P45: 1 | Q45: 1 | R45: 1 | S45: 1 | T45: 1 | U45: 1
B46: Marketing | E46: 0 | F46: 0 | G46: 0 | H46: 0 | J46: 1 | K46: 1 | L46: 1 | M46: 1 | N46: 0 | O46: 1 | P46: 1 | Q46: 1 | R46: 1 | S46: 1 | T46: 1 | U46: 1
B47: Model Apartment Rent | E47: 0 | F47: 0 | G47: 0 | H47: 0 | J47: 1 | K47: 1 | L47: 1 | M47: 1 | N47: 0 | O47: 1 | P47: 1 | Q47: 1 | R47: 1 | S47: 1 | T47: 1 | U47: 1
B48: Onsite Management | E48: 0 | F48: 0 | G48: 0 | H48: 0 | J48: 1 | K48: 1 | L48: 1 | M48: 1 | N48: 0 | O48: 1 | P48: 1 | Q48: 1 | R48: 1 | S48: 1 | T48: 1 | U48: 1
B49: Office Salaries (non manager) | E49: 0 | F49: 0 | G49: 0 | H49: 0 | J49: 1 | K49: 1 | L49: 1 | M49: 1 | N49: 0 | O49: 1 | P49: 1 | Q49: 1 | R49: 1 | S49: 1 | T49: 1 | U49: 1
B50: Office Supplies and Postage | E50: 0 | F50: 0 | G50: 0 | H50: 0 | J50: 1 | K50: 1 | L50: 1 | M50: 1 | N50: 0 | O50: 1 | P50: 1 | Q50: 1 | R50: 1 | S50: 1 | T50: 1 | U50: 1
B51: Other payroll | E51: 0 | F51: 0 | G51: 0 | H51: 0 | J51: 1 | K51: 1 | L51: 1 | M51: 1 | N51: 0 | O51: 1 | P51: 1 | Q51: 1 | R51: 1 | S51: 1 | T51: 1 | U51: 1
B52: Resident Services Coordinator | E52: 0 | F52: 0 | G52: 0 | H52: 0 | J52: 1 | K52: 1 | L52: 1 | M52: 1 | N52: 0 | O52: 1 | P52: 1 | Q52: 1 | R52: 1 | S52: 1 | T52: 1 | U52: 1
B53: Rent Concessions | E53: 0 | F53: 0 | G53: 0 | H53: 0 | J53: 1 | K53: 1 | L53: 1 | M53: 1 | N53: 0 | O53: 1 | P53: 1 | Q53: 1 | R53: 1 | S53: 1 | T53: 1 | U53: 1
B54: Telephone | E54: 0 | F54: 0 | G54: 0 | H54: 0 | J54: 1 | K54: 1 | L54: 1 | M54: 1 | N54: 0 | O54: 1 | P54: 1 | Q54: 1 | R54: 1 | S54: 1 | T54: 1 | U54: 1
B55: Other*: | E55: 0 | F55: 0 | G55: 0 | H55: 0 | J55: 1 | K55: 1 | L55: 0 | M55: 0 | N55: 0 | O55: 1 | P55: 1 | Q55: 1 | R55: 1 | S55: 1 | T55: 1 | U55: 1
B56: Total Administrative | E56: =SUM(E35:E55) -> 0 | F56: 0 | G56: =SUM(G35:G55) -> 0 | H56: 0 | J56: 1 | K56: 1 | L56: 1 | M56: 1 | N56: 1 | O56: 1 | P56: 1 | Q56: 1 | R56: 1 | S56: 1 | T56: 1 | U56: 1
B57: without Compliance Monitoring | E57: =+TotAdmin-ComplFees -> 0 | F57: 0 | G57: =IF(E57<>0,E57/$G$6,0) -> 0 | H57: 0 | J57: 1 | K57: 1 | L57: 1 | M57: 1 | N57: 1 | O57: 1 | P57: 1 | Q57: 1 | R57: 1 | S57: 1 | T57: 1 | U57: 1
J58: 1 | K58: 1 | L58: 1 | M58: 1 | N58: 1 | O58: 1 | P58: 1 | Q58: 1 | R58: 1 | S58: 1 | T58: 1 | U58: 1
B59: Utilities | E59: =+E34 -> Annual | F59: =+F34 -> Monthly | G59: =+G34 -> Annual/RU | H59: =+H34 -> Monthly/RU | J59: 1 | K59: 1 | L59: 1 | M59: 1 | N59: 1 | O59: 1 | P59: 1 | Q59: 1 | R59: 1 | S59: 1 | T59: 1 | U59: 1
B60: Cable Television/Internet | E60: 0 | F60: =IF($E60<>0,$E60/12,0) -> 0 | G60: =IF(E60<>0,E60/$G$6,0) -> 0 | H60: =IF($E60<>0,$E60/TotUnits/12,0) -> 0 | J60: 1 | K60: 1 | L60: 1 | M60: 1 | N60: 0 | O60: 1 | P60: 1 | Q60: 1 | R60: 1 | S60: 1 | T60: 1 | U60: 1
B61: Electricity | E61: 0 | F61: 0 | G61: 0 | H61: 0 | J61: 1 | K61: 1 | L61: 1 | M61: 1 | N61: 0 | O61: 1 | P61: 1 | Q61: 1 | R61: 1 | S61: 1 | T61: 1 | U61: 1
B62: Fuel Oil/Coal/...(Heat and Water) | E62: 0 | F62: 0 | G62: 0 | H62: 0 | J62: 1 | K62: 1 | L62: 1 | M62: 1 | N62: 0 | O62: 1 | P62: 1 | Q62: 1 | R62: 1 | S62: 1 | T62: 1 | U62: 1
B63: Gas | E63: 0 | F63: 0 | G63: 0 | H63: 0 | J63: 1 | K63: 1 | L63: 1 | M63: 1 | N63: 0 | O63: 1 | P63: 1 | Q63: 1 | R63: 1 | S63: 1 | T63: 1 | U63: 1
B64: Garbage and Trash | E64: 0 | F64: 0 | G64: 0 | H64: 0 | J64: 1 | K64: 1 | L64: 1 | M64: 1 | N64: 0 | O64: 1 | P64: 1 | Q64: 1 | R64: 1 | S64: 1 | T64: 1 | U64: 1
B65: Security | E65: 0 | F65: 0 | G65: 0 | H65: 0 | J65: 1 | K65: 1 | L65: 1 | M65: 1 | N65: 0 | O65: 1 | P65: 1 | Q65: 1 | R65: 1 | S65: 1 | T65: 1 | U65: 1
B66: Water and Sewer | E66: 0 | F66: 0 | G66: 0 | H66: 0 | J66: =(IF(IsLocked(A66)*1=1,1,0)) -> 1 | K66: =(IF(IsLocked(B66)*1=1,1,0)) -> 1 | L66: =(IF(IsLocked(C66)*1=1,1,0)) -> 1 | M66: =(IF(IsLocked(D66)*1=1,1,0)) -> 1 | N66: =(IF(IsLocked(E66)*1=1,1,0)) -> 0 | O66: =(IF(IsLocked(F66)*1=1,1,0)) -> 1 | P66: =(IF(IsLocked(G66)*1=1,1,0)) -> 1 | Q66: =(IF(IsLocked(H66)*1=1,1,0)) -> 1 | R66: =(IF(IsLocked(I66)*1=1,1,0)) -> 1 | S66: =(IF(IsLocked(J66)*1=1,1,0)) -> 1 | T66: =(IF(IsLocked(K66)*1=1,1,0)) -> 1 | U66: =(IF(IsLocked(L66)*1=1,1,0)) -> 1
B67: Other*: | E67: 0 | F67: 0 | G67: 0 | H67: 0 | J67: 1 | K67: 1 | L67: 0 | M67: 0 | N67: 0 | O67: 1 | P67: 1 | Q67: 1 | R67: 1 | S67: 1 | T67: 1 | U67: 1
B68: Total Utilities | E68: =SUM(E60:E67) -> 0 | F68: 0 | G68: =SUM(G60:G67) -> 0 | H68: 0 | J68: 1 | K68: 1 | L68: 1 | M68: 1 | N68: 1 | O68: 1 | P68: 1 | Q68: 1 | R68: 1 | S68: 1 | T68: 1 | U68: 1
J69: 1 | K69: 1 | L69: 1 | M69: 1 | N69: 1 | O69: 1 | P69: 1 | Q69: 1 | R69: 1 | S69: 1 | T69: 1 | U69: 1
B70: Maintenance | E70: =+E59 -> Annual | F70: =+F59 -> Monthly | G70: =+G59 -> Annual/RU | H70: =+H59 -> Monthly/RU | J70: 1 | K70: 1 | L70: 1 | M70: 1 | N70: 1 | O70: 1 | P70: 1 | Q70: 1 | R70: 1 | S70: 1 | T70: 1 | U70: 1
B71: Decorating | E71: 0 | F71: =IF($E71<>0,$E71/12,0) -> 0 | G71: =IF(E71<>0,E71/$G$6,0) -> 0 | H71: =IF($E71<>0,$E71/TotUnits/12,0) -> 0 | J71: 1 | K71: 1 | L71: 1 | M71: 1 | N71: 0 | O71: 1 | P71: 1 | Q71: 1 | R71: 1 | S71: 1 | T71: 1 | U71: 1
B72: Elevator maintenance | E72: 0 | F72: 0 | G72: 0 | H72: 0 | J72: 1 | K72: 1 | L72: 1 | M72: 1 | N72: 0 | O72: 1 | P72: 1 | Q72: 1 | R72: 1 | S72: 1 | T72: 1 | U72: 1
B73: Exterminating | E73: 0 | F73: 0 | G73: 0 | H73: 0 | J73: 1 | K73: 1 | L73: 1 | M73: 1 | N73: 0 | O73: 1 | P73: 1 | Q73: 1 | R73: 1 | S73: 1 | T73: 1 | U73: 1
B74: Grounds/Landscaping | E74: 0 | F74: 0 | G74: 0 | H74: 0 | J74: 1 | K74: 1 | L74: 1 | M74: 1 | N74: 0 | O74: 1 | P74: 1 | Q74: 1 | R74: 1 | S74: 1 | T74: 1 | U74: 1
B75: Janitorial Services | E75: 0 | F75: 0 | G75: 0 | H75: 0 | J75: 1 | K75: 1 | L75: 1 | M75: 1 | N75: 0 | O75: 1 | P75: 1 | Q75: 1 | R75: 1 | S75: 1 | T75: 1 | U75: 1
B76: Repairs & Maintenance | E76: 0 | F76: 0 | G76: 0 | H76: 0 | J76: 1 | K76: 1 | L76: 1 | M76: 1 | N76: 0 | O76: 1 | P76: 1 | Q76: 1 | R76: 1 | S76: 1 | T76: 1 | U76: 1
B77: Painting | E77: 0 | F77: 0 | G77: 0 | H77: 0 | J77: 1 | K77: 1 | L77: 1 | M77: 1 | N77: 0 | O77: 1 | P77: 1 | Q77: 1 | R77: 1 | S77: 1 | T77: 1 | U77: 1
B78: Repairs | E78: 0 | F78: 0 | G78: 0 | H78: 0 | J78: 1 | K78: 1 | L78: 1 | M78: 1 | N78: 0 | O78: 1 | P78: 1 | Q78: 1 | R78: 1 | S78: 1 | T78: 1 | U78: 1
B79: Security payroll/contract | E79: 0 | F79: 0 | G79: 0 | H79: 0 | J79: 1 | K79: 1 | L79: 1 | M79: 1 | N79: 0 | O79: 1 | P79: 1 | Q79: 1 | R79: 1 | S79: 1 | T79: 1 | U79: 1
B80: Trash/waste Removal | E80: 0 | F80: 0 | G80: 0 | H80: 0 | J80: 1 | K80: 1 | L80: 1 | M80: 1 | N80: 0 | O80: 1 | P80: 1 | Q80: 1 | R80: 1 | S80: 1 | T80: 1 | U80: 1
B81: Snow Removal | E81: 0 | F81: 0 | G81: 0 | H81: 0 | J81: 1 | K81: 1 | L81: 1 | M81: 1 | N81: 0 | O81: 1 | P81: 1 | Q81: 1 | R81: 1 | S81: 1 | T81: 1 | U81: 1
B82: Supplies-Maintenance, Janitor, Cleaning | E82: 0 | F82: 0 | G82: 0 | H82: 0 | J82: 1 | K82: 1 | L82: 1 | M82: 1 | N82: 0 | O82: 1 | P82: 1 | Q82: 1 | R82: 1 | S82: 1 | T82: 1 | U82: 1
B83: Swimming Pool or Picnic/Barbecue Area | E83: 0 | F83: 0 | G83: 0 | H83: 0 | J83: 1 | K83: 1 | L83: 1 | M83: 1 | N83: 0 | O83: 1 | P83: 1 | Q83: 1 | R83: 1 | S83: 1 | T83: 1 | U83: 1
B84: Other*: | E84: 0 | F84: 0 | G84: 0 | H84: 0 | J84: 1 | K84: 1 | L84: 0 | M84: 0 | N84: 0 | O84: 1 | P84: 1 | Q84: 1 | R84: 1 | S84: 1 | T84: 1 | U84: 1
B85: Other*: | E85: 0 | F85: 0 | G85: 0 | H85: 0 | J85: 1 | K85: 1 | L85: 0 | M85: 0 | N85: 0 | O85: 1 | P85: 1 | Q85: 1 | R85: 1 | S85: 1 | T85: 1 | U85: 1
B86: Total Maintenance | E86: =SUM(E71:E85) -> 0 | F86: 0 | G86: =SUM(G71:G85) -> 0 | H86: 0 | J86: 1 | K86: 1 | L86: 1 | M86: 1 | N86: 1 | O86: 1 | P86: 1 | Q86: 1 | R86: 1 | S86: 1 | T86: 1 | U86: 1
J87: 1 | K87: 1 | L87: 1 | M87: 1 | N87: 1 | O87: 1 | P87: 1 | Q87: 1 | R87: 1 | S87: 1 | T87: 1 | U87: 1
B88: Taxes/Insurance | E88: =+E70 -> Annual | F88: =+F70 -> Monthly | G88: =+G70 -> Annual/RU | H88: =+H70 -> Monthly/RU | J88: 1 | K88: 1 | L88: 1 | M88: 1 | N88: 1 | O88: 1 | P88: 1 | Q88: 1 | R88: 1 | S88: 1 | T88: 1 | U88: 1
B89: Property Insurance | E89: 0 | F89: =IF($E89<>0,$E89/12,0) -> 0 | G89: =IF(E89<>0,E89/$G$6,0) -> 0 | H89: =IF($E89<>0,$E89/TotUnits/12,0) -> 0 | J89: 1 | K89: 1 | L89: 1 | M89: 1 | N89: 0 | O89: 1 | P89: 1 | Q89: 1 | R89: 1 | S89: 1 | T89: 1 | U89: 1
B90: Liability Insurance | E90: 0 | F90: 0 | G90: 0 | H90: 0 | J90: 1 | K90: 1 | L90: 1 | M90: 1 | N90: 0 | O90: 1 | P90: 1 | Q90: 1 | R90: 1 | S90: 1 | T90: 1 | U90: 1
B91: Payroll Taxes | E91: 0 | F91: 0 | G91: 0 | H91: 0 | J91: 1 | K91: 1 | L91: 1 | M91: 1 | N91: 0 | O91: 1 | P91: 1 | Q91: 1 | R91: 1 | S91: 1 | T91: 1 | U91: 1
B92: Real Estate Taxes | E92: 0 | F92: 0 | G92: 0 | H92: 0 | J92: 1 | K92: 1 | L92: 1 | M92: 1 | N92: 0 | O92: 1 | P92: 1 | Q92: 1 | R92: 1 | S92: 1 | T92: 1 | U92: 1
B93: Real Estate Tax Abatement | E93: 0 | F93: 0 | G93: =IF(E93<>0,E93/$G$6,0) -> 0 | H93: 0 | J93: 1 | K93: 1 | L93: 1 | M93: 1 | N93: 0 | O93: 1 | P93: 1 | Q93: 1 | R93: 1 | S93: 1 | T93: 1 | U93: 1
B94: Workers Compensation Insurance | E94: 0 | F94: 0 | G94: 0 | H94: 0 | J94: 1 | K94: 1 | L94: 1 | M94: 1 | N94: 0 | O94: 1 | P94: 1 | Q94: 1 | R94: 1 | S94: 1 | T94: 1 | U94: 1
B95: In-Lieu Taxes | E95: 0 | F95: 0 | G95: 0 | H95: 0 | J95: 1 | K95: 1 | L95: 1 | M95: 1 | N95: 0 | O95: 1 | P95: 1 | Q95: 1 | R95: 1 | S95: 1 | T95: 1 | U95: 1
B96: Other*: | E96: 0 | F96: 0 | G96: 0 | H96: 0 | J96: 1 | K96: 1 | L96: 0 | M96: 0 | N96: 0 | O96: 1 | P96: 1 | Q96: 1 | R96: 1 | S96: 1 | T96: 1 | U96: 1
B97: Total Taxes/Insurance | E97: =SUM(E89:E96) -> 0 | F97: 0 | G97: =SUM(G89:G96) -> 0 | H97: 0 | J97: 1 | K97: 1 | L97: 1 | M97: 1 | N97: 1 | O97: 1 | P97: 1 | Q97: 1 | R97: 1 | S97: 1 | T97: 1 | U97: 1
B98: *All “Other” costs must be identified | J98: 1 | K98: 1 | L98: 1 | M98: 1 | N98: 1 | O98: 1 | P98: 1 | Q98: 1 | R98: 1 | S98: 1 | T98: 1 | U98: 1
J99: 1 | K99: 1 | L99: 1 | M99: 1 | N99: 1 | O99: 1 | P99: 1 | Q99: 1 | R99: 1 | S99: 1 | T99: 1 | U99: 1
B100: Total Operating Expenses | E100: =+E56+E68+E86+E97 -> 0 | F100: =IF($E100<>0,$E100/12,0) -> 0 | G100: =+G56+G68+G86+G97 -> 0 | H100: =IF($E100<>0,$E100/TotUnits/12,0) -> 0 | J100: 1 | K100: 1 | L100: 1 | M100: 1 | N100: 1 | O100: 1 | P100: 1 | Q100: 1 | R100: 1 | S100: 1 | T100: 1 | U100: 1
J101: 1 | K101: 1 | L101: 1 | M101: 1 | N101: 1 | O101: 1 | P101: 1 | Q101: 1 | R101: 1 | S101: 1 | T101: 1 | U101: 1
B102: Replacement Reserves | E102: =RplcmtRes -> 0 | F102: =IF($E102<>0,$E102/12,0) -> 0 | G102: =IF(E102<>0,E102/$G$6,0) -> 0 | H102: =IF($E102<>0,$E102/TotUnits/12,0) -> 0 | J102: 1 | K102: 1 | L102: 1 | M102: 1 | N102: 1 | O102: 1 | P102: 1 | Q102: 1 | R102: 1 | S102: 1 | T102: 1 | U102: 1
B103: Other Reserves | E103: =OthRes -> 0 | F103: =IF($E103<>0,$E103/12,0) -> 0 | G103: =IF(E103<>0,E103/$G$6,0) -> 0 | H103: =IF($E103<>0,$E103/TotUnits/12,0) -> 0 | J103: 1 | K103: 1 | L103: 1 | M103: 1 | N103: 1 | O103: 1 | P103: 1 | Q103: 1 | R103: 1 | S103: 1 | T103: 1 | U103: 1
B104: Total Reserves | E104: =SUM(E102:E103) -> 0 | F104: =IF($E104<>0,$E104/12,0) -> 0 | G104: =IF(E104<>0,E104/$G$6,0) -> 0 | H104: =IF($E104<>0,$E104/TotUnits/12,0) -> 0 | J104: 1 | K104: 1 | L104: 1 | M104: 1 | N104: 1 | O104: 1 | P104: 1 | Q104: 1 | R104: 1 | S104: 1 | T104: 1 | U104: 1
J105: 1 | K105: 1 | L105: 1 | M105: 1 | N105: 1 | O105: 1 | P105: 1 | Q105: 1 | R105: 1 | S105: 1 | T105: 1 | U105: 1
B106: Net Operating Income | E106: =+TotEGI-TotOpEx-E104 -> 0 | F106: =IF($E106<>0,$E106/12,0) -> 0 | G106: =SUM(G99:G105) -> 0 | H106: =IF($E106<>0,$E106/TotUnits/12,0) -> 0 | J106: 1 | K106: 1 | L106: 1 | M106: 1 | N106: 1 | O106: 1 | P106: 1 | Q106: 1 | R106: 1 | S106: 1 | T106: 1 | U106: 1
C107: Minimum Hard DSCR | E107: =+'12 Pro Forma'!C35 -> 0 | F107: Interest rate | G107: 0.05 | J107: 1 | K107: 1 | L107: 1 | M107: 1 | N107: 1 | O107: 1 | P107: 1 | Q107: 1 | R107: 1 | S107: 1 | T107: 1 | U107: 1
C108: Payment maximum | E108: =+E106/E107 ->  | F108: Term | G108: 15 | J108: 1 | K108: 1 | L108: 1 | M108: 1 | N108: 1 | O108: 1 | P108: 1 | Q108: 1 | R108: 1 | S108: 1 | T108: 1 | U108: 1
C109: Debt maximum | E109: =-PV(G107/12,G108*12,E108/12) ->  | J109: 1 | K109: 1 | L109: 1 | M109: 1 | N109: 1 | O109: 1 | P109: 1 | Q109: 1 | R109: 1 | S109: 1 | T109: 1 | U109: 1
J110: 1 | K110: 1 | L110: 1 | M110: 1 | N110: 1 | O110: 1 | P110: 1 | Q110: 1 | R110: 1 | S110: 1 | T110: 1 | U110: 1
B111: Taxes and Expense Detail | J111: 1 | K111: 1 | L111: 1 | M111: 1 | N111: 1 | O111: 1 | P111: 1 | Q111: 1 | R111: 1 | S111: 1 | T111: 1 | U111: 1
B112: Unit Size/Type | D112: Property Tax/u | E112: Annual | F112: =+F88 -> Monthly | G112: =+G88 -> Annual/RU | H112: =+H88 -> Monthly/RU | J112: 1 | K112: 1 | L112: 1 | M112: 1 | N112: 1 | O112: 1 | P112: 1 | Q112: 1 | R112: 1 | S112: 1 | T112: 1 | U112: 1
B113: Efficiency | F113: =IF(E113<>0,E113/12,0) -> 0 | G113: =IF(E113<>0,E113/$G$6,0) -> 0 | H113: =IF(F113<>0,G113/12,0) -> 0 | J113: 1 | K113: 1 | L113: 1 | M113: 0 | N113: 0 | O113: 1 | P113: 1 | Q113: 1 | R113: 1 | S113: 1 | T113: 1 | U113: 1
B114: One Bedroom | D114: 0 | E114: =TotOpEx/18 -> 0 | F114: 0 | G114: 0 | H114: 0 | J114: 1 | K114: 1 | L114: 1 | M114: 0 | N114: 0 | O114: 1 | P114: 1 | Q114: 1 | R114: 1 | S114: 1 | T114: 1 | U114: 1
B115: Two Bedroom | D115: 0 | E115: 0 | F115: 0 | G115: 0 | H115: 0 | J115: 1 | K115: 1 | L115: 1 | M115: 0 | N115: 0 | O115: 1 | P115: 1 | Q115: 1 | R115: 1 | S115: 1 | T115: 1 | U115: 1
B116: Three Bedroom | D116: 0 | E116: 0 | F116: 0 | G116: 0 | H116: 0 | J116: 1 | K116: 1 | L116: 1 | M116: 0 | N116: 0 | O116: 1 | P116: 1 | Q116: 1 | R116: 1 | S116: 1 | T116: 1 | U116: 1
B117: Four Bedroom | D117: 0 | E117: 0 | F117: 0 | G117: 0 | H117: 0 | J117: 1 | K117: 1 | L117: 1 | M117: 0 | N117: 0 | O117: 1 | P117: 1 | Q117: 1 | R117: 1 | S117: 1 | T117: 1 | U117: 1
B118: Other* | D118: 0 | E118: 0 | F118: 0 | G118: 0 | H118: 0 | J118: 1 | K118: 1 | L118: 1 | M118: 0 | N118: 0 | O118: 1 | P118: 1 | Q118: 1 | R118: 1 | S118: 1 | T118: 1 | U118: 1
B119: Total | D119: =SUM(D113:D118) -> 0 | E119: =SUM(E113:E118) -> 0 | F119: =SUM(F113:F118,0) -> 0 | G119: =SUM(G113:G118) -> 0 | H119: =SUM(H113:H118,0) -> 0 | J119: 1 | K119: 1 | L119: 1 | M119: 1 | N119: 1 | O119: 1 | P119: 1 | Q119: 1 | R119: 1 | S119: 1 | T119: 1 | U119: 1
J120: 1 | K120: 1 | L120: 1 | M120: 1 | N120: 1 | O120: 1 | P120: 1 | Q120: 1 | R120: 1 | S120: 1 | T120: 1 | U120: 1

Sheet 12 Pro Forma
A1: =Div -> State of Nevada Housing Division | H1: Units | I1: =+TotUnits -> 0 | J1: Income Adj | K1: 0 | L1: <=2% (or bank maximum, whichever is less) | R1: =ProjName -> 0 | U1: =(IF(IsLocked(A1)*1=1,1,0)) -> 1 | V1: =(IF(IsLocked(B1)*1=1,1,0)) -> 1 | W1: 1 | X1: 1 | Y1: 1 | Z1: 1 | AA1: 1 | AB1: 1 | AC1: 1 | AD1: 1 | AE1: 0 | AF1: 1 | AG1: =(IF(IsLocked(M1)*1=1,1,0)) -> 1 | AH1: 1 | AI1: 1 | AJ1: 1 | AK1: 1 | AL1: 1 | AM1: 1 | AN1: 1 | AO1: 1 | AP1: 1 | AQ1: 1
A2: =nhd -> 2017 NHD FUNDING APPLICATION | J2: Vacancy Rate | K2: 0 | L2: <=7% ( " )(Enter w/no negative sign) | R2: TOC | U2: =(IF(IsLocked(A2)*1=1,1,0)) -> 1 | V2: =(IF(IsLocked(B2)*1=1,1,0)) -> 1 | W2: =(IF(IsLocked(C2)*1=1,1,0)) -> 1 | X2: =(IF(IsLocked(D2)*1=1,1,0)) -> 1 | Y2: =(IF(IsLocked(E2)*1=1,1,0)) -> 1 | Z2: =(IF(IsLocked(F2)*1=1,1,0)) -> 1 | AA2: =(IF(IsLocked(G2)*1=1,1,0)) -> 1 | AB2: =(IF(IsLocked(H2)*1=1,1,0)) -> 1 | AC2: =(IF(IsLocked(I2)*1=1,1,0)) -> 1 | AD2: =(IF(IsLocked(J2)*1=1,1,0)) -> 1 | AE2: =(IF(IsLocked(K2)*1=1,1,0)) -> 0 | AF2: =(IF(IsLocked(L2)*1=1,1,0)) -> 1 | AG2: =(IF(IsLocked(M2)*1=1,1,0)) -> 1 | AH2: =(IF(IsLocked(N2)*1=1,1,0)) -> 1 | AI2: =(IF(IsLocked(O2)*1=1,1,0)) -> 1 | AJ2: =(IF(IsLocked(P2)*1=1,1,0)) -> 1 | AK2: =(IF(IsLocked(Q2)*1=1,1,0)) -> 1 | AL2: =(IF(IsLocked(#REF!)*1=1,1,0)) ->  | AM2: =(IF(IsLocked(S2)*1=1,1,0)) -> 1 | AN2: =(IF(IsLocked(T2)*1=1,1,0)) -> 1 | AO2: =(IF(IsLocked(U2)*1=1,1,0)) -> 1 | AP2: =(IF(IsLocked(V2)*1=1,1,0)) -> 1 | AQ2: =(IF(IsLocked(W2)*1=1,1,0)) -> 1
A3: PRO FORMA OPERATING CASHFLOW | J3: Expense Adj | K3: 0 | L3: <=3% ( " ) | M3: EGI/Unit | N3: =+'11 Opt Inc & Exp'!H31 -> 0 | U3: 1 | V3: 1 | W3: 1 | X3: 1 | Y3: 1 | Z3: 1 | AA3: 1 | AB3: 1 | AC3: 1 | AD3: 1 | AE3: 0 | AF3: 1 | AG3: 1 | AH3: 1 | AI3: 1 | AJ3: 1 | AK3: 1 | AL3: =(IF(IsLocked(R2)*1=1,1,0)) -> 1 | AM3: 1 | AN3: 1 | AO3: 1 | AP3: 1 | AQ3: 1
A4: (From point of stabilization) | U4: 1 | V4: 1 | W4: 1 | X4: 1 | Y4: 1 | Z4: 1 | AA4: 1 | AB4: 1 | AC4: 1 | AD4: 1 | AE4: 1 | AF4: 1 | AG4: 1 | AH4: 1 | AI4: 1 | AJ4: 1 | AK4: 1 | AL4: =(IF(IsLocked(R4)*1=1,1,0)) -> 1 | AM4: 1 | AN4: 1 | AO4: 1 | AP4: 1 | AQ4: 1
E5: 1 | F5: =+E5+1 -> 2 | G5: =+F5+1 -> 3 | H5: 4 | I5: 5 | J5: 6 | K5: 7 | L5: 8 | M5: 9 | N5: 10 | O5: 11 | P5: 12 | Q5: 13 | R5: 14 | S5: 15 | U5: 1 | V5: 1 | W5: 1 | X5: 1 | Y5: 1 | Z5: 1 | AA5: 1 | AB5: 1 | AC5: 1 | AD5: 1 | AE5: 1 | AF5: 1 | AG5: 1 | AH5: 1 | AI5: 1 | AJ5: 1 | AK5: 1 | AL5: 1 | AM5: 1 | AN5: 1 | AO5: 1 | AP5: 1 | AQ5: 1
B6: INCOME | U6: 1 | V6: 1 | W6: 1 | X6: 1 | Y6: 1 | Z6: 1 | AA6: 1 | AB6: 1 | AC6: 1 | AD6: 1 | AE6: 1 | AF6: 1 | AG6: 1 | AH6: 1 | AI6: 1 | AJ6: 1 | AK6: 1 | AL6: 1 | AM6: 1 | AN6: 1 | AO6: 1 | AP6: 1 | AQ6: 1
A7: =+$K$1 -> 0 | B7: Gross Rental Income | E7: =TotGRI -> 0 | F7: =E7*(1+$A7) -> 0 | G7: =F7*(1+$A7) -> 0 | H7: 0 | I7: 0 | J7: 0 | K7: 0 | L7: 0 | M7: 0 | N7: 0 | O7: 0 | P7: 0 | Q7: 0 | R7: 0 | S7: 0 | U7: 1 | V7: 1 | W7: 1 | X7: 1 | Y7: 1 | Z7: 1 | AA7: 1 | AB7: 1 | AC7: 1 | AD7: 1 | AE7: 1 | AF7: 1 | AG7: 1 | AH7: 1 | AI7: 1 | AJ7: 1 | AK7: 1 | AL7: 1 | AM7: 1 | AN7: 1 | AO7: 1 | AP7: 1 | AQ7: 1
A8: =+$K$1 -> 0 | B8: Other Income | E8: =TotOI -> 0 | F8: =E8*(1+$A8) -> 0 | G8: 0 | H8: 0 | I8: 0 | J8: 0 | K8: 0 | L8: 0 | M8: 0 | N8: 0 | O8: 0 | P8: 0 | Q8: 0 | R8: 0 | S8: 0 | U8: 1 | V8: 1 | W8: 1 | X8: 1 | Y8: 1 | Z8: 1 | AA8: 1 | AB8: 1 | AC8: 1 | AD8: 1 | AE8: 1 | AF8: 1 | AG8: 1 | AH8: 1 | AI8: 1 | AJ8: 1 | AK8: 1 | AL8: 1 | AM8: 1 | AN8: 1 | AO8: 1 | AP8: 1 | AQ8: 1
B9: Vacancy | D9: =+'11 Opt Inc & Exp'!D30 -> 0 | E9: =TotVac -> 0 | F9: =SUM(F7:F8)*-$D$9 -> 0 | G9: =SUM(G7:G8)*-$D$9 -> 0 | H9: 0 | I9: 0 | J9: 0 | K9: 0 | L9: 0 | M9: 0 | N9: 0 | O9: 0 | P9: 0 | Q9: 0 | R9: 0 | S9: 0 | U9: 1 | V9: 1 | W9: 1 | X9: 1 | Y9: 1 | Z9: 1 | AA9: 1 | AB9: 1 | AC9: 1 | AD9: 1 | AE9: 1 | AF9: 1 | AG9: 1 | AH9: 1 | AI9: 1 | AJ9: 1 | AK9: 1 | AL9: 1 | AM9: 1 | AN9: 1 | AO9: 1 | AP9: 1 | AQ9: 1
B10: Effective Gross Income | E10: =SUM(E7:E9) -> 0 | F10: 0 | G10: 0 | H10: 0 | I10: 0 | J10: 0 | K10: 0 | L10: 0 | M10: 0 | N10: 0 | O10: 0 | P10: 0 | Q10: 0 | R10: 0 | S10: 0 | U10: 1 | V10: 1 | W10: 1 | X10: 1 | Y10: 1 | Z10: 1 | AA10: 1 | AB10: 1 | AC10: 1 | AD10: 1 | AE10: 1 | AF10: 1 | AG10: 1 | AH10: 1 | AI10: 1 | AJ10: 1 | AK10: 1 | AL10: 1 | AM10: 1 | AN10: 1 | AO10: 1 | AP10: 1 | AQ10: 1
E11: =IF(E10-TotEGI=0,"Ties","OOB="&(E10-TotEGI)) -> Ties | U11: 1 | V11: 1 | W11: 1 | X11: 1 | Y11: 1 | Z11: 1 | AA11: 1 | AB11: 1 | AC11: 1 | AD11: 1 | AE11: 1 | AF11: 1 | AG11: 1 | AH11: 1 | AI11: 1 | AJ11: 1 | AK11: 1 | AL11: 1 | AM11: 1 | AN11: 1 | AO11: 1 | AP11: 1 | AQ11: 1
A12: =+K3 -> 0 | B12: EXPENSES | U12: 1 | V12: 1 | W12: 1 | X12: 1 | Y12: 1 | Z12: 1 | AA12: 1 | AB12: 1 | AC12: 1 | AD12: 1 | AE12: 1 | AF12: 1 | AG12: 1 | AH12: 1 | AI12: 1 | AJ12: 1 | AK12: 1 | AL12: 1 | AM12: 1 | AN12: 1 | AO12: 1 | AP12: 1 | AQ12: 1
B13: Administrative/Mgmt | E13: =TotAdmin-ComplFees -> 0 | F13: =E13*(1+$A$12) -> 0 | G13: =F13*(1+$A$12) -> 0 | H13: 0 | I13: 0 | J13: 0 | K13: 0 | L13: 0 | M13: 0 | N13: 0 | O13: 0 | P13: 0 | Q13: 0 | R13: 0 | S13: 0 | U13: 1 | V13: 1 | W13: 1 | X13: 1 | Y13: 1 | Z13: 1 | AA13: 1 | AB13: 1 | AC13: 1 | AD13: 1 | AE13: 1 | AF13: 1 | AG13: 1 | AH13: 1 | AI13: 1 | AJ13: 1 | AK13: 1 | AL13: 1 | AM13: 1 | AN13: 1 | AO13: 1 | AP13: 1 | AQ13: 1
A14: 0 | B14: Compliance Monitoring Fees | E14: =ComplFees -> 0 | F14: =E14*(1+$A14) -> 0 | G14: =F14*(1+$A14) -> 0 | H14: 0 | I14: 0 | J14: 0 | K14: 0 | L14: 0 | M14: 0 | N14: 0 | O14: 0 | P14: 0 | Q14: 0 | R14: 0 | S14: 0 | U14: 0 | V14: 1 | W14: 1 | X14: 1 | Y14: 1 | Z14: 1 | AA14: 1 | AB14: 1 | AC14: 1 | AD14: 1 | AE14: 1 | AF14: 1 | AG14: 1 | AH14: 1 | AI14: 1 | AJ14: 1 | AK14: 1 | AL14: 1 | AM14: 1 | AN14: 1 | AO14: 1 | AP14: 1 | AQ14: 1
B15: Maintenance & Repairs | E15: =TotMaint -> 0 | F15: =E15*(1+$A$12) -> 0 | G15: 0 | H15: 0 | I15: 0 | J15: 0 | K15: 0 | L15: 0 | M15: 0 | N15: 0 | O15: 0 | P15: 0 | Q15: 0 | R15: 0 | S15: 0 | U15: 1 | V15: 1 | W15: 1 | X15: 1 | Y15: 1 | Z15: 1 | AA15: 1 | AB15: 1 | AC15: 1 | AD15: 1 | AE15: 1 | AF15: 1 | AG15: 1 | AH15: 1 | AI15: 1 | AJ15: 1 | AK15: 1 | AL15: 1 | AM15: 1 | AN15: 1 | AO15: 1 | AP15: 1 | AQ15: 1
B16: Utilities | E16: =TotUtil -> 0 | F16: 0 | G16: 0 | H16: 0 | I16: 0 | J16: 0 | K16: 0 | L16: 0 | M16: 0 | N16: 0 | O16: 0 | P16: 0 | Q16: 0 | R16: 0 | S16: 0 | U16: 1 | V16: 1 | W16: 1 | X16: 1 | Y16: 1 | Z16: 1 | AA16: 1 | AB16: 1 | AC16: 1 | AD16: 1 | AE16: 1 | AF16: 1 | AG16: 1 | AH16: 1 | AI16: 1 | AJ16: 1 | AK16: 1 | AL16: 1 | AM16: 1 | AN16: 1 | AO16: 1 | AP16: 1 | AQ16: 1
A17: 0 | B17: Taxes & Insurance | E17: =TotTxIns -> 0 | F17: =E17*(1+$A17) -> 0 | G17: =F17*(1+$A17) -> 0 | H17: 0 | I17: 0 | J17: 0 | K17: 0 | L17: 0 | M17: 0 | N17: 0 | O17: 0 | P17: 0 | Q17: 0 | R17: 0 | S17: 0 | U17: 0 | V17: 1 | W17: 1 | X17: 1 | Y17: 1 | Z17: 1 | AA17: 1 | AB17: 1 | AC17: 1 | AD17: 1 | AE17: 1 | AF17: 1 | AG17: 1 | AH17: 1 | AI17: 1 | AJ17: 1 | AK17: 1 | AL17: 1 | AM17: 1 | AN17: 1 | AO17: 1 | AP17: 1 | AQ17: 1
A18: 0 | E18: 0 | F18: =E18*(1+$A18) -> 0 | G18: =F18*(1+$A18) -> 0 | H18: 0 | I18: 0 | J18: 0 | K18: 0 | L18: 0 | M18: 0 | N18: 0 | O18: 0 | P18: 0 | Q18: 0 | R18: 0 | S18: 0 | U18: 0 | V18: 0 | W18: 0 | X18: 0 | Y18: 0 | Z18: 1 | AA18: 1 | AB18: 1 | AC18: 1 | AD18: 1 | AE18: 1 | AF18: 1 | AG18: 1 | AH18: 1 | AI18: 1 | AJ18: 1 | AK18: 1 | AL18: 1 | AM18: 1 | AN18: 1 | AO18: 1 | AP18: 1 | AQ18: 1
B19: Total Operating Expenses | E19: =SUM(E13:E18) -> 0 | F19: 0 | G19: 0 | H19: 0 | I19: 0 | J19: 0 | K19: 0 | L19: 0 | M19: 0 | N19: 0 | O19: 0 | P19: 0 | Q19: 0 | R19: 0 | S19: 0 | U19: 1 | V19: 1 | W19: 1 | X19: 1 | Y19: 1 | Z19: 1 | AA19: 1 | AB19: 1 | AC19: 1 | AD19: 1 | AE19: 1 | AF19: 1 | AG19: 1 | AH19: 1 | AI19: 1 | AJ19: 1 | AK19: 1 | AL19: 1 | AM19: 1 | AN19: 1 | AO19: 1 | AP19: 1 | AQ19: 1
B20: (Asset Mgt Fee below) | E20: =IF(E19-TotOpEx=0,"Ties","OOB="&(E19-TotOpEx)) -> Ties | U20: 1 | V20: 1 | W20: 1 | X20: 1 | Y20: 1 | Z20: 1 | AA20: 1 | AB20: 1 | AC20: 1 | AD20: 1 | AE20: 1 | AF20: 1 | AG20: 1 | AH20: 1 | AI20: 1 | AJ20: 1 | AK20: 1 | AL20: 1 | AM20: 1 | AN20: 1 | AO20: 1 | AP20: 1 | AQ20: 1
U21: 1 | V21: 1 | W21: 1 | X21: 1 | Y21: 1 | Z21: 1 | AA21: 1 | AB21: 1 | AC21: 1 | AD21: 1 | AE21: 1 | AF21: 1 | AG21: 1 | AH21: 1 | AI21: 1 | AJ21: 1 | AK21: 1 | AL21: 1 | AM21: 1 | AN21: 1 | AO21: 1 | AP21: 1 | AQ21: 1
A22: 0 | B22: Replacement Reserves | E22: =RplcmtRes -> 0 | F22: =E22*(1+$A22) -> 0 | G22: 0 | H22: 0 | I22: 0 | J22: 0 | K22: 0 | L22: 0 | M22: 0 | N22: 0 | O22: 0 | P22: 0 | Q22: 0 | R22: 0 | S22: 0 | U22: 0 | V22: 1 | W22: 1 | X22: 1 | Y22: 1 | Z22: 1 | AA22: 1 | AB22: 1 | AC22: 1 | AD22: 1 | AE22: 1 | AF22: 1 | AG22: 1 | AH22: 1 | AI22: 1 | AJ22: 1 | AK22: 1 | AL22: 1 | AM22: 1 | AN22: 1 | AO22: 1 | AP22: 1 | AQ22: 1
A23: 0 | B23: Other Reserves | E23: =OthRes -> 0 | F23: =E23*(1+$A23) -> 0 | G23: 0 | H23: 0 | I23: 0 | J23: 0 | K23: 0 | L23: 0 | M23: 0 | N23: 0 | O23: 0 | P23: 0 | Q23: 0 | R23: 0 | S23: 0 | U23: 0 | V23: 1 | W23: 1 | X23: 1 | Y23: 1 | Z23: 1 | AA23: 1 | AB23: 1 | AC23: 1 | AD23: 1 | AE23: 1 | AF23: 1 | AG23: 1 | AH23: 1 | AI23: 1 | AJ23: 1 | AK23: 1 | AL23: 1 | AM23: 1 | AN23: 1 | AO23: 1 | AP23: 1 | AQ23: 1
B24: Total Reserves | E24: =SUM(E22:E23) -> 0 | F24: =SUM(F22:F23) -> 0 | G24: 0 | H24: 0 | I24: 0 | J24: 0 | K24: 0 | L24: 0 | M24: 0 | N24: 0 | O24: 0 | P24: 0 | Q24: 0 | R24: 0 | S24: 0 | U24: 1 | V24: 1 | W24: 1 | X24: 1 | Y24: 1 | Z24: 1 | AA24: 1 | AB24: 1 | AC24: 1 | AD24: 1 | AE24: 1 | AF24: 1 | AG24: 1 | AH24: 1 | AI24: 1 | AJ24: 1 | AK24: 1 | AL24: 1 | AM24: 1 | AN24: 1 | AO24: 1 | AP24: 1 | AQ24: 1
U25: 1 | V25: 1 | W25: 1 | X25: 1 | Y25: 1 | Z25: 1 | AA25: 1 | AB25: 1 | AC25: 1 | AD25: 1 | AE25: 1 | AF25: 1 | AG25: 1 | AH25: 1 | AI25: 1 | AJ25: 1 | AK25: 1 | AL25: 1 | AM25: 1 | AN25: 1 | AO25: 1 | AP25: 1 | AQ25: 1
B26: NET OPERATING INCOME | E26: =+E10-E19-E24 -> 0 | F26: =+F10-F19-F24 -> 0 | G26: =+G10-G19-G24 -> 0 | H26: =+H10-H19-H24 -> 0 | I26: 0 | J26: 0 | K26: 0 | L26: 0 | M26: 0 | N26: 0 | O26: 0 | P26: 0 | Q26: 0 | R26: 0 | S26: 0 | U26: 1 | V26: 1 | W26: 1 | X26: 1 | Y26: 1 | Z26: 1 | AA26: 1 | AB26: 1 | AC26: 1 | AD26: 1 | AE26: 1 | AF26: 1 | AG26: 1 | AH26: 1 | AI26: 1 | AJ26: 1 | AK26: 1 | AL26: 1 | AM26: 1 | AN26: 1 | AO26: 1 | AP26: 1 | AQ26: 1
E27: =IF(E26<>'11 Opt Inc & Exp'!E106,"*** Unbalanced from Inc & Exp",0) -> 0 | U27: 1 | V27: 1 | W27: 1 | X27: 1 | Y27: 1 | Z27: 1 | AA27: 1 | AB27: 1 | AC27: 1 | AD27: 1 | AE27: 1 | AF27: 1 | AG27: 1 | AH27: 1 | AI27: 1 | AJ27: 1 | AK27: 1 | AL27: 1 | AM27: 1 | AN27: 1 | AO27: 1 | AP27: 1 | AQ27: 1
B28: Debt Service (Soft Debt) | E28: 0 | F28: 0 | G28: 0 | H28: 0 | I28: 0 | J28: 0 | K28: 0 | L28: 0 | M28: 0 | N28: 0 | O28: 0 | P28: 0 | Q28: 0 | R28: 0 | S28: 0 | U28: 1 | V28: 1 | W28: 1 | X28: 1 | Y28: 0 | Z28: 0 | AA28: 0 | AB28: 0 | AC28: 0 | AD28: 0 | AE28: 0 | AF28: 0 | AG28: 0 | AH28: 0 | AI28: 0 | AJ28: 0 | AK28: 0 | AL28: 0 | AM28: 0 | AN28: 1 | AO28: 1 | AP28: 1 | AQ28: 1
B29: Debt Service (Hard Debt) | E29: =PermPmt -> 0 | F29: =+E29 -> 0 | G29: =+F29 -> 0 | H29: 0 | I29: 0 | J29: 0 | K29: 0 | L29: 0 | M29: 0 | N29: 0 | O29: 0 | P29: 0 | Q29: 0 | R29: 0 | S29: 0 | U29: 1 | V29: 1 | W29: 1 | X29: 1 | Y29: 1 | Z29: 1 | AA29: 1 | AB29: 1 | AC29: 1 | AD29: 1 | AE29: 1 | AF29: 1 | AG29: 1 | AH29: 1 | AI29: 1 | AJ29: 1 | AK29: 1 | AL29: 1 | AM29: 1 | AN29: 1 | AO29: 1 | AP29: 1 | AQ29: 1
B30: Total Debt Service | E30: =SUM(E28:E29) -> 0 | F30: =SUM(F28:F29) -> 0 | G30: 0 | H30: 0 | I30: 0 | J30: 0 | K30: 0 | L30: 0 | M30: 0 | N30: 0 | O30: 0 | P30: 0 | Q30: 0 | R30: 0 | S30: 0 | U30: 1 | V30: 1 | W30: 1 | X30: 1 | Y30: 1 | Z30: 1 | AA30: 1 | AB30: 1 | AC30: 1 | AD30: 1 | AE30: 1 | AF30: 1 | AG30: 1 | AH30: 1 | AI30: 1 | AJ30: 1 | AK30: 1 | AL30: 1 | AM30: 1 | AN30: 1 | AO30: 1 | AP30: 1 | AQ30: 1
U31: 1 | V31: 1 | W31: 1 | X31: 1 | Y31: 1 | Z31: 1 | AA31: 1 | AB31: 1 | AC31: 1 | AD31: 1 | AE31: 1 | AF31: 1 | AG31: 1 | AH31: 1 | AI31: 1 | AJ31: 1 | AK31: 1 | AL31: 1 | AM31: 1 | AN31: 1 | AO31: 1 | AP31: 1 | AQ31: 1
B32: NET CASH (Hard) FLOW | E32: =+E26-E29 -> 0 | F32: =+F26-F29 -> 0 | G32: 0 | H32: 0 | I32: 0 | J32: 0 | K32: 0 | L32: 0 | M32: 0 | N32: 0 | O32: 0 | P32: 0 | Q32: 0 | R32: 0 | S32: 0 | U32: 1 | V32: 1 | W32: 1 | X32: 1 | Y32: 1 | Z32: 1 | AA32: 1 | AB32: 1 | AC32: 1 | AD32: 1 | AE32: 1 | AF32: 1 | AG32: 1 | AH32: 1 | AI32: 1 | AJ32: 1 | AK32: 1 | AL32: 1 | AM32: 1 | AN32: 1 | AO32: 1 | AP32: 1 | AQ32: 1
U33: 1 | V33: 1 | W33: 1 | X33: 1 | Y33: 1 | Z33: 1 | AA33: 1 | AB33: 1 | AC33: 1 | AD33: 1 | AE33: 1 | AF33: 1 | AG33: 1 | AH33: 1 | AI33: 1 | AJ33: 1 | AK33: 1 | AL33: 1 | AM33: 1 | AN33: 1 | AO33: 1 | AP33: 1 | AQ33: 1
B34: Debt (Hard) Coverage Ratio | E34: =IF(OR(E19=0,E10=0,E29=0),0,E26/E29) -> 0 | F34: =IF(OR(F19=0,F10=0,F29=0),0,F26/F29) -> 0 | G34: 0 | H34: 0 | I34: 0 | J34: 0 | K34: 0 | L34: 0 | M34: 0 | N34: 0 | O34: 0 | P34: 0 | Q34: 0 | R34: 0 | S34: 0 | U34: 1 | V34: 1 | W34: 1 | X34: 1 | Y34: 1 | Z34: 1 | AA34: 1 | AB34: 1 | AC34: 1 | AD34: 1 | AE34: 1 | AF34: 1 | AG34: 1 | AH34: 1 | AI34: 1 | AJ34: 1 | AK34: 1 | AL34: 1 | AM34: 1 | AN34: 1 | AO34: 1 | AP34: 1 | AQ34: 1
B35: DCR Min | C35: 0 | E35: =IF(OR(E34=0,$C$35=0),0,IF(E34<$C$35,"Low DCR",0)) -> 0 | F35: =IF(OR(F34=0,$C$35=0),0,IF(F34<$C$35,"Low DCR",0)) -> 0 | G35: 0 | H35: 0 | I35: 0 | J35: 0 | K35: 0 | L35: 0 | M35: 0 | N35: 0 | O35: 0 | P35: 0 | Q35: 0 | R35: 0 | S35: 0 | U35: 1 | V35: 1 | W35: 0 | X35: 1 | Y35: 1 | Z35: 1 | AA35: 1 | AB35: 1 | AC35: 1 | AD35: 1 | AE35: 1 | AF35: 1 | AG35: 1 | AH35: 1 | AI35: 1 | AJ35: 1 | AK35: 1 | AL35: 1 | AM35: 1 | AN35: 1 | AO35: 1 | AP35: 1 | AQ35: 1
B36: OpEx/EGI w/o Repl Res | E36: =IF(OR(E19=0,E10=0),0,(E19+E22)/E10) -> 0 | F36: =IF(OR(F19=0,F10=0),0,(F19+F22)/F10) -> 0 | G36: 0 | H36: 0 | I36: 0 | J36: 0 | K36: 0 | L36: 0 | M36: 0 | N36: 0 | O36: 0 | P36: 0 | Q36: 0 | R36: 0 | S36: 0 | U36: 1 | V36: 1 | W36: 1 | X36: 1 | Y36: 1 | Z36: 1 | AA36: 1 | AB36: 1 | AC36: 1 | AD36: 1 | AE36: 1 | AF36: 1 | AG36: 1 | AH36: 1 | AI36: 1 | AJ36: 1 | AK36: 1 | AL36: 1 | AM36: 1 | AN36: 1 | AO36: 1 | AP36: 1 | AQ36: 1
B37: Note: Mangement Fee | E37: =MgtFee -> 0 | F37: =+E37 -> 0 | G37: =+F37 -> 0 | H37: 0 | I37: 0 | J37: 0 | K37: 0 | L37: 0 | M37: 0 | N37: 0 | O37: 0 | P37: 0 | Q37: 0 | R37: 0 | S37: 0 | U37: 1 | V37: 1 | W37: 1 | X37: 1 | Y37: 0 | Z37: 1 | AA37: 1 | AB37: 1 | AC37: 1 | AD37: 1 | AE37: 1 | AF37: 1 | AG37: 1 | AH37: 1 | AI37: 1 | AJ37: 1 | AK37: 1 | AL37: 1 | AM37: 1 | AN37: 1 | AO37: 1 | AP37: 1 | AQ37: 1
B38: DCR w/Soft & Hard Debt | E38: =IF(OR(E26=0,E30=0),0,E26/E30) -> 0 | F38: =IF(OR(F26=0,F30=0),0,F26/F30) -> 0 | G38: 0 | H38: 0 | I38: 0 | J38: 0 | K38: 0 | L38: 0 | M38: 0 | N38: 0 | O38: 0 | P38: 0 | Q38: 0 | R38: 0 | S38: 0 | U38: 1 | V38: 1 | W38: 1 | X38: 1 | Y38: 1 | Z38: 1 | AA38: 1 | AB38: 1 | AC38: 1 | AD38: 1 | AE38: 1 | AF38: 1 | AG38: 1 | AH38: 1 | AI38: 1 | AJ38: 1 | AK38: 1 | AL38: 1 | AM38: 1 | AN38: 1 | AO38: 1 | AP38: 1 | AQ38: 1
B39: Replacement Reserves/unit | E39: =IF($I$1=0,0,E22/$I$1) -> 0 | F39: =IF($I$1=0,0,F22/$I$1) -> 0 | G39: 0 | H39: 0 | I39: 0 | J39: 0 | K39: 0 | L39: 0 | M39: 0 | N39: 0 | O39: 0 | P39: 0 | Q39: 0 | R39: 0 | S39: 0 | U39: 1 | V39: 1 | W39: 1 | X39: 1 | Y39: 1 | Z39: 1 | AA39: 1 | AB39: 1 | AC39: 1 | AD39: 1 | AE39: 1 | AF39: 1 | AG39: 1 | AH39: 1 | AI39: 1 | AJ39: 1 | AK39: 1 | AL39: 1 | AM39: 1 | AN39: 1 | AO39: 1 | AP39: 1 | AQ39: 1
B40: Other Reserves/unit | E40: =IF($I$1=0,0,E23/$I$1) -> 0 | F40: 0 | G40: 0 | H40: 0 | I40: 0 | J40: 0 | K40: 0 | L40: 0 | M40: 0 | N40: 0 | O40: 0 | P40: 0 | Q40: 0 | R40: 0 | S40: 0 | U40: 1 | V40: 1 | W40: 1 | X40: 1 | Y40: 1 | Z40: 1 | AA40: 1 | AB40: 1 | AC40: 1 | AD40: 1 | AE40: 1 | AF40: 1 | AG40: 1 | AH40: 1 | AI40: 1 | AJ40: 1 | AK40: 1 | AL40: 1 | AM40: 1 | AN40: 1 | AO40: 1 | AP40: 1 | AQ40: 1
B41: Asset Mangement Fee may be a contingent or accruing cashflow expenditure | U41: 1 | V41: 1 | W41: 1 | X41: 1 | Y41: 1 | Z41: 1 | AA41: 1 | AB41: 1 | AC41: 1 | AD41: 1 | AE41: 1 | AF41: 1 | AG41: 1 | AH41: 1 | AI41: 1 | AJ41: 1 | AK41: 1 | AL41: 1 | AM41: 1 | AN41: 1 | AO41: 1 | AP41: 1 | AQ41: 1
B42: >= $150/u older w/pref; $200/u other (NAC 319.989) | U42: 1 | V42: 1 | W42: 1 | X42: 1 | Y42: 1 | Z42: 1 | AA42: 1 | AB42: 1 | AC42: 1 | AD42: 1 | AE42: 1 | AF42: 1 | AG42: 1 | AH42: 1 | AI42: 1 | AJ42: 1 | AK42: 1 | AL42: 1 | AM42: 1 | AN42: 1 | AO42: 1 | AP42: 1 | AQ42: 1
U43: 1 | V43: 1 | W43: 1 | X43: 1 | Y43: 1 | Z43: 1 | AA43: 1 | AB43: 1 | AC43: 1 | AD43: 1 | AE43: 1 | AF43: 1 | AG43: 1 | AH43: 1 | AI43: 1 | AJ43: 1 | AK43: 1 | AL43: 1 | AM43: 1 | AN43: 1 | AO43: 1 | AP43: 1 | AQ43: 1

Sheet 13 Reserves
A1: =Div -> State of Nevada Housing Division | H1: =ProjName -> 0 | J1: =(IF(IsLocked(A1)*1=1,1,0)) -> 1 | K1: =(IF(IsLocked(B1)*1=1,1,0)) -> 1 | L1: =(IF(IsLocked(C1)*1=1,1,0)) -> 1 | M1: =(IF(IsLocked(D1)*1=1,1,0)) -> 1 | N1: =(IF(IsLocked(E1)*1=1,1,0)) -> 1 | O1: =(IF(IsLocked(F1)*1=1,1,0)) -> 1 | P1: =(IF(IsLocked(G1)*1=1,1,0)) -> 1 | Q1: =(IF(IsLocked(H1)*1=1,1,0)) -> 1 | R1: =(IF(IsLocked(I1)*1=1,1,0)) -> 1 | S1: =(IF(IsLocked(J1)*1=1,1,0)) -> 1 | T1: =(IF(IsLocked(K1)*1=1,1,0)) -> 1
A2: =nhd -> 2017 NHD FUNDING APPLICATION | H2: TOC | J2: =(IF(IsLocked(A2)*1=1,1,0)) -> 1 | K2: =(IF(IsLocked(B2)*1=1,1,0)) -> 1 | L2: =(IF(IsLocked(C2)*1=1,1,0)) -> 1 | M2: =(IF(IsLocked(D2)*1=1,1,0)) -> 1 | N2: =(IF(IsLocked(E2)*1=1,1,0)) -> 1 | O2: =(IF(IsLocked(F2)*1=1,1,0)) -> 1 | P2: =(IF(IsLocked(G2)*1=1,1,0)) -> 1 | Q2: =(IF(IsLocked(H2)*1=1,1,0)) -> 1 | R2: =(IF(IsLocked(I2)*1=1,1,0)) -> 1 | S2: =(IF(IsLocked(J2)*1=1,1,0)) -> 1 | T2: =(IF(IsLocked(K2)*1=1,1,0)) -> 1
A3: REPLACEMENT RESERVES | J3: 1 | K3: 1 | L3: 1 | M3: 1 | N3: 1 | O3: 1 | P3: 1 | Q3: 1 | R3: 1 | S3: 1 | T3: 1
J4: 1 | K4: 1 | L4: 1 | M4: 1 | N4: 1 | O4: 1 | P4: 1 | Q4: 1 | R4: 1 | S4: 1 | T4: 1
B5: Replacement Reserves and Annual Increase Factors | J5: 1 | K5: =(IF(IsLocked(#REF!)*1=1,1,0)) ->  | L5: 1 | M5: 1 | N5: =(IF(IsLocked(B5)*1=1,1,0)) -> 1 | O5: 1 | P5: 1 | Q5: 1 | R5: 1 | S5: 1 | T5: 1
J6: 1 | K6: 1 | L6: 1 | M6: 1 | N6: 1 | O6: 1 | P6: 1 | Q6: 1 | R6: 1 | S6: 1 | T6: 1
B7: Project Type Minimum annual replacement reserves | J7: 1 | K7: 1 | L7: 1 | M7: 1 | N7: 1 | O7: 1 | P7: 1 | Q7: 1 | R7: 1 | S7: 1 | T7: 1
B8: 1) New construction Senior Housing projects: $250 per unit. | J8: 1 | K8: 1 | L8: 1 | M8: 1 | N8: 1 | O8: 1 | P8: 1 | Q8: 1 | R8: 1 | S8: 1 | T8: 1
B9: 2) Other new construction projects: $300 per unit. | J9: 1 | K9: 1 | L9: 1 | M9: 1 | N9: 1 | O9: 1 | P9: 1 | Q9: 1 | R9: 1 | S9: 1 | T9: 1
B10: 3) All Acquisition/Rehabilitation projects: $325 per unit. | J10: 1 | K10: 1 | L10: 1 | M10: 1 | N10: 1 | O10: 1 | P10: 1 | Q10: 1 | R10: 1 | S10: 1 | T10: 1
J11: 1 | K11: 1 | L11: 1 | M11: 1 | N11: 1 | O11: 1 | P11: 1 | Q11: 1 | R11: 1 | S11: 1 | T11: 1
B12: Total Units: | G12: =TotUnits -> 0 | J12: 1 | K12: 1 | L12: 1 | M12: 1 | N12: 1 | O12: 1 | P12: 1 | Q12: 1 | R12: 1 | S12: 1 | T12: 1
B13: Reserves per unit (Operating Year 1) | G13: Total/yr | J13: 1 | K13: 1 | L13: 1 | M13: 1 | N13: 1 | O13: 1 | P13: 1 | Q13: 1 | R13: 1 | S13: 1 | T13: 1
D14: Replacement | F14: 0 | G14: =+$G$12*F14 -> 0 | J14: 1 | K14: 1 | L14: 1 | M14: 1 | N14: 1 | O14: 0 | P14: 1 | Q14: 1 | R14: 1 | S14: 1 | T14: 1
D15: Other* | F15: 0 | G15: =+$G$12*F15 -> 0 | J15: 1 | K15: 1 | L15: 1 | M15: 1 | N15: 1 | O15: 0 | P15: 1 | Q15: 1 | R15: 1 | S15: 1 | T15: 1
F16: =SUM(F14:F15) -> 0 | G16: =+$G$12*F16 -> 0 | J16: 1 | K16: 1 | L16: 1 | M16: 1 | N16: 1 | O16: 1 | P16: 1 | Q16: 1 | R16: 1 | S16: 1 | T16: 1
J17: 1 | K17: 1 | L17: 1 | M17: 1 | N17: 1 | O17: 1 | P17: 1 | Q17: 1 | R17: 1 | S17: 1 | T17: 1
B18: Sub-Total | F18: =F16*G12 -> 0 | J18: 1 | K18: 1 | L18: 1 | M18: 1 | N18: 1 | O18: 1 | P18: 1 | Q18: 1 | R18: 1 | S18: 1 | T18: 1
J19: 1 | K19: 1 | L19: 1 | M19: 1 | N19: 1 | O19: 1 | P19: 1 | Q19: 1 | R19: 1 | S19: 1 | T19: 1
B20: Annual Increase Factors | J20: 1 | K20: 1 | L20: 1 | M20: 1 | N20: 1 | O20: 1 | P20: 1 | Q20: 1 | R20: 1 | S20: 1 | T20: 1
D21: Rent | F21: =+'12 Pro Forma'!K1 -> 0 | J21: 1 | K21: 1 | L21: 1 | M21: 1 | N21: 1 | O21: 0 | P21: 1 | Q21: 1 | R21: 1 | S21: 1 | T21: 1
D22: Expenses | F22: =+'12 Pro Forma'!K3 -> 0 | J22: 1 | K22: 1 | L22: 1 | M22: 1 | N22: 1 | O22: 0 | P22: 1 | Q22: 1 | R22: 1 | S22: 1 | T22: 1
D23: Replacement | F23: =+'12 Pro Forma'!A22 -> 0 | J23: 1 | K23: 1 | L23: 1 | M23: 1 | N23: 1 | O23: 0 | P23: 1 | Q23: 1 | R23: 1 | S23: 1 | T23: 1
D24: Other* | F24: 0 | J24: 1 | K24: 1 | L24: 1 | M24: 1 | N24: 1 | O24: 0 | P24: 1 | Q24: 1 | R24: 1 | S24: 1 | T24: 1
J25: 1 | K25: 1 | L25: 1 | M25: 1 | N25: 1 | O25: 1 | P25: 1 | Q25: 1 | R25: 1 | S25: 1 | T25: 1
B26: Other* | J26: 1 | K26: 1 | L26: 1 | M26: 0 | N26: 0 | O26: 0 | P26: 1 | Q26: 1 | R26: 1 | S26: 1 | T26: 1
J27: 1 | K27: 1 | L27: 1 | M27: 1 | N27: 1 | O27: 1 | P27: 1 | Q27: 1 | R27: 1 | S27: 1 | T27: 1

Sheet 14 Amenities
A1: =Div -> State of Nevada Housing Division | M1: =ProjName -> 0 | O1: =(IF(IsLocked(A1)*1=1,1,0)) -> 1 | P1: =(IF(IsLocked(B1)*1=1,1,0)) -> 1 | Q1: 1 | R1: 1 | S1: 1 | T1: 1 | U1: 1 | V1: 1 | W1: 1 | X1: =(IF(IsLocked(J1)*1=1,1,0)) -> 1 | Y1: =(IF(IsLocked(K1)*1=1,1,0)) -> 1 | Z1: 1 | AA1: =(IF(IsLocked(#REF!)*1=1,1,0)) -> 
A2: =nhd -> 2017 NHD FUNDING APPLICATION | M2: TOC | O2: =(IF(IsLocked(A2)*1=1,1,0)) -> 1 | P2: =(IF(IsLocked(B2)*1=1,1,0)) -> 1 | Q2: =(IF(IsLocked(C2)*1=1,1,0)) -> 1 | R2: =(IF(IsLocked(D2)*1=1,1,0)) -> 1 | S2: =(IF(IsLocked(E2)*1=1,1,0)) -> 1 | T2: =(IF(IsLocked(F2)*1=1,1,0)) -> 1 | U2: =(IF(IsLocked(G2)*1=1,1,0)) -> 1 | V2: =(IF(IsLocked(H2)*1=1,1,0)) -> 1 | W2: =(IF(IsLocked(I2)*1=1,1,0)) -> 1 | X2: =(IF(IsLocked(J2)*1=1,1,0)) -> 1 | Y2: =(IF(IsLocked(K2)*1=1,1,0)) -> 1 | Z2: =(IF(IsLocked(L2)*1=1,1,0)) -> 1 | AA2: =(IF(IsLocked(M1)*1=1,1,0)) -> 1
A3: PROJECT AMENITIES | O3: 1 | P3: 1 | Q3: 1 | R3: 1 | S3: 1 | T3: 1 | U3: 1 | V3: 1 | W3: 1 | X3: 1 | Y3: 1 | Z3: 1 | AA3: =(IF(IsLocked(M3)*1=1,1,0)) -> 1
B5: QAP Section 14.3.3 | E5: Additional Project Amenities | O5: 1 | P5: 1 | Q5: 1 | R5: 1 | S5: 1 | T5: 1 | U5: 1 | V5: 1 | W5: 1 | X5: 1 | Y5: 1 | Z5: 1 | AA5: 1
O6: 1 | P6: 1 | Q6: 1 | R6: 1 | S6: 1 | T6: 1 | U6: 1 | V6: 1 | W6: 1 | X6: 1 | Y6: 1 | Z6: 1 | AA6: 1
B7: RATING FACTORS | J7: (P)roject | L7: Max | M7: Preference | O7: 1 | P7: 1 | Q7: 1 | R7: 1 | S7: 1 | T7: 1 | U7: 1 | V7: 1 | W7: 1 | X7: 1 | Y7: 1 | Z7: 1 | AA7: 1
B8: Project Amenities -- Development has: | J8: or (U)nit | L8: Points | M8: Point Value | O8: 1 | P8: 1 | Q8: 1 | R8: 1 | S8: 1 | T8: 1 | U8: 1 | V8: 1 | W8: 1 | X8: 1 | Y8: 1 | Z8: 1 | AA8: 1
A9: =ROW()-8 -> 1 | B9: A. Elevators (does not apply to Senior Housing projects with 2 or more floors, Special Needs Project, and Tenant Ownership Projects). | J9: P | L9: 3 | M9: 0 | O9: 1 | P9: 1 | Q9: 1 | R9: 1 | S9: 1 | T9: 1 | U9: 1 | V9: 1 | W9: 1 | X9: 1 | Y9: 1 | Z9: 1 | AA9: 0
A10: =ROW()-8 -> 2 | B10: B. Picnic area equipped with, for each 100 units, a minimum of three charcoal or gas barbeque units and one 6’ picnic table with benches on separate concrete slabs no less than 200 square feet evenly distributed… | J10: P | L10: 1 | M10: 0 | O10: 1 | P10: 1 | Q10: 1 | R10: 1 | S10: 1 | T10: 1 | U10: 1 | V10: 1 | W10: 1 | X10: 1 | Y10: 1 | Z10: 1 | AA10: 0
A11: 3 | B11: C. Swimming or lap pools (does not apply to Tenant Ownership Projects). | J11: P | L11: 3 | M11: 0 | O11: 1 | P11: 1 | Q11: 1 | R11: 1 | S11: 1 | T11: 1 | U11: 1 | V11: 1 | W11: 1 | X11: 1 | Y11: 1 | Z11: 1 | AA11: 0
A12: 4 | B12: D. Solar hot water heating for swimming pools. | J12: P | L12: 2 | M12: 0 | O12: 1 | P12: 1 | Q12: 1 | R12: 1 | S12: 1 | T12: 1 | U12: 1 | V12: 1 | W12: 1 | X12: 1 | Y12: 1 | Z12: 1 | AA12: 0
A13: 5 | B13: E. A children’s pool that purifies and recycles water at a minimum four spray positions. Each position must have individual timer for water spray, a 20 x 20 concrete area with drain, and minimum five-foot high rod iron…. | J13: P | L13: 3 | M13: 0 | O13: 1 | P13: 1 | Q13: 1 | R13: 1 | S13: 1 | T13: 1 | U13: 1 | V13: 1 | W13: 1 | X13: 1 | Y13: 1 | Z13: 1 | AA13: 0
A14: 6 | B14: F. 500 square feet community room in project fewer than 50 units. | J14: P | L14: 3 | M14: 0 | O14: 1 | P14: 1 | Q14: 1 | R14: 1 | S14: 1 | T14: 1 | U14: 1 | V14: 1 | W14: 1 | X14: 1 | Y14: 1 | Z14: 1 | AA14: 0
A15: 7 | B15: G. In-ground spa that is a minimum of eight ft. in diameter with seven jets, booster pump, blower, 20-minutes time and 300,000 Btu heaters. | J15: P | L15: 2 | M15: 0 | O15: 1 | P15: 1 | Q15: 1 | R15: 1 | S15: 1 | T15: 1 | U15: 1 | V15: 1 | W15: 1 | X15: 1 | Y15: 1 | Z15: 1 | AA15: 0
A16: 8 | B16: H. Equipped weight/exercise room that is a minimum 200 square feet and has at least three exercise machines (does not apply to Tenant Ownership Projects). | J16: P | L16: 3 | M16: 0 | O16: 1 | P16: 1 | Q16: 1 | R16: 1 | S16: 1 | T16: 1 | U16: 1 | V16: 1 | W16: 1 | X16: 1 | Y16: 1 | Z16: 1 | AA16: 0
A17: 9 | B17: I. Computer/study room with full Internet access that is a minimum of 100 square feet and is equipped with at least one computer for every 20 units (computers specification must meet or exceed 1.8 GHz Intel…. | J17: P | L17: 2 | M17: 0 | O17: 1 | P17: 1 | Q17: 1 | R17: 1 | S17: 1 | T17: 1 | U17: 1 | V17: 1 | W17: 1 | X17: 1 | Y17: 1 | Z17: 1 | AA17: 0
A18: 10 | B18: J. Exterior lighting with fluorescent dusk-to-dawn fixture of High Pressure Sodium illuminating walking paths to entrances to residential units or LED. | J18: P | L18: 2 | M18: 0 | O18: 1 | P18: 1 | Q18: 1 | R18: 1 | S18: 1 | T18: 1 | U18: 1 | V18: 1 | W18: 1 | X18: 1 | Y18: 1 | Z18: 1 | AA18: 0
A19: 11 | B19: K. Library and/or reading room supplied with books. | J19: P | L19: 1 | M19: 0 | O19: 1 | P19: 1 | Q19: 1 | R19: 1 | S19: 1 | T19: 1 | U19: 1 | V19: 1 | W19: 1 | X19: 1 | Y19: 1 | Z19: 1 | AA19: 0
A20: 12 | B20: L. On-site salon equipped with washer sinks, hair dryers, beauty chair, mirrors, manicure station, supply cabinets, and additional seating. | J20: P | L20: 2 | M20: 0 | O20: 1 | P20: 1 | Q20: 1 | R20: 1 | S20: 1 | T20: 1 | U20: 1 | V20: 1 | W20: 1 | X20: 1 | Y20: 1 | Z20: 1 | AA20: 0
A21: 13 | B21: M. Recreation areas worth 1.5 points each: Shuffle Board, Horseshoe Pits, Sand Volleyball Court, Pool Table, Piano, or Dog park which consists of 300 sq. ft. minimum, fenced and equipped with a sitting bench and a shade tree/structure. | J21: P | L21: 3 | M21: 0 | O21: 1 | P21: 1 | Q21: 1 | R21: 1 | S21: 1 | T21: 1 | U21: 1 | V21: 1 | W21: 1 | X21: 1 | Y21: 1 | Z21: 1 | AA21: 0
A22: 14 | B22: N. Business center equipped with a fax and copier machine in project with fewer than 50 units. | J22: P | L22: 2 | M22: 0 | O22: 1 | P22: 1 | Q22: 1 | R22: 1 | S22: 1 | T22: 1 | U22: 1 | V22: 1 | W22: 1 | X22: 1 | Y22: 1 | Z22: 1 | AA22: 0
A23: 15 | B23: O. Wellness room equipped with a medical grade exam table and secure medical cabinets to insure no equipment or medications would be subject to inventory reduction. | J23: P | L23: 2 | M23: 0 | O23: 1 | P23: 1 | Q23: 1 | R23: 1 | S23: 1 | T23: 1 | U23: 1 | V23: 1 | W23: 1 | X23: 1 | Y23: 1 | Z23: 1 | AA23: 0
A24: 16 | B24: P. Automatic door openers on doors which are required by the building code to have automatic closers, where providing access to common area rooms intended for use by tenants and their guests, that are on an accessible route. Excluded doors are those of the apartments, rooms intended to be used primarily by property management and maintenance staff, and those for corridors and stairwells where the use of automatic doors is prohibited by the building code. Only one door per room shall be required to have an automatic door opener unless the entrance and exit are part of the building egress route. For the purposes of allocating these points to a project, “common area rooms” are those within the project available for common use by all tenants, or their guests. Must conform to ADA/Section 504/FHAA requirements as applicable. | J24: P | L24: 3 | M24: 0 | O24: 1 | P24: 1 | Q24: 1 | R24: 1 | S24: 1 | T24: 1 | U24: 1 | V24: 1 | W24: 1 | X24: 1 | Y24: 1 | Z24: 1 | AA24: 0
B25: Tenant Unit Amenities -- Each Unit has: | J25: Proj/Unit | L25: =+L8 -> Points | M25: Points | O25: 1 | P25: 1 | Q25: 1 | R25: 1 | S25: 1 | T25: 1 | U25: 1 | V25: 1 | W25: 1 | X25: 1 | Y25: 1 | Z25: 1 | AA25: 1
A26: =ROW()-9 -> 17 | B26: Q. Picnic area equipped with one charcoal or gas unit and 6’ picnic table with benches on 64 square feet concrete slab or in patio area (applies to Tenant Ownership Projects only). | J26: U | L26: 1 | M26: 0 | O26: 1 | P26: 1 | Q26: 1 | R26: 1 | S26: 1 | T26: 1 | U26: 1 | V26: 1 | W26: 1 | X26: 1 | Y26: 1 | Z26: 1 | AA26: 0
A27: =ROW()-9 -> 18 | B27: R. Air conditioning (applicable only outside of Clark County) | J27: U | L27: 3 | M27: 0 | O27: 1 | P27: 1 | Q27: 1 | R27: 1 | S27: 1 | T27: 1 | U27: 1 | V27: 1 | W27: 1 | X27: 1 | Y27: 1 | Z27: 1 | AA27: 0
A28: 19 | B28: S. Hard surface throughout unit (e.g., ceramic tile or bamboo flooring; vinyl flooring is subject to the Division staff approval). | J28: U | L28: 2 | M28: 0 | O28: 1 | P28: 1 | Q28: 1 | R28: 1 | S28: 1 | T28: 1 | U28: 1 | V28: 1 | W28: 1 | X28: 1 | Y28: 1 | Z28: 1 | AA28: 0
A29: 20 | B29: T. Covered patio area on concrete slab with roof that is a minimum of 64 square feet. (applies to Tenant Ownership Projects only) or Patio or balcony area that is a minimum of 48 square feet (applies to all other project types). | J29: U | L29: 2 | M29: 0 | O29: 1 | P29: 1 | Q29: 1 | R29: 1 | S29: 1 | T29: 1 | U29: 1 | V29: 1 | W29: 1 | X29: 1 | Y29: 1 | Z29: 1 | AA29: 0
A30: 21 | B30: U. Attached two-car garage (applies to Tenant Ownership Projects only) or Covered parking spaces (applies to all other project types). | J30: U | L30: 3 | M30: 0 | O30: 1 | P30: 1 | Q30: 1 | R30: 1 | S30: 1 | T30: 1 | U30: 1 | V30: 1 | W30: 1 | X30: 1 | Y30: 1 | Z30: 1 | AA30: 0
A31: 22 | B31: V. Enclosed exterior wood-framed storage structure that is a minimum of 24 square feet. | J31: U | L31: 2 | M31: 0 | O31: 1 | P31: 1 | Q31: 1 | R31: 1 | S31: 1 | T31: 1 | U31: 1 | V31: 1 | W31: 1 | X31: 1 | Y31: 1 | Z31: 1 | AA31: 0
A32: 23 | B32: W. (Moved to Threshold requirement in 2017) | J32: U | L32: 0 | M32: 0 | O32: 1 | P32: 1 | Q32: 1 | R32: 1 | S32: 1 | T32: 1 | U32: 1 | V32: 1 | W32: 1 | X32: 1 | Y32: 1 | Z32: 1 | AA32: 0
A33: 24 | B33: X. Washer/dryer hooks ups in projects with 39 units or less developed under the project category “Projects for Individuals with Children and Families with Children.” No points awarded if threshold. | J33: U | L33: 2 | M33: 0 | O33: 1 | P33: 1 | Q33: 1 | R33: 1 | S33: 1 | T33: 1 | U33: 1 | V33: 1 | W33: 1 | X33: 1 | Y33: 1 | Z33: 1 | AA33: 0
A34: 25 | B34: Y. Washer/dryers provided in each unit. (Includes Hookups) | J34: U | L34: 3 | M34: 0 | O34: 1 | P34: 1 | Q34: 1 | R34: 1 | S34: 1 | T34: 1 | U34: 1 | V34: 1 | W34: 1 | X34: 1 | Y34: 1 | Z34: 1 | AA34: 0
A35: 26 | B35: Z. Free individual internet in each unit. | J35: U | L35: 2 | M35: 0 | O35: 1 | P35: 1 | Q35: 1 | R35: 1 | S35: 1 | T35: 1 | U35: 1 | V35: 1 | W35: 1 | X35: 1 | Y35: 1 | Z35: 1 | AA35: 0
A36: 27 | B36: AA. Ceiling fans, including a minimum of one fan in the living room and one fan in the master bedroom. | J36: U | L36: 1 | M36: 0 | O36: 1 | P36: 1 | Q36: 1 | R36: 1 | S36: 1 | T36: 1 | U36: 1 | V36: 1 | W36: 1 | X36: 1 | Y36: 1 | Z36: 1 | AA36: 0
A37: 28 | B37: BB. Security doors on front and back entrances (applies to Tenant Ownership Projects only). | J37: U | L37: 1 | M37: 0 | O37: 1 | P37: 1 | Q37: 1 | R37: 1 | S37: 1 | T37: 1 | U37: 1 | V37: 1 | W37: 1 | X37: 1 | Y37: 1 | Z37: 1 | AA37: 0
A38: 29 | B38: CC. Covered front porch (applies to Tenant Ownership Projects only). | J38: U | L38: 1 | M38: 0 | O38: 1 | P38: 1 | Q38: 1 | R38: 1 | S38: 1 | T38: 1 | U38: 1 | V38: 1 | W38: 1 | X38: 1 | Y38: 1 | Z38: 1 | AA38: 0
A39: 30 | B39: DD. Smoke-Free (lit tobacco products) Housing. | J39: U | L39: 1 | M39: 0 | O39: 1 | P39: 1 | Q39: 1 | R39: 1 | S39: 1 | T39: 1 | U39: 1 | V39: 1 | W39: 1 | X39: 1 | Y39: 1 | Z39: 1 | AA39: 0
A40: 31 | B40: EE. Entry screen front door to unit on units for eventual tenant ownership | J40: U | L40: 2 | M40: 0 | O40: 1 | P40: 1 | Q40: 1 | R40: 1 | S40: 1 | T40: 1 | U40: 1 | V40: 1 | W40: 1 | X40: 1 | Y40: 1 | Z40: 1 | AA40: 0
A41: 32 | B41: FF. Storage cabinets in attached garage in units for eventual tenant ownership (minimum of 2 cabinets each) | J41: U | L41: 2 | M41: 0 | O41: 1 | P41: 1 | Q41: 1 | R41: 1 | S41: 1 | T41: 1 | U41: 1 | V41: 1 | W41: 1 | X41: 1 | Y41: 1 | Z41: 1 | AA41: 0
A42: 33 | B42: GG. Storage shelves in attached garage in units for eventual tenant ownership | J42: U | L42: 1 | M42: 0
A43: 34 | B43: HH. Garage door opener in units for eventual tenant ownership | J43: U | L43: 2 | M43: 0
A44: 35 | B44: II. Lighted walkway to the home in units for eventual tenant ownership | J44: U | L44: 2 | M44: 0
A45: 36 | B45: JJ. Community garden in one large plot or divided into individual plots for residents to grow flowers, fruit, plants or vegetables. It is supported by drip irrigation or has access to water at the garden site. Minimum total area for planting 500 square feet. Community Manager responsible for assigning plots, maintaining area and providing initial soil. Residents responsible for tools and materials required to plant and grow items. | J45: U | L45: 1 | M45: 0
A46: 37 | B46: KK. For Special Needs and for Senior Projects Only. Removable cabinet fronts at all kitchens and bathroom sinks in all apartments. | J46: U | L46: 2 | M46: 0
A47: 38 | B47: LL. Projects that opt to exceed the HUD 5% &2% accessibility requirement by ensuring that 21% of units (15% mobility /6% A-V) are adaptable/accessible. | J47: U | L47: 3 | M47: 0
A48: 39 | B48: MM. Grab bars at all bathtubs and showers in all apartments. To qualify for these points, the grab bars must be specified for handicapped use and meet ADA requirements. | J48: U | L48: 2 | M48: 0
O49: 1 | P49: 1 | Q49: 1 | R49: 1 | S49: 1 | T49: 1 | U49: 1 | V49: 1 | W49: 1 | X49: 1 | Y49: 1 | Z49: 1 | AA49: 1
I50: Total Points | L50: =SUM(L9:L49) -> 78 | M50: =SUM(M9:M49) -> 0 | O50: 1 | P50: 1 | Q50: 1 | R50: 1 | S50: 1 | T50: 1 | U50: 1 | V50: 1 | W50: 1 | X50: 1 | Y50: 1 | Z50: 1 | AA50: 1
I52: Maximum Amenities Points | M52: 24 | O52: 1 | P52: 1 | Q52: 1 | R52: 1 | S52: 1 | T52: 1 | U52: 1 | V52: 1 | W52: 1 | X52: 1 | Y52: 1 | Z52: 1 | AA52: 1
I53: Points over maximum | M53: =IF(M50>25," "&(M50-M52)&" ","-") -> - | O53: 1 | P53: 1 | Q53: 1 | R53: 1 | S53: 1 | T53: 1 | U53: 1 | V53: 1 | W53: 1 | X53: 1 | Y53: 1 | Z53: 1 | AA53: 1
O54: 1 | P54: 1 | Q54: 1 | R54: 1 | S54: 1 | T54: 1 | U54: 1 | V54: 1 | W54: 1 | X54: 1 | Y54: 1 | Z54: 1 | AA54: 1
A55: 1. | B55: All amenities for the project must be listed above in Sec. 11 of this application and | O55: 1 | P55: 1 | Q55: 1 | R55: 1 | S55: 1 | T55: 1 | U55: 1 | V55: 1 | W55: 1 | X55: 1 | Y55: 1 | Z55: 1 | AA55: 1
B56: must conform to the amenities in the 2017 QAP, Section 14.3.3 | O56: 1 | P56: 1 | Q56: 1 | R56: 1 | S56: 1 | T56: 1 | U56: 1 | V56: 1 | W56: 1 | X56: 1 | Y56: 1 | Z56: 1 | AA56: 1
A57: 2. | B57: Points are not given for items that are required (threshold) for your project category. | O57: 1 | P57: 1 | Q57: 1 | R57: 1 | S57: 1 | T57: 1 | U57: 1 | V57: 1 | W57: 1 | X57: 1 | Y57: 1 | Z57: 1 | AA57: 1

Sheet 15 Proj Sched
A1: =Div -> State of Nevada Housing Division | H1: =ProjName -> 0 | V1: =(IF(IsLocked(A1)*1=1,1,0)) -> 1 | W1: =(IF(IsLocked(B1)*1=1,1,0)) -> 1 | X1: =(IF(IsLocked(C1)*1=1,1,0)) -> 1 | Y1: =(IF(IsLocked(D1)*1=1,1,0)) -> 1 | Z1: =(IF(IsLocked(E1)*1=1,1,0)) -> 1 | AA1: =(IF(IsLocked(F1)*1=1,1,0)) -> 1 | AB1: =(IF(IsLocked(G1)*1=1,1,0)) -> 1 | AC1: =(IF(IsLocked(H1)*1=1,1,0)) -> 1 | AD1: =(IF(IsLocked(I1)*1=1,1,0)) -> 1 | AE1: =(IF(IsLocked(J1)*1=1,1,0)) -> 1 | AF1: =(IF(IsLocked(K1)*1=1,1,0)) -> 1 | AG1: 1
A2: =nhd -> 2017 NHD FUNDING APPLICATION | H2: TOC | V2: =(IF(IsLocked(A2)*1=1,1,0)) -> 1 | W2: =(IF(IsLocked(B2)*1=1,1,0)) -> 1 | X2: =(IF(IsLocked(C2)*1=1,1,0)) -> 1 | Y2: =(IF(IsLocked(D2)*1=1,1,0)) -> 1 | Z2: =(IF(IsLocked(E2)*1=1,1,0)) -> 1 | AA2: =(IF(IsLocked(F2)*1=1,1,0)) -> 1 | AB2: =(IF(IsLocked(G2)*1=1,1,0)) -> 1 | AC2: =(IF(IsLocked(H2)*1=1,1,0)) -> 1 | AD2: =(IF(IsLocked(I2)*1=1,1,0)) -> 1 | AE2: =(IF(IsLocked(J2)*1=1,1,0)) -> 1 | AF2: =(IF(IsLocked(K2)*1=1,1,0)) -> 1 | AG2: 1
A3: PROJECT SCHEDULE | S3: OUTSIDE OF PRINT RANGE | V3: 1 | W3: 1 | X3: 1 | Y3: 1 | Z3: 1 | AA3: 1 | AB3: 1 | AC3: 1 | AD3: 1 | AE3: 1 | AF3: 1 | AG3: 1
S4: =MAX($S$12:$S$75) -> 0 | T4: Mos | U4: =DATE(2014,8,15) -> 2014-08-15 | V4: 1 | W4: 1 | X4: 1 | Y4: 1 | Z4: 1 | AA4: 1 | AB4: 1 | AC4: 1 | AD4: 1 | AE4: 1 | AF4: 1 | AG4: 1
B5: The following will be considered a commitment. | V5: 1 | W5: 1 | X5: 1 | Y5: 1 | Z5: 1 | AA5: 1 | AB5: 1 | AC5: 1 | AD5: 1 | AE5: 1 | AF5: 1 | AG5: 1
V6: 1 | W6: 1 | X6: 1 | Y6: 1 | Z6: 1 | AA6: 1 | AB6: 1 | AC6: 1 | AD6: 1 | AE6: 1 | AF6: 1 | AG6: 1
G7: Not | H7: Scheduled | J7: Project | V7: 1 | W7: 1 | X7: 1 | Y7: 1 | Z7: 1 | AA7: 1 | AB7: 1 | AC7: 1 | AD7: 1 | AE7: 1 | AF7: 1 | AG7: 1
G8: Applicable | H8: Completion | J8: Update | O8: Scheduled Completion | S8: Remaining | U8: Duration | V8: 1 | W8: 1 | X8: 1 | Y8: 1 | Z8: 1 | AA8: 1 | AB8: 1 | AC8: 1 | AD8: 1 | AE8: 1 | AF8: 1 | AG8: 1
G9: (na) | H9: Month/Yr | J9: 2016-12-01 | O9: Month | Q9: Year | S9: Months | U9: Months | V9: 1 | W9: 1 | X9: 1 | Y9: 1 | Z9: 1 | AA9: 1 | AB9: 1 | AC9: 1 | AD9: 1 | AE9: 0 | AF9: 1 | AG9: 1
V10: 1 | W10: 1 | X10: 1 | Y10: 1 | Z10: 1 | AA10: 1 | AB10: 1 | AC10: 1 | AD10: 1 | AE10: 1 | AF10: 1 | AG10: 1
B11: Phase: Site-Control (Item) | V11: 1 | W11: 1 | X11: 1 | Y11: 1 | Z11: 1 | AA11: 1 | AB11: 1 | AC11: 1 | AD11: 1 | AE11: 1 | AF11: 1 | AG11: 1
B12: Option/Contract in Place | J12: 2015-12-01 | O12: 2 | P12: / | Q12: 2014 | V12: =(IF(IsLocked(A12)*1=1,1,0)) -> 1 | W12: =(IF(IsLocked(B12)*1=1,1,0)) -> 1 | X12: =(IF(IsLocked(C12)*1=1,1,0)) -> 1 | Y12: =(IF(IsLocked(D12)*1=1,1,0)) -> 1 | Z12: =(IF(IsLocked(E12)*1=1,1,0)) -> 1 | AA12: =(IF(IsLocked(F12)*1=1,1,0)) -> 1 | AB12: =(IF(IsLocked(G12)*1=1,1,0)) -> 0 | AC12: =(IF(IsLocked(H12)*1=1,1,0)) -> 0 | AD12: =(IF(IsLocked(I12)*1=1,1,0)) -> 1 | AE12: =(IF(IsLocked(J12)*1=1,1,0)) -> 0 | AF12: =(IF(IsLocked(K12)*1=1,1,0)) -> 1 | AG12: =(IF(IsLocked(L12)*1=1,1,0)) -> 0
B13: Carryover | J13: 2015-12-01 | P13: / | Q13: 2015-02-01 | V13: 1 | W13: 1 | X13: 1 | Y13: 1 | Z13: 1 | AA13: 1 | AB13: 0 | AC13: 0 | AD13: 1 | AE13: 0 | AF13: 1 | AG13: 0
B14: Record Declaration of Restrictive Covenants | J14: 2015-12-01 | P14: / | Q14: 2015-12-01 | V14: 1 | W14: 1 | X14: 1 | Y14: 1 | Z14: 1 | AA14: 1 | AB14: 0 | AC14: 0 | AD14: 1 | AE14: 0 | AF14: 1 | AG14: 0
B15: Site Acquisition | J15: 2015-12-01 | P15: / | V15: 1 | W15: 1 | X15: 1 | Y15: 1 | Z15: 1 | AA15: 1 | AB15: 0 | AC15: 0 | AD15: 1 | AE15: 0 | AF15: 1 | AG15: 0
B16: Environmental Review Completed | J16: 2015-12-01 | V16: 1 | W16: 1 | X16: 1 | Y16: 1 | Z16: 1 | AA16: 1 | AB16: 0 | AC16: 0 | AD16: 1 | AE16: 0 | AF16: 1 | AG16: 0
B17: Zoning Approvals (Discretionary) | J17: 2015-12-01 | P17: / | V17: 1 | W17: 1 | X17: 1 | Y17: 1 | Z17: 1 | AA17: 1 | AB17: 0 | AC17: 0 | AD17: 1 | AE17: 0 | AF17: 1 | AG17: 0
B18: Zoning Approvals (Administrative) | J18: 2015-12-01 | P18: / | V18: 1 | W18: 1 | X18: 1 | Y18: 1 | Z18: 1 | AA18: 1 | AB18: 0 | AC18: 0 | AD18: 1 | AE18: 0 | AF18: 1 | AG18: 0
B19: Special Use Permit | J19: 2015-12-01 | P19: / | V19: 1 | W19: 1 | X19: 1 | Y19: 1 | Z19: 1 | AA19: 1 | AB19: 0 | AC19: 0 | AD19: 1 | AE19: 0 | AF19: 1 | AG19: 0
B20: Tax Abatement | J20: 2015-12-01 | P20: / | V20: 1 | W20: 1 | X20: 1 | Y20: 1 | Z20: 1 | AA20: 1 | AB20: 0 | AC20: 0 | AD20: 1 | AE20: 0 | AF20: 1 | AG20: 0
B21: Other* | J21: 2015-12-01 | P21: / | V21: 1 | W21: 1 | X21: 0 | Y21: 0 | Z21: 0 | AA21: 0 | AB21: 0 | AC21: 0 | AD21: 1 | AE21: 0 | AF21: 1 | AG21: 0
V22: 1 | W22: 1 | X22: 1 | Y22: 1 | Z22: 1 | AA22: 1 | AB22: 1 | AC22: 1 | AD22: 1 | AE22: 1 | AF22: 1 | AG22: 1
B23: Phase: Plans (Item) | V23: 1 | W23: 1 | X23: 1 | Y23: 1 | Z23: 1 | AA23: 1 | AB23: 1 | AC23: 1 | AD23: 1 | AE23: 1 | AF23: 1 | AG23: 1
B24: Site Plan Review | J24: 2015-12-01 | P24: / | V24: 1 | W24: 1 | X24: 1 | Y24: 1 | Z24: 1 | AA24: 1 | AB24: 0 | AC24: 0 | AD24: 1 | AE24: 0 | AF24: 1 | AG24: 0
B25: Grading Permit | J25: 2015-12-01 | P25: / | V25: 1 | W25: 1 | X25: 1 | Y25: 1 | Z25: 1 | AA25: 1 | AB25: 0 | AC25: 0 | AD25: 1 | AE25: 0 | AF25: 1 | AG25: 0
B26: Building Permit | J26: 2015-12-01 | P26: / | V26: 1 | W26: 1 | X26: 1 | Y26: 1 | Z26: 1 | AA26: 1 | AB26: 0 | AC26: 0 | AD26: 1 | AE26: 0 | AF26: 1 | AG26: 0
B27: Final Plans & Specifications | J27: 2015-12-01 | P27: / | V27: 1 | W27: 1 | X27: 1 | Y27: 1 | Z27: 1 | AA27: 1 | AB27: 0 | AC27: 0 | AD27: 1 | AE27: 0 | AF27: 1 | AG27: 0
B28: Other* | J28: 2015-12-01 | P28: / | V28: 1 | W28: 1 | X28: 0 | Y28: 0 | Z28: 0 | AA28: 0 | AB28: 0 | AC28: 0 | AD28: 1 | AE28: 0 | AF28: 1 | AG28: 0
V29: 1 | W29: 1 | X29: 1 | Y29: 1 | Z29: 1 | AA29: 1 | AB29: 1 | AC29: 1 | AD29: 1 | AE29: 1 | AF29: 1 | AG29: 1
B30: Phase: Closing (Item) | V30: 1 | W30: 1 | X30: 1 | Y30: 1 | Z30: 1 | AA30: 1 | AB30: 1 | AC30: 1 | AD30: 1 | AE30: 1 | AF30: 1 | AG30: 1
B31: Property Transfer | J31: 2015-12-01 | P31: / | V31: 1 | W31: 1 | X31: 1 | Y31: 1 | Z31: 1 | AA31: 1 | AB31: 0 | AC31: 0 | AD31: 1 | AE31: 0 | AF31: 1 | AG31: 0
B32: Other* | J32: 2015-12-01 | P32: / | V32: 1 | W32: 1 | X32: 0 | Y32: 0 | Z32: 0 | AA32: 0 | AB32: 0 | AC32: 0 | AD32: 1 | AE32: 0 | AF32: 1 | AG32: 0
V33: 1 | W33: 1 | X33: 1 | Y33: 1 | Z33: 1 | AA33: 1 | AB33: 1 | AC33: 1 | AD33: 1 | AE33: 1 | AF33: 1 | AG33: 1
B34: Phase: Construction Financing (Item) | V34: 1 | W34: 1 | X34: 1 | Y34: 1 | Z34: 1 | AA34: 1 | AB34: 1 | AC34: 1 | AD34: 1 | AE34: 1 | AF34: 1 | AG34: 1
B35: Loan Application | J35: 2015-12-01 | P35: / | V35: 1 | W35: 1 | X35: 1 | Y35: 1 | Z35: 1 | AA35: 1 | AB35: 0 | AC35: 0 | AD35: 1 | AE35: 0 | AF35: 1 | AG35: 0
B36: Conditional Commitment | J36: 2015-12-01 | P36: / | V36: 1 | W36: 1 | X36: 1 | Y36: 1 | Z36: 1 | AA36: 1 | AB36: 0 | AC36: 0 | AD36: 1 | AE36: 0 | AF36: 1 | AG36: 0
B37: Final Commitment | J37: 2015-12-01 | P37: / | V37: 1 | W37: 1 | X37: 1 | Y37: 1 | Z37: 1 | AA37: 1 | AB37: 0 | AC37: 0 | AD37: 1 | AE37: 0 | AF37: 1 | AG37: 0
B38: Closing & Disbursement | J38: 2015-12-01 | P38: / | V38: 1 | W38: 1 | X38: 1 | Y38: 1 | Z38: 1 | AA38: 1 | AB38: 0 | AC38: 0 | AD38: 1 | AE38: 0 | AF38: 1 | AG38: 0
B39: Other* | J39: 2015-12-01 | P39: / | V39: 1 | W39: 1 | X39: 0 | Y39: 0 | Z39: 0 | AA39: 0 | AB39: 0 | AC39: 0 | AD39: 1 | AE39: 0 | AF39: 1 | AG39: 0
V40: 1 | W40: 1 | X40: 1 | Y40: 1 | Z40: 1 | AA40: 1 | AB40: 1 | AC40: 1 | AD40: 1 | AE40: 1 | AF40: 1 | AG40: 1
B41: Phase: Construction (Item) | V41: 1 | W41: 1 | X41: 1 | Y41: 1 | Z41: 1 | AA41: 1 | AB41: 1 | AC41: 1 | AD41: 1 | AE41: 1 | AF41: 1 | AG41: 1
B42: Construction Start | J42: 2015-12-01 | P42: / | V42: 1 | W42: 1 | X42: 1 | Y42: 1 | Z42: 1 | AA42: 1 | AB42: 0 | AC42: 0 | AD42: 1 | AE42: 0 | AF42: 1 | AG42: 0
B43: Progress Review (quarterly, beginning...) | J43: 2015-12-01 | P43: / | V43: 1 | W43: 1 | X43: 1 | Y43: 1 | Z43: 1 | AA43: 1 | AB43: 0 | AC43: 0 | AD43: 1 | AE43: 0 | AF43: 1 | AG43: 0
B44: 10% of Costs Incurred | J44: 2015-12-01 | V44: 1 | W44: 1 | X44: 1 | Y44: 1 | Z44: 1 | AA44: 1 | AB44: 0 | AC44: 0 | AD44: 1 | AE44: 0 | AF44: 1 | AG44: 0
B45: Construction Completion | J45: 2015-12-01 | P45: / | V45: 1 | W45: 1 | X45: 1 | Y45: 1 | Z45: 1 | AA45: 1 | AB45: 0 | AC45: 0 | AD45: 1 | AE45: 0 | AF45: 1 | AG45: 0
B46: Certificate of Occupancy | J46: 2015-12-01 | P46: / | V46: 1 | W46: 1 | X46: 1 | Y46: 1 | Z46: 1 | AA46: 1 | AB46: 0 | AC46: 0 | AD46: 1 | AE46: 0 | AF46: 1 | AG46: 0
B47: Other* | J47: 2015-12-01 | P47: / | V47: 1 | W47: 1 | X47: 0 | Y47: 0 | Z47: 0 | AA47: 0 | AB47: 0 | AC47: 0 | AD47: 1 | AE47: 0 | AF47: 1 | AG47: 0
V48: 1 | W48: 1 | X48: 1 | Y48: 1 | Z48: 1 | AA48: 1 | AB48: 1 | AC48: 1 | AD48: 1 | AE48: 1 | AF48: 1 | AG48: 1
B49: Phase: Permanent Financing (Item) | V49: 1 | W49: 1 | X49: 1 | Y49: 1 | Z49: 1 | AA49: 1 | AB49: 1 | AC49: 1 | AD49: 1 | AE49: 1 | AF49: 1 | AG49: 1
B50: Loan Application | J50: 2015-12-01 | P50: / | V50: 1 | W50: 1 | X50: 1 | Y50: 1 | Z50: 1 | AA50: 1 | AB50: 0 | AC50: 0 | AD50: 1 | AE50: 0 | AF50: 1 | AG50: 0
B51: Conditional Commitment | J51: 2015-12-01 | P51: / | V51: 1 | W51: 1 | X51: 1 | Y51: 1 | Z51: 1 | AA51: 1 | AB51: 0 | AC51: 0 | AD51: 1 | AE51: 0 | AF51: 1 | AG51: 0
B52: Final Commitment | J52: 2015-12-01 | P52: / | V52: 1 | W52: 1 | X52: 1 | Y52: 1 | Z52: 1 | AA52: 1 | AB52: 0 | AC52: 0 | AD52: 1 | AE52: 0 | AF52: 1 | AG52: 0
B53: Closing & Disbursement | J53: 2015-12-01 | P53: / | V53: 1 | W53: 1 | X53: 1 | Y53: 1 | Z53: 1 | AA53: 1 | AB53: 0 | AC53: 0 | AD53: 1 | AE53: 0 | AF53: 1 | AG53: 0
B54: Other* | J54: 2015-12-01 | P54: / | V54: 1 | W54: 1 | X54: 0 | Y54: 0 | Z54: 0 | AA54: 0 | AB54: 0 | AC54: 0 | AD54: 1 | AE54: 0 | AF54: 1 | AG54: 0
V55: 1 | W55: 1 | X55: 1 | Y55: 1 | Z55: 1 | AA55: 1 | AB55: 1 | AC55: 1 | AD55: 1 | AE55: 1 | AF55: 1 | AG55: 1
B56: Other Loans and Grants (Item) | V56: 1 | W56: 1 | X56: 1 | Y56: 1 | Z56: 1 | AA56: 1 | AB56: 1 | AC56: 1 | AD56: 1 | AE56: 1 | AF56: 1 | AG56: 1
B57: Scheduled Completion | J57: 2015-12-01 | P57: / | V57: 1 | W57: 1 | X57: 1 | Y57: 1 | Z57: 1 | AA57: 1 | AB57: 0 | AC57: 0 | AD57: 1 | AE57: 0 | AF57: 1 | AG57: 0
B58: Application | J58: 2015-12-01 | P58: / | V58: 1 | W58: 1 | X58: 1 | Y58: 1 | Z58: 1 | AA58: 1 | AB58: 0 | AC58: 0 | AD58: 1 | AE58: 0 | AF58: 1 | AG58: 0
B59: Award | J59: 2015-12-01 | P59: / | V59: 1 | W59: 1 | X59: 1 | Y59: 1 | Z59: 1 | AA59: 1 | AB59: 0 | AC59: 0 | AD59: 1 | AE59: 0 | AF59: 1 | AG59: 0
B60: Funding Date | J60: 2015-12-01 | P60: / | V60: 1 | W60: 1 | X60: 1 | Y60: 1 | Z60: 1 | AA60: 1 | AB60: 0 | AC60: 0 | AD60: 1 | AE60: 0 | AF60: 1 | AG60: 0
B61: Type & Source | J61: 2015-12-01 | P61: / | V61: 1 | W61: 1 | X61: 0 | Y61: 0 | Z61: 0 | AA61: 0 | AB61: 0 | AC61: 0 | AD61: 1 | AE61: 0 | AF61: 1 | AG61: 0
B62: (Add addendum(s) if necessary) | V62: 1 | W62: 1 | X62: 1 | Y62: 1 | Z62: 1 | AA62: 1 | AB62: 1 | AC62: 1 | AD62: 1 | AE62: 1 | AF62: 1 | AG62: 1
V63: 1 | W63: 1 | X63: 1 | Y63: 1 | Z63: 1 | AA63: 1 | AB63: 1 | AC63: 1 | AD63: 1 | AE63: 1 | AF63: 1 | AG63: 1
B64: Phase: Lease-Up (Item) | V64: 1 | W64: 1 | X64: 1 | Y64: 1 | Z64: 1 | AA64: 1 | AB64: 1 | AC64: 1 | AD64: 1 | AE64: 1 | AF64: 1 | AG64: 1
B65: Start | J65: 2015-12-01 | P65: / | V65: 1 | W65: 1 | X65: 1 | Y65: 1 | Z65: 1 | AA65: 1 | AB65: 0 | AC65: 0 | AD65: 1 | AE65: 0 | AF65: 1 | AG65: 0
B66: Set-Aside requirements satisfied | J66: 2015-12-01 | P66: / | V66: 1 | W66: 1 | X66: 1 | Y66: 1 | Z66: 1 | AA66: 1 | AB66: 0 | AC66: 0 | AD66: 1 | AE66: 0 | AF66: 1 | AG66: 0
B67: Placed In Service | J67: 2015-12-01 | P67: / | V67: 1 | W67: 1 | X67: 1 | Y67: 1 | Z67: 1 | AA67: 1 | AB67: 0 | AC67: 0 | AD67: 1 | AE67: 0 | AF67: 1 | AG67: 0
B68: Occupancy of 93% of restricted units | J68: 2015-12-01 | P68: / | V68: 1 | W68: 1 | X68: 1 | Y68: 1 | Z68: 1 | AA68: 1 | AB68: 0 | AC68: 0 | AD68: 1 | AE68: 0 | AF68: 1 | AG68: 0
V69: 1 | W69: 1 | X69: 1 | Y69: 1 | Z69: 1 | AA69: 1 | AB69: 1 | AC69: 1 | AD69: 1 | AE69: 1 | AF69: 1 | AG69: 1
B70: Low-Income Housing Tax Credits (Item) | V70: 1 | W70: 1 | X70: 1 | Y70: 1 | Z70: 1 | AA70: 1 | AB70: 1 | AC70: 1 | AD70: 1 | AE70: 1 | AF70: 1 | AG70: 1
B71: Final Cost Certification | J71: 2015-12-01 | P71: / | V71: 1 | W71: 1 | X71: 1 | Y71: 1 | Z71: 1 | AA71: 1 | AB71: 0 | AC71: 0 | AD71: 1 | AE71: 0 | AF71: 1 | AG71: 0
B72: Final Application | J72: 2015-12-01 | P72: / | V72: 1 | W72: 1 | X72: 1 | Y72: 1 | Z72: 1 | AA72: 1 | AB72: 0 | AC72: 0 | AD72: 1 | AE72: 0 | AF72: 1 | AG72: 0
B73: NHD Inspection and Training | J73: 2015-12-01 | P73: / | V73: 1 | W73: 1 | X73: 1 | Y73: 1 | Z73: 1 | AA73: 1 | AB73: 0 | AC73: 0 | AD73: 1 | AE73: 0 | AF73: 1 | AG73: 0
B74: 8609s (usually within 60 days) | J74: 2015-12-01 | P74: / | V74: 1 | W74: 1 | X74: 1 | Y74: 1 | Z74: 1 | AA74: 1 | AB74: 0 | AC74: 0 | AD74: 1 | AE74: 0 | AF74: 1 | AG74: 0
V75: 1 | W75: 1 | X75: 1 | Y75: 1 | Z75: 1 | AA75: 1 | AB75: 1 | AC75: 1 | AD75: 1 | AE75: 1 | AF75: 1 | AG75: 1
V76: =(IF(IsLocked(A76)*1=1,1,0)) -> 1 | W76: =(IF(IsLocked(B76)*1=1,1,0)) -> 1 | X76: =(IF(IsLocked(C76)*1=1,1,0)) -> 1 | Y76: =(IF(IsLocked(D76)*1=1,1,0)) -> 1 | Z76: =(IF(IsLocked(E76)*1=1,1,0)) -> 1 | AA76: =(IF(IsLocked(F76)*1=1,1,0)) -> 1 | AB76: =(IF(IsLocked(G76)*1=1,1,0)) -> 1 | AC76: =(IF(IsLocked(H76)*1=1,1,0)) -> 1 | AD76: =(IF(IsLocked(I76)*1=1,1,0)) -> 1 | AE76: =(IF(IsLocked(J76)*1=1,1,0)) -> 1 | AF76: =(IF(IsLocked(K76)*1=1,1,0)) -> 1 | AG76: =(IF(IsLocked(L76)*1=1,1,0)) -> 1

Sheet 16a Mkt
A1: =Div -> State of Nevada Housing Division | I1: =ProjName -> 0 | M1: =(IF(IsLocked(A1)*1=1,1,0)) -> 1 | N1: =(IF(IsLocked(B1)*1=1,1,0)) -> 1 | O1: 1 | P1: 1 | Q1: 1 | R1: 1 | S1: 1 | T1: 1 | U1: 1 | V1: 1
A2: =nhd -> 2017 NHD FUNDING APPLICATION | I2: TOC | M2: =(IF(IsLocked(A2)*1=1,1,0)) -> 1 | N2: =(IF(IsLocked(B2)*1=1,1,0)) -> 1 | O2: =(IF(IsLocked(C2)*1=1,1,0)) -> 1 | P2: =(IF(IsLocked(D2)*1=1,1,0)) -> 1 | Q2: =(IF(IsLocked(E2)*1=1,1,0)) -> 1 | R2: =(IF(IsLocked(F2)*1=1,1,0)) -> 1 | S2: =(IF(IsLocked(G2)*1=1,1,0)) -> 1 | T2: =(IF(IsLocked(H2)*1=1,1,0)) -> 1 | U2: =(IF(IsLocked(I2)*1=1,1,0)) -> 1 | V2: =(IF(IsLocked(J2)*1=1,1,0)) -> 1
A3: PROJECT MARKET AREA: DEMOGRAPHICS | M3: =(IF(IsLocked(A3)*1=1,1,0)) -> 1 | N3: =(IF(IsLocked(B3)*1=1,1,0)) -> 1 | O3: =(IF(IsLocked(C3)*1=1,1,0)) -> 1 | P3: =(IF(IsLocked(D3)*1=1,1,0)) -> 1 | Q3: =(IF(IsLocked(E3)*1=1,1,0)) -> 1 | R3: =(IF(IsLocked(F3)*1=1,1,0)) -> 1 | S3: =(IF(IsLocked(G3)*1=1,1,0)) -> 1 | T3: =(IF(IsLocked(H3)*1=1,1,0)) -> 1 | U3: =(IF(IsLocked(I3)*1=1,1,0)) -> 1 | V3: =(IF(IsLocked(J3)*1=1,1,0)) -> 1
M4: 1 | N4: 1 | O4: 1 | P4: 1 | Q4: 1 | R4: 1 | S4: 1 | T4: 1 | U4: 1 | V4: 1
B5: Applicant | D5: =Applicant -> 0 | M5: 1 | N5: 1 | O5: 1 | P5: 1 | Q5: 1 | R5: 1 | S5: 1 | T5: 1 | U5: 1 | V5: 1
B6: Project Name | D6: =ProjName -> 0 | M6: 1 | N6: 1 | O6: 1 | P6: 1 | Q6: 1 | R6: 1 | S6: 1 | T6: 1 | U6: 1 | V6: 1
B7: Project Address | D7: =ProjAddr -> 0 | M7: 1 | N7: 1 | O7: 1 | P7: 1 | Q7: 1 | R7: 1 | S7: 1 | T7: 1 | U7: 1 | V7: 1
B8: Project City, Cnty, Zip | D8: =ProjCCZip -> 0 | M8: 1 | N8: 1 | O8: 1 | P8: 1 | Q8: 1 | R8: 1 | S8: 1 | T8: 1 | U8: 1 | V8: 1
B9: Tax Identification Number: | E9: =TaxID -> 0 | M9: 1 | N9: 1 | O9: 1 | P9: 1 | Q9: 1 | R9: 1 | S9: 1 | T9: 1 | U9: 1 | V9: 1
M10: 1 | N10: 1 | O10: 1 | P10: 1 | Q10: 1 | R10: 1 | S10: 1 | T10: 1 | U10: 1 | V10: 1
B11: Primary Type of Zoning: | E11: Commercial | G11: Industrial | I11: Residential | M11: 1 | N11: 1 | O11: 1 | P11: 1 | Q11: 1 | R11: 1 | S11: 1 | T11: 1 | U11: 1 | V11: 1
B12: Type of Neighborhood: | E12: Declining | G12: Emerging | I12: Revitalizing | M12: 1 | N12: 1 | O12: 1 | P12: 1 | Q12: 1 | R12: 1 | S12: 1 | T12: 1 | U12: 1 | V12: 1
E13: Stable | M13: 1 | N13: 1 | O13: 1 | P13: 1 | Q13: 1 | R13: 1 | S13: 1 | T13: 1 | U13: 1 | V13: 1
B14: Prevalent Area Housing Type: | E14: Single Family | G14: Manufactured | M14: 1 | N14: 1 | O14: 1 | P14: 1 | Q14: 1 | R14: 1 | S14: 1 | T14: 1 | U14: 1 | V14: 1
E15: Multi-Family | G15: Transient | M15: 1 | N15: 1 | O15: 1 | P15: 1 | Q15: 1 | R15: 1 | S15: 1 | T15: 1 | U15: 1 | V15: 1
M16: 1 | N16: 1 | O16: 1 | P16: 1 | Q16: 1 | R16: 1 | S16: 1 | T16: 1 | U16: 1 | V16: 1
B17: Average Age of Housing | F17: to | M17: 1 | N17: 1 | O17: 1 | P17: 1 | Q17: 0 | R17: 1 | S17: 0 | T17: 1 | U17: 1 | V17: 1
B18: Average Purchase Price | E18: 0 | F18: to | G18: 0 | M18: 1 | N18: 1 | O18: 1 | P18: 1 | Q18: 0 | R18: 1 | S18: 0 | T18: 1 | U18: 1 | V18: 1
B19: Average Monthly Rents | F19: to | M19: 1 | N19: 1 | O19: 1 | P19: 1 | Q19: 0 | R19: 1 | S19: 0 | T19: 1 | U19: 1 | V19: 1
B20: Other Low-Income Housing in Area? | G20: Within | H20: 0 | I20: Miles (est') | M20: 1 | N20: 1 | O20: 1 | P20: 1 | Q20: 1 | R20: 1 | S20: 1 | T20: 0 | U20: 1 | V20: 1
B21: Public Housing Authority in Area? | H21: Miles (est') | M21: 1 | N21: 1 | O21: 1 | P21: 1 | Q21: 1 | R21: 1 | S21: 0 | T21: 1 | U21: 1 | V21: 1
B22: If yes, please identify the PHA: | M22: 1 | N22: 1 | O22: 1 | P22: 1 | Q22: 0 | R22: 0 | S22: 0 | T22: 0 | U22: 1 | V22: 1
B23: Estimated Number of Low-Income Units in Area | M23: 1 | N23: 1 | O23: 1 | P23: 1 | Q23: 1 | R23: 1 | S23: 0 | T23: 1 | U23: 1 | V23: 1
M24: 1 | N24: 1 | O24: 1 | P24: 1 | Q24: 1 | R24: 1 | S24: 1 | T24: 1 | U24: 1 | V24: 1
M25: 1 | N25: 1 | O25: 1 | P25: 1 | Q25: 1 | R25: 1 | S25: 1 | T25: 1 | U25: 1 | V25: 1
M26: 1 | N26: 1 | O26: 1 | P26: 1 | Q26: 1 | R26: 1 | S26: 1 | T26: 1 | U26: 1 | V26: 1
B27: Prevalencies: | M27: 1 | N27: 1 | O27: 1 | P27: 1 | Q27: 1 | R27: 1 | S27: 1 | T27: 1 | U27: 1 | V27: 1
B28: Racial/Ethnic Composition | G28: Types of Employment | M28: 1 | N28: 1 | O28: 1 | P28: 1 | Q28: 1 | R28: 1 | S28: 1 | T28: 1 | U28: 1 | V28: 1
C29: African American | G29: Agriculture | M29: 1 | N29: 1 | O29: 1 | P29: 1 | Q29: 1 | R29: 1 | S29: 1 | T29: 1 | U29: 1 | V29: 1
C30: Asian/Pacific Islander | G30: Business/Professional | M30: 1 | N30: 1 | O30: 1 | P30: 1 | Q30: 1 | R30: 1 | S30: 1 | T30: 1 | U30: 1 | V30: 1
C31: Caucasian | G31: Clerical/Office | M31: 1 | N31: 1 | O31: 1 | P31: 1 | Q31: 1 | R31: 1 | S31: 1 | T31: 1 | U31: 1 | V31: 1
C32: Chinese American | G32: Government/Public Service | M32: 1 | N32: 1 | O32: 1 | P32: 1 | Q32: 1 | R32: 1 | S32: 1 | T32: 1 | U32: 1 | V32: 1
C33: Cuban American | G33: Industrial/Manufacturing | M33: 1 | N33: 1 | O33: 1 | P33: 1 | Q33: 1 | R33: 1 | S33: 1 | T33: 1 | U33: 1 | V33: 1
C34: Haitian American | G34: Unemployed | M34: 1 | N34: 1 | O34: 1 | P34: 1 | Q34: 1 | R34: 1 | S34: 1 | T34: 1 | U34: 1 | V34: 1
C35: Hispanic | G35: Skilled/Specialized | M35: 1 | N35: 1 | O35: 1 | P35: 1 | Q35: 1 | R35: 1 | S35: 1 | T35: 1 | U35: 1 | V35: 1
C36: Jewish | G36: Unskilled | M36: 1 | N36: 1 | O36: 1 | P36: 1 | Q36: 1 | R36: 1 | S36: 1 | T36: 1 | U36: 1 | V36: 1
C37: Korean American | G37: Retired | M37: 1 | N37: 1 | O37: 1 | P37: 1 | Q37: 1 | R37: 1 | S37: 1 | T37: 1 | U37: 1 | V37: 1
C38: Mexican American | G38: Self Employed | M38: 1 | N38: 1 | O38: 1 | P38: 1 | Q38: 1 | R38: 1 | S38: 1 | T38: 1 | U38: 1 | V38: 1
C39: Middle Eastern/Arab | G39: Other | M39: 1 | N39: 1 | O39: 1 | P39: 1 | Q39: 1 | R39: 1 | S39: 1 | T39: 1 | U39: 1 | V39: 1
C40: Native American | G40: Full Time Student | M40: 1 | N40: 1 | O40: 1 | P40: 1 | Q40: 1 | R40: 1 | S40: 1 | T40: 1 | U40: 1 | V40: 1
C41: Puerto Rican | G41: Married Filing Joint Tax Return | M41: 1 | N41: 1 | O41: 1 | P41: 1 | Q41: 1 | R41: 1 | S41: 1 | T41: 1 | U41: 1 | V41: 1
C42: Other | G42: Single Parent with Dependents | M42: 1 | N42: 1 | O42: 1 | P42: 1 | Q42: 1 | R42: 1 | S42: 1 | T42: 1 | U42: 1 | V42: 1
G43: Title IV Assisted | M43: 1 | N43: 1 | O43: 1 | P43: 1 | Q43: 1 | R43: 1 | S43: 1 | T43: 1 | U43: 1 | V43: 1
G44: Enrolled in Job Training | M44: 1 | N44: 1 | O44: 1 | P44: 1 | Q44: 1 | R44: 1 | S44: 1 | T44: 1 | U44: 1 | V44: 1
G45: Transportation & Delivery | M45: 1 | N45: 1 | O45: 1 | P45: 1 | Q45: 1 | R45: 1 | S45: 1 | T45: 1 | U45: 1 | V45: 1

Sheet 16b Mkt
A1: =Div -> State of Nevada Housing Division | I1: =ProjName -> 0 | M1: =(IF(IsLocked(A1)*1=1,1,0)) -> 1 | N1: 1 | O1: 1 | P1: 1 | Q1: 1 | R1: 1 | S1: 1 | T1: 1 | U1: 1 | V1: 1
A2: =nhd -> 2017 NHD FUNDING APPLICATION | I2: TOC | M2: =(IF(IsLocked(A2)*1=1,1,0)) -> 1 | N2: =(IF(IsLocked(B2)*1=1,1,0)) -> 1 | O2: =(IF(IsLocked(C2)*1=1,1,0)) -> 1 | P2: =(IF(IsLocked(D2)*1=1,1,0)) -> 1 | Q2: =(IF(IsLocked(E2)*1=1,1,0)) -> 1 | R2: =(IF(IsLocked(F2)*1=1,1,0)) -> 1 | S2: =(IF(IsLocked(G2)*1=1,1,0)) -> 1 | T2: =(IF(IsLocked(H2)*1=1,1,0)) -> 1 | U2: =(IF(IsLocked(I2)*1=1,1,0)) -> 1 | V2: =(IF(IsLocked(J2)*1=1,1,0)) -> 1
A3: PROJECT MARKET AREA: AREA FACILITIES | M3: 1 | N3: 1 | O3: 1 | P3: 1 | Q3: 1 | R3: 1 | S3: 1 | T3: 1 | U3: 1 | V3: 1
M4: 1 | N4: 1 | O4: 1 | P4: 1 | Q4: 1 | R4: 1 | S4: 1 | T4: 1 | U4: 1 | V4: 1
B5: Applicant | D5: =Applicant -> 0 | M5: 1 | N5: 1 | O5: 1 | P5: 1 | Q5: 1 | R5: 1 | S5: 1 | T5: 1 | U5: 1 | V5: 1
B6: Project Name | D6: =ProjName -> 0 | M6: 1 | N6: 1 | O6: 1 | P6: 1 | Q6: 1 | R6: 1 | S6: 1 | T6: 1 | U6: 1 | V6: 1
B7: Project Address | D7: =ProjAddr -> 0 | M7: 1 | N7: 1 | O7: 1 | P7: 1 | Q7: 1 | R7: 1 | S7: 1 | T7: 1 | U7: 1 | V7: 1
B8: Project City, Cnty, Zip | D8: =ProjCCZip -> 0 | M8: 1 | N8: 1 | O8: 1 | P8: 1 | Q8: 1 | R8: 1 | S8: 1 | T8: 1 | U8: 1 | V8: 1
B9: Tax Identification Number: | E9: =TaxID -> 0 | M9: 1 | N9: 1 | O9: 1 | P9: 1 | Q9: 1 | R9: 1 | S9: 1 | T9: 1 | U9: 1 | V9: 1
M10: 1 | N10: 1 | O10: 1 | P10: 1 | Q10: 1 | R10: 1 | S10: 1 | T10: 1 | U10: 1 | V10: 1
M11: 1 | N11: 1 | O11: 1 | P11: 1 | Q11: 1 | R11: 1 | S11: 1 | T11: 1 | U11: 1 | V11: 1
B12: Education/Retail | E12: Distance | G12: Community | I12: Distance | M12: 1 | N12: 1 | O12: 1 | P12: 1 | Q12: 1 | R12: 1 | S12: 1 | T12: 1 | U12: 1 | V12: 1
B13: Facilities | E13: In Miles | G13: Facilities | I13: In Miles | M13: 1 | N13: 1 | O13: 1 | P13: 1 | Q13: 1 | R13: 1 | S13: 1 | T13: 1 | U13: 1 | V13: 1
M14: 1 | N14: 1 | O14: 1 | P14: 1 | Q14: 1 | R14: 1 | S14: 1 | T14: 1 | U14: 1 | V14: 1
B15: Preschool/Daycare | G15: Activity Center | M15: 1 | N15: 1 | O15: 1 | P15: 1 | Q15: 0 | R15: 1 | S15: 1 | T15: 1 | U15: 0 | V15: 1
B16: Elementary | G16: Park & Recreation | M16: 1 | N16: 1 | O16: 1 | P16: 1 | Q16: 0 | R16: 1 | S16: 1 | T16: 1 | U16: 0 | V16: 1
B17: Middle School | G17: Senior Center | M17: 1 | N17: 1 | O17: 1 | P17: 1 | Q17: 0 | R17: 1 | S17: 1 | T17: 1 | U17: 0 | V17: 1
B18: High School | M18: 1 | N18: 1 | O18: 1 | P18: 1 | Q18: 0 | R18: 1 | S18: 1 | T18: 1 | U18: 1 | V18: 1
B19: Community College | G19: Medical Facilities | M19: 1 | N19: 1 | O19: 1 | P19: 1 | Q19: 0 | R19: 1 | S19: 1 | T19: 1 | U19: 1 | V19: 1
B20: Colleges/Universities | M20: 1 | N20: 1 | O20: 1 | P20: 1 | Q20: 0 | R20: 1 | S20: 1 | T20: 1 | U20: 1 | V20: 1
B21: Vocational/Technical | G21: Clinic/Dispensary | M21: 1 | N21: 1 | O21: 1 | P21: 1 | Q21: 0 | R21: 1 | S21: 1 | T21: 1 | U21: 0 | V21: 1
G22: Doctors Offices | M22: 1 | N22: 1 | O22: 1 | P22: 1 | Q22: 1 | R22: 1 | S22: 1 | T22: 1 | U22: 0 | V22: 1
B23: Retail Facilities | G23: Emergency Care | M23: 1 | N23: 1 | O23: 1 | P23: 1 | Q23: 1 | R23: 1 | S23: 1 | T23: 1 | U23: 0 | V23: 1
G24: Hospital | M24: 1 | N24: 1 | O24: 1 | P24: 1 | Q24: 1 | R24: 1 | S24: 1 | T24: 1 | U24: 0 | V24: 1
B25: Convenience | G25: Public Health Agency | M25: 1 | N25: 1 | O25: 1 | P25: 1 | Q25: 0 | R25: 1 | S25: 1 | T25: 1 | U25: 0 | V25: 1
B26: Groceries/Staples | M26: 1 | N26: 1 | O26: 1 | P26: 1 | Q26: 0 | R26: 1 | S26: 1 | T26: 1 | U26: 1 | V26: 1
B27: Shopping | G27: Transportation | M27: 1 | N27: 1 | O27: 1 | P27: 1 | Q27: 0 | R27: 1 | S27: 1 | T27: 1 | U27: 1 | V27: 1
B28: Health & Pharmacy | M28: 1 | N28: 1 | O28: 1 | P28: 1 | Q28: 0 | R28: 1 | S28: 1 | T28: 1 | U28: 1 | V28: 1
B29: Other: | G29: Public Transportation | M29: 1 | N29: 1 | O29: 0 | P29: 0 | Q29: 0 | R29: 1 | S29: 1 | T29: 1 | U29: 0 | V29: 1
G30: Major Highways | M30: 1 | N30: 1 | O30: 1 | P30: 1 | Q30: 1 | R30: 1 | S30: 1 | T30: 1 | U30: 0 | V30: 1
B31: Religious Worship | M31: 1 | N31: 1 | O31: 1 | P31: 1 | Q31: 1 | R31: 1 | S31: 1 | T31: 1 | U31: 1 | V31: 1
G32: Employment | M32: 1 | N32: 1 | O32: 1 | P32: 1 | Q32: 1 | R32: 1 | S32: 1 | T32: 1 | U32: 1 | V32: 1
B33: Church/Temple | M33: 1 | N33: 1 | O33: 1 | P33: 1 | Q33: 0 | R33: 1 | S33: 1 | T33: 1 | U33: 1 | V33: 1
G34: Major Employer | M34: 1 | N34: 1 | O34: 1 | P34: 1 | Q34: 1 | R34: 1 | S34: 1 | T34: 1 | U34: 0 | V34: 1
G35: Other Full Time | M35: 1 | N35: 1 | O35: 1 | P35: 1 | Q35: 1 | R35: 1 | S35: 1 | T35: 1 | U35: 0 | V35: 1
G36: Part Time | M36: 1 | N36: 1 | O36: 1 | P36: 1 | Q36: 1 | R36: 1 | S36: 1 | T36: 1 | U36: 0 | V36: 1
G37: Volunteer | M37: 1 | N37: 1 | O37: 1 | P37: 1 | Q37: 1 | R37: 1 | S37: 1 | T37: 1 | U37: 0 | V37: 1
M38: 1 | N38: 1 | O38: 1 | P38: 1 | Q38: 1 | R38: 1 | S38: 1 | T38: 1 | U38: 1 | V38: 1
M39: 1 | N39: 1 | O39: 1 | P39: 1 | Q39: 1 | R39: 1 | S39: 1 | T39: 1 | U39: 1 | V39: 1

Sheet 16c Mkt
A1: =Div -> State of Nevada Housing Division | J1: =ProjName -> 0 | M1: =(IF(IsLocked(A1)*1=1,1,0)) -> 1 | N1: =(IF(IsLocked(B1)*1=1,1,0)) -> 1 | O1: =(IF(IsLocked(C1)*1=1,1,0)) -> 1 | P1: =(IF(IsLocked(D1)*1=1,1,0)) -> 1 | Q1: =(IF(IsLocked(E1)*1=1,1,0)) -> 1 | R1: =(IF(IsLocked(F1)*1=1,1,0)) -> 1 | S1: =(IF(IsLocked(H1)*1=1,1,0)) -> 1 | T1: =(IF(IsLocked(I1)*1=1,1,0)) -> 1 | U1: =(IF(IsLocked(J1)*1=1,1,0)) -> 1
A2: =nhd -> 2017 NHD FUNDING APPLICATION | J2: TOC | M2: =(IF(IsLocked(A2)*1=1,1,0)) -> 1 | N2: =(IF(IsLocked(B2)*1=1,1,0)) -> 1 | O2: =(IF(IsLocked(C2)*1=1,1,0)) -> 1 | P2: =(IF(IsLocked(D2)*1=1,1,0)) -> 1 | Q2: =(IF(IsLocked(E2)*1=1,1,0)) -> 1 | R2: =(IF(IsLocked(F2)*1=1,1,0)) -> 1 | S2: =(IF(IsLocked(H2)*1=1,1,0)) -> 1 | T2: =(IF(IsLocked(I2)*1=1,1,0)) -> 1 | U2: =(IF(IsLocked(J2)*1=1,1,0)) -> 1
A3: MARKET STUDY PROJECT SUMMARY | M3: 1 | N3: 1 | O3: 1 | P3: 1 | Q3: 1 | R3: 1 | S3: 1 | T3: 1 | U3: 1
M4: 1 | N4: 1 | O4: 1 | P4: 1 | Q4: 1 | R4: 1 | S4: 1 | T4: 1 | U4: 1
B5: Project Name | C5: =ProjName -> 0 | M5: 1 | N5: 1 | O5: 1 | P5: 1 | Q5: 1 | R5: 1 | S5: 1 | T5: 1 | U5: 1
B6: Project Address | C6: =ProjAddr -> 0 | M6: 1 | N6: 1 | O6: 1 | P6: 1 | Q6: 1 | R6: 1 | S6: 1 | T6: 1 | U6: 1
B7: Project City, Cnty, Zp | C7: =ProjCCZip -> 0 | M7: 1 | N7: 1 | O7: 1 | P7: 1 | Q7: 1 | R7: 1 | S7: 1 | T7: 1 | U7: 1
B8: Applicant/ | C8: =Applicant -> 0 | M8: 1 | N8: 1 | O8: 1 | P8: 1 | Q8: 1 | R8: 1 | S8: 1 | T8: 1 | U8: 1
B9: Co-Applicant | M9: 1 | N9: 1 | O9: 1 | P9: 1 | Q9: 1 | R9: 1 | S9: 1 | T9: 1 | U9: 1
M10: 1 | N10: 1 | O10: 1 | P10: 1 | Q10: 1 | R10: 1 | S10: 1 | T10: 1 | U10: 1
B11: UNIT TYPE | C11: % OF AREA MEDIAN INCOME | D11: NUMBER OF UNITS | E11: PERCENT | F11: NET SQ FEET | G11: PERCENT | H11: MAX. | I11: RENTS AT OPENING* | M11: 1 | N11: 1 | O11: 1 | P11: 1 | Q11: 1 | R11: 1 | S11: 1 | T11: 1 | U11: 1
E12: TOTAL | G12: TOTAL | H12: ALLOW-ABLE | M12: 1 | N12: 1 | O12: 1 | P12: 1 | Q12: 1 | R12: 1 | S12: 1 | T12: 1 | U12: 1
E13: UNITS | G13: SQFT | H13: GROSS RENT | I13: GROSS | J13: UTILITY ALLOWANCE | K13: COLLECTED | M13: 1 | N13: 1 | O13: 1 | P13: 1 | Q13: 1 | R13: 1 | S13: 1 | T13: 1 | U13: 1
B14: EFFICIENCY/ | C14: 0.2 | E14: =IF(D14>0,D14/$D$50,0) -> 0 | G14: =IF(F14>0,D14*F14/$F$50,0) -> 0 | I14: 0 | M14: =(IF(IsLocked(A14)*1=1,1,0)) -> 1 | N14: =(IF(IsLocked(B14)*1=1,1,0)) -> 1 | O14: =(IF(IsLocked(C14)*1=1,1,0)) -> 1 | P14: =(IF(IsLocked(D14)*1=1,1,0)) -> 0 | Q14: =(IF(IsLocked(E14)*1=1,1,0)) -> 1 | R14: =(IF(IsLocked(F14)*1=1,1,0)) -> 0 | S14: =(IF(IsLocked(H14)*1=1,1,0)) -> 0 | T14: =(IF(IsLocked(I14)*1=1,1,0)) -> 0 | U14: =(IF(IsLocked(J14)*1=1,1,0)) -> 0 | W14: 4/6/2016 2:50pm | Y14: Changed formula in column G so it now picks up the number of units in column D and
B15: 1 BATH | C15: 0.3 | E15: 0 | G15: 0 | I15: 0 | M15: 1 | N15: 1 | O15: 1 | P15: 0 | Q15: 1 | R15: 0 | S15: 0 | T15: 0 | U15: 0 | Y15: multiplies it by the number of square feet in column F. It then gives you a percent of
C16: 0.4 | E16: 0 | G16: 0 | I16: 0 | M16: 1 | N16: 1 | O16: 1 | P16: 0 | Q16: 1 | R16: 0 | S16: 0 | T16: 0 | U16: 0 | Y16: square feet of a project. Md
C17: 0.5 | E17: 0 | G17: 0 | I17: 0 | M17: 1 | N17: 1 | O17: 1 | P17: 0 | Q17: 1 | R17: 0 | S17: 0 | T17: 0 | U17: 0
C18: 0.6 | E18: 0 | G18: 0 | I18: 0 | M18: 1 | N18: 1 | O18: 1 | P18: 0 | Q18: 1 | R18: 0 | S18: 0 | T18: 0 | U18: 0
C19: MKT | E19: 0 | G19: 0 | I19: 0 | M19: 1 | N19: 1 | O19: 1 | P19: 0 | Q19: 1 | R19: 0 | S19: 1 | T19: 0 | U19: 0
B20: 1-BEDROOM/ | C20: 0.2 | E20: 0 | G20: 0 | I20: 0 | M20: 1 | N20: 1 | O20: 1 | P20: 0 | Q20: 1 | R20: 0 | S20: 0 | T20: 0 | U20: 0
B21: 1 BATH | C21: 0.3 | E21: 0 | G21: 0 | I21: 0 | M21: 1 | N21: 1 | O21: 1 | P21: 0 | Q21: 1 | R21: 0 | S21: 0 | T21: 0 | U21: 0
C22: 0.4 | E22: 0 | G22: 0 | I22: 0 | M22: 1 | N22: 1 | O22: 1 | P22: 0 | Q22: 1 | R22: 0 | S22: 0 | T22: 0 | U22: 0
C23: 0.5 | E23: 0 | G23: 0 | I23: 0 | M23: 1 | N23: 1 | O23: 1 | P23: 0 | Q23: 1 | R23: 0 | S23: 0 | T23: 0 | U23: 0
C24: 0.6 | E24: 0 | G24: 0 | I24: 0 | M24: 1 | N24: 1 | O24: 1 | P24: 0 | Q24: 1 | R24: 0 | S24: 0 | T24: 0 | U24: 0
C25: MKT | E25: 0 | G25: 0 | I25: 0 | M25: 1 | N25: 1 | O25: 1 | P25: 0 | Q25: 1 | R25: 0 | S25: 1 | T25: 0 | U25: 0
B26: 2-BEDROOM/ | C26: 0.2 | E26: 0 | F26: 500 | G26: 0 | I26: 0 | M26: 1 | N26: 1 | O26: 1 | P26: 0 | Q26: 1 | R26: 0 | S26: 0 | T26: 0 | U26: 0
B27: 1 BATH | C27: 0.3 | E27: 0 | F27: 500 | G27: 0 | I27: 0 | M27: 1 | N27: 1 | O27: 1 | P27: 0 | Q27: 1 | R27: 0 | S27: 0 | T27: 0 | U27: 0
C28: 0.4 | E28: 0 | F28: 500 | G28: 0 | I28: 0 | M28: 1 | N28: 1 | O28: 1 | P28: 0 | Q28: 1 | R28: 0 | S28: 0 | T28: 0 | U28: 0
C29: 0.5 | E29: 0 | F29: 500 | G29: 0 | I29: 0 | M29: 1 | N29: 1 | O29: 1 | P29: 0 | Q29: 1 | R29: 0 | S29: 0 | T29: 0 | U29: 0
C30: 0.6 | D30: 10 | E30: 0.5 | F30: 500 | G30: 0.5 | I30: 0 | M30: 1 | N30: 1 | O30: 1 | P30: 0 | Q30: 1 | R30: 0 | S30: 0 | T30: 0 | U30: 0
C31: MKT | E31: 0 | G31: 0 | I31: 0 | M31: 1 | N31: 1 | O31: 1 | P31: 0 | Q31: 1 | R31: 0 | S31: 1 | T31: 0 | U31: 0
B32: 2-BEDROOM/ | C32: 0.2 | E32: 0 | G32: 0 | I32: 0 | M32: 1 | N32: 1 | O32: 1 | P32: 0 | Q32: 1 | R32: 0 | S32: 0 | T32: 0 | U32: 0
B33: 2 BATH | C33: 0.3 | E33: 0 | G33: 0 | I33: 0 | M33: 1 | N33: 1 | O33: 1 | P33: 0 | Q33: 1 | R33: 0 | S33: 0 | T33: 0 | U33: 0
C34: 0.4 | E34: 0 | G34: 0 | I34: 0 | M34: 1 | N34: 1 | O34: 1 | P34: 0 | Q34: 1 | R34: 0 | S34: 0 | T34: 0 | U34: 0
C35: 0.5 | E35: 0 | G35: 0 | I35: 0 | M35: 1 | N35: 1 | O35: 1 | P35: 0 | Q35: 1 | R35: 0 | S35: 0 | T35: 0 | U35: 0
C36: 0.6 | E36: 0 | G36: 0 | I36: 0 | M36: 1 | N36: 1 | O36: 1 | P36: 0 | Q36: 1 | R36: 0 | S36: 0 | T36: 0 | U36: 0
C37: MKT | E37: 0 | G37: 0 | I37: 0 | M37: 1 | N37: 1 | O37: 1 | P37: 0 | Q37: 1 | R37: 0 | S37: 1 | T37: 0 | U37: 0
B38: 3-BEDROOM/ | C38: 0.2 | E38: 0 | G38: 0 | I38: 0 | M38: 1 | N38: 1 | O38: 1 | P38: 0 | Q38: 1 | R38: 0 | S38: 0 | T38: 0 | U38: 0
B39: 2 BATH | C39: 0.3 | E39: 0 | G39: 0 | I39: 0 | M39: 1 | N39: 1 | O39: 1 | P39: 0 | Q39: 1 | R39: 0 | S39: 0 | T39: 0 | U39: 0
C40: 0.4 | E40: 0 | G40: 0 | I40: 0 | M40: 1 | N40: 1 | O40: 1 | P40: 0 | Q40: 1 | R40: 0 | S40: 0 | T40: 0 | U40: 0
C41: 0.5 | E41: 0 | G41: 0 | I41: 0 | M41: 1 | N41: 1 | O41: 1 | P41: 0 | Q41: 1 | R41: 0 | S41: 0 | T41: 0 | U41: 0
C42: 0.6 | E42: 0 | G42: 0 | I42: 0 | M42: 1 | N42: 1 | O42: 1 | P42: 0 | Q42: 1 | R42: 0 | S42: 0 | T42: 0 | U42: 0
C43: MKT | E43: 0 | G43: 0 | I43: 0 | M43: 1 | N43: 1 | O43: 1 | P43: 0 | Q43: 1 | R43: 0 | S43: 1 | T43: 0 | U43: 0
B44: 4-BEDROOM/ | C44: 0.2 | D44: 10 | E44: 0.5 | F44: 500 | G44: =IF(F44>0,D44*F44/$F$50,0) -> 0.5 | I44: 0 | M44: 1 | N44: 1 | O44: 1 | P44: 0 | Q44: 1 | R44: 0 | S44: 0 | T44: 0 | U44: 0
B45: 2 BATH | C45: 0.3 | E45: 0 | F45: 500 | G45: 0 | I45: 0 | M45: 1 | N45: 1 | O45: 1 | P45: 0 | Q45: 1 | R45: 0 | S45: 0 | T45: 0 | U45: 0
C46: 0.4 | E46: 0 | F46: 500 | G46: 0 | I46: 0 | M46: 1 | N46: 1 | O46: 1 | P46: 0 | Q46: 1 | R46: 0 | S46: 0 | T46: 0 | U46: 0
C47: 0.5 | E47: 0 | F47: 500 | G47: 0 | I47: 0 | M47: 1 | N47: 1 | O47: 1 | P47: 0 | Q47: 1 | R47: 0 | S47: 0 | T47: 0 | U47: 0
C48: 0.6 | E48: 0 | F48: 500 | G48: 0 | I48: 0 | M48: 1 | N48: 1 | O48: 1 | P48: 0 | Q48: 1 | R48: 0 | S48: 0 | T48: 0 | U48: 0
C49: MKT | E49: 0 | F49: 500 | G49: =IF(F49>0,D49*F49/$F$50,0) -> 0 | I49: 0 | M49: 1 | N49: 1 | O49: 1 | P49: 0 | Q49: 1 | R49: 0 | S49: 1 | T49: 0 | U49: 0
B50: Totals | D50: =SUM(D14:D49) -> 20 | E50: =SUM(E14:E49) -> 1 | F50: =SUMPRODUCT(D14:D49,F14:F49) -> 10000 | G50: =SUM(G14:G49) -> 1 | M50: 1 | N50: 1 | O50: 1 | P50: 1 | Q50: 1 | R50: 1 | S50: 1 | T50: 1 | U50: 1
B51: Wtd Avg U' Size | F51: =IF(AND(D50>0,F50>0),SUMPRODUCT(D14:D49,F14:F49)/D50,0) -> 500 | M51: 1 | N51: 1 | O51: 1 | P51: 1 | Q51: 1 | R51: 1 | S51: 1 | T51: 1 | U51: 1

Sheet 17 Compliance
A1: =Div -> State of Nevada Housing Division | J1: =ProjName -> 0 | L1: =(IF(IsLocked(A1)*1=1,1,0)) -> 1 | M1: 1 | N1: 1 | O1: 1 | P1: 1 | Q1: 1 | R1: 1 | S1: 1 | T1: 1 | U1: 1
A2: =nhd -> 2017 NHD FUNDING APPLICATION | J2: TOC | L2: =(IF(IsLocked(A2)*1=1,1,0)) -> 1 | M2: =(IF(IsLocked(B2)*1=1,1,0)) -> 1 | N2: =(IF(IsLocked(C2)*1=1,1,0)) -> 1 | O2: =(IF(IsLocked(D2)*1=1,1,0)) -> 1 | P2: =(IF(IsLocked(E2)*1=1,1,0)) -> 1 | Q2: =(IF(IsLocked(F2)*1=1,1,0)) -> 1 | R2: =(IF(IsLocked(G2)*1=1,1,0)) -> 1 | S2: =(IF(IsLocked(H2)*1=1,1,0)) -> 1 | T2: =(IF(IsLocked(I2)*1=1,1,0)) -> 1 | U2: =(IF(IsLocked(J2)*1=1,1,0)) -> 1
A3: COMPLIANCE STATUS OF APPLICANT AND MANAGEMENT COMPANY | L3: 1 | M3: 1 | N3: 1 | O3: 1 | P3: 1 | Q3: 1 | R3: 1 | S3: 1 | T3: 1 | U3: 1
L4: 1 | M4: 1 | N4: 1 | O4: 1 | P4: 1 | Q4: 1 | R4: 1 | S4: 1 | T4: 1 | U4: 1
B5: Applicant | D5: =Applicant -> 0 | L5: 1 | M5: 1 | N5: 1 | O5: 1 | P5: 1 | Q5: 1 | R5: 1 | S5: 1 | T5: 1 | U5: 1
B6: Project Name | D6: =ProjName -> 0 | L6: 1 | M6: 1 | N6: 1 | O6: 1 | P6: 1 | Q6: 1 | R6: 1 | S6: 1 | T6: 1 | U6: 1
B7: Project Address | D7: =ProjAddr -> 0 | L7: 1 | M7: 1 | N7: 1 | O7: 1 | P7: 1 | Q7: 1 | R7: 1 | S7: 1 | T7: 1 | U7: 1
B8: Project City, Cnty, Zip | D8: =ProjCCZip -> 0 | L8: 1 | M8: 1 | N8: 1 | O8: 1 | P8: 1 | Q8: 1 | R8: 1 | S8: 1 | T8: 1 | U8: 1
B9: Tax Identification Number: | E9: =TaxID -> 0 | L9: 1 | M9: 1 | N9: 1 | O9: 1 | P9: 1 | Q9: 1 | R9: 1 | S9: 1 | T9: 1 | U9: 1
L10: 1 | M10: 1 | N10: 1 | O10: 1 | P10: 1 | Q10: 1 | R10: 1 | S10: 1 | T10: 1 | U10: 1
B11: Name of other properties developer participates or has participated in--in any state: | L11: 1 | M11: 1 | N11: 1 | O11: 1 | P11: 1 | Q11: 1 | R11: 1 | S11: 1 | T11: 1 | U11: 1
L12: 1 | M12: 0 | N12: 0 | O12: 0 | P12: 0 | Q12: 0 | R12: 0 | S12: 0 | T12: 0 | U12: 0
L13: 1 | M13: 0 | N13: 0 | O13: 0 | P13: 0 | Q13: 0 | R13: 0 | S13: 0 | T13: 0 | U13: 0
L14: 1 | M14: 0 | N14: 0 | O14: 0 | P14: 0 | Q14: 0 | R14: 0 | S14: 0 | T14: 0 | U14: 0
L15: 1 | M15: 0 | N15: 0 | O15: 0 | P15: 0 | Q15: 0 | R15: 0 | S15: 0 | T15: 0 | U15: 0
L16: 1 | M16: 0 | N16: 0 | O16: 0 | P16: 0 | Q16: 0 | R16: 0 | S16: 0 | T16: 0 | U16: 0
B17: Identification, Name, Contact information for Proposed Management Company and contact: | L17: 1 | M17: 1 | N17: 1 | O17: 1 | P17: 1 | Q17: 1 | R17: 1 | S17: 1 | T17: 1 | U17: 1
L18: 1 | M18: 0 | N18: 0 | O18: 0 | P18: 0 | Q18: 0 | R18: 0 | S18: 0 | T18: 0 | U18: 0
L19: 1 | M19: 0 | N19: 0 | O19: 0 | P19: 0 | Q19: 0 | R19: 0 | S19: 0 | T19: 0 | U19: 0
L20: 1 | M20: 0 | N20: 0 | O20: 0 | P20: 0 | Q20: 0 | R20: 0 | S20: 0 | T20: 0 | U20: 0
L21: 1 | M21: 0 | N21: 0 | O21: 0 | P21: 0 | Q21: 0 | R21: 0 | S21: 0 | T21: 0 | U21: 0
B22: Management experienced managing LIHTC properties in Nevada? (N / Y-Explain) | L22: 1 | M22: 1 | N22: 1 | O22: 1 | P22: 1 | Q22: 1 | R22: 1 | S22: 1 | T22: 1 | U22: 1
L23: 1 | M23: 0 | N23: 0 | O23: 0 | P23: 0 | Q23: 0 | R23: 0 | S23: 0 | T23: 0 | U23: 0
L26: 1 | M26: 0 | N26: 0 | O26: 0 | P26: 0 | Q26: 0 | R26: 0 | S26: 0 | T26: 0 | U26: 0
B27: List properties the property management company now manages: | L27: 1 | M27: 1 | N27: 1 | O27: 1 | P27: 1 | Q27: 1 | R27: 1 | S27: 1 | T27: 1 | U27: 1
L28: 1 | M28: 0 | N28: 0 | O28: 0 | P28: 0 | Q28: 0 | R28: 0 | S28: 0 | T28: 0 | U28: 0
L29: 1 | M29: 0 | N29: 0 | O29: 0 | P29: 0 | Q29: 0 | R29: 0 | S29: 0 | T29: 0 | U29: 0
L30: 1 | M30: 0 | N30: 0 | O30: 0 | P30: 0 | Q30: 0 | R30: 0 | S30: 0 | T30: 0 | U30: 0
L31: 1 | M31: 0 | N31: 0 | O31: 0 | P31: 0 | Q31: 0 | R31: 0 | S31: 0 | T31: 0 | U31: 0
L32: 1 | M32: 0 | N32: 0 | O32: 0 | P32: 0 | Q32: 0 | R32: 0 | S32: 0 | T32: 0 | U32: 0
B33: Open non-compliance in any properties Developer participates in? (N/Y-Explain) | L33: 1 | M33: 1 | N33: 1 | O33: 1 | P33: 1 | Q33: 1 | R33: 1 | S33: 1 | T33: 1 | U33: 1
L34: 1 | M34: 0 | N34: 0 | O34: 0 | P34: 0 | Q34: 0 | R34: 0 | S34: 0 | T34: 0 | U34: 0
L35: 1 | M35: 0 | N35: 0 | O35: 0 | P35: 0 | Q35: 0 | R35: 0 | S35: 0 | T35: 0 | U35: 0
L36: 1 | M36: 0 | N36: 0 | O36: 0 | P36: 0 | Q36: 0 | R36: 0 | S36: 0 | T36: 0 | U36: 0
B37: Attach a copy of all outstanding 8823’s | L37: 1 | M37: 1 | N37: 1 | O37: 1 | P37: 1 | Q37: 1 | R37: 1 | S37: 1 | T37: 1 | U37: 1
B38: (If non-compliance is in Extended Use Period attach a copy of findings letter) | L38: 1 | M38: 1 | N38: 1 | O38: 1 | P38: 1 | Q38: 1 | R38: 1 | S38: 1 | T38: 1 | U38: 1
B39: Does Management Company have outstanding non-compliance issues with other LIHTC properties | L39: 1 | M39: 1 | N39: 1 | O39: 1 | P39: 1 | Q39: 1 | R39: 1 | S39: 1 | T39: 1 | U39: 1
B40: they manage in Nevada? | H40: If yes--briefly describe. | L40: 1 | M40: 1 | N40: 1 | O40: 1 | P40: 1 | Q40: 1 | R40: =(IF(IsLocked(H40)*1=1,1,0)) -> 1 | S40: =(IF(IsLocked(#REF!)*1=1,1,0)) ->  | T40: 1 | U40: 1
L41: 1 | M41: 0 | N41: 0 | O41: 0 | P41: 0 | Q41: 0 | R41: 0 | S41: 0 | T41: 0 | U41: 0
L42: 1 | M42: 0 | N42: 0 | O42: 0 | P42: 0 | Q42: 0 | R42: 0 | S42: 0 | T42: 0 | U42: 0
B43: Please attach a copy of outstanding 8823’s | L43: 1 | M43: 1 | N43: 1 | O43: 1 | P43: 1 | Q43: 1 | R43: 1 | S43: 1 | T43: 1 | U43: 1
B44: (If non-compliance is in Extended Use Period attach a copy of findings letter) | L44: 1 | M44: 1 | N44: 1 | O44: 1 | P44: 1 | Q44: 1 | R44: 1 | S44: 1 | T44: 1 | U44: 1
B45: NHD Compliance Officer: (Completed by staff after application received) | L45: 1 | M45: 1 | N45: 1 | O45: 1 | P45: 1 | Q45: 1 | R45: 1 | S45: 1 | T45: 1 | U45: 1
B46: Name | L46: 1 | M46: 1 | N46: 0 | O46: 0 | P46: 0 | Q46: 0 | R46: 0 | S46: 1 | T46: 1 | U46: 1
B47: Signature | H47: Date: | L47: 1 | M47: 1 | N47: 0 | O47: 0 | P47: 0 | Q47: 0 | R47: 0 | S47: 1 | T47: 0 | U47: 0

Sheet 16 Progress Rpt (hidden)
A1: =Div -> State of Nevada Housing Division | M1: =(IF(IsLocked(B1)*1=1,1,0)) -> 1 | N1: =(IF(IsLocked(C1)*1=1,1,0)) -> 1 | O1: =(IF(IsLocked(D1)*1=1,1,0)) -> 1 | P1: =(IF(IsLocked(E1)*1=1,1,0)) -> 1 | Q1: =(IF(IsLocked(F1)*1=1,1,0)) -> 1 | R1: =(IF(IsLocked(G1)*1=1,1,0)) -> 1 | S1: =(IF(IsLocked(H1)*1=1,1,0)) -> 1 | T1: =(IF(IsLocked(I1)*1=1,1,0)) -> 1 | U1: =(IF(IsLocked(J1)*1=1,1,0)) -> 1
A2: =nhd -> 2017 NHD FUNDING APPLICATION | M2: 1 | N2: 1 | O2: 1 | P2: 1 | Q2: 1 | R2: 1 | S2: 1 | T2: 1 | U2: 1
A3: PROGRESS REPORT | I3: =ProjName -> 0 | M3: 1 | N3: 1 | O3: 1 | P3: 1 | Q3: 1 | R3: 1 | S3: 1 | T3: 1 | U3: 1
G5: Reporting Calendar Quarter # | I5: Year | M5: =(IF(IsLocked(B5)*1=1,1,0)) -> 1 | N5: 1 | O5: 1 | P5: 1 | Q5: 1 | R5: 1 | S5: 0 | T5: 1 | U5: 0
I6: Reporting Date | M6: 1 | N6: 1 | O6: 1 | P6: 1 | Q6: 1 | R6: 1 | S6: 1 | T6: 1 | U6: 0
B7: Complete and submit by day 15 of each new quarter from award announcement until placed in service date. | M7: 1 | N7: 1 | O7: 1 | P7: 1 | Q7: 1 | R7: 1 | S7: 1 | T7: 1 | U7: 1
B8: Applicant/Developer | D8: =Applicant -> 0 | M8: 1 | N8: 1 | O8: 1 | P8: 1 | Q8: 1 | R8: 1 | S8: 1 | T8: 1 | U8: 1
B9: Project Name | D9: =ProjName -> 0 | M9: 1 | N9: 1 | O9: 1 | P9: 1 | Q9: 1 | R9: 1 | S9: 1 | T9: 1 | U9: 1
B10: Project Address | D10: =ProjAddr -> 0 | M10: 1 | N10: 1 | O10: 1 | P10: 1 | Q10: 1 | R10: 1 | S10: 1 | T10: 1 | U10: 1
B11: Project City, Cnty, Zip | D11: =ProjCCZip -> 0 | M11: 1 | N11: 1 | O11: 1 | P11: 1 | Q11: 1 | R11: 1 | S11: 1 | T11: 1 | U11: 1
B12: Tax Identification Number: | E12: =TaxID -> 0 | I12: Restricted Units | J12: =TotUnits -> 0 | M12: 1 | N12: 1 | O12: 1 | P12: 1 | Q12: 1 | R12: 1 | S12: 1 | T12: 1 | U12: 1
B13: IRC Non Profit Set Aside | I13: Total Units | J13: =TotUnits -> 0 | M13: 1 | N13: 1 | O13: 1 | P13: 1 | Q13: 1 | R13: 1 | S13: 1 | T13: 1 | U13: 1
B14: Set Aside
B15: New Construction/Rehab? | I15: Construction %Complete | M15: 1 | N15: 1 | O15: 1 | P15: 1 | Q15: 1 | R15: 1 | S15: 1 | T15: 1 | U15: 0
B16: Credit amount reserved for project | G16: Notes: | M16: =(IF(IsLocked(B16)*1=1,1,0)) -> 1 | N16: =(IF(IsLocked(C16)*1=1,1,0)) -> 1 | O16: 1 | P16: 1 | Q16: 0 | R16: 1 | S16: 0 | T16: 0 | U16: 0
B17: Year of reservation (M/D/YYYY) | M17: =(IF(IsLocked(B17)*1=1,1,0)) -> 1 | N17: =(IF(IsLocked(C17)*1=1,1,0)) -> 1 | O17: =(IF(IsLocked(D17)*1=1,1,0)) -> 1 | P17: =(IF(IsLocked(E17)*1=1,1,0)) -> 1 | Q17: =(IF(IsLocked(F17)*1=1,1,0)) -> 0 | R17: =(IF(IsLocked(G17)*1=1,1,0)) -> 1 | S17: =(IF(IsLocked(H17)*1=1,1,0)) -> 0 | T17: =(IF(IsLocked(I17)*1=1,1,0)) -> 0 | U17: =(IF(IsLocked(J17)*1=1,1,0)) -> 0
B18: Planned Placed in Service Date | M18: 1 | N18: 1 | O18: 1 | P18: 1 | Q18: 0 | R18: 0 | S18: 0 | T18: 0 | U18: 0
B19: Wait list Opening Date | M19: 1 | N19: 1 | O19: 1 | P19: 1 | Q19: 0 | R19: 0 | S19: 0 | T19: 0 | U19: 0
B20: Reserve level, current | G20: =IF(OR(F20=0,F21=0),0,F20/F21) -> 0 | M20: 1 | N20: 1 | O20: 1 | P20: 1 | Q20: 0 | R20: 1 | S20: 1 | T20: 1 | U20: 1
B21: Reserve Application Commitment | M21: 1 | N21: 1 | O21: 1 | P21: 1 | Q21: 0 | R21: 1 | S21: 1 | T21: 1 | U21: 1
B22: Insurances in place? (Y/N) | M22: 1 | N22: 1 | O22: 1 | P22: 1 | Q22: 1 | R22: 1 | S22: 1 | T22: 1 | U22: 1
B23: Summary of Current Project Status | M23: 1 | N23: 1 | O23: 1 | P23: 1 | Q23: 1 | R23: 1 | S23: 1 | T23: 1 | U23: 1
M24: 0 | N24: 0 | O24: 0 | P24: 0 | Q24: 0 | R24: 0 | S24: 0 | T24: 0 | U24: 0
M25: 0 | N25: 0 | O25: 0 | P25: 0 | Q25: 0 | R25: 0 | S25: 0 | T25: 0 | U25: 0
M26: 0 | N26: 0 | O26: 0 | P26: 0 | Q26: 0 | R26: 0 | S26: 0 | T26: 0 | U26: 0
M27: 0 | N27: 0 | O27: 0 | P27: 0 | Q27: 0 | R27: 0 | S27: 0 | T27: 0 | U27: 0
M28: 0 | N28: 0 | O28: 0 | P28: 0 | Q28: 0 | R28: 0 | S28: 0 | T28: 0 | U28: 0
B29: Accomplishments this Quarter | M29: 1 | N29: 1 | O29: 1 | P29: 1 | Q29: 1 | R29: 1 | S29: 1 | T29: 1 | U29: 1
M30: 0 | N30: 0 | O30: 0 | P30: 0 | Q30: 0 | R30: 0 | S30: 0 | T30: 0 | U30: 0
M31: 0 | N31: 0 | O31: 0 | P31: 0 | Q31: 0 | R31: 0 | S31: 0 | T31: 0 | U31: 0
M32: 0 | N32: 0 | O32: 0 | P32: 0 | Q32: 0 | R32: 0 | S32: 0 | T32: 0 | U32: 0
M33: 0 | N33: 0 | O33: 0 | P33: 0 | Q33: 0 | R33: 0 | S33: 0 | T33: 0 | U33: 0
M34: 0 | N34: 0 | O34: 0 | P34: 0 | Q34: 0 | R34: 0 | S34: 0 | T34: 0 | U34: 0
B35: Pending Issues (Schedule, Cost, Legal, Funding/Financing…) | M35: 1 | N35: 1 | O35: 1 | P35: 1 | Q35: 1 | R35: 1 | S35: 1 | T35: 1 | U35: 1
M36: 0 | N36: 0 | O36: 0 | P36: 0 | Q36: 0 | R36: 0 | S36: 0 | T36: 0 | U36: 0
M37: 0 | N37: 0 | O37: 0 | P37: 0 | Q37: 0 | R37: 0 | S37: 0 | T37: 0 | U37: 0
M38: 0 | N38: 0 | O38: 0 | P38: 0 | Q38: 0 | R38: 0 | S38: 0 | T38: 0 | U38: 0
M39: 0 | N39: 0 | O39: 0 | P39: 0 | Q39: 0 | R39: 0 | S39: 0 | T39: 0 | U39: 0
M40: 0 | N40: 0 | O40: 0 | P40: 0 | Q40: 0 | R40: 0 | S40: 0 | T40: 0 | U40: 0
B41: Status of Marketing Plan Implementation | M41: 1 | N41: 1 | O41: 1 | P41: 1 | Q41: 1 | R41: 1 | S41: 1 | T41: 1 | U41: 1
M42: 0 | N42: 0 | O42: 0 | P42: 0 | Q42: 0 | R42: 0 | S42: 0 | T42: 0 | U42: 0
M43: 0 | N43: 0 | O43: 0 | P43: 0 | Q43: 0 | R43: 0 | S43: 0 | T43: 0 | U43: 0
M44: 0 | N44: 0 | O44: 0 | P44: 0 | Q44: 0 | R44: 0 | S44: 0 | T44: 0 | U44: 0
M45: 1 | N45: 1 | O45: 1 | P45: 1 | Q45: 1 | R45: 1 | S45: 1 | T45: 1 | U45: 1
B46: Photos attached (with each quarterly update)
B48: This progress report completed and submitted by (officer or other principal) | M48: 1 | N48: 1 | O48: 1 | P48: 1 | Q48: 1 | R48: 1 | S48: 1 | T48: 1 | U48: 1
B49: Name | M49: 1 | N49: 0 | O49: 0 | P49: 0 | Q49: 0 | R49: 0 | S49: 1 | T49: 1 | U49: 1
B50: Title | M50: 1 | N50: 0 | O50: 0 | P50: 0 | Q50: 0 | R50: 0 | S50: 1 | T50: 1 | U50: 1
B51: Signature | H51: Date: | M51: 1 | N51: 0 | O51: 0 | P51: 0 | Q51: 0 | R51: 0 | S51: 1 | T51: 0 | U51: 0

Sheet Notes (hidden)
A1: =Div -> State of Nevada Housing Division | I1: =ProjName -> 0
A2: =nhd -> 2017 NHD FUNDING APPLICATION
A3: NOTES
A6: 1 | B6: 3/25/15 Changed General Format to Text format for alphanumeric entry on Tab 2 for Number of Buildings/Units
A7: 2 | B7: 3/25/15 Unlocked T or O (Tenant or Owner) paid cell entry on Tab 3 for T or O paid utilities by utility type
A8: 3 | B8: 3/25/15 Added a clarifying note on tab 6 indicating that a Sources-Uses difference due to investor percent ownership may
A9: 4 | B9: be for internal information purposes only.
A10: 5 | B10: 3/25/15 Added "Ineligible Costs" line to show that total from Total Development Costs
A11: 6 | B11: ? Separate TC calculation approaches (eligible basis, gap method) onto the same but new worksheet
A12: 7 | B12: ? Add columns on Schedule for quarterly updates -- if > 30 days
A13: 8 | B13: ? Add columns on Costs for quarterly updates -- if costs increase > 10% or contingency amount
A14: 9 | B14: ? Be sure to see contingency
A15: 10 | B15: ? Add developer fee payoff schedule
A16: 11 | B16: MERGE & REDUCE DUPLICATIVE CALLS FOR #UNITS, SF, ETC., to one worksheet
A17: 12 | B17: 3/16/16 edited links to other files
A18: 13
A19: 14
A20: 15

Sheet System Notes (hidden)
A1: =Div -> State of Nevada Housing Division
A2: =nhd -> 2017 NHD FUNDING APPLICATION
A3: SYSTEM NOTES
A4: =CELL("filename") -> R:\Programs\Tax Credits\Applications\2017 LIHTC Applications\[2017 NHD Application - Final.xlsm]14 Amenities
B6: Date | C6: Wksht | D6: Change/Note
A7: 1 | B7: 2014-03-10 | C7: S11 Amen | D7: Increased decimal places to two
A8: 2 | B8: 2014-03-10 | C8: Self-Scoring | D8: Increased decimal places to two
A9: 3 | B9: 2014-03-10 | C9: Self-Scoring | D9: Added logic to calculate funding/financing requested per unit
A10: 4 | B10: 2014-03-10 | C10: System Notes | D10: Added System Notes
A11: 5 | B11: 2014-03-10 | C11: Market Summary | D11: Added Market Summary
A12: 6 | B12: 2014-03-10 | C12: TOC | D12: Added table of contents hyperlinks for Market Summary and System Notes worksheets
A13: 7 | B13: 2014-03-27 | C13: S6 Uses… | D13: Adjusted formula to calculate supportable tax credit request + misc' formatting adjustments
A14: 8 | B14: 2014-03-27 | C14: S2 | D14: Unit Fraction formula, Col F, changed OR formula out
A15: 9 | D15: Add Proj Rental Assistance, S3
A16: 10 | D16: Add logic for 4% acq and 9% rehab
A17: 11 | D17: Developer fee could be acq' rehab' improvement seller's note, also
A18: 12 | B18: 2015-02-04 | D18: Updated to tie self-scoring sheet w/QAP and Word app part
A19: 13 | B19: 2015-02-04 | D19: Added note re TAMs re what eligible basis includes/excludes
A20: 14 | B20: 2015-02-27 | C20: Pro forma | D20: Separated replacement reserve item from Operating expenses to stand alone but be included in NOI
A21: 15 | B21: 2015-02-27 | C21: Res, I&E, PF | D21: Reordered reserve calc' tab forward then let flow into I&E and PF sheets
A22: 16
A23: 17
A24: 18
A25: 19
A26: 20
A27: 21
A28: 22
A29: 23
A30: 24
A31: 25
A32: 26
A33: 27
A34: 28
A35: 29
A36: 30
A37: 31
A38: 32
A39: 33
A40: 34
A41: 35
A42: 36
A43: 37
A44: 38
A45: 39
A46: 40
A47: 41
A48: 42
A49: 43
A50: 44
A51: 45
A52: 46
A53: 47
A54: 48
A55: 49
A56: 50

Sheet 18 Prop Mgt
A1: =Div -> State of Nevada Housing Division | H1: =ProjName -> 0 | L1: =(IF(IsLocked(A1)*1=1,1,0)) -> 1 | M1: 1 | N1: 1 | O1: 1 | P1: 1 | Q1: 1 | R1: 1 | S1: 1 | T1: 1
A2: =nhd -> 2017 NHD FUNDING APPLICATION | H2: TOC | L2: =(IF(IsLocked(A2)*1=1,1,0)) -> 1 | M2: =(IF(IsLocked(B2)*1=1,1,0)) -> 1 | N2: =(IF(IsLocked(C2)*1=1,1,0)) -> 1 | O2: =(IF(IsLocked(D2)*1=1,1,0)) -> 1 | P2: =(IF(IsLocked(E2)*1=1,1,0)) -> 1 | Q2: =(IF(IsLocked(F2)*1=1,1,0)) -> 1 | R2: =(IF(IsLocked(G2)*1=1,1,0)) -> 1 | S2: =(IF(IsLocked(H2)*1=1,1,0)) -> 1 | T2: =(IF(IsLocked(I2)*1=1,1,0)) -> 1
A3: PROPERTY MANAGEMENT COMPANY INFORMATION | L3: 1 | M3: 1 | N3: 1 | O3: 1 | P3: 1 | Q3: 1 | R3: 1 | S3: 1 | T3: 1
L4: 1 | M4: 1 | N4: 1 | O4: 1 | P4: 1 | Q4: 1 | R4: 1 | S4: 1 | T4: 1
B5: Applicant | D5: =Applicant -> 0 | L5: 1 | M5: 1 | N5: 1 | O5: 1 | P5: 1 | Q5: 1 | R5: 1 | S5: 1 | T5: 1
B6: Project Name | D6: =ProjName -> 0 | L6: 1 | M6: 1 | N6: 1 | O6: 1 | P6: 1 | Q6: 1 | R6: 1 | S6: 1 | T6: 1
B7: Project Address | D7: =ProjAddr -> 0 | L7: 1 | M7: 1 | N7: 1 | O7: 1 | P7: 1 | Q7: 1 | R7: 1 | S7: 1 | T7: 1
B8: Project City, Cnty, Zip | D8: =ProjCCZip -> 0 | L8: 1 | M8: 1 | N8: 1 | O8: 1 | P8: 1 | Q8: 1 | R8: 1 | S8: 1 | T8: 1
L9: 1 | M9: 1 | N9: 1 | O9: 1 | P9: 1 | Q9: 1 | R9: 1 | S9: 1 | T9: 1
A10: Property Management Company | L10: 1 | M10: 1 | N10: 1 | O10: 1 | P10: 1 | Q10: 1 | R10: 1 | S10: 1 | T10: 1
A11: Federal Tax ID # | L11: 1 | M11: 1 | N11: 0 | O11: 0 | P11: 1 | Q11: 1 | R11: 1 | S11: 1 | T11: 1
A12: Name | L12: 1 | M12: 0 | N12: 0 | O12: 0 | P12: 0 | Q12: 0 | R12: 1 | S12: 1 | T12: 1
A13: Address | L13: 1 | M13: 0 | N13: 0 | O13: 0 | P13: 1 | Q13: 1 | R13: 1 | S13: 1 | T13: 1
A14: City | D14: State | F14: Zip Code | L14: 1 | M14: 0 | N14: 0 | O14: 1 | P14: 0 | Q14: 1 | R14: 0 | S14: 1 | T14: 1
L15: 1 | M15: 1 | N15: 1 | O15: 1 | P15: 1 | Q15: 1 | R15: 1 | S15: 1 | T15: 1
A16: Administrative Contact Person | L16: 1 | M16: 1 | N16: 1 | O16: 1 | P16: 1 | Q16: 1 | R16: 1 | S16: 1 | T16: 1
A17: Name | L17: 1 | M17: 0 | N17: 0 | O17: 0 | P17: 0 | Q17: 0 | R17: 1 | S17: 1 | T17: 1
A18: Address | L18: 1 | M18: 0 | N18: 0 | O18: 0 | P18: 1 | Q18: 1 | R18: 1 | S18: 1 | T18: 1
A19: City | D19: State | F19: Zip Code | L19: 1 | M19: 0 | N19: 0 | O19: 1 | P19: 0 | Q19: 1 | R19: 0 | S19: 1 | T19: 1
A20: Telephone | L20: 1 | M20: 1 | N20: 1 | O20: 1 | P20: 1 | Q20: 1 | R20: 1 | S20: 1 | T20: 1
A21: Number | D21: Fax Number | L21: 1 | M21: 0 | N21: 0 | O21: 1 | P21: 1 | Q21: 0 | R21: 0 | S21: 1 | T21: 1
L22: 1 | M22: 1 | N22: 1 | O22: 1 | P22: 1 | Q22: 1 | R22: 1 | S22: 1 | T22: 1
A23: On-Site Contact Name* | L23: 1 | M23: 1 | N23: 1 | O23: 1 | P23: 1 | Q23: 1 | R23: 1 | S23: 1 | T23: 1
A24: Name | L24: 1 | M24: 0 | N24: 0 | O24: 0 | P24: 0 | Q24: 0 | R24: 1 | S24: 1 | T24: 1
A25: Address | F25: (On-Site Contact Address) | L25: 1 | M25: 0 | N25: 0 | O25: 0 | P25: 0 | Q25: 1 | R25: 1 | S25: 1 | T25: 1
A26: City | D26: State | F26: Zip Code | L26: 1 | M26: 0 | N26: 0 | O26: 1 | P26: 0 | Q26: 1 | R26: 0 | S26: 1 | T26: 1
A27: Telephone | L27: 1 | M27: 1 | N27: 1 | O27: 1 | P27: 1 | Q27: 1 | R27: 1 | S27: 1 | T27: 1
A28: Number | D28: Fax Number | L28: 1 | M28: 0 | N28: 0 | O28: 1 | P28: 1 | Q28: 0 | R28: 0 | S28: 1 | T28: 1
L29: 1 | M29: 1 | N29: 1 | O29: 1 | P29: 1 | Q29: 1 | R29: 1 | S29: 1 | T29: 1
A30: Other Contact Person | L30: 1 | M30: 1 | N30: 1 | O30: 1 | P30: 1 | Q30: 1 | R30: 1 | S30: 1 | T30: 1
A31: Name | L31: 1 | M31: 0 | N31: 0 | O31: 0 | P31: 0 | Q31: 0 | R31: 1 | S31: 1 | T31: 1
A32: Address | F32: (On-Site Contact Address) | L32: 1 | M32: 0 | N32: 0 | O32: 0 | P32: 0 | Q32: 1 | R32: 1 | S32: 1 | T32: 1
A33: City | D33: State | F33: Zip Code | L33: 1 | M33: 0 | N33: 0 | O33: 1 | P33: 0 | Q33: 1 | R33: 0 | S33: 1 | T33: 1
A34: Telephone | L34: 1 | M34: 1 | N34: 1 | O34: 1 | P34: 1 | Q34: 1 | R34: 1 | S34: 1 | T34: 1
A35: Number | D35: Fax Number | L35: 1 | M35: 0 | N35: 0 | O35: 1 | P35: 1 | Q35: 0 | R35: 0 | S35: 1 | T35: 1
L36: 1 | M36: 1 | N36: 1 | O36: 1 | P36: 1 | Q36: 1 | R36: 1 | S36: 1 | T36: 1

Sheet 19 AcqRehabConv
A1: =Div -> State of Nevada Housing Division | H1: =ProjName -> 0 | L1: =(IF(IsLocked(A1)*1=1,1,0)) -> 1 | M1: =(IF(IsLocked(B1)*1=1,1,0)) -> 1 | N1: =(IF(IsLocked(C1)*1=1,1,0)) -> 1 | O1: =(IF(IsLocked(D1)*1=1,1,0)) -> 1 | P1: =(IF(IsLocked(E1)*1=1,1,0)) -> 1 | Q1: =(IF(IsLocked(F1)*1=1,1,0)) -> 1 | R1: =(IF(IsLocked(G1)*1=1,1,0)) -> 1 | S1: =(IF(IsLocked(H1)*1=1,1,0)) -> 1 | T1: 1
A2: =nhd -> 2017 NHD FUNDING APPLICATION | H2: TOC | L2: =(IF(IsLocked(A2)*1=1,1,0)) -> 1 | M2: =(IF(IsLocked(B2)*1=1,1,0)) -> 1 | N2: =(IF(IsLocked(C2)*1=1,1,0)) -> 1 | O2: =(IF(IsLocked(D2)*1=1,1,0)) -> 1 | P2: =(IF(IsLocked(E2)*1=1,1,0)) -> 1 | Q2: =(IF(IsLocked(F2)*1=1,1,0)) -> 1 | R2: =(IF(IsLocked(G2)*1=1,1,0)) -> 1 | S2: =(IF(IsLocked(H2)*1=1,1,0)) -> 1 | T2: =(IF(IsLocked(I2)*1=1,1,0)) -> 1
A3: ACQUISITION/REHABILITATION/CONVERSION OF EXISTING BUILDINGS | L3: 1 | M3: 1 | N3: 1 | O3: 1 | P3: 1 | Q3: 1 | R3: 1 | S3: 1 | T3: 1
L4: =(IF(IsLocked(A4)*1=1,1,0)) -> 1 | M4: =(IF(IsLocked(B4)*1=1,1,0)) -> 1 | N4: =(IF(IsLocked(C4)*1=1,1,0)) -> 1 | O4: =(IF(IsLocked(D4)*1=1,1,0)) -> 1 | P4: =(IF(IsLocked(E4)*1=1,1,0)) -> 1 | Q4: =(IF(IsLocked(F4)*1=1,1,0)) -> 1 | R4: =(IF(IsLocked(G4)*1=1,1,0)) -> 1 | S4: =(IF(IsLocked(H4)*1=1,1,0)) -> 1 | T4: =(IF(IsLocked(I4)*1=1,1,0)) -> 1
B5: Applicant | D5: =Applicant -> 0 | L5: 1 | M5: 1 | N5: 1 | O5: 1 | P5: 1 | Q5: 1 | R5: 1 | S5: 1 | T5: 1
B6: Project Name | D6: =ProjName -> 0 | L6: 1 | M6: 1 | N6: 1 | O6: 1 | P6: 1 | Q6: 1 | R6: 1 | S6: 1 | T6: 1
B7: Project Address | D7: =ProjAddr -> 0 | L7: 1 | M7: 1 | N7: 1 | O7: 1 | P7: 1 | Q7: 1 | R7: 1 | S7: 1 | T7: 1
B8: Project City, Cnty, Zip | D8: =ProjCCZip -> 0 | L8: 1 | M8: 1 | N8: 1 | O8: 1 | P8: 1 | Q8: 1 | R8: 1 | S8: 1 | T8: 1
L9: 1 | M9: 1 | N9: 1 | O9: 1 | P9: 1 | Q9: 1 | R9: 1 | S9: 1 | T9: 1
B10: Is this an Acquisition/Rehabilitation project? | L10: 1 | M10: 1 | N10: 1 | O10: 1 | P10: 1 | Q10: 1 | R10: 1 | S10: 1 | T10: 1
L11: 1 | M11: 1 | N11: 1 | O11: 1 | P11: 1 | Q11: 1 | R11: 1 | S11: 1 | T11: 1
B12: How many buildings will be acquired for the project? | L12: 1 | M12: 1 | N12: 1 | O12: 1 | P12: 1 | Q12: 0 | R12: 1 | S12: 1 | T12: 1
L13: 1 | M13: 1 | N13: 1 | O13: 1 | P13: 1 | Q13: 1 | R13: 1 | S13: 1 | T13: 1
B14: Are all the buildings currently under control for the project? | L14: 1 | M14: 1 | N14: 1 | O14: 1 | P14: 1 | Q14: 1 | R14: 1 | S14: 1 | T14: 1
L15: 1 | M15: 1 | N15: 1 | O15: 1 | P15: 1 | Q15: 1 | R15: 1 | S15: 1 | T15: 1
B16: If no, how many buildings are under control for the project? | L16: 1 | M16: 1 | N16: 1 | O16: 1 | P16: 1 | Q16: 1 | R16: 0 | S16: 1 | T16: 1
L17: 1 | M17: 1 | N17: 1 | O17: 1 | P17: 1 | Q17: 1 | R17: 1 | S17: 1 | T17: 1
B18: When will the rest of the buildings be under control for acquisition? | L18: 1 | M18: 1 | N18: 1 | O18: 1 | P18: 1 | Q18: 1 | R18: 0 | S18: 0 | T18: 0
L19: 1 | M19: 1 | N19: 1 | O19: 1 | P19: 1 | Q19: 1 | R19: 1 | S19: 1 | T19: 1
B20: Address of Buildings Under Control | E20: Type of Control | F20: Expiration Date | G20: Number of Units | H20: Acquisition Cost | L20: 1 | M20: 1 | N20: 1 | O20: 1 | P20: 1 | Q20: 1 | R20: 1 | S20: 1 | T20: 1
L21: 1 | M21: 0 | N21: 0 | O21: 0 | P21: 0 | Q21: 0 | R21: 0 | S21: 0 | T21: 0
L22: 1 | M22: 0 | N22: 0 | O22: 0 | P22: 0 | Q22: 0 | R22: 0 | S22: 0 | T22: 0
L23: 1 | M23: 0 | N23: 0 | O23: 0 | P23: 0 | Q23: 0 | R23: 0 | S23: 0 | T23: 0
L24: 1 | M24: 0 | N24: 0 | O24: 0 | P24: 0 | Q24: 0 | R24: 0 | S24: 0 | T24: 0
L25: 1 | M25: 0 | N25: 0 | O25: 0 | P25: 0 | Q25: 0 | R25: 0 | S25: 0 | T25: 0
L26: 1 | M26: 0 | N26: 0 | O26: 0 | P26: 0 | Q26: 0 | R26: 0 | S26: 0 | T26: 0
L27: 1 | M27: 0 | N27: 0 | O27: 0 | P27: 0 | Q27: 0 | R27: 0 | S27: 0 | T27: 0
L28: 1 | M28: 1 | N28: 1 | O28: 1 | P28: 1 | Q28: 1 | R28: 1 | S28: 1 | T28: 1
B29: Attach additional sheet(s) if necessary | L29: 1 | M29: 1 | N29: 1 | O29: 1 | P29: 1 | Q29: 1 | R29: 1 | S29: 1 | T29: 1
L30: 1 | M30: 1 | N30: 1 | O30: 1 | P30: 1 | Q30: 1 | R30: 1 | S30: 1 | T30: 1
B31: Acquisition/Rehab Projects need energy requirement and cost data info completed within 90 | L31: 1 | M31: 1 | N31: 1 | O31: 1 | P31: 1 | Q31: 1 | R31: 1 | S31: 1 | T31: 1
B32: days if a reservation of LIHTC is received. (Section 12.1.7 of the QAP.) | L32: 1 | M32: 1 | N32: 1 | O32: 1 | P32: 1 | Q32: 1 | R32: 1 | S32: 1 | T32: 1
L33: 1 | M33: 1 | N33: 1 | O33: 1 | P33: 1 | Q33: 1 | R33: 1 | S33: 1 | T33: 1
B34: Sub-Section A | C34: Acquisition Information | L34: 1 | M34: 1 | N34: 1 | O34: 1 | P34: 1 | Q34: 1 | R34: 1 | S34: 1 | T34: 1
L35: 1 | M35: 1 | N35: 1 | O35: 1 | P35: 1 | Q35: 1 | R35: 1 | S35: 1 | T35: 1
B36: Provide the information listed below concerning the acquisition of building(s) for the project. | L36: 1 | M36: 1 | N36: 1 | O36: 1 | P36: 1 | Q36: 1 | R36: 1 | S36: 1 | T36: 1
B37: Building(s) acquired or to be acquired from 0 Related Party 0 Unrelated Party | L37: 1 | M37: 1 | N37: 1 | O37: 1 | P37: 1 | Q37: 1 | R37: 1 | S37: 1 | T37: 1
B38: (All must pass 50% test) | L38: 1 | M38: 1 | N38: 1 | O38: 1 | P38: 1 | Q38: 1 | R38: 1 | S38: 1 | T38: 1
L39: 1 | M39: 1 | N39: 1 | O39: 1 | P39: 1 | Q39: 1 | R39: 1 | S39: 1 | T39: 1
B40: Identity of Related Party | L40: 1 | M40: 1 | N40: 1 | O40: 1 | P40: 1 | Q40: 1 | R40: 1 | S40: 1 | T40: 1
B41: Name | L41: 1 | M41: 1 | N41: 1 | O41: 0 | P41: 0 | Q41: 0 | R41: 0 | S41: 0 | T41: 0
B42: Address | L42: 1 | M42: 1 | N42: 1 | O42: 0 | P42: 0 | Q42: 0 | R42: 0 | S42: 1 | T42: 1
B43: City | F43: State | H43: Zip Code | L43: 1 | M43: 1 | N43: 1 | O43: 0 | P43: 0 | Q43: 1 | R43: 0 | S43: 1 | T43: 0
B44: Telephone Number | F44: Fax Number | L44: 1 | M44: 1 | N44: 1 | O44: 0 | P44: 0 | Q44: 1 | R44: 0 | S44: 0 | T44: 1
B45: Description of relationship | L45: 1 | M45: 1 | N45: 1 | O45: 1 | P45: 1 | Q45: 1 | R45: 1 | S45: 1 | T45: 1
L46: 1 | M46: 0 | N46: 0 | O46: 0 | P46: 0 | Q46: 0 | R46: 0 | S46: 0 | T46: 0
L47: 1 | M47: 0 | N47: 0 | O47: 0 | P47: 0 | Q47: 0 | R47: 0 | S47: 0 | T47: 0
L48: 1 | M48: 0 | N48: 0 | O48: 0 | P48: 0 | Q48: 0 | R48: 0 | S48: 0 | T48: 0
L49: 1 | M49: 0 | N49: 0 | O49: 0 | P49: 0 | Q49: 0 | R49: 0 | S49: 0 | T49: 0
L50: 1 | M50: 0 | N50: 0 | O50: 0 | P50: 0 | Q50: 0 | R50: 0 | S50: 0 | T50: 0
L51: 1 | M51: 0 | N51: 0 | O51: 0 | P51: 0 | Q51: 0 | R51: 0 | S51: 0 | T51: 0
L52: 1 | M52: 1 | N52: 1 | O52: 1 | P52: 1 | Q52: 1 | R52: 1 | S52: 1 | T52: 1
B53: Building(s) acquired/to be acquired with Buyer's Basis: | L53: 1 | M53: 1 | N53: 1 | O53: 1 | P53: 1 | Q53: 1 | R53: 1 | S53: 1 | T53: 1
B54: Determined with reference to Seller's Basis | L54: 1 | M54: 1 | N54: 1 | O54: 1 | P54: 1 | Q54: 1 | R54: 1 | S54: 1 | T54: 1
B55: Undetermined with reference to Seller's Basis | L55: 1 | M55: 1 | N55: 1 | O55: 1 | P55: 1 | Q55: 1 | R55: 1 | S55: 1 | T55: 1
L56: 1 | M56: 1 | N56: 1 | O56: 1 | P56: 1 | Q56: 1 | R56: 1 | S56: 1 | T56: 1
B57: List below by building address, the date the building was placed in service, date the building was or is | L57: 1 | M57: 1 | N57: 1 | O57: 1 | P57: 1 | Q57: 1 | R57: 1 | S57: 1 | T57: 1
B58: planned for acquisition, and the number of years between the date the building was placed in service | L58: 1 | M58: 1 | N58: 1 | O58: 1 | P58: 1 | Q58: 1 | R58: 1 | S58: 1 | T58: 1
B59: and date of acquisition. Attach additional sheet(s) if necessary. | L59: 1 | M59: 1 | N59: 1 | O59: 1 | P59: 1 | Q59: 1 | R59: 1 | S59: 1 | T59: 1
B60: Building Address | F60: Original | G60: Proposed | H60: Number of Years | L60: 1 | M60: 1 | N60: 1 | O60: 1 | P60: 1 | Q60: 1 | R60: 1 | S60: 1 | T60: 1
F61: Placed in | G61: Date of | H61: Between Placed | L61: 1 | M61: 1 | N61: 1 | O61: 1 | P61: 1 | Q61: 1 | R61: 1 | S61: 1 | T61: 1
F62: Service Date | G62: Acquisition | H62: in Service | L62: 1 | M62: 1 | N62: 1 | O62: 1 | P62: 1 | Q62: 1 | R62: 1 | S62: 1 | T62: 1
H63: And Acquisition | L63: 1 | M63: 1 | N63: 1 | O63: 1 | P63: 1 | Q63: 1 | R63: 1 | S63: 1 | T63: 1
L64: 1 | M64: 0 | N64: 0 | O64: 0 | P64: 0 | Q64: 0 | R64: 0 | S64: 0 | T64: 0
L65: 1 | M65: 0 | N65: 0 | O65: 0 | P65: 0 | Q65: 0 | R65: 0 | S65: 0 | T65: 0
L66: 1 | M66: 0 | N66: 0 | O66: 0 | P66: 0 | Q66: 0 | R66: 0 | S66: 0 | T66: 0
L67: 1 | M67: 0 | N67: 0 | O67: 0 | P67: 0 | Q67: 0 | R67: 0 | S67: 0 | T67: 0
L68: =(IF(IsLocked(A68)*1=1,1,0)) -> 1 | M68: =(IF(IsLocked(B68)*1=1,1,0)) -> 0 | N68: =(IF(IsLocked(C68)*1=1,1,0)) -> 0 | O68: =(IF(IsLocked(D68)*1=1,1,0)) -> 0 | P68: =(IF(IsLocked(E68)*1=1,1,0)) -> 0 | Q68: =(IF(IsLocked(F68)*1=1,1,0)) -> 0 | R68: =(IF(IsLocked(G68)*1=1,1,0)) -> 0 | S68: =(IF(IsLocked(H68)*1=1,1,0)) -> 0 | T68: =(IF(IsLocked(I68)*1=1,1,0)) -> 0
L69: 1 | M69: 0 | N69: 0 | O69: 0 | P69: 0 | Q69: 0 | R69: 0 | S69: 0 | T69: 0
L70: 1 | M70: 1 | N70: 1 | O70: 1 | P70: 1 | Q70: 1 | R70: 1 | S70: 1 | T70: 1
B71: Sub-Section B | D71: Relocation Information | L71: 1 | M71: 1 | N71: 1 | O71: 1 | P71: 1 | Q71: 1 | R71: 1 | S71: 1 | T71: 1
L72: 1 | M72: 1 | N72: 1 | O72: 1 | P72: 1 | Q72: 1 | R72: 1 | S72: 1 | T72: 1
B73: Provide the following information concerning any relocation plans for the project. | L73: 1 | M73: 1 | N73: 1 | O73: 1 | P73: 1 | Q73: 1 | R73: 1 | S73: 1 | T73: 1
B74: Number of tenants involved | L74: 1 | M74: 1 | N74: 1 | O74: 0 | P74: 1 | Q74: 1 | R74: 1 | S74: 1 | T74: 1
B75: The total estimated cost of relocation | L75: 1 | M75: 1 | N75: 1 | O75: 1 | P75: 0 | Q75: 0 | R75: 1 | S75: 1 | T75: 1
B76: The estimated date that the relocation will be complete | L76: 1 | M76: 1 | N76: 1 | O76: 1 | P76: 1 | Q76: 0 | R76: 1 | S76: 1 | T76: 1
L77: 1 | M77: 1 | N77: 1 | O77: 1 | P77: 1 | Q77: 1 | R77: 1 | S77: 1 | T77: 1
B78: Name of the | L78: 1 | M78: 1 | N78: 1 | O78: 1 | P78: 1 | Q78: 1 | R78: 1 | S78: 1 | T78: 1
B79: relocation coordinator | L79: 1 | M79: 1 | N79: 1 | O79: 0 | P79: 0 | Q79: 0 | R79: 0 | S79: 0 | T79: 0
B80: Address | L80: 1 | M80: 1 | N80: 1 | O80: 0 | P80: 0 | Q80: 0 | R80: 0 | S80: 1 | T80: 1
B81: City | F81: State | H81: Zip Code | L81: 1 | M81: 1 | N81: 1 | O81: 0 | P81: 0 | Q81: 1 | R81: 0 | S81: 1 | T81: 0
B82: Telephone Number | F82: Fax Number | L82: 1 | M82: 1 | N82: 1 | O82: 0 | P82: 0 | Q82: 1 | R82: 0 | S82: 0 | T82: 1
B83: Other pertinent information | L83: 1 | M83: 1 | N83: 1 | O83: 1 | P83: 1 | Q83: 1 | R83: 1 | S83: 1 | T83: 1
L84: 1 | M84: 0 | N84: 0 | O84: 0 | P84: 0 | Q84: 0 | R84: 0 | S84: 0 | T84: 0
L85: 1 | M85: 0 | N85: 0 | O85: 0 | P85: 0 | Q85: 0 | R85: 0 | S85: 0 | T85: 0
L86: 1 | M86: 0 | N86: 0 | O86: 0 | P86: 0 | Q86: 0 | R86: 0 | S86: 0 | T86: 0
L87: 1 | M87: 0 | N87: 0 | O87: 0 | P87: 0 | Q87: 0 | R87: 0 | S87: 0 | T87: 0
L88: 1 | M88: 0 | N88: 0 | O88: 0 | P88: 0 | Q88: 0 | R88: 0 | S88: 0 | T88: 0
L89: 1 | M89: 0 | N89: 0 | O89: 0 | P89: 0 | Q89: 0 | R89: 0 | S89: 0 | T89: 0
L90: 1 | M90: 1 | N90: 1 | O90: 1 | P90: 1 | Q90: 1 | R90: 1 | S90: 1 | T90: 1
L91: 1 | M91: 1 | N91: 1 | O91: 1 | P91: 1 | Q91: 1 | R91: 1 | S91: 1 | T91: 1
L92: 1 | M92: 1 | N92: 1 | O92: 1 | P92: 1 | Q92: 1 | R92: 1 | S92: 1 | T92: 1
L93: 1 | M93: 1 | N93: 1 | O93: 1 | P93: 1 | Q93: 1 | R93: 1 | S93: 1 | T93: 1
L94: 1 | M94: 1 | N94: 1 | O94: 1 | P94: 1 | Q94: 1 | R94: 1 | S94: 1 | T94: 1
L95: 1 | M95: 1 | N95: 1 | O95: 1 | P95: 1 | Q95: 1 | R95: 1 | S95: 1 | T95: 1
L96: 1 | M96: 1 | N96: 1 | O96: 1 | P96: 1 | Q96: 1 | R96: 1 | S96: 1 | T96: 1
L97: 1 | M97: 1 | N97: 1 | O97: 1 | P97: 1 | Q97: 1 | R97: 1 | S97: 1 | T97: 1
L98: 1 | M98: 1 | N98: 1 | O98: 1 | P98: 1 | Q98: 1 | R98: 1 | S98: 1 | T98: 1
L99: 1 | M99: 1 | N99: 1 | O99: 1 | P99: 1 | Q99: 1 | R99: 1 | S99: 1 | T99: 1
L100: 1 | M100: 1 | N100: 1 | O100: 1 | P100: 1 | Q100: 1 | R100: 1 | S100: 1 | T100: 1

Sheet 20 Mxd Inc Project Analysis
A1: =Div -> State of Nevada Housing Division | N1: =ProjName -> 0 | Q1: =(IF(IsLocked(A1)*1=1,1,0)) -> 1 | R1: =(IF(IsLocked(B1)*1=1,1,0)) -> 1 | S1: =(IF(IsLocked(C1)*1=1,1,0)) -> 1 | T1: =(IF(IsLocked(D1)*1=1,1,0)) -> 1 | U1: =(IF(IsLocked(E1)*1=1,1,0)) -> 1 | V1: =(IF(IsLocked(F1)*1=1,1,0)) -> 1 | W1: =(IF(IsLocked(G1)*1=1,1,0)) -> 1 | X1: =(IF(IsLocked(I1)*1=1,1,0)) -> 1 | Y1: =(IF(IsLocked(J1)*1=1,1,0)) -> 1 | Z1: =(IF(IsLocked(K1)*1=1,1,0)) -> 1 | AA1: =(IF(IsLocked(L1)*1=1,1,0)) -> 1 | AB1: =(IF(IsLocked(M1)*1=1,1,0)) -> 1 | AC1: =(IF(IsLocked(N1)*1=1,1,0)) -> 1
A2: =nhd -> 2017 NHD FUNDING APPLICATION | N2: TOC | Q2: 1 | R2: 1 | S2: 1 | T2: 1 | U2: 1 | V2: 1 | W2: 1 | X2: 1 | Y2: 1 | Z2: 1 | AA2: 1 | AB2: 1 | AC2: 1
A3: MIXED-INCOME PROJECT ANALYSIS | Q3: 1 | R3: 1 | S3: 1 | T3: 1 | U3: 1 | V3: 1 | W3: 1 | X3: 1 | Y3: 1 | Z3: 1 | AA3: 1 | AB3: 1 | AC3: 1
A4: For Mixed-Income Project Applications only
Q5: =(IF(IsLocked(A5)*1=1,1,0)) -> 1 | R5: =(IF(IsLocked(B5)*1=1,1,0)) -> 1 | S5: =(IF(IsLocked(C5)*1=1,1,0)) -> 1 | T5: =(IF(IsLocked(D5)*1=1,1,0)) -> 1 | U5: =(IF(IsLocked(E5)*1=1,1,0)) -> 1 | V5: =(IF(IsLocked(F5)*1=1,1,0)) -> 1 | W5: =(IF(IsLocked(G5)*1=1,1,0)) -> 1 | X5: =(IF(IsLocked(I5)*1=1,1,0)) -> 1 | Y5: =(IF(IsLocked(J5)*1=1,1,0)) -> 1 | Z5: =(IF(IsLocked(K5)*1=1,1,0)) -> 1 | AA5: =(IF(IsLocked(L5)*1=1,1,0)) -> 1 | AB5: =(IF(IsLocked(M5)*1=1,1,0)) -> 1 | AC5: =(IF(IsLocked(N5)*1=1,1,0)) -> 1
C6: Part One | D6: Project Information | Q6: 1 | R6: 1 | S6: 1 | T6: 1 | U6: 1 | V6: 1 | W6: 1 | X6: 1 | Y6: 1 | Z6: 1 | AA6: 1 | AB6: 1 | AC6: 1
C7: Project Name | D7: =ProjName -> 0 | Q7: 1 | R7: 1 | S7: 1 | T7: 1 | U7: 1 | V7: 1 | W7: 1 | X7: 1 | Y7: 1 | Z7: 1 | AA7: 1 | AB7: 1 | AC7: 1
C8: Project Address | D8: =ProjAddr -> 0 | Q8: 1 | R8: 1 | S8: 1 | T8: 1 | U8: 1 | V8: 1 | W8: 1 | X8: 1 | Y8: 1 | Z8: 1 | AA8: 1 | AB8: 1 | AC8: 1
C9: Project City, Cnty, Zp | D9: =ProjCCZip -> 0 | Q9: 1 | R9: 1 | S9: 1 | T9: 1 | U9: 1 | V9: 1 | W9: 1 | X9: 1 | Y9: 1 | Z9: 1 | AA9: 1 | AB9: 1 | AC9: 1
C10: Applicant/ | D10: =Applicant -> 0 | Q10: 1 | R10: 1 | S10: 1 | T10: 1 | U10: 1 | V10: 1 | W10: 1 | X10: 1 | Y10: 1 | Z10: 1 | AA10: 1 | AB10: 1 | AC10: 1
C11: Co-Applicant | Q11: 1 | R11: 1 | S11: 1 | T11: 1 | U11: 1 | V11: 1 | W11: 1 | X11: 1 | Y11: 1 | Z11: 1 | AA11: 1 | AB11: 1 | AC11: 1
Q12: 1 | R12: 1 | S12: 1 | T12: 1 | U12: 1 | V12: 1 | W12: 1 | X12: 1 | Y12: 1 | Z12: 1 | AA12: 1 | AB12: 1 | AC12: 1
C13: Project Type | F13: Project TC Minimum Set-Aside Election | Q13: 1 | R13: 1 | S13: 1 | T13: 1 | U13: 1 | V13: 1 | W13: 1 | X13: 1 | Y13: 1 | Z13: 1 | AA13: 1 | AB13: 1 | AC13: 1
Q14: 1 | R14: 1 | S14: 1 | T14: 1 | U14: 1 | V14: 1 | W14: 1 | X14: 1 | Y14: 1 | Z14: 1 | AA14: 1 | AB14: 1 | AC14: 1
Q15: =(IF(IsLocked(A15)*1=1,1,0)) -> 1 | R15: =(IF(IsLocked(B15)*1=1,1,0)) -> 1 | S15: =(IF(IsLocked(C15)*1=1,1,0)) -> 1 | T15: =(IF(IsLocked(D15)*1=1,1,0)) -> 1 | U15: =(IF(IsLocked(E15)*1=1,1,0)) -> 1 | V15: =(IF(IsLocked(F15)*1=1,1,0)) -> 1 | W15: =(IF(IsLocked(G15)*1=1,1,0)) -> 1 | X15: =(IF(IsLocked(I15)*1=1,1,0)) -> 1 | Y15: =(IF(IsLocked(J15)*1=1,1,0)) -> 1 | Z15: =(IF(IsLocked(K15)*1=1,1,0)) -> 1 | AA15: =(IF(IsLocked(L15)*1=1,1,0)) -> 1 | AB15: =(IF(IsLocked(M15)*1=1,1,0)) -> 1 | AC15: =(IF(IsLocked(N15)*1=1,1,0)) -> 1
C16: Projected Eligible Basis | Q16: =(IF(IsLocked(A16)*1=1,1,0)) -> 1 | R16: =(IF(IsLocked(B16)*1=1,1,0)) -> 1 | S16: =(IF(IsLocked(C16)*1=1,1,0)) -> 1 | T16: =(IF(IsLocked(D16)*1=1,1,0)) -> 1 | U16: =(IF(IsLocked(E16)*1=1,1,0)) -> 0 | V16: =(IF(IsLocked(F16)*1=1,1,0)) -> 1 | W16: =(IF(IsLocked(G16)*1=1,1,0)) -> 1 | X16: =(IF(IsLocked(I16)*1=1,1,0)) -> 1 | Y16: =(IF(IsLocked(J16)*1=1,1,0)) -> 1 | Z16: =(IF(IsLocked(K16)*1=1,1,0)) -> 1 | AA16: =(IF(IsLocked(L16)*1=1,1,0)) -> 1 | AB16: =(IF(IsLocked(M16)*1=1,1,0)) -> 1 | AC16: =(IF(IsLocked(N16)*1=1,1,0)) -> 1
C17: Projected Qualified Basis | Q17: 1 | R17: 1 | S17: 1 | T17: 1 | U17: 0 | V17: 1 | W17: 1 | X17: 1 | Y17: 1 | Z17: 1 | AA17: 1 | AB17: 1 | AC17: 1
Q18: 1 | R18: 1 | S18: 1 | T18: 1 | U18: 1 | V18: 1 | W18: 1 | X18: 1 | Y18: 1 | Z18: 1 | AA18: 1 | AB18: 1 | AC18: 1
C19: Residential Types | D19: # Units | E19: % Units | F19: Sq Ft | G19: % Sq Ft | I19: Unit Mix | J19: # Units | K19: % Units | L19: Total sf | M19: % Units | N19: SF/U | Q19: 1 | R19: 1 | S19: 1 | T19: 1 | U19: 1 | V19: 1 | W19: 1 | X19: 1 | Y19: 1 | Z19: 1 | AA19: 1 | AB19: 1 | AC19: 1
C20: Restricted TC* | D20: =SUMIF($C$30:$C$44,$C49,F$30:F$44) -> 0 | E20: =IF(D$23=0,0,D20/D$23) -> 0 | F20: =SUMIF($C$30:$C$44,$C49,I$30:I$44) -> 0 | G20: =IF(F$23=0,0,F20/F$23) -> 0 | I20: Studios | J20: =SUM(SUMIF($D$30:$D$44,$I20,$F$30:$F$44)) -> 0 | K20: =IF(J$26=0,0,J20/J$26) -> 0 | L20: =SUM(SUMIF($D$30:$D$44,$I20,$I$30:$I$44)) -> 0 | M20: =IF(L$26=0,0,L20/L$26) -> 0 | N20: =IF(J20=0,0,L20/J20) -> 0 | Q20: 1 | R20: 1 | S20: 1 | T20: 1 | U20: 1 | V20: 1 | W20: 1 | X20: 1 | Y20: 1 | Z20: 1 | AA20: 1 | AB20: 1 | AC20: 1
C21: Market | D21: =SUMIF($C$30:$C$44,C50,F$30:F$44) -> 0 | E21: =IF(D$23=0,0,D21/D$23) -> 0 | F21: =SUMIF($C$30:$C$44,$C50,I$30:I$44) -> 0 | G21: =IF(F$23=0,0,F21/F$23) -> 0 | I21: 1 | J21: =SUM(SUMIF($D$30:$D$44,I21,$F$30:$F$44)) -> 0 | K21: =IF(J$26=0,0,J21/J$26) -> 0 | L21: =SUM(SUMIF($D$30:$D$44,I21,$I$30:$I$44)) -> 0 | M21: =IF(L$26=0,0,L21/L$26) -> 0 | N21: 0 | Q21: 1 | R21: 1 | S21: 1 | T21: 1 | U21: 1 | V21: 1 | W21: 1 | X21: 1 | Y21: 1 | Z21: 1 | AA21: 1 | AB21: 1 | AC21: 1
C22: Management | D22: =SUMIF($C$30:$C$44,C51,F$30:F$44) -> 0 | E22: =IF(D$23=0,0,D22/D$23) -> 0 | F22: =SUMIF($C$30:$C$44,$C51,I$30:I$44) -> 0 | G22: 0 | I22: 2 | J22: 0 | K22: 0 | L22: =SUM(SUMIF($D$30:$D$44,I22,$I$30:$I$44)) -> 0 | M22: 0 | N22: 0 | Q22: 1 | R22: 1 | S22: 1 | T22: 1 | U22: 1 | V22: 1 | W22: 1 | X22: 1 | Y22: 1 | Z22: 1 | AA22: 1 | AB22: 1 | AC22: 1
C23: Total Residential | D23: =SUM(D20:D22) -> 0 | E23: =IF(D$23=0,0,D23/D$23) -> 0 | F23: =SUM(F20:F22) -> 0 | G23: 0 | I23: 3 | J23: 0 | K23: 0 | L23: =SUM(SUMIF($D$30:$D$44,I23,$I$30:$I$44)) -> 0 | M23: 0 | N23: 0 | Q23: 1 | R23: 1 | S23: 1 | T23: 1 | U23: 1 | V23: 1 | W23: 1 | X23: 1 | Y23: 1 | Z23: 1 | AA23: 1 | AB23: 1 | AC23: 1
D24: =IF(D23<>J26,"Check total","ok") -> ok | I24: 4 | J24: 0 | K24: 0 | L24: =SUM(SUMIF($D$30:$D$44,I24,$I$30:$I$44)) -> 0 | M24: 0 | N24: 0 | Q24: 1 | R24: 1 | S24: 1 | T24: 1 | U24: 1 | V24: 1 | W24: 1 | X24: 1 | Y24: 1 | Z24: 1 | AA24: 1 | AB24: 1 | AC24: 1
C25: * Minimum 40% required of Restricted TC | I25: Other | J25: 0 | K25: 0 | L25: =SUM(SUMIF($D$30:$D$44,I25,$I$30:$I$44)) -> 0 | M25: 0 | N25: 0 | Q25: 1 | R25: 1 | S25: 1 | T25: 1 | U25: 1 | V25: 1 | W25: 1 | X25: 1 | Y25: 1 | Z25: 1 | AA25: 1 | AB25: 1 | AC25: 1
J26: =SUM(J20:J25) -> 0 | K26: 0 | L26: =SUM(L20:L25) -> 0 | M26: 0 | N26: 0 | Q26: 1 | R26: 1 | S26: 1 | T26: 1 | U26: 1 | V26: 1 | W26: 1 | X26: 1 | Y26: 1 | Z26: 1 | AA26: 1 | AB26: 1 | AC26: 1
Q27: 1 | R27: 1 | S27: 1 | T27: 1 | U27: 1 | V27: 1 | W27: 1 | X27: 1 | Y27: 1 | Z27: 1 | AA27: 1 | AB27: 1 | AC27: 1
D28: # | E28: # | F28: Unit | G28: Square | I28: Total | J28: AMI | K28: Utility | L28: Anticipated | M28: Anticipated | N28: Proposed | Q28: 1 | R28: 1 | S28: 1 | T28: 1 | U28: 1 | V28: 1 | W28: 1 | X28: 1 | Y28: 1 | Z28: 1 | AA28: 1 | AB28: 1 | AC28: 1 | AF28: Total | AG28: Mandatory | AH28: Utility | AI28: Owner | AJ28: Net | AK28: Max' AMI
C29: Type | D29: Bedrms | E29: Bathrms | F29: Count | G29: Ft/u | I29: Sq Ft | J29: Max % | K29: Allowance | L29: TC Rent | M29: Market Rent | N29: Gr' Rent??? | Q29: 1 | R29: 1 | S29: 1 | T29: 1 | U29: 1 | V29: 1 | W29: 1 | X29: 1 | Y29: 1 | Z29: 1 | AA29: 1 | AB29: 1 | AC29: 1 | AF29: Gr' Rent | AG29: Charges* | AH29: Allowance | AI29: Paid? y/n | AJ29: Rent/mo | AK29: Gr' Rent
A30: 1 | C30: r | D30: 0 | E30: 0 | F30: 0 | G30: 0 | I30: =+G30*F30 -> 0 | J30: 0 | K30: 0 | L30: 0 | M30: 0 | N30: 0 | Q30: 1 | R30: 1 | S30: 0 | T30: 0 | U30: 0 | V30: 0 | W30: 0 | X30: 0 | Y30: 0 | Z30: 0 | AA30: 0 | AB30: 0 | AC30: 0 | AF30: =+N30*F30 -> 0 | AH30: 0 | AI30: Y | AJ30: =N30-IF(AI30="n",AH30,0) -> 0 | AK30: 461
A31: 2 | C31: r | D31: 0 | E31: 0 | F31: 0 | G31: 0 | I31: =+G31*F31 -> 0 | J31: 0 | K31: 0 | L31: 0 | M31: 0 | N31: 0 | Q31: 1 | R31: 1 | S31: 0 | T31: 0 | U31: 0 | V31: 0 | W31: 0 | X31: 0 | Y31: 0 | Z31: 0 | AA31: 0 | AB31: 0 | AC31: 0 | AF31: 0 | AH31: 0 | AJ31: 0
A32: 3 | C32: r | D32: 0 | E32: 0 | F32: 0 | G32: 0 | I32: 0 | J32: 0 | K32: 0 | L32: 0 | M32: 0 | N32: 0 | Q32: 1 | R32: 1 | S32: 0 | T32: 0 | U32: 0 | V32: 0 | W32: 0 | X32: 0 | Y32: 0 | Z32: 0 | AA32: 0 | AB32: 0 | AC32: 0 | AF32: 0 | AH32: 0 | AJ32: 0
A33: 4 | C33: r | D33: 0 | E33: 0 | F33: 0 | G33: 0 | I33: 0 | J33: 0 | K33: 0 | L33: 0 | M33: 0 | N33: 0 | Q33: 1 | R33: 1 | S33: 0 | T33: 0 | U33: 0 | V33: 0 | W33: 0 | X33: 0 | Y33: 0 | Z33: 0 | AA33: 0 | AB33: 0 | AC33: 0 | AF33: 0 | AH33: 0 | AJ33: 0
A34: 5 | C34: r | D34: 0 | E34: 0 | F34: 0 | G34: 0 | I34: 0 | J34: 0 | K34: 0 | L34: 0 | M34: 0 | N34: 0 | Q34: 1 | R34: 1 | S34: 0 | T34: 0 | U34: 0 | V34: 0 | W34: 0 | X34: 0 | Y34: 0 | Z34: 0 | AA34: 0 | AB34: 0 | AC34: 0 | AF34: 0 | AH34: 0 | AJ34: 0
A35: 6 | C35: r | D35: 0 | E35: 0 | F35: 0 | G35: 0 | I35: 0 | J35: 0 | K35: 0 | L35: 0 | M35: 0 | N35: 0 | Q35: 1 | R35: 1 | S35: 0 | T35: 0 | U35: 0 | V35: 0 | W35: 0 | X35: 0 | Y35: 0 | Z35: 0 | AA35: 0 | AB35: 0 | AC35: 0 | AF35: 0 | AH35: 0 | AJ35: 0
A36: 7 | C36: r | D36: 0 | E36: 0 | F36: 0 | G36: 0 | I36: 0 | J36: 0 | K36: 0 | L36: 0 | M36: 0 | N36: 0 | Q36: 1 | R36: 1 | S36: 0 | T36: 0 | U36: 0 | V36: 0 | W36: 0 | X36: 0 | Y36: 0 | Z36: 0 | AA36: 0 | AB36: 0 | AC36: 0 | AF36: 0 | AH36: 0 | AJ36: 0
A37: 8 | C37: r | D37: 0 | E37: 0 | F37: 0 | G37: 0 | I37: 0 | J37: 0 | K37: 0 | L37: 0 | M37: 0 | N37: 0 | Q37: 1 | R37: 1 | S37: 0 | T37: 0 | U37: 0 | V37: 0 | W37: 0 | X37: 0 | Y37: 0 | Z37: 0 | AA37: 0 | AB37: 0 | AC37: 0 | AF37: 0 | AH37: 0 | AJ37: 0
A38: 9 | C38: r | D38: 0 | E38: 0 | F38: 0 | G38: 0 | I38: 0 | J38: 0 | K38: 0 | L38: 0 | M38: 0 | N38: 0 | Q38: 1 | R38: 1 | S38: 0 | T38: 0 | U38: 0 | V38: 0 | W38: 0 | X38: 0 | Y38: 0 | Z38: 0 | AA38: 0 | AB38: 0 | AC38: 0 | AF38: 0 | AH38: 0 | AJ38: 0
A39: 10 | C39: r | D39: 0 | E39: 0 | F39: 0 | G39: 0 | I39: 0 | J39: 0 | K39: 0 | L39: 0 | M39: 0 | N39: 0 | Q39: 1 | R39: 1 | S39: 0 | T39: 0 | U39: 0 | V39: 0 | W39: 0 | X39: 0 | Y39: 0 | Z39: 0 | AA39: 0 | AB39: 0 | AC39: 0 | AF39: 0 | AH39: 0 | AJ39: 0
A40: 11 | C40: r | D40: 0 | E40: 0 | F40: 0 | G40: 0 | I40: 0 | J40: 0 | K40: 0 | L40: 0 | M40: 0 | N40: 0 | Q40: 1 | R40: 1 | S40: 0 | T40: 0 | U40: 0 | V40: 0 | W40: 0 | X40: 0 | Y40: 0 | Z40: 0 | AA40: 0 | AB40: 0 | AC40: 0 | AF40: 0 | AH40: 0 | AJ40: 0
A41: 12 | C41: r | D41: 0 | E41: 0 | F41: 0 | G41: 0 | I41: 0 | J41: 0 | K41: 0 | L41: 0 | M41: 0 | N41: 0 | Q41: 1 | R41: 1 | S41: 0 | T41: 0 | U41: 0 | V41: 0 | W41: 0 | X41: 0 | Y41: 0 | Z41: 0 | AA41: 0 | AB41: 0 | AC41: 0 | AF41: 0 | AH41: 0 | AJ41: 0
A42: 13 | C42: r | D42: 0 | E42: 0 | F42: 0 | G42: 0 | I42: 0 | J42: 0 | K42: 0 | L42: 0 | M42: 0 | N42: 0 | Q42: 1 | R42: 1 | S42: 0 | T42: 0 | U42: 0 | V42: 0 | W42: 0 | X42: 0 | Y42: 0 | Z42: 0 | AA42: 0 | AB42: 0 | AC42: 0 | AF42: 0 | AH42: 0 | AJ42: 0
A43: 14 | C43: r | D43: 0 | E43: 0 | F43: 0 | G43: 0 | I43: 0 | J43: 0 | K43: 0 | L43: 0 | M43: 0 | N43: 0 | Q43: 1 | R43: 1 | S43: 0 | T43: 0 | U43: 0 | V43: 0 | W43: 0 | X43: 0 | Y43: 0 | Z43: 0 | AA43: 0 | AB43: 0 | AC43: 0 | AF43: 0 | AH43: 0 | AJ43: 0
A44: 15 | C44: r | D44: 0 | E44: 0 | F44: 0 | G44: 0 | I44: 0 | J44: 0 | K44: 0 | L44: 0 | M44: 0 | N44: 0 | Q44: 1 | R44: 1 | S44: 0 | T44: 0 | U44: 0 | V44: 0 | W44: 0 | X44: 0 | Y44: 0 | Z44: 0 | AA44: 0 | AB44: 0 | AC44: 0 | AF44: 0 | AH44: 0 | AJ44: 0
C45: Totals | F45: =SUM(F30:F44) -> 0 | G45: =SUMPRODUCT(G30:G44,$F30:$F44) -> 0 | I45: =SUM(I30:I44) -> 0 | L45: =SUMPRODUCT(L$30:L$44,$F$30:$F$44) -> 0 | M45: =SUMPRODUCT(M$30:M$44,$F$30:$F$44) -> 0 | N45: =SUMPRODUCT(N$30:N$44,$F$30:$F$44) -> 0 | Q45: 1 | R45: 1 | S45: 1 | T45: 1 | U45: 1 | V45: 1 | W45: 1 | X45: 1 | Y45: 1 | Z45: 1 | AA45: 1 | AB45: 1 | AC45: 1 | AF45: =SUM(AF30:AF44) -> 0 | AG45: =SUMPRODUCT(AG30:AG44,$C25:$C25) ->  | AH45: =SUMPRODUCT(AH30:AH44,$C25:$C25) ->  | AJ45: =SUMPRODUCT(AJ30:AJ44,$C25:$C25) -> 
C46: Averages | G46: =IF(OR(G45=0,F45=0),0,G45/F45) -> 0 | K46: =SUMPRODUCT(K$30:K$44,$F$30:$F$44)/F45 ->  | L46: =IF(OR(L45=0,$F45=0),0,L45/$F45) -> 0 | M46: =IF(OR(M45=0,$F45=0),0,M45/$F45) -> 0 | N46: =IF(OR(N45=0,$F45=0),0,N45/$F45) -> 0 | Q46: 1 | R46: 1 | S46: 1 | T46: 1 | U46: 1 | V46: 1 | W46: 1 | X46: 1 | Y46: 1 | Z46: 1 | AA46: 1 | AB46: 1 | AC46: 1 | AG46: =IF(OR(AG45=0,F45=0),0,AG45/#REF!) ->  | AH46: =IF(OR(AH45=0,#REF!=0),0,AH45/#REF!) ->  | AJ46: =IF(OR(AJ45=0,#REF!=0),0,AJ45/#REF!) -> 
Q47: 1 | R47: 1 | S47: 1 | T47: 1 | U47: 1 | V47: 1 | W47: 1 | X47: 1 | Y47: 1 | Z47: 1 | AA47: 1 | AB47: 1 | AC47: 1
C48: Key | D48: Unit Type | Q48: 1 | R48: 1 | S48: 1 | T48: 1 | U48: 1 | V48: 1 | W48: 1 | X48: 1 | Y48: 1 | Z48: 1 | AA48: 1 | AB48: 1 | AC48: 1
C49: R | D49: Restricted | Q49: 1 | R49: 1 | S49: 1 | T49: 1 | U49: 1 | V49: 1 | W49: 1 | X49: 1 | Y49: 1 | Z49: 1 | AA49: 1 | AB49: 1 | AC49: 1 | AF49: =SUMIF($D$14:$D$14,#REF!,AF$29:AF$43) -> 0
C50: MR | D50: Market Rate | Q50: 1 | R50: 1 | S50: 1 | T50: 1 | U50: 1 | V50: 1 | W50: 1 | X50: 1 | Y50: 1 | Z50: 1 | AA50: 1 | AB50: 1 | AC50: 1 | AF50: =SUMIF($D$14:$D$14,#REF!,AF$29:AF$43) -> 0
C51: MU | D51: Manager's Unit | Q51: 1 | R51: 1 | S51: 1 | T51: 1 | U51: 1 | V51: 1 | W51: 1 | X51: 1 | Y51: 1 | Z51: 1 | AA51: 1 | AB51: 1 | AC51: 1 | AF51: =SUMIF($D$14:$D$14,#REF!,AF$29:AF$43) -> 0
Q52: 1 | R52: 1 | S52: 1 | T52: 1 | U52: 1 | V52: 1 | W52: 1 | X52: 1 | Y52: 1 | Z52: 1 | AA52: 1 | AB52: 1 | AC52: 1
C53: The applicable fraction of | E53: =MIN(E20,G20) -> 0 | F53: will be maintained for the duration of the | J53: =+'1 Project Information'!I78 -> 30 | K53: affordability period and that the next available unit rule | Q53: 1 | R53: 1 | S53: 1 | T53: 1 | U53: =(IF(IsLocked(#REF!)*1=1,1,0)) ->  | V53: 1 | W53: 1 | X53: 1 | Y53: =(IF(IsLocked(E53)*1=1,1,0)) -> 0 | Z53: =(IF(IsLocked(#REF!)*1=1,1,0)) ->  | AA53: 1 | AB53: 1 | AC53: 1
C54: will be enforced. | Q54: 1 | R54: 1 | S54: =(IF(IsLocked(#REF!)*1=1,1,0)) ->  | T54: 1 | U54: 1 | V54: =(IF(IsLocked(K53)*1=1,1,0)) -> 1 | W54: 1 | X54: 1 | Y54: 1 | Z54: 1 | AA54: 1 | AB54: 1 | AC54: 1
Q55: 1 | R55: 1 | S55: 1 | T55: 1 | U55: 1 | V55: 1 | W55: 1 | X55: 1 | Y55: 1 | Z55: 1 | AA55: 1 | AB55: 1 | AC55: 1
Q56: 1 | R56: 1 | S56: 1 | T56: 0 | U56: 1 | V56: 1 | W56: 1 | X56: 1 | Y56: 1 | Z56: 1 | AA56: 1 | AB56: 1 | AC56: 1
Q57: 1 | R57: 1 | S57: 1 | T57: 1 | U57: 1 | V57: 1 | W57: 1 | X57: 1 | Y57: 1 | Z57: 1 | AA57: 1 | AB57: 1 | AC57: 1

Sheet Blank (hidden)
A1: =Div -> State of Nevada Housing Division | E1: TOC
A2: =nhd -> 2017 NHD FUNDING APPLICATION | E2: =ProjName -> 0
A3: Blank
A4: =CELL("filename") -> R:\Programs\Tax Credits\Applications\2017 LIHTC Applications\[2017 NHD Application - Final.xlsm]14 Amenities
B6: Date | C6: Worksheet | D6: Cell Loc | E6: Notes
B8: 2016-03-29 | C8: 7 Syndication | D8: I11 | E8: Widened cell (column) to allow 10 digit $number
B9: =+B8 -> 2016-03-29 | C9: 7 Syndication | D9: E17 | E9: Widened cell (column) to allow 10 digit $number
B10: 2016-03-29 | C10: 2 Self-Scoring | D10: H5 | E10: Widened cell (column) to allow 10 digit $number
B11: 2016-03-29 | C11: 3 Appl Frac | D11: F43 | E11: Changed Unit Fraction formula to allow for 100% LI units (no mgr unit)
B12: =+B11 -> 2016-03-29 | C12: =+C11 -> 3 Appl Frac | D12: J | E12: Removed prior column J as being unnecessary; cleared up titles
B13: =+B12 -> 2016-03-29 | C13: 4 Utilities | D13: D7 | E13: Switched to Yes/No radio button option
B14: =+B13 -> 2016-03-29 | C14: =+C13 -> 4 Utilities | D14: regions | E14: Added more Yes-No buttons
